Workbook

Sheet Cover
A5: Part 4 IM Review 2023
A6: Revised demonstration model:
A7: Inflation wash-up
A21: 2023-12-13

Sheet Table of contents
B1: Table of Contents
B3: Sheet name | C3: Link | D3: Description
B4: Description and approach | C4: Description and approach | D4: Description of model, general notes, background and glossary
B5: Simplifying assumptions | C5: Simplifying assumptions | D5: List of simplifying assumptions applied to the model for demonstration purposes
B6: Macro | C6: Macro | D6: Macro to goal seek the forecast revenue for each calculation sheet following any updates of the inputs.
B7: Inputs - forecast | C7: Inputs - forecast | D7: This sheet shows all the forecast inputs and can be updated for opex, capex and CPI scenarios
B8: Inputs - actual | C8: Inputs - actual | D8: This sheet shows the actual assumptions, and can be updated for different outturn inflation scenarios.
B9: 1 Status quo - no CODW | C9: 1 Starting point excl CODW | D9: No cost of debt adjustment - this is our final decision.
B10: 2 Incl. CODW | C10: 2 Incl CODW | D10: Cost of debt adjustment
B11: 2b Incl. CODW smoothed | C11: 2b Incl CODW smoothed | D11: Cost of debt adjustment with smoothing
B12: 3 Hybrid RAB | C12: 3 Hybrid RAB | D12: Indexing only the equity portion of the RAB
B13: 4 Debt forecast | C13: 4 Debt forecast | D13: Wash-up only the equity portion of the RAB
B14: 5 Blended CPI | C14: 5 Blended CPI | D14: Revenue and RAB wash-up using blended CPI
B15: Inputs - forecast (CEG) | C15: Inputs - forecast (CEG) | D15: This sheet shows all the forecast inputs and can be updated for opex, capex and CPI scenarios
B16: Inputs - actual (CEG) | C16: Inputs - actual (CEG) | D16: This sheet shows the actual assumptions, and can be updated for different outturn inflation scenarios.
B17: 6 CEG submission recalculation | C17: 5 Blended CPI | D17: Alternative to blended CPI option submitted by CEG
B18: 7 CEG alt | C18: 7 CEG alt | D18: CEG blended option expanded to include tax, opex, capex and depreciation.

Sheet Description and approach
A1: Description
C2: This model is published alongside the “Financing and incentivising efficient expenditure during the energy transition topic paper – Part 4 Input Methodologies Review 2023 – Final decision" paper. The purpose of this model is to demonstrate the different options we considered to account for the interaction of inflation and the cost of debt: 1) In our IM review draft decision paper; 2) In the further consultation on the IM review draft decision on the cost of debt wash-up; 3) Proposals from submissions on the draft decision and further consultation; and 4) In reaching our final decision. Our final decision is to retain the status quo (i.e. not to introduce a cost of debt wash-up adjustment). This model includes the following options that were considered in reaching our final decision: 1) The status quo excluding the CODW, prior to the draft decision with revenue fully washed up for outturn inflation and no cost of debt wash-up adjustment (CODW); 2) Our draft decision which added the CODW to the status quo [Incl. CODW]; 2b) Our draft decision with the CODW impacts spread over 5 years [Incl. CODW smoothed; 3) Hybrid RAB proposed by CEG following the draft decision; 4) Debt forecast approach proposed CEG following the draft decision; 5) An alternative where we wash-up the RAB and revenue by a blended CPI, with appropriate adjustments to account for the opex and capex inflators; and 6/7) CEG's approach where revenue is fully washed-up and RAB is revalued by a rate lower than CPI, proposed by CEG after the further consultation. Calculations 2 to 7 assume the cost of debt is fixed, while calculation 1 assumes the cost of debt is variable.
C3: Calculations in this workbook are essentially the same as the models we published during our draft decision consultation and further consultation. The following changes were made: - Rows 112-129 added to show returns on actual assets (in addition to the return on RAB previously included). This demostrates the point in 4.169 of the accompanying paper that when the RAB is revalued for inflation, suppliers do not need to adjust their debt to maintain the benchmark leverage; - Forecast WACC used for the wash-up account time value of money adjustments to be consistent with the IMs; - Further explanatory notes added; - Sheets 6 and 7 added to demonstrate CEG's proposal; - Row 84 in sheets 2 and 2b (adjustment of revenue smoothing due to use of 8.04% rather than 9.30% WACC) were altered the show the annual impact, rather than the impact over the entire 10-year period as in the model for further consultation).
C4: Our decision and reasons for not introducing a CODW and instead reverting to the status quo are set out at topic 4b of our topic paper “Financing and incentivising efficient expenditure during the energy transition topic paper – Part 4 Input Methodologies Review 2023 – Final decision"
A5: Background
C6: As we explained in section 4b of the topic paper, NPV = 0 is achieved when the present value of revenue is equal to the present value of efficiently-incurred costs, when calculated over the life of the assets. The calculation can be done by either using the building blocks or by using cash flows. If cash flows are used, costs include capital expenditure, operating expenditure and tax and account for the opening and closing values of the asset base.
C7: Inflation should be accounted for in a way that achieves NPV = 0.
A8: Model design and structure
C9: The model is designed to calculate the forecast and actual regulatory accounts for each scenario based on the forecast and actual inputs and to make it easy to compare the different scenarios: The top half of each calculation sheet contains the forecast revenue building blocks, regulatory cash flows, RAB and tax calculations based on the forecast inputs. Forecast NPV=0 is demonstrated. The bottom half of each sheet contains the actual revenue building blocks, regulatory cash flows, RAB and tax calculations based on the actual inputs (default is high outturn inflation of 5% p.a. compared to 2% forecast inflation). The Draft IM consultation model published during the main IM consultation showed the returns in terms of actual assets, while this updated model shows returns on the actual RAB to better align with the IM drafting. This change is presentational only and has no impact on the calculated NPV/ IRR. The actual real IRR and NPV of building blocks and regulatory cash flows are calculated to determine if the real IRR equals the expected real WACC and whether the NPV=0 principle is achieved for the actual inflation scenario input.
A10: General notes
B11: 1 | C11: Financial quantities in this model are expressed in NZD $m
B12: =B11+1 -> 2 | C12: Dummy data is used for illustrative purposes.
B13: =B12+1 -> 3 | C13: The macro in the 'Macro' sheet goal seeks revenue for each of the calculation sheets so that NPV of revenue = NPV of expenditure for the two 5-years periods. E.g., goal seeks revenue in '1 Starting point excl. CODW'! Cell K68 and P75 to set cells K69 and P76 to zero.
B14: =B13+1 -> 4 | C14: A lighter font is used for cells containing a formula linking to another sheet. A red font is applied to input cells. Grey shading is used to draw attention to certain cells e.g. where formulas differ for the indexed and non-indexed RAB approach.
B15: =B14+1 -> 5 | C15: Wherever two horizontally adjacent cells contain numerical formulas which differ, an orange vertical border has been placed between the cells to indicate that the cell formulas are different.
B16: =B15+1 -> 6 | C16: This model should not be used for any other purpose than described above.
A18: Glossary
C19: ANAR: Actual net allowable revenue
C20: FNAR: Forecast net allowable revenue
C21: MAR: Maximum allowable revenue per DPP
C22: AR: Actual revenue
C23: DPP: Default price path
C24: CODW: Cost of debt wash-up
C25: CPI: Consumers price index
C26: FCM: Financial capital maintenance
C27: IM: Input methodology
C28: IRR: Internal rate of return
C29: MAR: Maximum allowable revenue
C30: NPV: Net present value
C31: RAB: Regulatory asset base
C32: WA: Wash-up accrual
C33: WD: Wash-up drawdown
C34: WAB: Wash-up account balance
C35: WACC: Weighted average cost of capital

Sheet Simplifying assumptions
A1: Simplifying assumptions
C3: The demonstration models use the following simplifying assumptions:
B5: 1 | C5: The revenue wash-up occurs in the same year as the higher inflation. In practice, there is a delay until the wash-up occurs and we apply a present value adjustment to ensure suppliers are compensated for the delay. The impact of this delay is shown in lines 162-167 of the calculation sheets.
B6: =B5+1 -> 2 | C6: There is only one deflator, which is CPI. In practice, there are separate deflators used for capital expenditure and operating expenditure.
B7: =B6+1 -> 3 | C7: The RAB is fully depreciated over the period of the model and we only include capex in the first 9 years. This is to enable full depreciation of the RAB by year 10. In practice, the RAB will either continue to increase or stabilise, depending on whether customer growth exceeds replacement capital expenditure.
B8: 4 | C8: The depreciation calculation is not IM compliant. To achieve a zero closing balance by year 10, we calculated depreciation on the opening RAB including revaluations, rather than just on the opening RAB.
B9: 5 | C9: The actual closing RAB at the end of the first regulatory period is calculated by re-basing the RAB based on actual CPI. In practice, the closing RAB value will vary somewhat from this, as changes in capex inflation will not perfectly follow CPI.
B10: 6 | C10: For each of the forecast and actuals, we have used a consistent inflator across the 10 years (2% forecast and 5% actual). Any actual inflation scenario can be entered in the actual inputs (cell E15-25).
B11: 7 | C11: We have assumed all values are end of year values for the NPV=0 calculations.
B12: 8 | C12: We assume MAR as per the DPP model = FNAR. In reality there will be an intermediate step when setting prices (FNAR), updating for updated forecast CPI. We also assume FNAR = AR (no volume differences).
B13: 9 | C13: The wash-ups will, under normal circumstances, be smaller than indicated in this model because prices are set annually (FNAR: forecast net allowable revenue) with updated forecast CPI (2-year updated CPI proposed for decision), while this model only shows forecast revenue as set at the DPP reset.
C15: These assumptions should not affect our findings. They just make it more straightforward to show that NPV=0 is achieved.

Sheet Macro
A1: Macro
B2: The macro needs to be run if any changes are made to the inputs. This goal seeks revenue for each of the calculation sheets so that NPV of revenue = NPV of expenditure for the two 5-years periods. E.g., goal seeks revenue for each calculation sheet Cell K68 and P75 to set cells K69 and P76 to zero.

Sheet Inputs - forecast
A1: Inputs - forecast
E2: 2020-06-30 | F2: 2021-06-30 | G2: 2022-06-30 | H2: 2023-06-30 | I2: 2024-06-30 | J2: 2025-06-30 | K2: 2026-06-30 | L2: 2027-06-30 | M2: 2028-06-30 | N2: 2029-06-30 | O2: 2030-06-30 | P2: Average
E3: Note: Run macro after maing changes to inputs
A4: Predicted inflation rate | E4: 0.02 | F4: 0.02 | G4: 0.02 | H4: 0.02 | I4: 0.02 | J4: 0.02 | K4: 0.02 | L4: 0.02 | M4: 0.02 | N4: 0.02 | O4: 0.02 | P4: =(((1+F4)*(1+G4)*(1+H4)*(1+I4)*(1+J4)*(1+K4)*(1+L4)*(1+M4)*(1+N4)*(1+O4))^0.1)-1 -> 0.02
B5: CPI (end of period) | E5: 1 | F5: =E5*(1+F4) -> 1.02 | G5: 1.0404 | H5: 1.061208 | I5: 1.08243216 | J5: 1.104080803 | K5: 1.126162419 | L5: 1.148685668 | M5: 1.171659381 | N5: 1.195092569 | O5: 1.21899442
A7: Rebased CPI (end of period) | E7: 1 | F7: =E7*(1+F8) -> 1.02 | G7: =F7*(1+G8) -> 1.0404 | H7: =G7*(1+H8) -> 1.061208 | I7: =H7*(1+I8) -> 1.08243216 | J7: =I7*(1+J8) -> 1.104080803 | K7: ='Inputs - actual'!J5*(1+'Inputs - forecast'!K8) -> 1.301807194 | L7: =K7*(1+L8) -> 1.327843338 | M7: =L7*(1+M8) -> 1.354400204 | N7: =M7*(1+N8) -> 1.381488208 | O7: =N7*(1+O8) -> 1.409117973
B8: Predicted inflation rate | E8: =E4 -> 0.02 | F8: 0.02 | G8: 0.02 | H8: 0.02 | I8: 0.02 | J8: 0.02 | K8: 0.02 | L8: 0.02 | M8: 0.02 | N8: 0.02 | O8: 0.02
A10: Financials ($ of 30 June 2020)
B11: Opex | F11: 100 | G11: 100 | H11: 100 | I11: 100 | J11: 100 | K11: 100 | L11: 100 | M11: 100 | N11: 100 | O11: 100
B12: Capex | F12: 200 | G12: 200 | H12: 200 | I12: 200 | J12: 200 | K12: 100 | L12: 100 | M12: 100 | N12: 100 | O12: 0 | P12: Do not enter capex in last year, as depreciation is calculated on opening RAB value and therefore RAB will not be fully depreciated if capex included in last year.
B13: Opening RAB | E13: 3000
A15: Financials (nominal)
B16: Opex | F16: =F11*F7 -> 102 | G16: 104.04 | H16: 106.1208 | I16: 108.243216 | J16: 110.4080803 | K16: 130.1807194 | L16: 132.7843338 | M16: 135.4400204 | N16: 138.1488208 | O16: 140.9117973
B17: Capex | F17: =F12*F7 -> 204 | G17: 208.08 | H17: 212.2416 | I17: 216.486432 | J17: 220.8161606 | K17: 130.1807194 | L17: 132.7843338 | M17: 135.4400204 | N17: 138.1488208 | O17: 0
B18: Opening RAB | E18: =E13/E5 -> 3000
A20: Asset lives
B21: Initial RAB | D21: 10
B22: Capex | D22: 10
A24: WACC (nominal)
B25: Cost of equity | E25: 0.07 | F25: 0.07 | G25: 0.07 | H25: 0.07 | I25: 0.07 | J25: 0.07 | K25: 0.07 | L25: 0.07 | M25: 0.07 | N25: 0.07 | O25: 0.07
B26: Cost of debt | E26: 0.05 | F26: 0.05 | G26: 0.05 | H26: 0.05 | I26: 0.05 | J26: 0.05 | K26: 0.05 | L26: 0.05 | M26: 0.05 | N26: 0.05 | O26: 0.05
B28: Leverage | E28: 0.41 | F28: 0.41 | G28: 0.41 | H28: 0.41 | I28: 0.41 | J28: 0.41 | K28: 0.41 | L28: 0.41 | M28: 0.41 | N28: 0.41 | O28: 0.41
B29: Tax rate | E29: 0.28 | F29: 0.28 | G29: 0.28 | H29: 0.28 | I29: 0.28 | J29: 0.28 | K29: 0.28 | L29: 0.28 | M29: 0.28 | N29: 0.28 | O29: 0.28
P30: Average
B31: Cost of capital (vanilla, nominal) | E31: =E$26*E$28+E$25*(1-E$28) -> 0.0618 | F31: 0.0618 | G31: 0.0618 | H31: 0.0618 | I31: 0.0618 | J31: 0.0618 | K31: 0.0618 | L31: 0.0618 | M31: 0.0618 | N31: 0.0618 | O31: 0.0618 | P31: =(((1+F31)*(1+G31)*(1+H31)*(1+I31)*(1+J31)*(1+K31)*(1+L31)*(1+M31)*(1+N31)*(1+O31))^0.1)-1 -> 0.0618
B32: Cost of capital (vanilla, real) | E32: =(1+E$31)/(1+E$4)-1 -> 0.04098039216 | F32: 0.04098039216 | G32: 0.04098039216 | H32: 0.04098039216 | I32: 0.04098039216 | J32: 0.04098039216 | K32: 0.04098039216 | L32: 0.04098039216 | M32: 0.04098039216 | N32: 0.04098039216 | O32: 0.04098039216 | P32: =(((1+F32)*(1+G32)*(1+H32)*(1+I32)*(1+J32)*(1+K32)*(1+L32)*(1+M32)*(1+N32)*(1+O32))^0.1)-1 -> 0.04098039216
A34: Vanilla (nominal)
B35: Compounding factor step 1 | E35: =1+E31 -> 1.0618 | F35: 1.0618 | G35: 1.0618 | H35: 1.0618 | I35: 1.0618 | J35: 1.0618 | K35: 1.0618 | L35: 1.0618 | M35: 1.0618 | N35: 1.0618 | O35: 1.0618
B36: Compounding factor step 2 | E36: 1 | F36: =E36*F35 -> 1.0618 | G36: =F36*G35 -> 1.12741924 | H36: 1.197093749 | I36: 1.271074143 | J36: 1.349626525 | K36: 1.433033444 | L36: 1.521594911 | M36: 1.615629476 | N36: 1.715475378 | O36: 1.821491756
A38: Vanilla (real)
B39: Compounding factor step 1 | E39: =1+E32 -> 1.040980392 | F39: 1.040980392 | G39: 1.040980392 | H39: 1.040980392 | I39: 1.040980392 | J39: 1.040980392 | K39: 1.040980392 | L39: 1.040980392 | M39: 1.040980392 | N39: 1.040980392 | O39: 1.040980392
B40: Compounding factor step 2 | E40: 1 | F40: =E40*F39 -> 1.040980392 | G40: 1.083640177 | H40: 1.128048176 | I40: 1.174276033 | J40: 1.222398325 | K40: 1.272492688 | L40: 1.324639937 | M40: 1.378924201 | N40: 1.435433056 | O40: 1.494257666

Sheet Inputs - actual
A1: Inputs - actual
E2: ='Inputs - forecast'!E2 -> 2020-06-30 | F2: ='Inputs - forecast'!F2 -> 2021-06-30 | G2: ='Inputs - forecast'!G2 -> 2022-06-30 | H2: ='Inputs - forecast'!H2 -> 2023-06-30 | I2: ='Inputs - forecast'!I2 -> 2024-06-30 | J2: ='Inputs - forecast'!J2 -> 2025-06-30 | K2: ='Inputs - forecast'!K2 -> 2026-06-30 | L2: ='Inputs - forecast'!L2 -> 2027-06-30 | M2: ='Inputs - forecast'!M2 -> 2028-06-30 | N2: ='Inputs - forecast'!N2 -> 2029-06-30 | O2: ='Inputs - forecast'!O2 -> 2030-06-30 | P2: Average
E3: Note: Run macro after maing changes to inputs
A4: Actual inflation rate | E4: 0.05 | F4: 0.05 | G4: 0.05 | H4: 0.05 | I4: 0.05 | J4: 0.05 | K4: 0.05 | L4: 0.05 | M4: 0.05 | N4: 0.05 | O4: 0.05 | P4: =(((1+F4)*(1+G4)*(1+H4)*(1+I4)*(1+J4)*(1+K4)*(1+L4)*(1+M4)*(1+N4)*(1+O4))^0.1)-1 -> 0.05
B5: CPI (end of period) | E5: 1 | F5: =E5*(1+F4) -> 1.05 | G5: 1.1025 | H5: 1.157625 | I5: 1.21550625 | J5: 1.276281563 | K5: 1.340095641 | L5: 1.407100423 | M5: 1.477455444 | N5: 1.551328216 | O5: 1.628894627
A7: Financials ($ of 30 June 2020)
B8: Opex | F8: ='Inputs - forecast'!F11 -> 100 | G8: ='Inputs - forecast'!G11 -> 100 | H8: ='Inputs - forecast'!H11 -> 100 | I8: ='Inputs - forecast'!I11 -> 100 | J8: ='Inputs - forecast'!J11 -> 100 | K8: ='Inputs - forecast'!K11 -> 100 | L8: ='Inputs - forecast'!L11 -> 100 | M8: ='Inputs - forecast'!M11 -> 100 | N8: ='Inputs - forecast'!N11 -> 100 | O8: ='Inputs - forecast'!O11 -> 100
B9: Capex | F9: ='Inputs - forecast'!F12 -> 200 | G9: ='Inputs - forecast'!G12 -> 200 | H9: ='Inputs - forecast'!H12 -> 200 | I9: ='Inputs - forecast'!I12 -> 200 | J9: ='Inputs - forecast'!J12 -> 200 | K9: ='Inputs - forecast'!K12 -> 100 | L9: ='Inputs - forecast'!L12 -> 100 | M9: ='Inputs - forecast'!M12 -> 100 | N9: ='Inputs - forecast'!N12 -> 100 | O9: ='Inputs - forecast'!O12 -> 0
B10: Opening RAB | E10: ='Inputs - forecast'!E18 -> 3000
A12: Financials (nominal)
B13: Opex | F13: =F8*F$5 -> 105 | G13: =G8*G$5 -> 110.25 | H13: 115.7625 | I13: 121.550625 | J13: 127.6281563 | K13: 134.0095641 | L13: 140.7100423 | M13: 147.7455444 | N13: 155.1328216 | O13: 162.8894627
B14: Capex | F14: =F9*F5 -> 210 | G14: 220.5 | H14: 231.525 | I14: 243.10125 | J14: 255.2563125 | K14: 134.0095641 | L14: 140.7100423 | M14: 147.7455444 | N14: 155.1328216 | O14: 0
B15: Opening RAB | E15: =E10*E5 -> 3000
A17: WACC (nominal)
B18: Cost of equity | E18: =(1+'Inputs - forecast'!E25)/(1+'Inputs - forecast'!E4)*(1+E4)-1 -> 0.1014705882 | F18: =(1+'Inputs - forecast'!F25)/(1+'Inputs - forecast'!F4)*(1+F4)-1 -> 0.1014705882 | G18: =(1+'Inputs - forecast'!G25)/(1+'Inputs - forecast'!G4)*(1+G4)-1 -> 0.1014705882 | H18: =(1+'Inputs - forecast'!H25)/(1+'Inputs - forecast'!H4)*(1+H4)-1 -> 0.1014705882 | I18: =(1+'Inputs - forecast'!I25)/(1+'Inputs - forecast'!I4)*(1+I4)-1 -> 0.1014705882 | J18: =(1+'Inputs - forecast'!J25)/(1+'Inputs - forecast'!J4)*(1+J4)-1 -> 0.1014705882 | K18: =(1+'Inputs - forecast'!K25)/(1+'Inputs - forecast'!K4)*(1+K4)-1 -> 0.1014705882 | L18: =(1+'Inputs - forecast'!L25)/(1+'Inputs - forecast'!L4)*(1+L4)-1 -> 0.1014705882 | M18: =(1+'Inputs - forecast'!M25)/(1+'Inputs - forecast'!M4)*(1+M4)-1 -> 0.1014705882 | N18: =(1+'Inputs - forecast'!N25)/(1+'Inputs - forecast'!N4)*(1+N4)-1 -> 0.1014705882 | O18: =(1+'Inputs - forecast'!O25)/(1+'Inputs - forecast'!O4)*(1+O4)-1 -> 0.1014705882
B19: Cost of debt | D19: Note | E19: =(1+'Inputs - forecast'!E26)/(1+'Inputs - forecast'!E4)*(1+E4)-1 -> 0.08088235294 | F19: =(1+'Inputs - forecast'!F$26)/(1+'Inputs - forecast'!F$4)*(1+F$4)-1 -> 0.08088235294 | G19: =(1+'Inputs - forecast'!G26)/(1+'Inputs - forecast'!G4)*(1+G4)-1 -> 0.08088235294 | H19: =(1+'Inputs - forecast'!H26)/(1+'Inputs - forecast'!H4)*(1+H4)-1 -> 0.08088235294 | I19: =(1+'Inputs - forecast'!I26)/(1+'Inputs - forecast'!I4)*(1+I4)-1 -> 0.08088235294 | J19: =(1+'Inputs - forecast'!J26)/(1+'Inputs - forecast'!J4)*(1+J4)-1 -> 0.08088235294 | K19: =(1+'Inputs - forecast'!K26)/(1+'Inputs - forecast'!K4)*(1+K4)-1 -> 0.08088235294 | L19: =(1+'Inputs - forecast'!L26)/(1+'Inputs - forecast'!L4)*(1+L4)-1 -> 0.08088235294 | M19: =(1+'Inputs - forecast'!M26)/(1+'Inputs - forecast'!M4)*(1+M4)-1 -> 0.08088235294 | N19: =(1+'Inputs - forecast'!N26)/(1+'Inputs - forecast'!N4)*(1+N4)-1 -> 0.08088235294 | O19: =(1+'Inputs - forecast'!O26)/(1+'Inputs - forecast'!O4)*(1+O4)-1 -> 0.08088235294
B20: Leverage | E20: ='Inputs - forecast'!E28 -> 0.41 | F20: ='Inputs - forecast'!F28 -> 0.41 | G20: ='Inputs - forecast'!G28 -> 0.41 | H20: ='Inputs - forecast'!H28 -> 0.41 | I20: ='Inputs - forecast'!I28 -> 0.41 | J20: ='Inputs - forecast'!J28 -> 0.41 | K20: ='Inputs - forecast'!K28 -> 0.41 | L20: ='Inputs - forecast'!L28 -> 0.41 | M20: ='Inputs - forecast'!M28 -> 0.41 | N20: ='Inputs - forecast'!N28 -> 0.41 | O20: ='Inputs - forecast'!O28 -> 0.41
B21: Tax rate | E21: ='Inputs - forecast'!E29 -> 0.28 | F21: ='Inputs - forecast'!F29 -> 0.28 | G21: ='Inputs - forecast'!G29 -> 0.28 | H21: ='Inputs - forecast'!H29 -> 0.28 | I21: ='Inputs - forecast'!I29 -> 0.28 | J21: ='Inputs - forecast'!J29 -> 0.28 | K21: ='Inputs - forecast'!K29 -> 0.28 | L21: ='Inputs - forecast'!L29 -> 0.28 | M21: ='Inputs - forecast'!M29 -> 0.28 | N21: ='Inputs - forecast'!N29 -> 0.28 | O21: ='Inputs - forecast'!O29 -> 0.28
B23: Cost of capital (vanilla, nominal) | E23: =E$19*E$20+E$18*(1-E$20) -> 0.09302941176 | F23: =F$19*F$20+F$18*(1-F$20) -> 0.09302941176 | G23: 0.09302941176 | H23: 0.09302941176 | I23: 0.09302941176 | J23: 0.09302941176 | K23: 0.09302941176 | L23: 0.09302941176 | M23: 0.09302941176 | N23: 0.09302941176 | O23: 0.09302941176 | P23: =(((1+F23)*(1+G23)*(1+H23)*(1+I23)*(1+J23)*(1+K23)*(1+L23)*(1+M23)*(1+N23)*(1+O23))^0.1)-1 -> 0.09302941176
B24: Cost of capital (vanilla, real) | E24: =(1+E$23)/(1+E$4)-1 -> 0.04098039216 | F24: 0.04098039216 | G24: 0.04098039216 | H24: 0.04098039216 | I24: 0.04098039216 | J24: 0.04098039216 | K24: 0.04098039216 | L24: 0.04098039216 | M24: 0.04098039216 | N24: 0.04098039216 | O24: 0.04098039216 | P24: =(((1+F24)*(1+G24)*(1+H24)*(1+I24)*(1+J24)*(1+K24)*(1+L24)*(1+M24)*(1+N24)*(1+O24))^0.1)-1 -> 0.04098039216
A26: Vanilla (nominal)
B27: Compounding factor step 1 | E27: =1+E23 -> 1.093029412 | F27: 1.093029412 | G27: 1.093029412 | H27: 1.093029412 | I27: 1.093029412 | J27: 1.093029412 | K27: 1.093029412 | L27: 1.093029412 | M27: 1.093029412 | N27: 1.093029412 | O27: 1.093029412
B28: Compounding factor step 2 | E28: 1 | F28: =E28*F27 -> 1.093029412 | G28: =F28*G27 -> 1.194713295 | H28: 1.30585677 | I28: 1.427339857 | J28: 1.560124445 | K28: 1.705261904 | L28: 1.863901416 | M28: 2.037299068 | N28: 2.226827802 | O28: 2.433988282
A30: Vanilla (real)
B31: Compounding factor step 1 | E31: =1+E24 -> 1.040980392 | F31: 1.040980392 | G31: 1.040980392 | H31: 1.040980392 | I31: 1.040980392 | J31: 1.040980392 | K31: 1.040980392 | L31: 1.040980392 | M31: 1.040980392 | N31: 1.040980392 | O31: 1.040980392
B32: Compounding factor step 2 | E32: 1 | F32: =E32*F31 -> 1.040980392 | G32: 1.083640177 | H32: 1.128048176 | I32: 1.174276033 | J32: 1.222398325 | K32: 1.272492688 | L32: 1.324639937 | M32: 1.378924201 | N32: 1.435433056 | O32: 1.494257666
A34: Blended Cost of capital (nominal) | D34: Note on calculation of blended cost of capital | F34: ='Inputs - forecast'!F26*F20+(F18*(1-F20)) -> 0.08036764706 | G34: ='Inputs - forecast'!G26*G20+(G18*(1-G20)) -> 0.08036764706 | H34: ='Inputs - forecast'!H26*H20+(H18*(1-H20)) -> 0.08036764706 | I34: ='Inputs - forecast'!I26*I20+(I18*(1-I20)) -> 0.08036764706 | J34: ='Inputs - forecast'!J26*J20+(J18*(1-J20)) -> 0.08036764706 | K34: ='Inputs - forecast'!K26*K20+(K18*(1-K20)) -> 0.08036764706 | L34: ='Inputs - forecast'!L26*L20+(L18*(1-L20)) -> 0.08036764706 | M34: ='Inputs - forecast'!M26*M20+(M18*(1-M20)) -> 0.08036764706 | N34: ='Inputs - forecast'!N26*N20+(N18*(1-N20)) -> 0.08036764706 | O34: ='Inputs - forecast'!O26*O20+(O18*(1-O20)) -> 0.08036764706 | P34: =(((1+F34)*(1+G34)*(1+H34)*(1+I34)*(1+J34)*(1+K34)*(1+L34)*(1+M34)*(1+N34)*(1+O34))^0.1)-1 -> 0.08036764706
B35: Compounding factor step 1 | E35: 1 | F35: =1+F34 -> 1.080367647 | G35: =1+G34 -> 1.080367647 | H35: 1.080367647 | I35: 1.080367647 | J35: 1.080367647 | K35: 1.080367647 | L35: 1.080367647 | M35: 1.080367647 | N35: 1.080367647 | O35: 1.080367647
B36: Compounding factor step 2 | E36: 1 | F36: =E36*F35 -> 1.080367647 | G36: =F36*G35 -> 1.167194253 | H36: 1.260998909 | I36: 1.362342424 | J36: 1.471830679 | K36: 1.590118247 | L36: 1.71791231 | M36: 1.85597688 | N36: 2.005137374 | O36: 2.166285547
A38: Blended inflation rate | F38: =(1+F34)/(1+F24)-1 -> 0.03783669241 | G38: 0.03783669241 | H38: 0.03783669241 | I38: 0.03783669241 | J38: 0.03783669241 | K38: 0.03783669241 | L38: 0.03783669241 | M38: 0.03783669241 | N38: 0.03783669241 | O38: 0.03783669241
B39: Underlying inflation index | E39: 1 | F39: =E39*(1+F38) -> 1.037836692 | G39: =F39*(1+G38) -> 1.077105 | H39: 1.117859091 | I39: 1.160155181 | J39: 1.204051616 | K39: 1.249608947 | L39: 1.296890016 | M39: 1.345960045 | N39: 1.396886721 | O39: 1.449740294
B40: Rebased forecast index | E40: ='Inputs - forecast'!E7 -> 1 | F40: ='Inputs - forecast'!F7 -> 1.02 | G40: ='Inputs - forecast'!G7 -> 1.0404 | H40: ='Inputs - forecast'!H7 -> 1.061208 | I40: ='Inputs - forecast'!I7 -> 1.08243216 | J40: ='Inputs - forecast'!J7 -> 1.104080803 | K40: =J39*(1+'Inputs - forecast'!K8) -> 1.228132648 | L40: =K40*(1+'Inputs - forecast'!L8) -> 1.252695301 | M40: =L40*(1+'Inputs - forecast'!M8) -> 1.277749207 | N40: =M40*(1+'Inputs - forecast'!N8) -> 1.303304191 | O40: =N40*(1+'Inputs - forecast'!O8) -> 1.329370275
A42: Blended Cost of capital (real) | F42: =(1+F34)/(1+F38)-1 -> 0.04098039216 | G42: 0.04098039216 | H42: 0.04098039216 | I42: 0.04098039216 | J42: 0.04098039216 | K42: 0.04098039216 | L42: 0.04098039216 | M42: 0.04098039216 | N42: 0.04098039216 | O42: 0.04098039216
B43: Compounding factor step 1 | E43: 1 | F43: =1+F42 -> 1.040980392 | G43: 1.040980392 | H43: 1.040980392 | I43: 1.040980392 | J43: 1.040980392 | K43: 1.040980392 | L43: 1.040980392 | M43: 1.040980392 | N43: 1.040980392 | O43: 1.040980392
B44: Compounding factor step 2 | E44: 1 | F44: =E44*F43 -> 1.040980392 | G44: 1.083640177 | H44: 1.128048176 | I44: 1.174276033 | J44: 1.222398325 | K44: 1.272492688 | L44: 1.324639937 | M44: 1.378924201 | N44: 1.435433056 | O44: 1.494257666

Sheet 1 Status quo - no CODW
A1: Calculation
A3: Analysis
A10: Calculation
A11: Forecast | D11: Return over forecast period | E11: ='Inputs - forecast'!E2 -> 2020-06-30 | F11: ='Inputs - forecast'!F2 -> 2021-06-30 | G11: ='Inputs - forecast'!G2 -> 2022-06-30 | H11: ='Inputs - forecast'!H2 -> 2023-06-30 | I11: ='Inputs - forecast'!I2 -> 2024-06-30 | J11: ='Inputs - forecast'!J2 -> 2025-06-30 | K11: ='Inputs - forecast'!K2 -> 2026-06-30 | L11: ='Inputs - forecast'!L2 -> 2027-06-30 | M11: ='Inputs - forecast'!M2 -> 2028-06-30 | N11: ='Inputs - forecast'!N2 -> 2029-06-30 | O11: ='Inputs - forecast'!O2 -> 2030-06-30
A12: Building blocks
B13: Revenue | F13: =K69 -> 603.4311571 | G13: =F13*(1+'Inputs - forecast'!G4) -> 615.4997802 | H13: =G13*(1+'Inputs - forecast'!H4) -> 627.8097758 | I13: =H13*(1+'Inputs - forecast'!I4) -> 640.3659713 | J13: =I13*(1+'Inputs - forecast'!J4) -> 653.1732908 | K13: =P76 -> 967.5871891 | L13: =K13*(1+'Inputs - forecast'!L4) -> 986.9389329 | M13: =L13*(1+'Inputs - forecast'!M4) -> 1006.677712 | N13: =M13*(1+'Inputs - forecast'!N4) -> 1026.811266 | O13: =N13*(1+'Inputs - forecast'!O4) -> 1047.347491
B14: Return on debt | F14: =-SUM(F$38)*'Inputs - forecast'!F$28*'Inputs - forecast'!F$26 -> -61.5 | G14: =-SUM(G$38)*'Inputs - forecast'!G$28*'Inputs - forecast'!G$26 -> -60.639 | H14: =-SUM(H$38)*'Inputs - forecast'!H$28*'Inputs - forecast'!H$26 -> -59.245 | I14: =-SUM(I$38)*'Inputs - forecast'!I$28*'Inputs - forecast'!I$26 -> -57.2271153 | J14: =-SUM(J$38)*'Inputs - forecast'!J$28*'Inputs - forecast'!J$26 -> -54.47082123 | K14: =-SUM(K$38)*'Inputs - forecast'!K$28*'Inputs - forecast'!K$26 -> -58.75428013 | L14: =-SUM(L$38)*'Inputs - forecast'!L$28*'Inputs - forecast'!L$26 -> -50.61219733 | M14: =-SUM(M$38)*'Inputs - forecast'!M$28*'Inputs - forecast'!M$26 -> -41.4404098 | N14: =-SUM(N$38)*'Inputs - forecast'!N$28*'Inputs - forecast'!N$26 -> -30.95599908 | O14: =-SUM(O$38)*'Inputs - forecast'!O$28*'Inputs - forecast'!O$26 -> -18.61961036
B15: Return on equity | F15: =-SUM(F$38)*(1-'Inputs - forecast'!F$28)*'Inputs - forecast'!F$25 -> -123.9 | G15: =-SUM(G$38)*(1-'Inputs - forecast'!G$28)*'Inputs - forecast'!G$25 -> -122.1654 | H15: =-SUM(H$38)*(1-'Inputs - forecast'!H$28)*'Inputs - forecast'!H$25 -> -119.357 | I15: =-SUM(I$38)*(1-'Inputs - forecast'!I$28)*'Inputs - forecast'!I$25 -> -115.2917006 | J15: =-SUM(J$38)*(1-'Inputs - forecast'!J$28)*'Inputs - forecast'!J$25 -> -109.7387764 | K15: =-SUM(K$38)*(1-'Inputs - forecast'!K$28)*'Inputs - forecast'!K$25 -> -118.368379 | L15: =-SUM(L$38)*(1-'Inputs - forecast'!L$28)*'Inputs - forecast'!L$25 -> -101.965061 | M15: =-SUM(M$38)*(1-'Inputs - forecast'!M$28)*'Inputs - forecast'!M$25 -> -83.48726462 | N15: =-SUM(N$38)*(1-'Inputs - forecast'!N$28)*'Inputs - forecast'!N$25 -> -62.36501279 | O15: =-SUM(O$38)*(1-'Inputs - forecast'!O$28)*'Inputs - forecast'!O$25 -> -37.51170282
B16: Revaluation | F16: =F39 -> 60 | G16: =G39 -> 59.16 | H16: 57.8 | I16: 55.831332 | J16: 53.14226462 | K16: 57.32124891 | L16: 49.3777535 | M16: 40.4296681 | N16: 30.20097472 | O16: 18.16547352
B17: Tax | F17: =F60 -> -39.18072398 | G17: =G60 -> -35.8831518 | H17: -31.85484656 | I17: -26.85164855 | J17: -20.50059815 | K17: -89.43507726 | L17: -87.29168632 | M17: -82.2498481 | N17: -71.10281131 | O17: -40.85184001
B18: Opex | F18: =F26 -> -102 | G18: =G26 -> -104.04 | H18: -106.1208 | I18: -108.243216 | J18: -110.4080803 | K18: -130.1807194 | L18: -132.7843338 | M18: -135.4400204 | N18: -138.1488208 | O18: -140.9117973
B19: Depreciation | F19: =F41 -> -306 | G19: =G41 -> -335.24 | H19: -368.475 | I19: -406.7711331 | J19: -451.7092492 | K19: -584.6767388 | L19: -629.5663571 | M19: -687.3043577 | N19: -770.1248553 | O19: -926.4391496
B20: Net revenue | F20: =SUM(F13:F19) -> 30.8504331 | G20: =SUM(G13:G19) -> 16.69222843 | H20: =SUM(H13:H19) -> 0.5571292615 | I20: -18.18751023 | J20: -40.51197 | K20: 43.4932434 | L20: 34.09705093 | M20: 17.18547899 | N20: -15.6852588 | O20: -98.82113547
B21: Present value | F21: =F20/'Inputs - forecast'!F$36 -> 29.05484375 | G21: =G20/'Inputs - forecast'!G$36 -> 14.80569768 | H21: =H20/'Inputs - forecast'!H$36 -> 0.4654015293 | I21: =I20/'Inputs - forecast'!I$36 -> -14.3087721 | J21: =J20/'Inputs - forecast'!J$36 -> -30.01717087 | K21: =K20/'Inputs - forecast'!K$36 -> 30.35047339 | L21: =L20/'Inputs - forecast'!L$36 -> 22.40875721 | M21: =M20/'Inputs - forecast'!M$36 -> 10.63701749 | N21: =N20/'Inputs - forecast'!N$36 -> -9.143389059 | O21: =O20/'Inputs - forecast'!O$36 -> -54.25285903
B22: Sum of present values | O22: =SUM(F21:O21) -> 2.415845302e-13
A24: Regulatory cashflows
B25: Revenue | F25: =F13 -> 603.4311571 | G25: =G13 -> 615.4997802 | H25: 627.8097758 | I25: 640.3659713 | J25: 653.1732908 | K25: 967.5871891 | L25: 986.9389329 | M25: 1006.677712 | N25: 1026.811266 | O25: 1047.347491
B26: Opex | F26: =-'Inputs - forecast'!F$16 -> -102 | G26: =-'Inputs - forecast'!G$16 -> -104.04 | H26: =-'Inputs - forecast'!H$16 -> -106.1208 | I26: =-'Inputs - forecast'!I$16 -> -108.243216 | J26: =-'Inputs - forecast'!J$16 -> -110.4080803 | K26: =-'Inputs - forecast'!K$16 -> -130.1807194 | L26: =-'Inputs - forecast'!L$16 -> -132.7843338 | M26: =-'Inputs - forecast'!M$16 -> -135.4400204 | N26: =-'Inputs - forecast'!N$16 -> -138.1488208 | O26: =-'Inputs - forecast'!O$16 -> -140.9117973
B27: Tax | F27: =F17 -> -39.18072398 | G27: =G17 -> -35.8831518 | H27: -31.85484656 | I27: -26.85164855 | J27: -20.50059815 | K27: -89.43507726 | L27: -87.29168632 | M27: -82.2498481 | N27: -71.10281131 | O27: -40.85184001
B28: Capex | F28: =-'Inputs - forecast'!F$17 -> -204 | G28: =-'Inputs - forecast'!G$17 -> -208.08 | H28: =-'Inputs - forecast'!H$17 -> -212.2416 | I28: =-'Inputs - forecast'!I$17 -> -216.486432 | J28: =-'Inputs - forecast'!J$17 -> -220.8161606 | K28: =-'Inputs - forecast'!K$17 -> -130.1807194 | L28: =-'Inputs - forecast'!L$17 -> -132.7843338 | M28: =-'Inputs - forecast'!M$17 -> -135.4400204 | N28: =-'Inputs - forecast'!N$17 -> -138.1488208 | O28: =-'Inputs - forecast'!O$17 -> 0
B29: Opening RAB | E29: =-'Inputs - forecast'!E$18 -> -3000
B30: Closing RAB | J30: =-(J44-J42) -> -386.7000384 | O30: =O42 -> 0
B31: Sum | E31: =SUM(E25:E30) -> -3000 | F31: =SUM(F25:F30) -> 258.2504331 | G31: 267.4966284 | H31: 277.5925293 | I31: 288.7846748 | J31: -85.25158679 | K31: 617.7906731 | L31: 634.078579 | M31: 653.5478226 | N31: 679.4108128 | O31: 865.5838538
B32: Present value | E32: =E31/'Inputs - forecast'!E$36 -> -3000 | F32: =F31/'Inputs - forecast'!F$36 -> 243.2194699 | G32: =G31/'Inputs - forecast'!G$36 -> 237.2645587 | H32: =H31/'Inputs - forecast'!H$36 -> 231.8887134 | I32: =I31/'Inputs - forecast'!I$36 -> 227.1973484 | J32: =J31/'Inputs - forecast'!J$36 -> -63.16679854 | K32: =K31/'Inputs - forecast'!K$36 -> 431.1069471 | L32: =L31/'Inputs - forecast'!L$36 -> 416.7197028 | M32: =M31/'Inputs - forecast'!M$36 -> 404.5159067 | N32: =N31/'Inputs - forecast'!N$36 -> 396.0481284 | O32: =O31/'Inputs - forecast'!O$36 -> 475.2060232
B33: Sum of present values | O33: =SUM(E32:O32) -> -1.136868377e-12
A35: Regulatory Asset Base
B36: Useful lives | F36: 10 | G36: =F36-1 -> 9 | H36: =G36-1 -> 8 | I36: 7 | J36: 6 | K36: 5 | L36: 4 | M36: 3 | N36: 2 | O36: 1
B38: Opening RAB | F38: =E42 -> 3000 | G38: =F42 -> 2958 | H38: =G42 -> 2890 | I38: =H42 -> 2791.5666 | J38: =I42 -> 2657.113231 | K38: =J44 -> 2866.062445 | L38: =K42 -> 2468.887675 | M38: =L42 -> 2021.483405 | N38: =M42 -> 1510.048736 | O38: =N42 -> 908.2736761
B39: Revaluation | F39: =F38*('Inputs - forecast'!F$4) -> 60 | G39: =G38*('Inputs - forecast'!G$4) -> 59.16 | H39: =H38*('Inputs - forecast'!H$4) -> 57.8 | I39: =I38*('Inputs - forecast'!I$4) -> 55.831332 | J39: =J38*('Inputs - forecast'!J$4) -> 53.14226462 | K39: =K38*('Inputs - forecast'!K$4) -> 57.32124891 | L39: =L38*('Inputs - forecast'!L$4) -> 49.3777535 | M39: =M38*('Inputs - forecast'!M$4) -> 40.4296681 | N39: =N38*('Inputs - forecast'!N$4) -> 30.20097472 | O39: =O38*('Inputs - forecast'!O$4) -> 18.16547352
B40: Capex | F40: =-F28 -> 204 | G40: =-G28 -> 208.08 | H40: 212.2416 | I40: 216.486432 | J40: 220.8161606 | K40: 130.1807194 | L40: 132.7843338 | M40: 135.4400204 | N40: 138.1488208 | O40: 0
B41: Depreciation | F41: =-SUM(F38:F39)/F36 -> -306 | G41: =-SUM(G38:G39)/G36 -> -335.24 | H41: -368.475 | I41: -406.7711331 | J41: -451.7092492 | K41: -584.6767388 | L41: -629.5663571 | M41: -687.3043577 | N41: -770.1248553 | O41: -926.4391496 | Q41: Note
B42: Closing RAB | E42: =-E29 -> 3000 | F42: =SUM(F38:F41) -> 2958 | G42: 2890 | H42: 2791.5666 | I42: 2657.113231 | J42: 2479.362407 | K42: 2468.887675 | L42: 2021.483405 | M42: 1510.048736 | N42: 908.2736761 | O42: 0
B44: RAB adjusted for actual inflation | J44: =J42/'Inputs - forecast'!J5*'Inputs - actual'!J5 -> 2866.062445 | Q44: Note
B45: Check to actual RAB | J45: =J152-J44 -> 0
A48: Tax asset base | F48: =F36 -> 10 | G48: 9 | H48: 8 | I48: 7 | J48: 6 | K48: 5 | L48: 4 | M48: 3 | N48: 2 | O48: 1
B49: Opening balance | F49: =E52 -> 3000 | G49: =F52 -> 2904 | H49: =G52 -> 2789.413333 | I49: 2652.978267 | J49: 2490.467803 | K49: 2296.205997 | L49: 1967.145517 | M49: 1608.143471 | N49: 1207.535668 | O49: 741.9166549
B50: Capex | F50: =-F28 -> 204 | G50: 208.08 | H50: 212.2416 | I50: 216.486432 | J50: 220.8161606 | K50: 130.1807194 | L50: 132.7843338 | M50: 135.4400204 | N50: 138.1488208 | O50: 0
B51: Depreciation | F51: =-F49/F48 -> -300 | G51: =-G49/G48 -> -322.6666667 | H51: -348.6766667 | I51: -378.9968952 | J51: -415.0779672 | K51: -459.2411994 | L51: -491.7863792 | M51: -536.0478238 | N51: -603.767834 | O51: -741.9166549
B52: Closing balance | E52: =E42 -> 3000 | F52: =SUM(F49:F51) -> 2904 | G52: =SUM(G49:G51) -> 2789.413333 | H52: =SUM(H49:H51) -> 2652.978267 | I52: 2490.467803 | J52: 2296.205997 | K52: 1967.145517 | L52: 1608.143471 | M52: 1207.535668 | N52: 741.9166549 | O52: 0
A54: Regulatory tax
B55: Revenue | F55: =F13 -> 603.4311571 | G55: =G13 -> 615.4997802 | H55: 627.8097758 | I55: 640.3659713 | J55: 653.1732908 | K55: 967.5871891 | L55: 986.9389329 | M55: 1006.677712 | N55: 1026.811266 | O55: 1047.347491
B56: Depreciation | F56: =F51 -> -300 | G56: -322.6666667 | H56: -348.6766667 | I56: -378.9968952 | J56: -415.0779672 | K56: -459.2411994 | L56: -491.7863792 | M56: -536.0478238 | N56: -603.767834 | O56: -741.9166549
B57: Opex | F57: =F18 -> -102 | G57: =G18 -> -104.04 | H57: -106.1208 | I57: -108.243216 | J57: -110.4080803 | K57: -130.1807194 | L57: -132.7843338 | M57: -135.4400204 | N57: -138.1488208 | O57: -140.9117973
B58: Notional interest | F58: =-'Inputs - forecast'!F$26*'Inputs - forecast'!F28*F38 -> -61.5 | G58: =-'Inputs - forecast'!G$26*'Inputs - forecast'!G28*G38 -> -60.639 | H58: =-'Inputs - forecast'!H$26*'Inputs - forecast'!H28*H38 -> -59.245 | I58: =-'Inputs - forecast'!I$26*'Inputs - forecast'!I28*I38 -> -57.2271153 | J58: =-'Inputs - forecast'!J$26*'Inputs - forecast'!J28*J38 -> -54.47082123 | K58: =-'Inputs - forecast'!K$26*'Inputs - forecast'!K28*K38 -> -58.75428013 | L58: =-'Inputs - forecast'!L$26*'Inputs - forecast'!L28*L38 -> -50.61219733 | M58: =-'Inputs - forecast'!M$26*'Inputs - forecast'!M28*M38 -> -41.4404098 | N58: =-'Inputs - forecast'!N$26*'Inputs - forecast'!N28*N38 -> -30.95599908 | O58: =-'Inputs - forecast'!O$26*'Inputs - forecast'!O28*O38 -> -18.61961036
B59: EBT | F59: =SUM(F55:F58) -> 139.9311571 | G59: =SUM(G55:G58) -> 128.1541136 | H59: 113.7673092 | I59: 95.8987448 | J59: 73.21642198 | K59: 319.4109902 | L59: 311.7560226 | M59: 293.7494575 | N59: 253.9386118 | O59: 145.8994286
B60: Calculated tax | F60: =-F59*'Inputs - forecast'!F29 -> -39.18072398 | G60: =-G59*'Inputs - forecast'!G29 -> -35.8831518 | H60: =-H59*'Inputs - forecast'!H29 -> -31.85484656 | I60: =-I59*'Inputs - forecast'!I29 -> -26.85164855 | J60: =-J59*'Inputs - forecast'!J29 -> -20.50059815 | K60: =-K59*'Inputs - forecast'!K29 -> -89.43507726 | L60: =-L59*'Inputs - forecast'!L29 -> -87.29168632 | M60: =-M59*'Inputs - forecast'!M29 -> -82.2498481 | N60: =-N59*'Inputs - forecast'!N29 -> -71.10281131 | O60: =-O59*'Inputs - forecast'!O29 -> -40.85184001
B61: Deferred tax | F61: =IF(F60>0,F60,0) -> 0 | G61: =IF(G60>0,G60,0) -> 0 | H61: =IF(H60>0,H60,0) -> 0 | I61: =IF(I60>0,I60,0) -> 0 | J61: =IF(J60>0,J60,0) -> 0 | K61: 0 | L61: 0 | M61: 0 | N61: 0 | O61: 0
B62: Tax | F62: =IF(F61>0,0,F60+E61) -> -39.18072398 | G62: -35.8831518 | H62: -31.85484656 | I62: -26.85164855 | J62: -20.50059815 | K62: -89.43507726 | L62: -87.29168632 | M62: -82.2498481 | N62: -71.10281131 | O62: -40.85184001
A64: Reg Period 1
A65: Calculation of revenue | K65: Sum
B66: Present value of revenue | F66: =F13/'Inputs - forecast'!F$36 -> 568.3096224 | G66: =G13/'Inputs - forecast'!G$36 -> 545.9369136 | H66: =H13/'Inputs - forecast'!H$36 -> 524.4449537 | I66: =I13/'Inputs - forecast'!I$36 -> 503.7990703 | J66: =J13/'Inputs - forecast'!J$36 -> 483.9659556 | K66: =SUM(F66:J66) -> 2626.456516
B67: Present value of cost | F67: =SUM(F14:F19)/'Inputs - forecast'!F$36 -> -539.2547787 | G67: =SUM(G14:G19)/'Inputs - forecast'!G$36 -> -531.1312159 | H67: =SUM(H14:H19)/'Inputs - forecast'!H$36 -> -523.9795522 | I67: =SUM(I14:I19)/'Inputs - forecast'!I$36 -> -518.1078424 | J67: =SUM(J14:J19)/'Inputs - forecast'!J$36 -> -513.9831265 | K67: =SUM(F67:J67) -> -2626.456516
B68: Difference | K68: =SUM(K66:K67) -> 4.092726158e-12
B69: Revenue | K69: 603.4311571
A71: Reg Period 2
A72: Calculation of revenue | P72: Sum
B73: Present value of revenue | K73: =K13/'Inputs - forecast'!K$36 -> 675.2020989 | L73: =L13/'Inputs - forecast'!L$36 -> 648.6213419 | M73: =M13/'Inputs - forecast'!M$36 -> 623.0869926 | N73: =N13/'Inputs - forecast'!N$36 -> 598.5578569 | O73: =O13/'Inputs - forecast'!O$36 -> 574.9943624 | P73: =SUM(K73:O73) -> 3120.462653
B74: Present value of cost | K74: =SUM(K14:K19)/'Inputs - forecast'!K$36 -> -644.8516255 | L74: =SUM(L14:L19)/'Inputs - forecast'!L$36 -> -626.2125847 | M74: =SUM(M14:M19)/'Inputs - forecast'!M$36 -> -612.4499751 | N74: =SUM(N14:N19)/'Inputs - forecast'!N$36 -> -607.701246 | O74: =SUM(O14:O19)/'Inputs - forecast'!O$36 -> -629.2472215 | P74: =SUM(K74:O74) -> -3120.462653
B75: Difference | P75: =SUM(P73:P74) -> 0
B76: Revenue | P76: 967.5871891
A78: Actual | D78: =D11 -> Return over forecast period | E78: =E11 -> 2020-06-30 | F78: 2021-06-30 | G78: 2022-06-30 | H78: 2023-06-30 | I78: 2024-06-30 | J78: 2025-06-30 | K78: 2026-06-30 | L78: 2027-06-30 | M78: 2028-06-30 | N78: 2029-06-30 | O78: 2030-06-30
A79: Actual regulatory cashflows
B80: Revenue (no delay in wash-ups) | F80: =F$13/'Inputs - forecast'!F$5*'Inputs - actual'!F$5 -> 621.1791323 | G80: =G$13/'Inputs - forecast'!G$5*'Inputs - actual'!G$5 -> 652.2380889 | H80: =H$13/'Inputs - forecast'!H$5*'Inputs - actual'!H$5 -> 684.8499933 | I80: =I$13/'Inputs - forecast'!I$5*'Inputs - actual'!I$5 -> 719.092493 | J80: =J$13/'Inputs - forecast'!J$5*'Inputs - actual'!J$5 -> 755.0471177 | K80: =K$13/'Inputs - forecast'!K$7*'Inputs - actual'!K$5 -> 996.0456358 | L80: =L$13/'Inputs - forecast'!L$7*'Inputs - actual'!L$5 -> 1045.847918 | M80: =M$13/'Inputs - forecast'!M$7*'Inputs - actual'!M$5 -> 1098.140314 | N80: =N$13/'Inputs - forecast'!N$7*'Inputs - actual'!N$5 -> 1153.047329 | O80: =O$13/'Inputs - forecast'!O$7*'Inputs - actual'!O$5 -> 1210.699696 | Q80: Note
B81: Opex | F81: =F$18/'Inputs - forecast'!F$7*'Inputs - actual'!F$5 -> -105 | G81: =G$18/'Inputs - forecast'!G$7*'Inputs - actual'!G$5 -> -110.25 | H81: =H$18/'Inputs - forecast'!H$7*'Inputs - actual'!H$5 -> -115.7625 | I81: =I$18/'Inputs - forecast'!I$7*'Inputs - actual'!I$5 -> -121.550625 | J81: =J$18/'Inputs - forecast'!J$7*'Inputs - actual'!J$5 -> -127.6281563 | K81: =K$18/'Inputs - forecast'!K$7*'Inputs - actual'!K$5 -> -134.0095641 | L81: =L$18/'Inputs - forecast'!L$7*'Inputs - actual'!L$5 -> -140.7100423 | M81: =M$18/'Inputs - forecast'!M$7*'Inputs - actual'!M$5 -> -147.7455444 | N81: =N$18/'Inputs - forecast'!N$7*'Inputs - actual'!N$5 -> -155.1328216 | O81: =O$18/'Inputs - forecast'!O$7*'Inputs - actual'!O$5 -> -162.8894627
B82: Capex | F82: =-F134 -> -210 | G82: =-G134 -> -220.5 | H82: -231.525 | I82: -243.10125 | J82: -255.2563125 | K82: -134.0095641 | L82: -140.7100423 | M82: -147.7455444 | N82: -155.1328216 | O82: 0
B83: Tax | F83: =F163+F171 -> -40.33309822 | G83: =G163+G171 -> -38.02496622 | H83: -34.74904708 | I83: -30.15278725 | J83: -23.69802588 | K83: -92.06552071 | L83: -92.50200324 | M83: -89.72273146 | N83: -79.84418307 | O83: -47.22340072
B84: Gain on RAB | J84: =J45 -> 0 | Q84: Note
B85: Nominal IRR | D85: =IRR(E85:O85,0.05) -> 0.09302941176 | E85: =-E42+SUM(E80:E83) -> -3000 | F85: =SUM(F80:F83) -> 265.8460341 | G85: 283.4631227 | H85: 302.8134463 | I85: 324.2878308 | J85: 348.464623 | K85: 635.960987 | L85: 671.9258299 | M85: 712.9264933 | N85: =SUM(N80:N84) -> 762.9375029 | O85: =SUM(O80:O84)+O152 -> 1000.586832
B87: Real IRR | D87: =IRR(E87:O87,0.05) -> 0.04098039216 | E87: =E85 -> -3000 | F87: =F85/'Inputs - actual'!F$5 -> 253.1866991 | G87: =G85/'Inputs - actual'!G$5 -> 257.1094083 | H87: =H85/'Inputs - actual'!H$5 -> 261.5816402 | I87: =I85/'Inputs - actual'!I$5 -> 266.7924009 | J87: =J85/'Inputs - actual'!J$5 -> 273.0311502 | K87: =K85/'Inputs - actual'!K$5 -> 474.5638802 | L87: =L85/'Inputs - actual'!L$5 -> 477.5251425 | M87: =M85/'Inputs - actual'!M$5 -> 482.5367129 | N87: =N85/'Inputs - actual'!N$5 -> 491.7963169 | O87: =O85/'Inputs - actual'!O$5 -> 614.2735176
B88: check to inputs | D88: =D87-'Inputs - actual'!P24 -> -2.065014826e-13
A90: Actual return (building blocks) using RAB
B91: Revenue | F91: =F80 -> 621.1791323 | G91: 652.2380889 | H91: 684.8499933 | I91: 719.092493 | J91: 755.0471177 | K91: 996.0456358 | L91: 1045.847918 | M91: 1098.140314 | N91: 1153.047329 | O91: 1210.699696
B92: Opex | F92: =F81 -> -105 | G92: -110.25 | H92: -115.7625 | I92: -121.550625 | J92: -127.6281563 | K92: -134.0095641 | L92: -140.7100423 | M92: -147.7455444 | N92: -155.1328216 | O92: -162.8894627
B93: Return on debt (variable) | F93: =-F148*'Inputs - actual'!F$19*('Inputs - actual'!F$20) -> -99.48529412 | G93: =-G148*'Inputs - actual'!G$19*('Inputs - actual'!G$20) -> -100.9775735 | H93: =-H148*'Inputs - actual'!H$19*('Inputs - actual'!H$20) -> -101.5579044 | I93: =-I148*'Inputs - actual'!I$19*('Inputs - actual'!I$20) -> -100.9841023 | J93: =-J148*'Inputs - actual'!J$19*('Inputs - actual'!J$20) -> -98.94735848 | K93: =-K148*'Inputs - actual'!K$19*('Inputs - actual'!K$20) -> -95.04368844 | L93: =-L148*'Inputs - actual'!L$19*('Inputs - actual'!L$20) -> -84.28069192 | M93: =-M148*'Inputs - actual'!M$19*('Inputs - actual'!M$20) -> -71.0372382 | N93: =-N148*'Inputs - actual'!N$19*('Inputs - actual'!N$20) -> -54.62556972 | O93: =-O148*'Inputs - actual'!O$19*('Inputs - actual'!O$20) -> -33.82290223
B94: Return on equity | F94: =-F148*'Inputs - actual'!F$18*(1-'Inputs - actual'!F$20) -> -179.6029412 | G94: =-G148*'Inputs - actual'!G$18*(1-'Inputs - actual'!G$20) -> -182.2969853 | H94: =-H148*'Inputs - actual'!H$18*(1-'Inputs - actual'!H$20) -> -183.3446691 | I94: =-I148*'Inputs - actual'!I$18*(1-'Inputs - actual'!I$20) -> -182.3087717 | J94: =-J148*'Inputs - actual'!J$18*(1-'Inputs - actual'!J$20) -> -178.6317944 | K94: =-K148*'Inputs - actual'!K$18*(1-'Inputs - actual'!K$20) -> -171.5844149 | L94: =-L148*'Inputs - actual'!L$18*(1-'Inputs - actual'!L$20) -> -152.1537458 | M94: =-M148*'Inputs - actual'!M$18*(1-'Inputs - actual'!M$20) -> -128.245054 | N94: =-N148*'Inputs - actual'!N$18*(1-'Inputs - actual'!N$20) -> -98.61671589 | O94: =-O148*'Inputs - actual'!O$18*(1-'Inputs - actual'!O$20) -> -61.06121285
B95: Revaluation | F95: =F149 -> 150 | G95: =G149 -> 152.25 | H95: 153.125 | I95: 152.2598438 | J95: 149.1889219 | K95: 143.3031223 | L95: 127.0751009 | M95: 107.1071441 | N95: 82.36227807 | O95: 50.99683707
B96: Depreciation | F96: =F151 -> -315 | G96: =G151 -> -355.25 | H96: -401.953125 | I96: -456.7795313 | J96: -522.1612266 | K96: -601.8731135 | L96: -667.1442798 | M96: -749.7500085 | N96: -864.8039198 | O96: -1070.933578
B97: Tax | F97: =F163+F171 -> -40.33309822 | G97: =G163+G171 -> -38.02496622 | H97: -34.74904708 | I97: -30.15278725 | J97: -23.69802588 | K97: -92.06552071 | L97: -92.50200324 | M97: -89.72273146 | N97: -79.84418307 | O97: -47.22340072
B98: Gain on RAB | J98: =J84 -> 0 | Q98: Note
B99: Nominal return | F99: =SUM(F91:F97) -> 31.75779878 | G99: =SUM(G91:G97) -> 17.68856386 | H99: 0.6077477378 | I99: -20.42348072 | J99: -46.83052203 | K99: 44.77245644 | L99: 36.13225553 | M99: 18.74688103 | N99: -17.61360278 | O99: -114.2340242
B100: Present value | D100: =SUM(E100:O100) -> -9.379164112e-13 | F100: =F99/'Inputs - actual'!F$28 -> 29.05484375 | G100: =G99/'Inputs - actual'!G$28 -> 14.80569768 | H100: =H99/'Inputs - actual'!H$28 -> 0.4654015293 | I100: =I99/'Inputs - actual'!I$28 -> -14.3087721 | J100: =J99/'Inputs - actual'!J$28 -> -30.01717087 | K100: =K99/'Inputs - actual'!K$28 -> 26.25547216 | L100: =L99/'Inputs - actual'!L$28 -> 19.38528252 | M100: =M99/'Inputs - actual'!M$28 -> 9.201830659 | N100: =N99/'Inputs - actual'!N$28 -> -7.909728255 | O100: =O99/'Inputs - actual'!O$28 -> -46.93285708
B102: Real return | F102: =F99/'Inputs - actual'!F$5 -> 30.24552264 | G102: =G99/'Inputs - actual'!G$5 -> 16.04404885 | H102: =H99/'Inputs - actual'!H$5 -> 0.5249953464 | I102: =I99/'Inputs - actual'!I$5 -> -16.80244813 | J102: =J99/'Inputs - actual'!J$5 -> -36.6929394 | K102: =K99/'Inputs - actual'!K$5 -> 33.40989634 | L102: =L99/'Inputs - actual'!L$5 -> 25.67851942 | M102: =M99/'Inputs - actual'!M$5 -> 12.68862699 | N102: =N99/'Inputs - actual'!N$5 -> -11.3538854 | O102: =O99/'Inputs - actual'!O$5 -> -70.12978146
B103: Present value | D103: =SUM(E103:O103) -> -9.166001291e-13 | F103: =F102/'Inputs - actual'!F$32 -> 29.05484375 | G103: =G102/'Inputs - actual'!G$32 -> 14.80569768 | H103: =H102/'Inputs - actual'!H$32 -> 0.4654015293 | I103: =I102/'Inputs - actual'!I$32 -> -14.3087721 | J103: =J102/'Inputs - actual'!J$32 -> -30.01717087 | K103: =K102/'Inputs - actual'!K$32 -> 26.25547216 | L103: =L102/'Inputs - actual'!L$32 -> 19.38528252 | M103: =M102/'Inputs - actual'!M$32 -> 9.201830659 | N103: =N102/'Inputs - actual'!N$32 -> -7.909728255 | O103: =O102/'Inputs - actual'!O$32 -> -46.93285708
B105: Actual return on RAB | F105: =-(F93+F94)/F148 -> 0.09302941176 | G105: 0.09302941176 | H105: 0.09302941176 | I105: 0.09302941176 | J105: 0.09302941176 | K105: 0.09302941176 | L105: 0.09302941176 | M105: 0.09302941176 | N105: 0.09302941176 | O105: 0.09302941176
B106: Actual Rab revaluation | F106: =F95/F148 -> 0.05 | G106: 0.05 | H106: 0.05 | I106: 0.05 | J106: 0.05 | K106: 0.05 | L106: 0.05 | M106: 0.05 | N106: 0.05 | O106: 0.05
B107: Annual change in revenue | G107: =G91/F91-1 -> 0.05 | H107: =H91/G91-1 -> 0.05 | I107: 0.05 | J107: 0.05 | K107: 0.3191834159 | L107: 0.05 | M107: 0.05 | N107: 0.05 | O107: 0.05
A109: Adjustment for fixed cost of debt | F109: =-(F148*'Inputs - actual'!F$19*'Inputs - actual'!F$20+F93) -> 0 | G109: =-(G148*'Inputs - actual'!G$19*'Inputs - actual'!G$20+G93) -> 0 | H109: =-(H148*'Inputs - actual'!H$19*'Inputs - actual'!H$20+H93) -> 0 | I109: =-(I148*'Inputs - actual'!I$19*'Inputs - actual'!I$20+I93) -> 0 | J109: =-(J148*'Inputs - actual'!J$19*'Inputs - actual'!J$20+J93) -> 0 | K109: =-(K148*'Inputs - actual'!K$19*'Inputs - actual'!K$20+K93) -> 0 | L109: =-(L148*'Inputs - actual'!L$19*'Inputs - actual'!L$20+L93) -> 0 | M109: =-(M148*'Inputs - actual'!M$19*'Inputs - actual'!M$20+M93) -> 0 | N109: =-(N148*'Inputs - actual'!N$19*'Inputs - actual'!N$20+N93) -> 0 | O109: =-(O148*'Inputs - actual'!O$19*'Inputs - actual'!O$20+O93) -> 0
A111: Actual return (building blocks) using actual asset base
B112: Revenue | F112: =F$13/'Inputs - forecast'!F$7*'Inputs - actual'!F$5+F130 -> 621.1791323 | G112: =G$13/'Inputs - forecast'!G$7*'Inputs - actual'!G$5+G130 -> 652.2380889 | H112: =H$13/'Inputs - forecast'!H$7*'Inputs - actual'!H$5+H130 -> 684.8499933 | I112: =I$13/'Inputs - forecast'!I$7*'Inputs - actual'!I$5+I130 -> 719.092493 | J112: =J$13/'Inputs - forecast'!J$7*'Inputs - actual'!J$5+J130 -> 755.0471177 | K112: =K$13/'Inputs - forecast'!K$7*'Inputs - actual'!K$5+K130 -> 996.0456358 | L112: =L$13/'Inputs - forecast'!L$7*'Inputs - actual'!L$5+L130 -> 1045.847918 | M112: =M$13/'Inputs - forecast'!M$7*'Inputs - actual'!M$5+M130 -> 1098.140314 | N112: =N$13/'Inputs - forecast'!N$7*'Inputs - actual'!N$5+N130 -> 1153.047329 | O112: =O$13/'Inputs - forecast'!O$7*'Inputs - actual'!O$5+O130 -> 1210.699696
B113: Opex | F113: =F81 -> -105 | G113: -110.25 | H113: -115.7625 | I113: -121.550625 | J113: -127.6281563 | K113: -134.0095641 | L113: -140.7100423 | M113: -147.7455444 | N113: -155.1328216 | O113: -162.8894627
B114: Return on debt (variable) | F114: =-F133*'Inputs - actual'!F$19*('Inputs - actual'!F$20) -> -99.48529412 | G114: =-G133*'Inputs - actual'!G$19*('Inputs - actual'!G$20) -> -96.50073529 | H114: =-H133*'Inputs - actual'!H$19*('Inputs - actual'!H$20) -> -93.09060049 | I114: =-I133*'Inputs - actual'!I$19*('Inputs - actual'!I$20) -> -89.132053 | J114: =-J133*'Inputs - actual'!J$19*('Inputs - actual'!J$20) -> -84.46056903 | K114: =-K133*'Inputs - actual'!K$19*('Inputs - actual'!K$20) -> -78.8485573 | L114: =-L133*'Inputs - actual'!L$19*('Inputs - actual'!L$20) -> -67.52283947 | M114: =-M133*'Inputs - actual'!M$19*('Inputs - actual'!M$20) -> -55.30832291 | N114: =-N133*'Inputs - actual'!N$19*('Inputs - actual'!N$20) -> -41.77171826 | O114: =-O133*'Inputs - actual'!O$19*('Inputs - actual'!O$20) -> -26.03033726
B115: Return on equity | F115: =-F133*'Inputs - actual'!F$18*(1-'Inputs - actual'!F$20) -> -179.6029412 | G115: =-G133*'Inputs - actual'!G$18*(1-'Inputs - actual'!G$20) -> -174.2148529 | H115: =-H133*'Inputs - actual'!H$18*(1-'Inputs - actual'!H$20) -> -168.0584632 | I115: =-I133*'Inputs - actual'!I$18*(1-'Inputs - actual'!I$20) -> -160.9120123 | J115: =-J133*'Inputs - actual'!J$18*(1-'Inputs - actual'!J$20) -> -152.4784818 | K115: =-K133*'Inputs - actual'!K$18*(1-'Inputs - actual'!K$20) -> -142.3469963 | L115: =-L133*'Inputs - actual'!L$18*(1-'Inputs - actual'!L$20) -> -121.9004344 | M115: =-M133*'Inputs - actual'!M$18*(1-'Inputs - actual'!M$20) -> -99.84930492 | N115: =-N133*'Inputs - actual'!N$18*(1-'Inputs - actual'!N$20) -> -75.41138138 | O115: =-O133*'Inputs - actual'!O$18*(1-'Inputs - actual'!O$20) -> -46.9931277
B116: Revaluation | F116: 0 | G116: 0 | H116: 0 | I116: 0 | J116: 0 | K116: 0 | L116: 0 | M116: 0 | N116: 0 | O116: 0 | Q116: Note
B117: Depreciation | F117: =F135 -> -300 | G117: =G135 -> -323.3333333 | H117: -350.8958333 | I117: -383.9708333 | J117: -424.4877083 | K117: -475.5389708 | L117: -509.0413618 | M117: -555.9447093 | N117: -629.8174815 | O117: -784.9503031
B118: Tax | F118: =F163+F171 -> -40.33309822 | G118: =G163+G171 -> -38.02496622 | H118: -34.74904708 | I118: -30.15278725 | J118: -23.69802588 | K118: -92.06552071 | L118: -92.50200324 | M118: -89.72273146 | N118: -79.84418307 | O118: -47.22340072
B119: Gain on actual asset base | J119: 0
B120: Nominal return | F120: =SUM(F112:F119) -> -103.2422012 | G120: =SUM(G112:G119) -> -90.08579889 | H120: -77.70645079 | I120: -66.62581788 | J120: -57.70582364 | K120: 73.23602659 | L120: 114.1712365 | M120: 149.5697006 | N120: 171.0697434 | O120: 142.6130642
B121: Present value | D121: =SUM(E121:O121) -> -6.679101716e-13 | F121: =F120/'Inputs - actual'!F$28 -> -94.45509893 | G121: =G120/'Inputs - actual'!G$28 -> -75.40369666 | H121: =H120/'Inputs - actual'!H$28 -> -59.50610555 | I121: =I120/'Inputs - actual'!I$28 -> -46.67831389 | J121: =J120/'Inputs - actual'!J$28 -> -36.98796198 | K121: =K120/'Inputs - actual'!K$28 -> 42.94708421 | L121: =L120/'Inputs - actual'!L$28 -> 61.25390296 | M121: =M120/'Inputs - actual'!M$28 -> 73.41568203 | N121: =N120/'Inputs - actual'!N$28 -> 76.82216976 | O121: =O120/'Inputs - actual'!O$28 -> 58.59233804
B123: Real return | F123: =F120/'Inputs - actual'!F$5 -> -98.32590593 | G123: =G120/'Inputs - actual'!G$5 -> -81.71047518 | H123: =H120/'Inputs - actual'!H$5 -> -67.12575384 | I123: =I120/'Inputs - actual'!I$5 -> -54.81322526 | J123: =J120/'Inputs - actual'!J$5 -> -45.21402278 | K123: =K120/'Inputs - actual'!K$5 -> 54.64985063 | L123: =L120/'Inputs - actual'!L$5 -> 81.13936618 | M123: =M120/'Inputs - actual'!M$5 -> 101.2346607 | N123: =N120/'Inputs - actual'!N$5 -> 110.2730819 | O123: =O120/'Inputs - actual'!O$5 -> 87.55205026
B124: Present value | D124: =SUM(E124:O124) -> -7.602807273e-13 | F124: =F123/'Inputs - actual'!F$32 -> -94.45509893 | G124: =G123/'Inputs - actual'!G$32 -> -75.40369666 | H124: =H123/'Inputs - actual'!H$32 -> -59.50610555 | I124: =I123/'Inputs - actual'!I$32 -> -46.67831389 | J124: =J123/'Inputs - actual'!J$32 -> -36.98796198 | K124: =K123/'Inputs - actual'!K$32 -> 42.94708421 | L124: =L123/'Inputs - actual'!L$32 -> 61.25390296 | M124: =M123/'Inputs - actual'!M$32 -> 73.41568203 | N124: =N123/'Inputs - actual'!N$32 -> 76.82216976 | O124: =O123/'Inputs - actual'!O$32 -> 58.59233804
B126: Actual return on actual asset base | F126: =-(F114+F115)/F133 -> 0.09302941176 | G126: 0.09302941176 | H126: 0.09302941176 | I126: 0.09302941176 | J126: 0.09302941176 | K126: 0.09302941176 | L126: 0.09302941176 | M126: 0.09302941176 | N126: 0.09302941176 | O126: 0.09302941176
B127: Actual Rab revaluation | F127: =F116/F133 -> 0 | G127: 0 | H127: 0 | I127: 0 | J127: 0 | K127: 0 | L127: 0 | M127: 0 | N127: 0 | O127: 0
B128: Annual change in revenue | G128: =G112/F112-1 -> 0.05 | H128: =H112/G112-1 -> 0.05 | I128: =I112/H112-1 -> 0.05 | J128: =J112/I112-1 -> 0.05 | K128: =K112/J112-1 -> 0.3191834159 | L128: =L112/K112-1 -> 0.05 | M128: =M112/L112-1 -> 0.05 | N128: =N112/M112-1 -> 0.05 | O128: =O112/N112-1 -> 0.05
A130: Adjustment for fixed cost of debt | F130: =-(F133*'Inputs - actual'!F$19*'Inputs - actual'!F$20+F114) -> 0 | G130: =-(G133*'Inputs - actual'!G$19*'Inputs - actual'!G$20+G114) -> 0 | H130: =-(H133*'Inputs - actual'!H$19*'Inputs - actual'!H$20+H114) -> 0 | I130: =-(I133*'Inputs - actual'!I$19*'Inputs - actual'!I$20+I114) -> 0 | J130: =-(J133*'Inputs - actual'!J$19*'Inputs - actual'!J$20+J114) -> 0 | K130: =-(K133*'Inputs - actual'!K$19*'Inputs - actual'!K$20+K114) -> 0 | L130: =-(L133*'Inputs - actual'!L$19*'Inputs - actual'!L$20+L114) -> 0 | M130: =-(M133*'Inputs - actual'!M$19*'Inputs - actual'!M$20+M114) -> 0 | N130: =-(N133*'Inputs - actual'!N$19*'Inputs - actual'!N$20+N114) -> 0 | O130: =-(O133*'Inputs - actual'!O$19*'Inputs - actual'!O$20+O114) -> 0
A132: Actual Asset Base
B133: Opening Asset Base | F133: =E42 -> 3000 | G133: =F136 -> 2910 | H133: 2807.166667 | I133: 2687.795833 | J133: 2546.92625 | K133: 2377.694854 | L133: 2036.165447 | M133: 1667.834128 | N133: 1259.634963 | O133: 784.9503031
B134: Capex | F134: =F$40/'Inputs - forecast'!F$5*'Inputs - actual'!F$5 -> 210 | G134: =G$40/'Inputs - forecast'!G$5*'Inputs - actual'!G$5 -> 220.5 | H134: =H$40/'Inputs - forecast'!H$5*'Inputs - actual'!H$5 -> 231.525 | I134: =I$40/'Inputs - forecast'!I$5*'Inputs - actual'!I$5 -> 243.10125 | J134: =J$40/'Inputs - forecast'!J$5*'Inputs - actual'!J$5 -> 255.2563125 | K134: =K$40/'Inputs - forecast'!K$7*'Inputs - actual'!K$5 -> 134.0095641 | L134: =L$40/'Inputs - forecast'!L$7*'Inputs - actual'!L$5 -> 140.7100423 | M134: =M$40/'Inputs - forecast'!M$7*'Inputs - actual'!M$5 -> 147.7455444 | N134: =N$40/'Inputs - forecast'!N$7*'Inputs - actual'!N$5 -> 155.1328216 | O134: =O$40/'Inputs - forecast'!O$7*'Inputs - actual'!O$5 -> 0
B135: Depreciation | F135: =-F133/F36 -> -300 | G135: -323.3333333 | H135: -350.8958333 | I135: -383.9708333 | J135: -424.4877083 | K135: -475.5389708 | L135: -509.0413618 | M135: -555.9447093 | N135: -629.8174815 | O135: -784.9503031
B136: Closing Asset Base | F136: =SUM(F133:F135) -> 2910 | G136: 2807.166667 | H136: 2687.795833 | I136: 2546.92625 | J136: 2377.694854 | K136: 2036.165447 | L136: 1667.834128 | M136: 1259.634963 | N136: 784.9503031 | O136: 0
A138: Actual debt
B139: Opening debt | F139: =F133*'Inputs - actual'!F$20 -> 1230 | G139: =G133*'Inputs - actual'!G$20 -> 1193.1 | H139: =H133*'Inputs - actual'!H$20 -> 1150.938333 | I139: =I133*'Inputs - actual'!I$20 -> 1101.996292 | J139: =J133*'Inputs - actual'!J$20 -> 1044.239762 | K139: =K133*'Inputs - actual'!K$20 -> 974.8548902 | L139: =L133*'Inputs - actual'!L$20 -> 834.8278334 | M139: =M133*'Inputs - actual'!M$20 -> 683.8119924 | N139: =N133*'Inputs - actual'!N$20 -> 516.4503348 | O139: =O133*'Inputs - actual'!O$20 -> 321.8296243
B140: Additional borrowings for capex | F140: =F134*'Inputs - actual'!F$20 -> 86.1 | G140: =G134*'Inputs - actual'!G$20 -> 90.405 | H140: =H134*'Inputs - actual'!H$20 -> 94.92525 | I140: =I134*'Inputs - actual'!I$20 -> 99.6715125 | J140: =J134*'Inputs - actual'!J$20 -> 104.6550881 | K140: =K134*'Inputs - actual'!K$20 -> 54.94392127 | L140: =L134*'Inputs - actual'!L$20 -> 57.69111733 | M140: =M134*'Inputs - actual'!M$20 -> 60.5756732 | N140: =N134*'Inputs - actual'!N$20 -> 63.60445686 | O140: =O134*'Inputs - actual'!O$20 -> 0
B141: Repayments | F141: =F135*'Inputs - actual'!F$20 -> -123 | G141: =G135*'Inputs - actual'!G$20 -> -132.5666667 | H141: =H135*'Inputs - actual'!H$20 -> -143.8672917 | I141: =I135*'Inputs - actual'!I$20 -> -157.4280417 | J141: =J135*'Inputs - actual'!J$20 -> -174.0399604 | K141: =K135*'Inputs - actual'!K$20 -> -194.970978 | L141: =L135*'Inputs - actual'!L$20 -> -208.7069584 | M141: =M135*'Inputs - actual'!M$20 -> -227.9373308 | N141: =N135*'Inputs - actual'!N$20 -> -258.2251674 | O141: =O135*'Inputs - actual'!O$20 -> -321.8296243
B142: Closing debt | F142: =SUM(F139:F141) -> 1193.1 | G142: 1150.938333 | H142: 1101.996292 | I142: 1044.239763 | J142: 974.8548902 | K142: 834.8278334 | L142: 683.8119924 | M142: 516.4503348 | N142: 321.8296243 | O142: 0
B143: Leverage on actual asset base | F143: =IFERROR(F142/F136,0) -> 0.41 | G143: =IFERROR(G142/G136,0) -> 0.41 | H143: 0.41 | I143: 0.41 | J143: 0.41 | K143: 0.41 | L143: 0.41 | M143: 0.41 | N143: 0.41 | O143: 0
A145: Actual RAB
B146: Useful lives | F146: =F36 -> 10 | G146: 9 | H146: 8 | I146: 7 | J146: 6 | K146: 5 | L146: 4 | M146: 3 | N146: 2 | O146: 1
B148: Opening RAB | F148: =E152 -> 3000 | G148: =F152 -> 3045 | H148: 3062.5 | I148: 3045.196875 | J148: 2983.778438 | K148: 2866.062445 | L148: 2541.502018 | M148: 2142.142882 | N148: 1647.245561 | O148: 1019.936741
B149: Revaluation | F149: =F148*'Inputs - actual'!F4 -> 150 | G149: =G148*'Inputs - actual'!G4 -> 152.25 | H149: =H148*'Inputs - actual'!H4 -> 153.125 | I149: =I148*'Inputs - actual'!I4 -> 152.2598438 | J149: =J148*'Inputs - actual'!J4 -> 149.1889219 | K149: =K148*'Inputs - actual'!K4 -> 143.3031223 | L149: =L148*'Inputs - actual'!L4 -> 127.0751009 | M149: =M148*'Inputs - actual'!M4 -> 107.1071441 | N149: =N148*'Inputs - actual'!N4 -> 82.36227807 | O149: =O148*'Inputs - actual'!O4 -> 50.99683707
B150: Capex | F150: =F134 -> 210 | G150: =G134 -> 220.5 | H150: 231.525 | I150: 243.10125 | J150: 255.2563125 | K150: 134.0095641 | L150: 140.7100423 | M150: 147.7455444 | N150: 155.1328216 | O150: 0
B151: Depreciation | F151: =-SUM(F148:F149)/F146 -> -315 | G151: =-SUM(G148:G149)/G146 -> -355.25 | H151: -401.953125 | I151: -456.7795313 | J151: -522.1612266 | K151: -601.8731135 | L151: -667.1442798 | M151: -749.7500085 | N151: -864.8039198 | O151: -1070.933578
B152: Closing RAB | E152: =-E29 -> 3000 | F152: =SUM(F148:F151) -> 3045 | G152: 3062.5 | H152: 3045.196875 | I152: 2983.778438 | J152: 2866.062445 | K152: 2541.502018 | L152: 2142.142882 | M152: 1647.245561 | N152: 1019.936741 | O152: 0
A155: Actual tax
B156: Revenue | F156: =F91 -> 621.1791323 | G156: 652.2380889 | H156: 684.8499933 | I156: 719.092493 | J156: 755.0471177 | K156: 996.0456358 | L156: 1045.847918 | M156: 1098.140314 | N156: 1153.047329 | O156: 1210.699696
B157: Depreciation | F157: =F135 -> -300 | G157: -323.3333333 | H157: -350.8958333 | I157: -383.9708333 | J157: -424.4877083 | K157: -475.5389708 | L157: -509.0413618 | M157: -555.9447093 | N157: -629.8174815 | O157: -784.9503031
B158: Opex | F158: =F92 -> -105 | G158: -110.25 | H158: -115.7625 | I158: -121.550625 | J158: -127.6281563 | K158: -134.0095641 | L158: -140.7100423 | M158: -147.7455444 | N158: -155.1328216 | O158: -162.8894627
B159: Interest | F159: =F93 -> -99.48529412 | G159: -100.9775735 | H159: -101.5579044 | I159: -100.9841023 | J159: -98.94735848 | K159: -95.04368844 | L159: -84.28069192 | M159: -71.0372382 | N159: -54.62556972 | O159: -33.82290223
B160: EBT | F160: =SUM(F156:F159) -> 116.6938382 | G160: =SUM(G156:G159) -> 117.677182 | H160: 116.6337556 | I160: 112.5869324 | J160: 103.9838946 | K160: 291.4534125 | L160: 311.8158216 | M160: 323.4128217 | N160: 313.4714564 | O160: 229.0370277
B161: Calculated tax | F161: =-F160*'Inputs - forecast'!F29 -> -32.67427469 | G161: =-G160*'Inputs - forecast'!G29 -> -32.94961097 | H161: =-H160*'Inputs - forecast'!H29 -> -32.65745157 | I161: =-I160*'Inputs - forecast'!I29 -> -31.52434108 | J161: =-J160*'Inputs - forecast'!J29 -> -29.11549049 | K161: =-K160*'Inputs - forecast'!K29 -> -81.6069555 | L161: =-L160*'Inputs - forecast'!L29 -> -87.30843005 | M161: =-M160*'Inputs - forecast'!M29 -> -90.55559006 | N161: =-N160*'Inputs - forecast'!N29 -> -87.77200779 | O161: =-O160*'Inputs - forecast'!O29 -> -64.13036775
B162: Deferred tax | F162: =IF(F161>0,F161+E162,0) -> 0 | G162: 0 | H162: 0 | I162: 0 | J162: 0 | K162: 0 | L162: 0 | M162: 0 | N162: 0 | O162: 0
B163: Tax | F163: =IF(F162>0,0,F161+E162) -> -32.67427469 | G163: -32.94961097 | H163: -32.65745157 | I163: -31.52434108 | J163: -29.11549049 | K163: -81.6069555 | L163: -87.30843005 | M163: -90.55559006 | N163: -87.77200779 | O163: -64.13036775
A165: Tax adjustment | E165: NPV | Q165: Note
B166: Tax | F166: =F163 -> -32.67427469 | G166: -32.94961097 | H166: -32.65745157 | I166: -31.52434108 | J166: -29.11549049 | K166: -81.6069555 | L166: -87.30843005 | M166: -90.55559006 | N166: -87.77200779 | O166: -64.13036775
B167: NPV of actual tax | E167: =SUM(F167:O167) -> -328.1397873 | F167: =F166/'Inputs - actual'!F$28 -> -29.89331699 | G167: =G166/'Inputs - actual'!G$28 -> -27.5795131 | H167: =H166/'Inputs - actual'!H$28 -> -25.00844834 | I167: =I166/'Inputs - actual'!I$28 -> -22.08607916 | J167: =J166/'Inputs - actual'!J$28 -> -18.66228722 | K167: =K166/'Inputs - actual'!K$28 -> -47.85596589 | L167: =L166/'Inputs - actual'!L$28 -> -46.8417639 | M167: =M166/'Inputs - actual'!M$28 -> -44.44884479 | N167: =N166/'Inputs - actual'!N$28 -> -39.41571401 | O167: =O166/'Inputs - actual'!O$28 -> -26.34785394
B169: Forecast tax adjusted for inflation | F169: =F$17/'Inputs - forecast'!F$5*'Inputs - actual'!F$5 -> -40.33309822 | G169: =G$17/'Inputs - forecast'!G$5*'Inputs - actual'!G$5 -> -38.02496622 | H169: =H$17/'Inputs - forecast'!H$5*'Inputs - actual'!H$5 -> -34.74904708 | I169: =I$17/'Inputs - forecast'!I$5*'Inputs - actual'!I$5 -> -30.15278725 | J169: =J$17/'Inputs - forecast'!J$5*'Inputs - actual'!J$5 -> -23.69802588 | K169: =K$17/'Inputs - forecast'!K$7*'Inputs - actual'!K$5 -> -92.06552071 | L169: =L$17/'Inputs - forecast'!L$7*'Inputs - actual'!L$5 -> -92.50200324 | M169: =M$17/'Inputs - forecast'!M$7*'Inputs - actual'!M$5 -> -89.72273146 | N169: =N$17/'Inputs - forecast'!N$7*'Inputs - actual'!N$5 -> -79.84418307 | O169: =O$17/'Inputs - forecast'!O$7*'Inputs - actual'!O$5 -> -47.22340072
B170: NPV of forecast tax adjusted for inflation | E170: =SUM(F170:O170) -> -334.5676317 | F170: =F169/'Inputs - actual'!F$28 -> -36.90028629 | G170: =G169/'Inputs - actual'!G$28 -> -31.82769153 | H170: =H169/'Inputs - actual'!H$28 -> -26.61015195 | I170: =I169/'Inputs - actual'!I$28 -> -21.12516307 | J170: =J169/'Inputs - actual'!J$28 -> -15.1898305 | K170: =K169/'Inputs - actual'!K$28 -> -53.98907963 | L170: =L169/'Inputs - actual'!L$28 -> -49.62816298 | M170: =M169/'Inputs - actual'!M$28 -> -44.04003952 | N170: =N169/'Inputs - actual'!N$28 -> -35.85557132 | O170: =O169/'Inputs - actual'!O$28 -> -19.40165491
B171: Difference | E171: =E170-E167 -> -6.427844365 | F171: =F169-F166 -> -7.658823529 | G171: =G169-G166 -> -5.075355248 | H171: -2.091595512 | I171: 1.371553834 | J171: 5.417464612 | K171: -10.45856521 | L171: -5.193573193 | M171: 0.8328586037 | N171: 7.927824727 | O171: 16.90696703
A173: Real revenue | F173: =F91/'Inputs - actual'!F$5 -> 591.5991736 | G173: =G91/'Inputs - actual'!G$5 -> 591.5991736 | H173: =H91/'Inputs - actual'!H$5 -> 591.5991736 | I173: =I91/'Inputs - actual'!I$5 -> 591.5991736 | J173: =J91/'Inputs - actual'!J$5 -> 591.5991736 | K173: =K91/'Inputs - actual'!K$5 -> 743.2645892 | L173: =L91/'Inputs - actual'!L$5 -> 743.2645892 | M173: =M91/'Inputs - actual'!M$5 -> 743.2645892 | N173: =N91/'Inputs - actual'!N$5 -> 743.2645892 | O173: =O91/'Inputs - actual'!O$5 -> 743.2645892
A175: Wash-up account | E175: NPV | F175: =F78 -> 2021-06-30 | G175: 2022-06-30 | H175: 2023-06-30 | I175: 2024-06-30 | J175: 2025-06-30 | K175: 2026-06-30 | L175: 2027-06-30 | M175: 2028-06-30 | N175: 2029-06-30 | O175: 2030-06-30 | P175: =EOMONTH(O175, 12) -> 2031-06-30 | Q175: =EOMONTH(P175, 12) -> 2032-06-30
B176: Wash-up drawdowns will usually have a 2 year delay from when the revenue is set to allow for actual CPI information to be released.
B178: Actual net allowable revenue | D178: ANAR | F178: =F91-F109 -> 621.1791323 | G178: 652.2380889 | H178: 684.8499933 | I178: 719.092493 | J178: 755.0471177 | K178: 996.0456358 | L178: 1045.847918 | M178: 1098.140314 | N178: 1153.047329 | O178: 1210.699696
B179: Forecast net allowable revenue | D179: FNAR | F179: =F13 -> 603.4311571 | G179: 615.4997802 | H179: 627.8097758 | I179: 640.3659713 | J179: 653.1732908 | K179: 967.5871891 | L179: 986.9389329 | M179: 1006.677712 | N179: 1026.811266 | O179: 1047.347491 | R179: Note
B180: Wash-up amount | F180: =F178-F179 -> 17.74797521 | G180: =G178-G179 -> 36.73830868 | H180: 57.04021752 | I180: 78.72652167 | J180: 101.8738269 | K180: 28.45844674 | L180: 58.90898475 | M180: 91.46260197 | N180: 126.2360634 | O180: 163.3522046
B182: Actual allowable revenue | D182: AAR | F182: =F178-F192 -> 621.1791323 | G182: 652.2380889 | H182: 704.8594021 | I182: 760.5119691 | J182: 819.3553564 | K182: 1084.803431 | L182: 1160.70243 | M182: 1130.224914 | N182: 1219.462452 | O182: 1313.816393
B183: Forecast allowable revenue | D183: FAR | F183: =F179-F192 -> 603.4311571 | G183: 615.4997802 | H183: 647.8191845 | I183: 681.7854474 | J183: 717.4815295 | K183: 1056.344984 | L183: 1101.793445 | M183: 1038.762312 | N183: 1093.226389 | O183: 1150.464188
B185: Actual revenue | D185: AR | F185: =F183 -> 603.4311571 | G185: =G183 -> 615.4997802 | H185: =H183 -> 647.8191845 | I185: =I183 -> 681.7854474 | J185: 717.4815295 | K185: 1056.344984 | L185: 1101.793445 | M185: 1038.762312 | N185: 1093.226389 | O185: 1150.464188 | R185: Note
B187: Cost of debt wash-up adjustment | D187: CODW | F187: =F109 -> 0 | G187: 0 | H187: 0 | I187: 0 | J187: 0 | K187: 0 | L187: 0 | M187: 0 | N187: 0 | O187: 0
B189: Wash-up account balance | D189: WAB
B190: Wash-up account opening balance | D190: WABt-1 | F190: 0 | G190: =F193 -> 17.74797521 | H190: 55.58310876 | I190: 96.04895368 | J190: 139.2918246 | K190: 185.4656476 | L190: 136.6280761 | M190: 89.12616349 | N190: 154.012162 | O190: 223.3510542 | P190: 297.3896567 | Q190: 173.4473708
B191: Wash-up accrual | D191: WA | F191: =F182-F185+F187 -> 17.74797521 | G191: 36.73830868 | H191: 57.04021752 | I191: 78.72652167 | J191: 101.8738269 | K191: 28.45844674 | L191: 58.90898475 | M191: 91.46260197 | N191: 126.2360634 | O191: 163.3522046 | P191: 0 | Q191: 0
B192: Wash-up (draw-down)/ draw-up | D192: WD | F192: 0 | G192: 0 | H192: =-F191*(1+'Inputs - forecast'!$P31)^2 -> -20.00940872 | I192: =-G191*(1+'Inputs - forecast'!$P31)^2 -> -41.41947605 | J192: =-H191*(1+'Inputs - forecast'!$P31)^2 -> -64.30823869 | K192: =-I191*(1+'Inputs - forecast'!$P31)^2 -> -88.75779523 | L192: =-J191*(1+'Inputs - forecast'!$P31)^2 -> -114.8545125 | M192: =-K191*(1+'Inputs - forecast'!$P31)^2 -> -32.08460039 | N192: =-L191*(1+'Inputs - forecast'!$P31)^2 -> -66.41512281 | O192: =-M191*(1+'Inputs - forecast'!$P31)^2 -> -103.1166972 | P192: =-N191*(1+'Inputs - forecast'!$P31)^2 -> -142.3209667 | Q192: =-O191*(1+'Inputs - forecast'!$P31)^2 -> -184.1664183 | R192: Note
B193: Wash-up account balance | D193: WABt | F193: =F190*(1+'Inputs - forecast'!$P31)+F191+F192 -> 17.74797521 | G193: =G190*(1+'Inputs - forecast'!$P31)+G191+G192 -> 55.58310876 | H193: =H190*(1+'Inputs - forecast'!$P31)+H191+H192 -> 96.04895368 | I193: =I190*(1+'Inputs - forecast'!$P31)+I191+I192 -> 139.2918246 | J193: =J190*(1+'Inputs - forecast'!$P31)+J191+J192 -> 185.4656476 | K193: =K190*(1+'Inputs - forecast'!$P31)+K191+K192 -> 136.6280761 | L193: =L190*(1+'Inputs - forecast'!$P31)+L191+L192 -> 89.12616349 | M193: =M190*(1+'Inputs - forecast'!$P31)+M191+M192 -> 154.012162 | N193: =N190*(1+'Inputs - forecast'!$P31)+N191+N192 -> 223.3510542 | O193: =O190*(1+'Inputs - forecast'!$P31)+O191+O192 -> 297.3896567 | P193: =P190*(1+'Inputs - forecast'!$P31)+P191+P192 -> 173.4473708 | Q193: =Q190*(1+'Inputs - forecast'!$P31)+Q191+Q192 -> 0 | R193: Note
B195: Test NPV=0
B196: Confirm Net Present Value (NPV) of ANAR equal AR plus CODW plus the wash-up account balance remaining at end of model period
B197: Actual net allowable revenue | D197: ANAR | E197: =-NPV('Inputs - forecast'!$P$31,F197:O197) -> -6259.741636 | F197: =F178 -> 621.1791323 | G197: 652.2380889 | H197: 684.8499933 | I197: 719.092493 | J197: 755.0471177 | K197: 996.0456358 | L197: 1045.847918 | M197: 1098.140314 | N197: 1153.047329 | O197: 1210.699696
B198: Actual revenue | D198: AR | E198: =NPV('Inputs - forecast'!$P$31,F198:O198) -> 6096.474547 | F198: =F183 -> 603.4311571 | G198: 615.4997802 | H198: 647.8191845 | I198: 681.7854474 | J198: 717.4815295 | K198: 1056.344984 | L198: 1101.793445 | M198: 1038.762312 | N198: 1093.226389 | O198: 1150.464188
B199: Cost of debt wash-up adjustment | D199: CODW | E199: =-NPV('Inputs - forecast'!$P$31,F199:O199) -> 0 | F199: =F187 -> 0 | G199: 0 | H199: 0 | I199: 0 | J199: 0 | K199: 0 | L199: 0 | M199: 0 | N199: 0 | O199: 0
B200: Wash-up account balance | D200: WAB | E200: =NPV('Inputs - forecast'!$P$31,F200:O200) -> 163.267089 | F200: 0 | G200: 0 | H200: 0 | I200: 0 | J200: 0 | K200: 0 | L200: 0 | M200: 0 | N200: 0 | O200: =O193 -> 297.3896567
D201: NPV | E201: =SUM(E197:E200) -> 5.684341886e-13
B203: Actual revenue per model | E203: =-NPV('Inputs - forecast'!$P$31,F203:O203) -> -6259.741636 | F203: =F91 -> 621.1791323 | G203: 652.2380889 | H203: 684.8499933 | I203: 719.092493 | J203: 755.0471177 | K203: 996.0456358 | L203: 1045.847918 | M203: 1098.140314 | N203: 1153.047329 | O203: 1210.699696
B204: Check to ANAR less CODW | F204: =F197+F199-F203 -> 0 | G204: =G197+G199-G203 -> 0 | H204: 0 | I204: 0 | J204: 0 | K204: 0 | L204: 0 | M204: 0 | N204: 0 | O204: 0
B206: FNAR + accrual | E206: =NPV('Inputs - forecast'!$P$31,F206:O206) -> 6259.741636 | F206: =F179+F191 -> 621.1791323 | G206: =G179+G191 -> 652.2380889 | H206: 684.8499933 | I206: 719.092493 | J206: 755.0471177 | K206: 996.0456358 | L206: 1045.847918 | M206: 1098.140314 | N206: 1153.047329 | O206: 1210.699696 | R206: Note
B207: FNAR + draw-down | E207: =NPV('Inputs - forecast'!$P$31,F207:Q207) -> 6096.474547 | F207: =F179-F192 -> 603.4311571 | G207: =G179-G192 -> 615.4997802 | H207: 647.8191845 | I207: 681.7854474 | J207: 717.4815295 | K207: 1056.344984 | L207: 1101.793445 | M207: 1038.762312 | N207: 1093.226389 | O207: 1150.464188 | R207: Note
B208: Closing WAB yet to receive | E208: =NPV('Inputs - forecast'!$P$31,F208:Q208) -> 163.267089 | F208: 0 | G208: 0 | H208: 0 | I208: 0 | J208: 0 | K208: 0 | L208: 0 | M208: 0 | N208: 0 | O208: =+O193 -> 297.3896567
D209: NPV | E209: =E206-E207-E208 -> -5.684341886e-13

Sheet 2 Incl CODW
A1: Calculation
A3: Analysis
A10: Calculation
A11: Forecast | D11: Return over forecast period | E11: ='Inputs - forecast'!E2 -> 2020-06-30 | F11: ='Inputs - forecast'!F2 -> 2021-06-30 | G11: ='Inputs - forecast'!G2 -> 2022-06-30 | H11: ='Inputs - forecast'!H2 -> 2023-06-30 | I11: ='Inputs - forecast'!I2 -> 2024-06-30 | J11: ='Inputs - forecast'!J2 -> 2025-06-30 | K11: ='Inputs - forecast'!K2 -> 2026-06-30 | L11: ='Inputs - forecast'!L2 -> 2027-06-30 | M11: ='Inputs - forecast'!M2 -> 2028-06-30 | N11: ='Inputs - forecast'!N2 -> 2029-06-30 | O11: ='Inputs - forecast'!O2 -> 2030-06-30
A12: Building blocks
B13: Revenue | F13: =K69 -> 603.4311571 | G13: =F13*(1+'Inputs - forecast'!G4) -> 615.4997802 | H13: =G13*(1+'Inputs - forecast'!H4) -> 627.8097758 | I13: =H13*(1+'Inputs - forecast'!I4) -> 640.3659713 | J13: =I13*(1+'Inputs - forecast'!J4) -> 653.1732908 | K13: =P76 -> 967.5871891 | L13: =K13*(1+'Inputs - forecast'!L4) -> 986.9389329 | M13: =L13*(1+'Inputs - forecast'!M4) -> 1006.677712 | N13: =M13*(1+'Inputs - forecast'!N4) -> 1026.811266 | O13: =N13*(1+'Inputs - forecast'!O4) -> 1047.347491
B14: Return on debt | F14: =-SUM(F$38)*'Inputs - forecast'!F$28*'Inputs - forecast'!F$26 -> -61.5 | G14: =-SUM(G$38)*'Inputs - forecast'!G$28*'Inputs - forecast'!G$26 -> -60.639 | H14: =-SUM(H$38)*'Inputs - forecast'!H$28*'Inputs - forecast'!H$26 -> -59.245 | I14: =-SUM(I$38)*'Inputs - forecast'!I$28*'Inputs - forecast'!I$26 -> -57.2271153 | J14: =-SUM(J$38)*'Inputs - forecast'!J$28*'Inputs - forecast'!J$26 -> -54.47082123 | K14: =-SUM(K$38)*'Inputs - forecast'!K$28*'Inputs - forecast'!K$26 -> -58.75428013 | L14: =-SUM(L$38)*'Inputs - forecast'!L$28*'Inputs - forecast'!L$26 -> -50.61219733 | M14: =-SUM(M$38)*'Inputs - forecast'!M$28*'Inputs - forecast'!M$26 -> -41.4404098 | N14: =-SUM(N$38)*'Inputs - forecast'!N$28*'Inputs - forecast'!N$26 -> -30.95599908 | O14: =-SUM(O$38)*'Inputs - forecast'!O$28*'Inputs - forecast'!O$26 -> -18.61961036
B15: Return on equity | F15: =-SUM(F$38)*(1-'Inputs - forecast'!F$28)*'Inputs - forecast'!F$25 -> -123.9 | G15: =-SUM(G$38)*(1-'Inputs - forecast'!G$28)*'Inputs - forecast'!G$25 -> -122.1654 | H15: =-SUM(H$38)*(1-'Inputs - forecast'!H$28)*'Inputs - forecast'!H$25 -> -119.357 | I15: =-SUM(I$38)*(1-'Inputs - forecast'!I$28)*'Inputs - forecast'!I$25 -> -115.2917006 | J15: =-SUM(J$38)*(1-'Inputs - forecast'!J$28)*'Inputs - forecast'!J$25 -> -109.7387764 | K15: =-SUM(K$38)*(1-'Inputs - forecast'!K$28)*'Inputs - forecast'!K$25 -> -118.368379 | L15: =-SUM(L$38)*(1-'Inputs - forecast'!L$28)*'Inputs - forecast'!L$25 -> -101.965061 | M15: =-SUM(M$38)*(1-'Inputs - forecast'!M$28)*'Inputs - forecast'!M$25 -> -83.48726462 | N15: =-SUM(N$38)*(1-'Inputs - forecast'!N$28)*'Inputs - forecast'!N$25 -> -62.36501279 | O15: =-SUM(O$38)*(1-'Inputs - forecast'!O$28)*'Inputs - forecast'!O$25 -> -37.51170282
B16: Revaluation | F16: =F39 -> 60 | G16: =G39 -> 59.16 | H16: 57.8 | I16: 55.831332 | J16: 53.14226462 | K16: 57.32124891 | L16: 49.3777535 | M16: 40.4296681 | N16: 30.20097472 | O16: 18.16547352
B17: Tax | F17: =F60 -> -39.18072398 | G17: =G60 -> -35.8831518 | H17: -31.85484656 | I17: -26.85164855 | J17: -20.50059815 | K17: -89.43507726 | L17: -87.29168632 | M17: -82.2498481 | N17: -71.10281131 | O17: -40.85184001
B18: Opex | F18: =F26 -> -102 | G18: =G26 -> -104.04 | H18: -106.1208 | I18: -108.243216 | J18: -110.4080803 | K18: -130.1807194 | L18: -132.7843338 | M18: -135.4400204 | N18: -138.1488208 | O18: -140.9117973
B19: Depreciation | F19: =F41 -> -306 | G19: =G41 -> -335.24 | H19: -368.475 | I19: -406.7711331 | J19: -451.7092492 | K19: -584.6767388 | L19: -629.5663571 | M19: -687.3043577 | N19: -770.1248553 | O19: -926.4391496
B20: Net revenue | F20: =SUM(F13:F19) -> 30.8504331 | G20: 16.69222843 | H20: 0.5571292615 | I20: -18.18751023 | J20: -40.51197 | K20: 43.4932434 | L20: 34.09705093 | M20: 17.18547899 | N20: -15.6852588 | O20: -98.82113547
B21: Present value | F21: =F20/'Inputs - forecast'!F$36 -> 29.05484375 | G21: =G20/'Inputs - forecast'!G$36 -> 14.80569768 | H21: =H20/'Inputs - forecast'!H$36 -> 0.4654015293 | I21: =I20/'Inputs - forecast'!I$36 -> -14.3087721 | J21: =J20/'Inputs - forecast'!J$36 -> -30.01717087 | K21: =K20/'Inputs - forecast'!K$36 -> 30.35047339 | L21: =L20/'Inputs - forecast'!L$36 -> 22.40875721 | M21: =M20/'Inputs - forecast'!M$36 -> 10.63701749 | N21: =N20/'Inputs - forecast'!N$36 -> -9.143389059 | O21: =O20/'Inputs - forecast'!O$36 -> -54.25285903
B22: Sum of present values | O22: =SUM(F21:O21) -> 2.415845302e-13
A24: Regulatory cashflows
B25: Revenue | F25: =F13 -> 603.4311571 | G25: =G13 -> 615.4997802 | H25: 627.8097758 | I25: 640.3659713 | J25: 653.1732908 | K25: 967.5871891 | L25: 986.9389329 | M25: 1006.677712 | N25: 1026.811266 | O25: 1047.347491
B26: Opex | F26: =-'Inputs - forecast'!F$16 -> -102 | G26: =-'Inputs - forecast'!G$16 -> -104.04 | H26: =-'Inputs - forecast'!H$16 -> -106.1208 | I26: =-'Inputs - forecast'!I$16 -> -108.243216 | J26: =-'Inputs - forecast'!J$16 -> -110.4080803 | K26: =-'Inputs - forecast'!K$16 -> -130.1807194 | L26: =-'Inputs - forecast'!L$16 -> -132.7843338 | M26: =-'Inputs - forecast'!M$16 -> -135.4400204 | N26: =-'Inputs - forecast'!N$16 -> -138.1488208 | O26: =-'Inputs - forecast'!O$16 -> -140.9117973
B27: Tax | F27: =F17 -> -39.18072398 | G27: =G17 -> -35.8831518 | H27: -31.85484656 | I27: -26.85164855 | J27: -20.50059815 | K27: -89.43507726 | L27: -87.29168632 | M27: -82.2498481 | N27: -71.10281131 | O27: -40.85184001
B28: Capex | F28: =-'Inputs - forecast'!F$17 -> -204 | G28: =-'Inputs - forecast'!G$17 -> -208.08 | H28: =-'Inputs - forecast'!H$17 -> -212.2416 | I28: =-'Inputs - forecast'!I$17 -> -216.486432 | J28: =-'Inputs - forecast'!J$17 -> -220.8161606 | K28: =-'Inputs - forecast'!K$17 -> -130.1807194 | L28: =-'Inputs - forecast'!L$17 -> -132.7843338 | M28: =-'Inputs - forecast'!M$17 -> -135.4400204 | N28: =-'Inputs - forecast'!N$17 -> -138.1488208 | O28: =-'Inputs - forecast'!O$17 -> 0
B29: Opening RAB | E29: =-'Inputs - forecast'!E$18 -> -3000
B30: Closing RAB | J30: =-(J44-J42) -> -386.7000384 | O30: =O42 -> 0
B31: Sum | E31: =SUM(E25:E30) -> -3000 | F31: =SUM(F25:F30) -> 258.2504331 | G31: 267.4966284 | H31: 277.5925293 | I31: 288.7846748 | J31: -85.25158679 | K31: 617.7906731 | L31: 634.078579 | M31: 653.5478226 | N31: 679.4108128 | O31: 865.5838538
B32: Present value | E32: =E31/'Inputs - forecast'!E$36 -> -3000 | F32: =F31/'Inputs - forecast'!F$36 -> 243.2194699 | G32: =G31/'Inputs - forecast'!G$36 -> 237.2645587 | H32: =H31/'Inputs - forecast'!H$36 -> 231.8887134 | I32: =I31/'Inputs - forecast'!I$36 -> 227.1973484 | J32: =J31/'Inputs - forecast'!J$36 -> -63.16679854 | K32: =K31/'Inputs - forecast'!K$36 -> 431.1069471 | L32: =L31/'Inputs - forecast'!L$36 -> 416.7197028 | M32: =M31/'Inputs - forecast'!M$36 -> 404.5159067 | N32: =N31/'Inputs - forecast'!N$36 -> 396.0481284 | O32: =O31/'Inputs - forecast'!O$36 -> 475.2060232
B33: Sum of present values | O33: =SUM(E32:O32) -> -1.136868377e-12
A35: Regulatory Asset Base
B36: Useful lives | F36: 10 | G36: =F36-1 -> 9 | H36: =G36-1 -> 8 | I36: 7 | J36: 6 | K36: 5 | L36: 4 | M36: 3 | N36: 2 | O36: 1
B38: Opening RAB | F38: =E42 -> 3000 | G38: =F42 -> 2958 | H38: =G42 -> 2890 | I38: =H42 -> 2791.5666 | J38: =I42 -> 2657.113231 | K38: =J44 -> 2866.062445 | L38: =K42 -> 2468.887675 | M38: =L42 -> 2021.483405 | N38: =M42 -> 1510.048736 | O38: =N42 -> 908.2736761
B39: Revaluation | F39: =F38*('Inputs - forecast'!F$4) -> 60 | G39: =G38*('Inputs - forecast'!G$4) -> 59.16 | H39: =H38*('Inputs - forecast'!H$4) -> 57.8 | I39: =I38*('Inputs - forecast'!I$4) -> 55.831332 | J39: =J38*('Inputs - forecast'!J$4) -> 53.14226462 | K39: =K38*('Inputs - forecast'!K$4) -> 57.32124891 | L39: =L38*('Inputs - forecast'!L$4) -> 49.3777535 | M39: =M38*('Inputs - forecast'!M$4) -> 40.4296681 | N39: =N38*('Inputs - forecast'!N$4) -> 30.20097472 | O39: =O38*('Inputs - forecast'!O$4) -> 18.16547352
B40: Capex | F40: =-F28 -> 204 | G40: =-G28 -> 208.08 | H40: 212.2416 | I40: 216.486432 | J40: 220.8161606 | K40: 130.1807194 | L40: 132.7843338 | M40: 135.4400204 | N40: 138.1488208 | O40: 0
B41: Depreciation | F41: =-SUM(F38:F39)/F36 -> -306 | G41: =-SUM(G38:G39)/G36 -> -335.24 | H41: -368.475 | I41: -406.7711331 | J41: -451.7092492 | K41: -584.6767388 | L41: -629.5663571 | M41: -687.3043577 | N41: -770.1248553 | O41: -926.4391496 | Q41: Note
B42: Closing RAB | E42: =-E29 -> 3000 | F42: =SUM(F38:F41) -> 2958 | G42: 2890 | H42: 2791.5666 | I42: 2657.113231 | J42: 2479.362407 | K42: 2468.887675 | L42: 2021.483405 | M42: 1510.048736 | N42: 908.2736761 | O42: 0
B44: RAB adjusted for actual inflation | J44: =J42/'Inputs - forecast'!J5*'Inputs - actual'!J5 -> 2866.062445 | Q44: Note
B45: Check to actual RAB | J45: =J152-J44 -> 0
A48: Tax asset base | F48: =F36 -> 10 | G48: 9 | H48: 8 | I48: 7 | J48: 6 | K48: 5 | L48: 4 | M48: 3 | N48: 2 | O48: 1
B49: Opening balance | F49: =E52 -> 3000 | G49: =F52 -> 2904 | H49: =G52 -> 2789.413333 | I49: 2652.978267 | J49: 2490.467803 | K49: 2296.205997 | L49: 1967.145517 | M49: 1608.143471 | N49: 1207.535668 | O49: 741.9166549
B50: Capex | F50: =-F28 -> 204 | G50: 208.08 | H50: 212.2416 | I50: 216.486432 | J50: 220.8161606 | K50: 130.1807194 | L50: 132.7843338 | M50: 135.4400204 | N50: 138.1488208 | O50: 0
B51: Depreciation | F51: =-F49/F48 -> -300 | G51: =-G49/G48 -> -322.6666667 | H51: -348.6766667 | I51: -378.9968952 | J51: -415.0779672 | K51: -459.2411994 | L51: -491.7863792 | M51: -536.0478238 | N51: -603.767834 | O51: -741.9166549
B52: Closing balance | E52: =E42 -> 3000 | F52: =SUM(F49:F51) -> 2904 | G52: =SUM(G49:G51) -> 2789.413333 | H52: =SUM(H49:H51) -> 2652.978267 | I52: 2490.467803 | J52: 2296.205997 | K52: 1967.145517 | L52: 1608.143471 | M52: 1207.535668 | N52: 741.9166549 | O52: 0
A54: Regulatory tax
B55: Revenue | F55: =F13 -> 603.4311571 | G55: =G13 -> 615.4997802 | H55: 627.8097758 | I55: 640.3659713 | J55: 653.1732908 | K55: 967.5871891 | L55: 986.9389329 | M55: 1006.677712 | N55: 1026.811266 | O55: 1047.347491
B56: Depreciation | F56: =F51 -> -300 | G56: -322.6666667 | H56: -348.6766667 | I56: -378.9968952 | J56: -415.0779672 | K56: -459.2411994 | L56: -491.7863792 | M56: -536.0478238 | N56: -603.767834 | O56: -741.9166549
B57: Opex | F57: =F18 -> -102 | G57: =G18 -> -104.04 | H57: -106.1208 | I57: -108.243216 | J57: -110.4080803 | K57: -130.1807194 | L57: -132.7843338 | M57: -135.4400204 | N57: -138.1488208 | O57: -140.9117973
B58: Notional interest | F58: =-'Inputs - forecast'!F$26*'Inputs - forecast'!F28*F38 -> -61.5 | G58: =-'Inputs - forecast'!G$26*'Inputs - forecast'!G28*G38 -> -60.639 | H58: =-'Inputs - forecast'!H$26*'Inputs - forecast'!H28*H38 -> -59.245 | I58: =-'Inputs - forecast'!I$26*'Inputs - forecast'!I28*I38 -> -57.2271153 | J58: =-'Inputs - forecast'!J$26*'Inputs - forecast'!J28*J38 -> -54.47082123 | K58: =-'Inputs - forecast'!K$26*'Inputs - forecast'!K28*K38 -> -58.75428013 | L58: =-'Inputs - forecast'!L$26*'Inputs - forecast'!L28*L38 -> -50.61219733 | M58: =-'Inputs - forecast'!M$26*'Inputs - forecast'!M28*M38 -> -41.4404098 | N58: =-'Inputs - forecast'!N$26*'Inputs - forecast'!N28*N38 -> -30.95599908 | O58: =-'Inputs - forecast'!O$26*'Inputs - forecast'!O28*O38 -> -18.61961036
B59: EBT | F59: =SUM(F55:F58) -> 139.9311571 | G59: =SUM(G55:G58) -> 128.1541136 | H59: 113.7673092 | I59: 95.8987448 | J59: 73.21642198 | K59: 319.4109902 | L59: 311.7560226 | M59: 293.7494575 | N59: 253.9386118 | O59: 145.8994286
B60: Calculated tax | F60: =-F59*'Inputs - forecast'!F29 -> -39.18072398 | G60: =-G59*'Inputs - forecast'!G29 -> -35.8831518 | H60: =-H59*'Inputs - forecast'!H29 -> -31.85484656 | I60: =-I59*'Inputs - forecast'!I29 -> -26.85164855 | J60: =-J59*'Inputs - forecast'!J29 -> -20.50059815 | K60: =-K59*'Inputs - forecast'!K29 -> -89.43507726 | L60: =-L59*'Inputs - forecast'!L29 -> -87.29168632 | M60: =-M59*'Inputs - forecast'!M29 -> -82.2498481 | N60: =-N59*'Inputs - forecast'!N29 -> -71.10281131 | O60: =-O59*'Inputs - forecast'!O29 -> -40.85184001
B61: Deferred tax | F61: =IF(F60>0,F60,0) -> 0 | G61: =IF(G60>0,G60,0) -> 0 | H61: =IF(H60>0,H60,0) -> 0 | I61: =IF(I60>0,I60,0) -> 0 | J61: =IF(J60>0,J60,0) -> 0 | K61: 0 | L61: 0 | M61: 0 | N61: 0 | O61: 0
B62: Tax | F62: =IF(F61>0,0,F60+E61) -> -39.18072398 | G62: -35.8831518 | H62: -31.85484656 | I62: -26.85164855 | J62: -20.50059815 | K62: -89.43507726 | L62: -87.29168632 | M62: -82.2498481 | N62: -71.10281131 | O62: -40.85184001
A64: Reg Period 1
A65: Calculation of revenue | K65: Sum
B66: Present value of revenue | F66: =F13/'Inputs - forecast'!F$36 -> 568.3096224 | G66: =G13/'Inputs - forecast'!G$36 -> 545.9369136 | H66: =H13/'Inputs - forecast'!H$36 -> 524.4449537 | I66: =I13/'Inputs - forecast'!I$36 -> 503.7990703 | J66: =J13/'Inputs - forecast'!J$36 -> 483.9659556 | K66: =SUM(F66:J66) -> 2626.456516
B67: Present value of cost | F67: =SUM(F14:F19)/'Inputs - forecast'!F$36 -> -539.2547787 | G67: =SUM(G14:G19)/'Inputs - forecast'!G$36 -> -531.1312159 | H67: =SUM(H14:H19)/'Inputs - forecast'!H$36 -> -523.9795522 | I67: =SUM(I14:I19)/'Inputs - forecast'!I$36 -> -518.1078424 | J67: =SUM(J14:J19)/'Inputs - forecast'!J$36 -> -513.9831265 | K67: =SUM(F67:J67) -> -2626.456516
B68: Difference | K68: =SUM(K66:K67) -> 4.092726158e-12
B69: Revenue | K69: 603.4311571
A71: Reg Period 2
A72: Calculation of revenue | P72: Sum
B73: Present value of revenue | K73: =K13/'Inputs - forecast'!K$36 -> 675.2020989 | L73: =L13/'Inputs - forecast'!L$36 -> 648.6213419 | M73: =M13/'Inputs - forecast'!M$36 -> 623.0869926 | N73: =N13/'Inputs - forecast'!N$36 -> 598.5578569 | O73: =O13/'Inputs - forecast'!O$36 -> 574.9943624 | P73: =SUM(K73:O73) -> 3120.462653
B74: Present value of cost | K74: =SUM(K14:K19)/'Inputs - forecast'!K$36 -> -644.8516255 | L74: =SUM(L14:L19)/'Inputs - forecast'!L$36 -> -626.2125847 | M74: =SUM(M14:M19)/'Inputs - forecast'!M$36 -> -612.4499751 | N74: =SUM(N14:N19)/'Inputs - forecast'!N$36 -> -607.701246 | O74: =SUM(O14:O19)/'Inputs - forecast'!O$36 -> -629.2472215 | P74: =SUM(K74:O74) -> -3120.462653
B75: Difference | P75: =SUM(P73:P74) -> 0
B76: Revenue | P76: 967.5871891
A78: Actual | D78: =D11 -> Return over forecast period | E78: =E11 -> 2020-06-30 | F78: 2021-06-30 | G78: 2022-06-30 | H78: 2023-06-30 | I78: 2024-06-30 | J78: 2025-06-30 | K78: 2026-06-30 | L78: 2027-06-30 | M78: 2028-06-30 | N78: 2029-06-30 | O78: 2030-06-30
A79: Actual regulatory cashflows
B80: Revenue (no delay in wash-ups) | F80: =F$13/'Inputs - forecast'!F$7*'Inputs - actual'!F$5+F109 -> 583.1938382 | G80: =G$13/'Inputs - forecast'!G$7*'Inputs - actual'!G$5+G109 -> 613.6830154 | H80: =H$13/'Inputs - forecast'!H$7*'Inputs - actual'!H$5+H109 -> 646.0733389 | I80: =I$13/'Inputs - forecast'!I$7*'Inputs - actual'!I$5+I109 -> 680.5349267 | J80: =J$13/'Inputs - forecast'!J$7*'Inputs - actual'!J$5+J109 -> 717.2672172 | K80: =K$13/'Inputs - forecast'!K$7*'Inputs - actual'!K$5+K109 -> 959.7562275 | L80: =L$13/'Inputs - forecast'!L$7*'Inputs - actual'!L$5+L109 -> 1013.668017 | M80: =M$13/'Inputs - forecast'!M$7*'Inputs - actual'!M$5+M109 -> 1071.017004 | N80: =N$13/'Inputs - forecast'!N$7*'Inputs - actual'!N$5+N109 -> 1132.190293 | O80: =O$13/'Inputs - forecast'!O$7*'Inputs - actual'!O$5+O109 -> 1197.785497 | Q80: Note
B81: Opex | F81: =F$18/'Inputs - forecast'!F$7*'Inputs - actual'!F$5 -> -105 | G81: =G$18/'Inputs - forecast'!G$7*'Inputs - actual'!G$5 -> -110.25 | H81: =H$18/'Inputs - forecast'!H$7*'Inputs - actual'!H$5 -> -115.7625 | I81: =I$18/'Inputs - forecast'!I$7*'Inputs - actual'!I$5 -> -121.550625 | J81: =J$18/'Inputs - forecast'!J$7*'Inputs - actual'!J$5 -> -127.6281563 | K81: =K$18/'Inputs - forecast'!K$7*'Inputs - actual'!K$5 -> -134.0095641 | L81: =L$18/'Inputs - forecast'!L$7*'Inputs - actual'!L$5 -> -140.7100423 | M81: =M$18/'Inputs - forecast'!M$7*'Inputs - actual'!M$5 -> -147.7455444 | N81: =N$18/'Inputs - forecast'!N$7*'Inputs - actual'!N$5 -> -155.1328216 | O81: =O$18/'Inputs - forecast'!O$7*'Inputs - actual'!O$5 -> -162.8894627
B82: Capex | F82: =-F134 -> -210 | G82: =-G134 -> -220.5 | H82: -231.525 | I82: -243.10125 | J82: -255.2563125 | K82: -134.0095641 | L82: -140.7100423 | M82: -147.7455444 | N82: -155.1328216 | O82: 0
B83: Tax | F83: =F163+F171 -> -40.33309822 | G83: =G163+G171 -> -38.02496622 | H83: -34.74904708 | I83: -30.15278725 | J83: -23.69802588 | K83: -92.06552071 | L83: -92.50200324 | M83: -89.72273146 | N83: -79.84418307 | O83: -47.22340072
B84: Other | F84: =(-F99/'Inputs - actual'!F$36+F100)*'Inputs - actual'!F36 -> -0.3678855952 | G84: =(-G99/'Inputs - actual'!G$36+G100)*'Inputs - actual'!G36 -> -0.4074386188 | H84: =(-H99/'Inputs - actual'!H$36+H100)*'Inputs - actual'!H36 -> -0.02087691733 | I84: =(-I99/'Inputs - actual'!I$36+I100)*'Inputs - actual'!I36 -> 0.9300334615 | J84: =(-J99/'Inputs - actual'!J$36+J100)*'Inputs - actual'!J36 -> 2.650329049 | K84: =(-K99/'Inputs - actual'!K$36+K100)*'Inputs - actual'!K36 -> -3.023151066 | L84: =(-L99/'Inputs - actual'!L$36+L100)*'Inputs - actual'!L36 -> -2.830040068 | M84: =(-M99/'Inputs - actual'!M$36+M100)*'Inputs - actual'!M36 -> -1.668496071 | N84: =(-N99/'Inputs - actual'!N$36+N100)*'Inputs - actual'!N36 -> 1.753511037 | O84: =(-O99/'Inputs - actual'!O$36+O100)*'Inputs - actual'!O36 -> 12.56405421 | Q84: Note
B85: Nominal IRR | D85: =IRR(E85:O85,0.093) -> 0.08036764706 | E85: =-E42+SUM(E80:E84) -> -3000 | F85: =SUM(F80:F84) -> 227.4928544 | G85: =SUM(G80:G84) -> 244.5006105 | H85: 264.0159149 | I85: 286.6602979 | J85: 313.3350516 | K85: 596.6484276 | L85: 636.9158892 | M85: 684.1346881 | N85: 743.8339783 | O85: =SUM(O80:O84)+O152 -> 1000.236687
B87: Real IRR | D87: =IRR(E87:O87,0.08) -> 0.04098039216 | E87: =E85 -> -3000 | F87: =F85/'Inputs - actual'!F$39 -> 219.199086 | G87: =G85/'Inputs - actual'!G$39 -> 226.9979348 | H87: =H85/'Inputs - actual'!H$39 -> 236.1799597 | I87: =I85/'Inputs - actual'!I$39 -> 247.0878918 | J87: =J85/'Inputs - actual'!J$39 -> 260.2339031 | K87: =K85/'Inputs - actual'!K$39 -> 477.4681145 | L87: =L85/'Inputs - actual'!L$39 -> 491.11018 | M87: =M85/'Inputs - actual'!M$39 -> 508.2875163 | N87: =N85/'Inputs - actual'!N$39 -> 532.4941294 | O87: =O85/'Inputs - actual'!O$39 -> 689.941979
B88: check to inputs | D88: =D87-'Inputs - actual'!P24 -> 6.270539643e-13
A90: Actual return (building blocks) using RAB
B91: Revenue | F91: =F80 -> 583.1938382 | G91: 613.6830154 | H91: 646.0733389 | I91: 680.5349267 | J91: 717.2672172 | K91: 959.7562275 | L91: 1013.668017 | M91: 1071.017004 | N91: 1132.190293 | O91: 1197.785497
B92: Opex | F92: =F81 -> -105 | G92: -110.25 | H92: -115.7625 | I92: -121.550625 | J92: -127.6281563 | K92: -134.0095641 | L92: -140.7100423 | M92: -147.7455444 | N92: -155.1328216 | O92: -162.8894627
B93: Return on debt (fixed) | F93: =-F148*'Inputs - forecast'!F$26*('Inputs - actual'!F$20) -> -61.5 | G93: =-G148*'Inputs - forecast'!G$26*('Inputs - actual'!G$20) -> -62.4225 | H93: =-H148*'Inputs - forecast'!H$26*('Inputs - actual'!H$20) -> -62.78125 | I93: =-I148*'Inputs - forecast'!I$26*('Inputs - actual'!I$20) -> -62.42653594 | J93: =-J148*'Inputs - forecast'!J$26*('Inputs - actual'!J$20) -> -61.16745797 | K93: =-K148*'Inputs - forecast'!K$26*('Inputs - actual'!K$20) -> -58.75428013 | L93: =-L148*'Inputs - forecast'!L$26*('Inputs - actual'!L$20) -> -52.10079137 | M93: =-M148*'Inputs - forecast'!M$26*('Inputs - actual'!M$20) -> -43.91392907 | N93: =-N148*'Inputs - forecast'!N$26*('Inputs - actual'!N$20) -> -33.76853401 | O93: =-O148*'Inputs - forecast'!O$26*('Inputs - actual'!O$20) -> -20.9087032
B94: Return on equity | F94: =-F148*'Inputs - actual'!F$18*(1-'Inputs - actual'!F$20) -> -179.6029412 | G94: =-G148*'Inputs - actual'!G$18*(1-'Inputs - actual'!G$20) -> -182.2969853 | H94: =-H148*'Inputs - actual'!H$18*(1-'Inputs - actual'!H$20) -> -183.3446691 | I94: =-I148*'Inputs - actual'!I$18*(1-'Inputs - actual'!I$20) -> -182.3087717 | J94: =-J148*'Inputs - actual'!J$18*(1-'Inputs - actual'!J$20) -> -178.6317944 | K94: =-K148*'Inputs - actual'!K$18*(1-'Inputs - actual'!K$20) -> -171.5844149 | L94: =-L148*'Inputs - actual'!L$18*(1-'Inputs - actual'!L$20) -> -152.1537458 | M94: =-M148*'Inputs - actual'!M$18*(1-'Inputs - actual'!M$20) -> -128.245054 | N94: =-N148*'Inputs - actual'!N$18*(1-'Inputs - actual'!N$20) -> -98.61671589 | O94: =-O148*'Inputs - actual'!O$18*(1-'Inputs - actual'!O$20) -> -61.06121285
B95: Revaluation | F95: =F149 -> 150 | G95: =G149 -> 152.25 | H95: 153.125 | I95: 152.2598438 | J95: 149.1889219 | K95: 143.3031223 | L95: 127.0751009 | M95: 107.1071441 | N95: 82.36227807 | O95: 50.99683707
B96: Depreciation | F96: =F151 -> -315 | G96: =G151 -> -355.25 | H96: -401.953125 | I96: -456.7795313 | J96: -522.1612266 | K96: -601.8731135 | L96: -667.1442798 | M96: -749.7500085 | N96: -864.8039198 | O96: -1070.933578
B97: Tax | F97: =F163+F171 -> -40.33309822 | G97: =G163+G171 -> -38.02496622 | H97: -34.74904708 | I97: -30.15278725 | J97: -23.69802588 | K97: -92.06552071 | L97: -92.50200324 | M97: -89.72273146 | N97: -79.84418307 | O97: -47.22340072
B98: Gain on RAB | J98: =J84 -> 2.650329049 | Q98: Note
B99: Nominal return | F99: =SUM(F91:F97) -> 31.75779878 | G99: =SUM(G91:G97) -> 17.68856386 | H99: 0.6077477378 | I99: -20.42348072 | J99: -46.83052203 | K99: 44.77245644 | L99: 36.13225553 | M99: 18.74688103 | N99: -17.61360278 | O99: -114.2340242
B100: Present value | D100: =SUM(E100:O100) -> -1.037392394e-12 | F100: =F99/'Inputs - actual'!F$28 -> 29.05484375 | G100: =G99/'Inputs - actual'!G$28 -> 14.80569768 | H100: =H99/'Inputs - actual'!H$28 -> 0.4654015293 | I100: =I99/'Inputs - actual'!I$28 -> -14.3087721 | J100: =J99/'Inputs - actual'!J$28 -> -30.01717087 | K100: =K99/'Inputs - actual'!K$28 -> 26.25547216 | L100: =L99/'Inputs - actual'!L$28 -> 19.38528252 | M100: =M99/'Inputs - actual'!M$28 -> 9.201830659 | N100: =N99/'Inputs - actual'!N$28 -> -7.909728255 | O100: =O99/'Inputs - actual'!O$28 -> -46.93285708
B102: Real return | F102: =F99/'Inputs - actual'!F$5 -> 30.24552264 | G102: =G99/'Inputs - actual'!G$5 -> 16.04404885 | H102: =H99/'Inputs - actual'!H$5 -> 0.5249953464 | I102: =I99/'Inputs - actual'!I$5 -> -16.80244813 | J102: =J99/'Inputs - actual'!J$5 -> -36.6929394 | K102: =K99/'Inputs - actual'!K$5 -> 33.40989634 | L102: =L99/'Inputs - actual'!L$5 -> 25.67851942 | M102: =M99/'Inputs - actual'!M$5 -> 12.68862699 | N102: =N99/'Inputs - actual'!N$5 -> -11.3538854 | O102: =O99/'Inputs - actual'!O$5 -> -70.12978146
B103: Present value | D103: =SUM(E103:O103) -> -1.016076112e-12 | F103: =F102/'Inputs - actual'!F$32 -> 29.05484375 | G103: =G102/'Inputs - actual'!G$32 -> 14.80569768 | H103: =H102/'Inputs - actual'!H$32 -> 0.4654015293 | I103: =I102/'Inputs - actual'!I$32 -> -14.3087721 | J103: =J102/'Inputs - actual'!J$32 -> -30.01717087 | K103: =K102/'Inputs - actual'!K$32 -> 26.25547216 | L103: =L102/'Inputs - actual'!L$32 -> 19.38528252 | M103: =M102/'Inputs - actual'!M$32 -> 9.201830659 | N103: =N102/'Inputs - actual'!N$32 -> -7.909728255 | O103: =O102/'Inputs - actual'!O$32 -> -46.93285708
B105: Actual return on RAB | F105: =-(F93+F94)/F148 -> 0.08036764706 | G105: 0.08036764706 | H105: 0.08036764706 | I105: 0.08036764706 | J105: 0.08036764706 | K105: 0.08036764706 | L105: 0.08036764706 | M105: 0.08036764706 | N105: 0.08036764706 | O105: 0.08036764706
B106: Actual Rab revaluation | F106: =F95/F148 -> 0.05 | G106: 0.05 | H106: 0.05 | I106: 0.05 | J106: 0.05 | K106: 0.05 | L106: 0.05 | M106: 0.05 | N106: 0.05 | O106: 0.05
B107: Annual change in revenue | G107: =G91/F91-1 -> 0.05227966279 | H107: 0.05278021837 | I107: 0.05334005551 | J107: 0.05397561391 | K107: 0.3380734607 | L107: 0.05617237795 | M107: 0.05657570954 | N107: 0.05711701014 | O107: 0.05793655317
A109: Adjustment for fixed cost of debt | F109: =-(F148*'Inputs - actual'!F$19*'Inputs - actual'!F$20+F93) -> -37.98529412 | G109: =-(G148*'Inputs - actual'!G$19*'Inputs - actual'!G$20+G93) -> -38.55507353 | H109: =-(H148*'Inputs - actual'!H$19*'Inputs - actual'!H$20+H93) -> -38.77665441 | I109: =-(I148*'Inputs - actual'!I$19*'Inputs - actual'!I$20+I93) -> -38.55756631 | J109: =-(J148*'Inputs - actual'!J$19*'Inputs - actual'!J$20+J93) -> -37.77990051 | K109: =-(K148*'Inputs - actual'!K$19*'Inputs - actual'!K$20+K93) -> -36.28940831 | L109: =-(L148*'Inputs - actual'!L$19*'Inputs - actual'!L$20+L93) -> -32.17990055 | M109: =-(M148*'Inputs - actual'!M$19*'Inputs - actual'!M$20+M93) -> -27.12330913 | N109: =-(N148*'Inputs - actual'!N$19*'Inputs - actual'!N$20+N93) -> -20.85703571 | O109: =-(O148*'Inputs - actual'!O$19*'Inputs - actual'!O$20+O93) -> -12.91419903
A111: Actual return (building blocks) using actual asset base
B112: Revenue | F112: =F$13/'Inputs - forecast'!F$7*'Inputs - actual'!F$5+F130 -> 583.1938382 | G112: =G$13/'Inputs - forecast'!G$7*'Inputs - actual'!G$5+G130 -> 615.3923536 | H112: =H$13/'Inputs - forecast'!H$7*'Inputs - actual'!H$5+H130 -> 649.3063095 | I112: =I$13/'Inputs - forecast'!I$7*'Inputs - actual'!I$5+I130 -> 685.0602546 | J112: =J$13/'Inputs - forecast'!J$7*'Inputs - actual'!J$5+J130 -> 722.7985368 | K112: =K$13/'Inputs - forecast'!K$7*'Inputs - actual'!K$5+K130 -> 965.9398231 | L112: =L$13/'Inputs - forecast'!L$7*'Inputs - actual'!L$5+L130 -> 1020.06647 | M112: =M$13/'Inputs - forecast'!M$7*'Inputs - actual'!M$5+M130 -> 1077.02259 | N112: =N$13/'Inputs - forecast'!N$7*'Inputs - actual'!N$5+N130 -> 1137.098128 | O112: =O$13/'Inputs - forecast'!O$7*'Inputs - actual'!O$5+O130 -> 1200.76084
B113: Opex | F113: =F81 -> -105 | G113: -110.25 | H113: -115.7625 | I113: -121.550625 | J113: -127.6281563 | K113: -134.0095641 | L113: -140.7100423 | M113: -147.7455444 | N113: -155.1328216 | O113: -162.8894627
B114: Return on debt (fixed) | F114: =-F133*'Inputs - forecast'!F$26*('Inputs - actual'!F$20) -> -61.5 | G114: =-G133*'Inputs - forecast'!G$26*('Inputs - actual'!G$20) -> -59.655 | H114: =-H133*'Inputs - forecast'!H$26*('Inputs - actual'!H$20) -> -57.54691667 | I114: =-I133*'Inputs - forecast'!I$26*('Inputs - actual'!I$20) -> -55.09981458 | J114: =-J133*'Inputs - forecast'!J$26*('Inputs - actual'!J$20) -> -52.21198812 | K114: =-K133*'Inputs - forecast'!K$26*('Inputs - actual'!K$20) -> -48.74274451 | L114: =-L133*'Inputs - forecast'!L$26*('Inputs - actual'!L$20) -> -41.74139167 | M114: =-M133*'Inputs - forecast'!M$26*('Inputs - actual'!M$20) -> -34.19059962 | N114: =-N133*'Inputs - forecast'!N$26*('Inputs - actual'!N$20) -> -25.82251674 | O114: =-O133*'Inputs - forecast'!O$26*('Inputs - actual'!O$20) -> -16.09148121
B115: Return on equity | F115: =-F133*'Inputs - actual'!F$18*(1-'Inputs - actual'!F$20) -> -179.6029412 | G115: =-G133*'Inputs - actual'!G$18*(1-'Inputs - actual'!G$20) -> -174.2148529 | H115: =-H133*'Inputs - actual'!H$18*(1-'Inputs - actual'!H$20) -> -168.0584632 | I115: =-I133*'Inputs - actual'!I$18*(1-'Inputs - actual'!I$20) -> -160.9120123 | J115: =-J133*'Inputs - actual'!J$18*(1-'Inputs - actual'!J$20) -> -152.4784818 | K115: =-K133*'Inputs - actual'!K$18*(1-'Inputs - actual'!K$20) -> -142.3469963 | L115: =-L133*'Inputs - actual'!L$18*(1-'Inputs - actual'!L$20) -> -121.9004344 | M115: =-M133*'Inputs - actual'!M$18*(1-'Inputs - actual'!M$20) -> -99.84930492 | N115: =-N133*'Inputs - actual'!N$18*(1-'Inputs - actual'!N$20) -> -75.41138138 | O115: =-O133*'Inputs - actual'!O$18*(1-'Inputs - actual'!O$20) -> -46.9931277
B116: Revaluation | F116: 0 | G116: 0 | H116: 0 | I116: 0 | J116: 0 | K116: 0 | L116: 0 | M116: 0 | N116: 0 | O116: 0 | Q116: Note
B117: Depreciation | F117: =F135 -> -300 | G117: =G135 -> -323.3333333 | H117: -350.8958333 | I117: -383.9708333 | J117: -424.4877083 | K117: -475.5389708 | L117: -509.0413618 | M117: -555.9447093 | N117: -629.8174815 | O117: -784.9503031
B118: Tax | F118: =F163+F171 -> -40.33309822 | G118: =G163+G171 -> -38.02496622 | H118: -34.74904708 | I118: -30.15278725 | J118: -23.69802588 | K118: -92.06552071 | L118: -92.50200324 | M118: -89.72273146 | N118: -79.84418307 | O118: -47.22340072
B119: Gain on actual asset base | J119: 0
B120: Nominal return | F120: =SUM(F112:F119) -> -103.2422012 | G120: =SUM(G112:G119) -> -90.08579889 | H120: -77.70645079 | I120: -66.62581788 | J120: -57.70582364 | K120: 73.23602659 | L120: 114.1712365 | M120: 149.5697006 | N120: 171.0697434 | O120: 142.6130642
B121: Present value | D121: =SUM(E121:O121) -> -6.110667528e-13 | F121: =F120/'Inputs - actual'!F$28 -> -94.45509893 | G121: =G120/'Inputs - actual'!G$28 -> -75.40369666 | H121: =H120/'Inputs - actual'!H$28 -> -59.50610555 | I121: =I120/'Inputs - actual'!I$28 -> -46.67831389 | J121: =J120/'Inputs - actual'!J$28 -> -36.98796198 | K121: =K120/'Inputs - actual'!K$28 -> 42.94708421 | L121: =L120/'Inputs - actual'!L$28 -> 61.25390296 | M121: =M120/'Inputs - actual'!M$28 -> 73.41568203 | N121: =N120/'Inputs - actual'!N$28 -> 76.82216976 | O121: =O120/'Inputs - actual'!O$28 -> 58.59233804
B123: Real return | F123: =F120/'Inputs - actual'!F$5 -> -98.32590593 | G123: =G120/'Inputs - actual'!G$5 -> -81.71047518 | H123: =H120/'Inputs - actual'!H$5 -> -67.12575384 | I123: =I120/'Inputs - actual'!I$5 -> -54.81322526 | J123: =J120/'Inputs - actual'!J$5 -> -45.21402278 | K123: =K120/'Inputs - actual'!K$5 -> 54.64985063 | L123: =L120/'Inputs - actual'!L$5 -> 81.13936618 | M123: =M120/'Inputs - actual'!M$5 -> 101.2346607 | N123: =N120/'Inputs - actual'!N$5 -> 110.2730819 | O123: =O120/'Inputs - actual'!O$5 -> 87.55205026
B124: Present value | D124: =SUM(E124:O124) -> -8.171241461e-13 | F124: =F123/'Inputs - actual'!F$32 -> -94.45509893 | G124: =G123/'Inputs - actual'!G$32 -> -75.40369666 | H124: =H123/'Inputs - actual'!H$32 -> -59.50610555 | I124: =I123/'Inputs - actual'!I$32 -> -46.67831389 | J124: =J123/'Inputs - actual'!J$32 -> -36.98796198 | K124: =K123/'Inputs - actual'!K$32 -> 42.94708421 | L124: =L123/'Inputs - actual'!L$32 -> 61.25390296 | M124: =M123/'Inputs - actual'!M$32 -> 73.41568203 | N124: =N123/'Inputs - actual'!N$32 -> 76.82216976 | O124: =O123/'Inputs - actual'!O$32 -> 58.59233804
B126: Actual return on actual asset base | F126: =-(F114+F115)/F133 -> 0.08036764706 | G126: 0.08036764706 | H126: 0.08036764706 | I126: 0.08036764706 | J126: 0.08036764706 | K126: 0.08036764706 | L126: 0.08036764706 | M126: 0.08036764706 | N126: 0.08036764706 | O126: 0.08036764706
B127: Actual Rab revaluation | F127: =F116/F133 -> 0 | G127: 0 | H127: 0 | I127: 0 | J127: 0 | K127: 0 | L127: 0 | M127: 0 | N127: 0 | O127: 0
B128: Annual change in revenue | G128: =G112/F112-1 -> 0.05521065781 | H128: =H112/G112-1 -> 0.05510948538 | I128: 0.05506483542 | J128: 0.05508753707 | K128: 0.3363887362 | L128: 0.05603521616 | M128: 0.05583569509 | N128: 0.05577927334 | O128: 0.05598699917
A130: Adjustment for fixed cost of debt | F130: =-(F133*'Inputs - actual'!F$19*'Inputs - actual'!F$20+F114) -> -37.98529412 | G130: =-(G133*'Inputs - actual'!G$19*'Inputs - actual'!G$20+G114) -> -36.84573529 | H130: =-(H133*'Inputs - actual'!H$19*'Inputs - actual'!H$20+H114) -> -35.54368382 | I130: =-(I133*'Inputs - actual'!I$19*'Inputs - actual'!I$20+I114) -> -34.03223842 | J130: =-(J133*'Inputs - actual'!J$19*'Inputs - actual'!J$20+J114) -> -32.2485809 | K130: =-(K133*'Inputs - actual'!K$19*'Inputs - actual'!K$20+K114) -> -30.10581279 | L130: =-(L133*'Inputs - actual'!L$19*'Inputs - actual'!L$20+L114) -> -25.7814478 | M130: =-(M133*'Inputs - actual'!M$19*'Inputs - actual'!M$20+M114) -> -21.11772329 | N130: =-(N133*'Inputs - actual'!N$19*'Inputs - actual'!N$20+N114) -> -15.94920152 | O130: =-(O133*'Inputs - actual'!O$19*'Inputs - actual'!O$20+O114) -> -9.938856043 | Q130: Note
A132: Actual Asset Base
B133: Opening Asset Base | F133: =E42 -> 3000 | G133: =F136 -> 2910 | H133: 2807.166667 | I133: 2687.795833 | J133: 2546.92625 | K133: 2377.694854 | L133: 2036.165447 | M133: 1667.834128 | N133: 1259.634963 | O133: 784.9503031
B134: Capex | F134: =F$40/'Inputs - forecast'!F$7*'Inputs - actual'!F$5 -> 210 | G134: =G$40/'Inputs - forecast'!G$7*'Inputs - actual'!G$5 -> 220.5 | H134: =H$40/'Inputs - forecast'!H$7*'Inputs - actual'!H$5 -> 231.525 | I134: =I$40/'Inputs - forecast'!I$7*'Inputs - actual'!I$5 -> 243.10125 | J134: =J$40/'Inputs - forecast'!J$7*'Inputs - actual'!J$5 -> 255.2563125 | K134: =K$40/'Inputs - forecast'!K$7*'Inputs - actual'!K$5 -> 134.0095641 | L134: =L$40/'Inputs - forecast'!L$7*'Inputs - actual'!L$5 -> 140.7100423 | M134: =M$40/'Inputs - forecast'!M$7*'Inputs - actual'!M$5 -> 147.7455444 | N134: =N$40/'Inputs - forecast'!N$7*'Inputs - actual'!N$5 -> 155.1328216 | O134: =O$40/'Inputs - forecast'!O$7*'Inputs - actual'!O$5 -> 0
B135: Depreciation | F135: =-F133/F36 -> -300 | G135: -323.3333333 | H135: -350.8958333 | I135: -383.9708333 | J135: -424.4877083 | K135: -475.5389708 | L135: -509.0413618 | M135: -555.9447093 | N135: -629.8174815 | O135: -784.9503031
B136: Closing Asset Base | F136: =SUM(F133:F135) -> 2910 | G136: 2807.166667 | H136: 2687.795833 | I136: 2546.92625 | J136: 2377.694854 | K136: 2036.165447 | L136: 1667.834128 | M136: 1259.634963 | N136: 784.9503031 | O136: 0
A138: Actual debt
B139: Opening debt | F139: =F133*'Inputs - actual'!F$20 -> 1230 | G139: =G133*'Inputs - actual'!G$20 -> 1193.1 | H139: =H133*'Inputs - actual'!H$20 -> 1150.938333 | I139: =I133*'Inputs - actual'!I$20 -> 1101.996292 | J139: =J133*'Inputs - actual'!J$20 -> 1044.239762 | K139: =K133*'Inputs - actual'!K$20 -> 974.8548902 | L139: =L133*'Inputs - actual'!L$20 -> 834.8278334 | M139: =M133*'Inputs - actual'!M$20 -> 683.8119924 | N139: =N133*'Inputs - actual'!N$20 -> 516.4503348 | O139: =O133*'Inputs - actual'!O$20 -> 321.8296243
B140: Additional borrowings for capex | F140: =F134*'Inputs - actual'!F$20 -> 86.1 | G140: =G134*'Inputs - actual'!G$20 -> 90.405 | H140: =H134*'Inputs - actual'!H$20 -> 94.92525 | I140: =I134*'Inputs - actual'!I$20 -> 99.6715125 | J140: =J134*'Inputs - actual'!J$20 -> 104.6550881 | K140: =K134*'Inputs - actual'!K$20 -> 54.94392127 | L140: =L134*'Inputs - actual'!L$20 -> 57.69111733 | M140: =M134*'Inputs - actual'!M$20 -> 60.5756732 | N140: =N134*'Inputs - actual'!N$20 -> 63.60445686 | O140: =O134*'Inputs - actual'!O$20 -> 0
B141: Repayments | F141: =F135*'Inputs - actual'!F$20 -> -123 | G141: =G135*'Inputs - actual'!G$20 -> -132.5666667 | H141: =H135*'Inputs - actual'!H$20 -> -143.8672917 | I141: =I135*'Inputs - actual'!I$20 -> -157.4280417 | J141: =J135*'Inputs - actual'!J$20 -> -174.0399604 | K141: =K135*'Inputs - actual'!K$20 -> -194.970978 | L141: =L135*'Inputs - actual'!L$20 -> -208.7069584 | M141: =M135*'Inputs - actual'!M$20 -> -227.9373308 | N141: =N135*'Inputs - actual'!N$20 -> -258.2251674 | O141: =O135*'Inputs - actual'!O$20 -> -321.8296243
B142: Closing debt | F142: =SUM(F139:F141) -> 1193.1 | G142: 1150.938333 | H142: 1101.996292 | I142: 1044.239763 | J142: 974.8548902 | K142: 834.8278334 | L142: 683.8119924 | M142: 516.4503348 | N142: 321.8296243 | O142: 0
B143: Leverage on actual asset base | F143: =IFERROR(F142/F136,0) -> 0.41 | G143: =IFERROR(G142/G136,0) -> 0.41 | H143: =IFERROR(H142/H136,0) -> 0.41 | I143: 0.41 | J143: 0.41 | K143: 0.41 | L143: 0.41 | M143: 0.41 | N143: 0.41 | O143: 0
A145: Actual RAB
B146: Useful lives | F146: =F36 -> 10 | G146: 9 | H146: 8 | I146: 7 | J146: 6 | K146: 5 | L146: 4 | M146: 3 | N146: 2 | O146: 1
B148: Opening RAB | F148: =E152 -> 3000 | G148: =F152 -> 3045 | H148: 3062.5 | I148: 3045.196875 | J148: 2983.778438 | K148: 2866.062445 | L148: 2541.502018 | M148: 2142.142882 | N148: 1647.245561 | O148: 1019.936741
B149: Revaluation | F149: =F148*'Inputs - actual'!F4 -> 150 | G149: =G148*'Inputs - actual'!G4 -> 152.25 | H149: =H148*'Inputs - actual'!H4 -> 153.125 | I149: =I148*'Inputs - actual'!I4 -> 152.2598438 | J149: =J148*'Inputs - actual'!J4 -> 149.1889219 | K149: =K148*'Inputs - actual'!K4 -> 143.3031223 | L149: =L148*'Inputs - actual'!L4 -> 127.0751009 | M149: =M148*'Inputs - actual'!M4 -> 107.1071441 | N149: =N148*'Inputs - actual'!N4 -> 82.36227807 | O149: =O148*'Inputs - actual'!O4 -> 50.99683707
B150: Capex | F150: =F134 -> 210 | G150: =G134 -> 220.5 | H150: 231.525 | I150: 243.10125 | J150: 255.2563125 | K150: 134.0095641 | L150: 140.7100423 | M150: 147.7455444 | N150: 155.1328216 | O150: 0
B151: Depreciation | F151: =-SUM(F148:F149)/F146 -> -315 | G151: =-SUM(G148:G149)/G146 -> -355.25 | H151: -401.953125 | I151: -456.7795313 | J151: -522.1612266 | K151: -601.8731135 | L151: -667.1442798 | M151: -749.7500085 | N151: -864.8039198 | O151: -1070.933578
B152: Closing RAB | E152: =-E29 -> 3000 | F152: =SUM(F148:F151) -> 3045 | G152: 3062.5 | H152: 3045.196875 | I152: 2983.778438 | J152: 2866.062445 | K152: 2541.502018 | L152: 2142.142882 | M152: 1647.245561 | N152: 1019.936741 | O152: 0
A155: Actual tax
B156: Revenue | F156: =F91 -> 583.1938382 | G156: 613.6830154 | H156: 646.0733389 | I156: 680.5349267 | J156: 717.2672172 | K156: 959.7562275 | L156: 1013.668017 | M156: 1071.017004 | N156: 1132.190293 | O156: 1197.785497
B157: Depreciation | F157: =F135 -> -300 | G157: -323.3333333 | H157: -350.8958333 | I157: -383.9708333 | J157: -424.4877083 | K157: -475.5389708 | L157: -509.0413618 | M157: -555.9447093 | N157: -629.8174815 | O157: -784.9503031
B158: Opex | F158: =F92 -> -105 | G158: -110.25 | H158: -115.7625 | I158: -121.550625 | J158: -127.6281563 | K158: -134.0095641 | L158: -140.7100423 | M158: -147.7455444 | N158: -155.1328216 | O158: -162.8894627
B159: Interest | F159: =F93 -> -61.5 | G159: -62.4225 | H159: -62.78125 | I159: -62.42653594 | J159: -61.16745797 | K159: -58.75428013 | L159: -52.10079137 | M159: -43.91392907 | N159: -33.76853401 | O159: -20.9087032
B160: EBT | F160: =SUM(F156:F159) -> 116.6938382 | G160: =SUM(G156:G159) -> 117.677182 | H160: 116.6337556 | I160: 112.5869324 | J160: 103.9838946 | K160: 291.4534125 | L160: 311.8158216 | M160: 323.4128217 | N160: 313.4714564 | O160: 229.0370277
B161: Calculated tax | F161: =-F160*'Inputs - forecast'!F29 -> -32.67427469 | G161: =-G160*'Inputs - forecast'!G29 -> -32.94961097 | H161: =-H160*'Inputs - forecast'!H29 -> -32.65745157 | I161: =-I160*'Inputs - forecast'!I29 -> -31.52434108 | J161: =-J160*'Inputs - forecast'!J29 -> -29.11549049 | K161: =-K160*'Inputs - forecast'!K29 -> -81.6069555 | L161: =-L160*'Inputs - forecast'!L29 -> -87.30843005 | M161: =-M160*'Inputs - forecast'!M29 -> -90.55559006 | N161: =-N160*'Inputs - forecast'!N29 -> -87.77200779 | O161: =-O160*'Inputs - forecast'!O29 -> -64.13036775
B162: Deferred tax | F162: =IF(F161>0,F161+E162,0) -> 0 | G162: 0 | H162: 0 | I162: 0 | J162: 0 | K162: 0 | L162: 0 | M162: 0 | N162: 0 | O162: 0
B163: Tax | F163: =IF(F162>0,0,F161+E162) -> -32.67427469 | G163: -32.94961097 | H163: -32.65745157 | I163: -31.52434108 | J163: -29.11549049 | K163: -81.6069555 | L163: -87.30843005 | M163: -90.55559006 | N163: -87.77200779 | O163: -64.13036775
A165: Tax adjustment | E165: NPV | Q165: Note
B166: Tax | F166: =F163 -> -32.67427469 | G166: -32.94961097 | H166: -32.65745157 | I166: -31.52434108 | J166: -29.11549049 | K166: -81.6069555 | L166: -87.30843005 | M166: -90.55559006 | N166: -87.77200779 | O166: -64.13036775
B167: NPV of actual tax | E167: =SUM(F167:O167) -> -328.1397873 | F167: =F166/'Inputs - actual'!F$28 -> -29.89331699 | G167: =G166/'Inputs - actual'!G$28 -> -27.5795131 | H167: =H166/'Inputs - actual'!H$28 -> -25.00844834 | I167: =I166/'Inputs - actual'!I$28 -> -22.08607916 | J167: =J166/'Inputs - actual'!J$28 -> -18.66228722 | K167: =K166/'Inputs - actual'!K$28 -> -47.85596589 | L167: =L166/'Inputs - actual'!L$28 -> -46.8417639 | M167: =M166/'Inputs - actual'!M$28 -> -44.44884479 | N167: =N166/'Inputs - actual'!N$28 -> -39.41571401 | O167: =O166/'Inputs - actual'!O$28 -> -26.34785394
B169: Forecast tax adjusted for inflation | F169: =F$17/'Inputs - forecast'!F$7*'Inputs - actual'!F$5 -> -40.33309822 | G169: =G$17/'Inputs - forecast'!G$7*'Inputs - actual'!G$5 -> -38.02496622 | H169: =H$17/'Inputs - forecast'!H$7*'Inputs - actual'!H$5 -> -34.74904708 | I169: =I$17/'Inputs - forecast'!I$7*'Inputs - actual'!I$5 -> -30.15278725 | J169: =J$17/'Inputs - forecast'!J$7*'Inputs - actual'!J$5 -> -23.69802588 | K169: =K$17/'Inputs - forecast'!K$7*'Inputs - actual'!K$5 -> -92.06552071 | L169: =L$17/'Inputs - forecast'!L$7*'Inputs - actual'!L$5 -> -92.50200324 | M169: =M$17/'Inputs - forecast'!M$7*'Inputs - actual'!M$5 -> -89.72273146 | N169: =N$17/'Inputs - forecast'!N$7*'Inputs - actual'!N$5 -> -79.84418307 | O169: =O$17/'Inputs - forecast'!O$7*'Inputs - actual'!O$5 -> -47.22340072
B170: NPV of forecast tax adjusted for inflation | E170: =SUM(F170:O170) -> -334.5676317 | F170: =F169/'Inputs - actual'!F$28 -> -36.90028629 | G170: =G169/'Inputs - actual'!G$28 -> -31.82769153 | H170: =H169/'Inputs - actual'!H$28 -> -26.61015195 | I170: =I169/'Inputs - actual'!I$28 -> -21.12516307 | J170: =J169/'Inputs - actual'!J$28 -> -15.1898305 | K170: =K169/'Inputs - actual'!K$28 -> -53.98907963 | L170: =L169/'Inputs - actual'!L$28 -> -49.62816298 | M170: =M169/'Inputs - actual'!M$28 -> -44.04003952 | N170: =N169/'Inputs - actual'!N$28 -> -35.85557132 | O170: =O169/'Inputs - actual'!O$28 -> -19.40165491
B171: Difference | E171: =E170-E167 -> -6.427844365 | F171: =F169-F166 -> -7.658823529 | G171: =G169-G166 -> -5.075355248 | H171: -2.091595512 | I171: 1.371553834 | J171: 5.417464612 | K171: -10.45856521 | L171: -5.193573193 | M171: 0.8328586037 | N171: 7.927824727 | O171: 16.90696703
A173: Real revenue | F173: =F91/'Inputs - actual'!F$5 -> 555.422703 | G173: =G91/'Inputs - actual'!G$5 -> 556.6285854 | H173: =H91/'Inputs - actual'!H$5 -> 558.1024416 | I173: =I91/'Inputs - actual'!I$5 -> 559.8777684 | J173: =J91/'Inputs - actual'!J$5 -> 561.997633 | K173: =K91/'Inputs - actual'!K$5 -> 716.184874 | L173: =L91/'Inputs - actual'!L$5 -> 720.3949347 | M173: =M91/'Inputs - actual'!M$5 -> 724.906466 | N173: =N91/'Inputs - actual'!N$5 -> 729.819958 | O173: =O91/'Inputs - actual'!O$5 -> 735.3363913
A175: Wash-up account | E175: NPV | F175: =F78 -> 2021-06-30 | G175: 2022-06-30 | H175: 2023-06-30 | I175: 2024-06-30 | J175: 2025-06-30 | K175: 2026-06-30 | L175: 2027-06-30 | M175: 2028-06-30 | N175: 2029-06-30 | O175: 2030-06-30 | P175: =EOMONTH(O175, 12) -> 2031-06-30 | Q175: =EOMONTH(P175, 12) -> 2032-06-30
B176: Wash-up drawdowns will usually have a 2 year delay from when the revenue is set to allow for actual CPI information to be released.
B178: Actual net allowable revenue | D178: ANAR | F178: =F91-F109 -> 621.1791323 | G178: 652.2380889 | H178: 684.8499933 | I178: 719.092493 | J178: 755.0471177 | K178: 996.0456358 | L178: 1045.847918 | M178: 1098.140314 | N178: 1153.047329 | O178: 1210.699696
B179: Forecast net allowable revenue | D179: FNAR | F179: =F13 -> 603.4311571 | G179: 615.4997802 | H179: 627.8097758 | I179: 640.3659713 | J179: 653.1732908 | K179: 967.5871891 | L179: 986.9389329 | M179: 1006.677712 | N179: 1026.811266 | O179: 1047.347491 | R179: Note
B180: Wash-up amount | F180: =F178-F179 -> 17.74797521 | G180: =G178-G179 -> 36.73830868 | H180: 57.04021752 | I180: 78.72652167 | J180: 101.8738269 | K180: 28.45844674 | L180: 58.90898475 | M180: 91.46260197 | N180: 126.2360634 | O180: 163.3522046
B182: Actual allowable revenue | D182: AAR | F182: =F178-F192 -> 621.1791323 | G182: 652.2380889 | H182: 662.0340506 | I182: 717.0442374 | J182: 775.6378101 | K182: 1041.332889 | L182: 1118.108643 | M182: 1089.311537 | N182: 1183.182213 | O182: 1283.237052
B183: Forecast allowable revenue | D183: FAR | F183: =F179-F192 -> 603.4311571 | G183: 615.4997802 | H183: 604.9938331 | I183: 638.3177157 | J183: 673.7639832 | K183: 1012.874442 | L183: 1059.199659 | M183: 997.8489348 | N183: 1056.94615 | O183: 1119.884848
B185: Actual revenue | D185: AR | F185: =F183 -> 603.4311571 | G185: =G183 -> 615.4997802 | H185: =H183 -> 604.9938331 | I185: =I183 -> 638.3177157 | J185: 673.7639832 | K185: 1012.874442 | L185: 1059.199659 | M185: 997.8489348 | N185: 1056.94615 | O185: 1119.884848 | R185: Note
B187: Cost of debt wash-up adjustment | D187: CODW | F187: =F109 -> -37.98529412 | G187: -38.55507353 | H187: -38.77665441 | I187: -38.55756631 | J187: -37.77990051 | K187: -36.28940831 | L187: -32.17990055 | M187: -27.12330913 | N187: -20.85703571 | O187: -12.91419903
B189: Wash-up account balance | D189: WAB
B190: Wash-up account opening balance | D190: WABt-1 | F190: 0 | G190: =F193 -> -20.23731891 | H190: -23.30475007 | I190: 16.33452219 | J190: 59.56120667 | K190: 106.7453232 | L190: 60.22396946 | M190: 18.41416919 | N190: 92.72023444 | O190: 173.6944888 | P190: 262.3294571 | Q190: 159.7350743
B191: Wash-up accrual | D191: WA | F191: =F182-F185+F187 -> -20.23731891 | G191: -1.816764848 | H191: 18.26356311 | I191: 40.16895536 | J191: 64.09392639 | K191: -7.830961577 | L191: 26.7290842 | M191: 64.33929284 | N191: 105.3790277 | O191: 150.4380055 | P191: 0 | Q191: 0
B192: Wash-up (draw-down)/ draw-up | D192: WD | F192: 0 | G192: 0 | H192: =-F191*(1+'Inputs - forecast'!$P$31)^2 -> 22.8159427 | I192: =-G191*(1+'Inputs - forecast'!$P$31)^2 -> 2.048255645 | J192: =-H191*(1+'Inputs - forecast'!$P$31)^2 -> -20.59069244 | K192: =-I191*(1+'Inputs - forecast'!$P$31)^2 -> -45.28725312 | L192: =-J191*(1+'Inputs - forecast'!$P$31)^2 -> -72.26072578 | M192: =-K191*(1+'Inputs - forecast'!$P$31)^2 -> 8.828776749 | N192: =-L191*(1+'Inputs - forecast'!$P$31)^2 -> -30.13488379 | O192: =-M191*(1+'Inputs - forecast'!$P$31)^2 -> -72.53735664 | P192: =-N191*(1+'Inputs - forecast'!$P$31)^2 -> -118.8063433 | Q192: =-O191*(1+'Inputs - forecast'!$P$31)^2 -> -169.6067019 | R192: Note
B193: Wash-up account balance | D193: WABt | F193: =F190*(1+'Inputs - forecast'!$P$31)+F191+F192 -> -20.23731891 | G193: =G190*(1+'Inputs - forecast'!$P$31)+G191+G192 -> -23.30475007 | H193: =H190*(1+'Inputs - forecast'!$P$31)+H191+H192 -> 16.33452219 | I193: =I190*(1+'Inputs - forecast'!$P$31)+I191+I192 -> 59.56120667 | J193: =J190*(1+'Inputs - forecast'!$P$31)+J191+J192 -> 106.7453232 | K193: =K190*(1+'Inputs - forecast'!$P$31)+K191+K192 -> 60.22396946 | L193: =L190*(1+'Inputs - forecast'!$P$31)+L191+L192 -> 18.41416919 | M193: =M190*(1+'Inputs - forecast'!$P$31)+M191+M192 -> 92.72023444 | N193: =N190*(1+'Inputs - forecast'!$P$31)+N191+N192 -> 173.6944888 | O193: =O190*(1+'Inputs - forecast'!$P$31)+O191+O192 -> 262.3294571 | P193: =P190*(1+'Inputs - forecast'!$P$31)+P191+P192 -> 159.7350743 | Q193: =Q190*(1+'Inputs - forecast'!$P$31)+Q191+Q192 -> 0 | R193: Note
B195: Test NPV=0
B196: Confirm Net Present Value (NPV) of ANAR equal AR plus CODW plus the wash-up account balance remaining at end of model period
B197: Actual net allowable revenue | D197: ANAR | E197: =-NPV('Inputs - forecast'!$P$31,F197:O197) -> -6259.741636 | F197: =F178 -> 621.1791323 | G197: 652.2380889 | H197: 684.8499933 | I197: 719.092493 | J197: 755.0471177 | K197: 996.0456358 | L197: 1045.847918 | M197: 1098.140314 | N197: 1153.047329 | O197: 1210.699696 | R197: Note
B198: Actual revenue | D198: AR | E198: =NPV('Inputs - forecast'!$P$31,F198:O198) -> 5872.522299 | F198: =F183 -> 603.4311571 | G198: 615.4997802 | H198: 604.9938331 | I198: 638.3177157 | J198: 673.7639832 | K198: 1012.874442 | L198: 1059.199659 | M198: 997.8489348 | N198: 1056.94615 | O198: 1119.884848
B199: Cost of debt wash-up adjustment | D199: CODW | E199: =-NPV('Inputs - forecast'!$P$31,F199:O199) -> 243.200318 | F199: =F187 -> -37.98529412 | G199: -38.55507353 | H199: -38.77665441 | I199: -38.55756631 | J199: -37.77990051 | K199: -36.28940831 | L199: -32.17990055 | M199: -27.12330913 | N199: -20.85703571 | O199: -12.91419903
B200: Wash-up account balance | D200: WAB | E200: =NPV('Inputs - forecast'!$P$31,F200:O200) -> 144.0190197 | F200: 0 | G200: 0 | H200: 0 | I200: 0 | J200: 0 | K200: 0 | L200: 0 | M200: 0 | N200: 0 | O200: =O193 -> 262.3294571
D201: NPV | E201: =SUM(E197:E200) -> -1.108446668e-12
B203: Actual revenue per model | E203: =-NPV('Inputs - forecast'!$P$31,F203:O203) -> -6016.541318 | F203: =F91 -> 583.1938382 | G203: 613.6830154 | H203: 646.0733389 | I203: 680.5349267 | J203: 717.2672172 | K203: 959.7562275 | L203: 1013.668017 | M203: 1071.017004 | N203: 1132.190293 | O203: 1197.785497
B204: Check to ANAR less CODW | F204: =F197+F199-F203 -> 0 | G204: =G197+G199-G203 -> 0 | H204: 0 | I204: 0 | J204: 0 | K204: 0 | L204: 0 | M204: 0 | N204: 0 | O204: 0
B206: FNAR + accrual | E206: =NPV('Inputs - forecast'!$P$31,F206:O206) -> 6016.541318 | F206: =F179+F191 -> 583.1938382 | G206: 613.6830154 | H206: 646.0733389 | I206: 680.5349267 | J206: 717.2672172 | K206: 959.7562275 | L206: 1013.668017 | M206: 1071.017004 | N206: 1132.190293 | O206: 1197.785497 | R206: Note
B207: FNAR + draw-down | E207: =NPV('Inputs - forecast'!$P$31,F207:Q207) -> 5872.522299 | F207: =F179-F192 -> 603.4311571 | G207: 615.4997802 | H207: 604.9938331 | I207: 638.3177157 | J207: 673.7639832 | K207: 1012.874442 | L207: 1059.199659 | M207: 997.8489348 | N207: 1056.94615 | O207: 1119.884848 | R207: Note
B208: Closing WAB yet to receive | E208: =NPV('Inputs - forecast'!$P$31,F208:Q208) -> 144.0190197 | F208: 0 | G208: 0 | H208: 0 | I208: 0 | J208: 0 | K208: 0 | L208: 0 | M208: 0 | N208: 0 | O208: =+O193 -> 262.3294571
D209: NPV | E209: =E206-E207-E208 -> 1.676880856e-12

Sheet 2b Incl CODW smoothed
A1: Calculation
A3: Analysis
A10: Calculation
A11: Forecast | D11: Return over forecast period | E11: ='Inputs - forecast'!E2 -> 2020-06-30 | F11: ='Inputs - forecast'!F2 -> 2021-06-30 | G11: ='Inputs - forecast'!G2 -> 2022-06-30 | H11: ='Inputs - forecast'!H2 -> 2023-06-30 | I11: ='Inputs - forecast'!I2 -> 2024-06-30 | J11: ='Inputs - forecast'!J2 -> 2025-06-30 | K11: ='Inputs - forecast'!K2 -> 2026-06-30 | L11: ='Inputs - forecast'!L2 -> 2027-06-30 | M11: ='Inputs - forecast'!M2 -> 2028-06-30 | N11: ='Inputs - forecast'!N2 -> 2029-06-30 | O11: ='Inputs - forecast'!O2 -> 2030-06-30
A12: Building blocks
B13: Revenue | F13: =K69 -> 603.4311571 | G13: =F13*(1+'Inputs - forecast'!G4) -> 615.4997802 | H13: =G13*(1+'Inputs - forecast'!H4) -> 627.8097758 | I13: =H13*(1+'Inputs - forecast'!I4) -> 640.3659713 | J13: =I13*(1+'Inputs - forecast'!J4) -> 653.1732908 | K13: =P76 -> 967.5871891 | L13: =K13*(1+'Inputs - forecast'!L4) -> 986.9389329 | M13: =L13*(1+'Inputs - forecast'!M4) -> 1006.677712 | N13: =M13*(1+'Inputs - forecast'!N4) -> 1026.811266 | O13: =N13*(1+'Inputs - forecast'!O4) -> 1047.347491
B14: Return on debt | F14: =-SUM(F$38)*'Inputs - forecast'!F$28*'Inputs - forecast'!F$26 -> -61.5 | G14: =-SUM(G$38)*'Inputs - forecast'!G$28*'Inputs - forecast'!G$26 -> -60.639 | H14: =-SUM(H$38)*'Inputs - forecast'!H$28*'Inputs - forecast'!H$26 -> -59.245 | I14: =-SUM(I$38)*'Inputs - forecast'!I$28*'Inputs - forecast'!I$26 -> -57.2271153 | J14: =-SUM(J$38)*'Inputs - forecast'!J$28*'Inputs - forecast'!J$26 -> -54.47082123 | K14: =-SUM(K$38)*'Inputs - forecast'!K$28*'Inputs - forecast'!K$26 -> -58.75428013 | L14: =-SUM(L$38)*'Inputs - forecast'!L$28*'Inputs - forecast'!L$26 -> -50.61219733 | M14: =-SUM(M$38)*'Inputs - forecast'!M$28*'Inputs - forecast'!M$26 -> -41.4404098 | N14: =-SUM(N$38)*'Inputs - forecast'!N$28*'Inputs - forecast'!N$26 -> -30.95599908 | O14: =-SUM(O$38)*'Inputs - forecast'!O$28*'Inputs - forecast'!O$26 -> -18.61961036
B15: Return on equity | F15: =-SUM(F$38)*(1-'Inputs - forecast'!F$28)*'Inputs - forecast'!F$25 -> -123.9 | G15: =-SUM(G$38)*(1-'Inputs - forecast'!G$28)*'Inputs - forecast'!G$25 -> -122.1654 | H15: =-SUM(H$38)*(1-'Inputs - forecast'!H$28)*'Inputs - forecast'!H$25 -> -119.357 | I15: =-SUM(I$38)*(1-'Inputs - forecast'!I$28)*'Inputs - forecast'!I$25 -> -115.2917006 | J15: =-SUM(J$38)*(1-'Inputs - forecast'!J$28)*'Inputs - forecast'!J$25 -> -109.7387764 | K15: =-SUM(K$38)*(1-'Inputs - forecast'!K$28)*'Inputs - forecast'!K$25 -> -118.368379 | L15: =-SUM(L$38)*(1-'Inputs - forecast'!L$28)*'Inputs - forecast'!L$25 -> -101.965061 | M15: =-SUM(M$38)*(1-'Inputs - forecast'!M$28)*'Inputs - forecast'!M$25 -> -83.48726462 | N15: =-SUM(N$38)*(1-'Inputs - forecast'!N$28)*'Inputs - forecast'!N$25 -> -62.36501279 | O15: =-SUM(O$38)*(1-'Inputs - forecast'!O$28)*'Inputs - forecast'!O$25 -> -37.51170282
B16: Revaluation | F16: =F39 -> 60 | G16: =G39 -> 59.16 | H16: 57.8 | I16: 55.831332 | J16: 53.14226462 | K16: 57.32124891 | L16: 49.3777535 | M16: 40.4296681 | N16: 30.20097472 | O16: 18.16547352
B17: Tax | F17: =F60 -> -39.18072398 | G17: =G60 -> -35.8831518 | H17: -31.85484656 | I17: -26.85164855 | J17: -20.50059815 | K17: -89.43507726 | L17: -87.29168632 | M17: -82.2498481 | N17: -71.10281131 | O17: -40.85184001
B18: Opex | F18: =F26 -> -102 | G18: =G26 -> -104.04 | H18: -106.1208 | I18: -108.243216 | J18: -110.4080803 | K18: -130.1807194 | L18: -132.7843338 | M18: -135.4400204 | N18: -138.1488208 | O18: -140.9117973
B19: Depreciation | F19: =F41 -> -306 | G19: =G41 -> -335.24 | H19: -368.475 | I19: -406.7711331 | J19: -451.7092492 | K19: -584.6767388 | L19: -629.5663571 | M19: -687.3043577 | N19: -770.1248553 | O19: -926.4391496
B20: Net revenue | F20: =SUM(F13:F19) -> 30.8504331 | G20: 16.69222843 | H20: 0.5571292615 | I20: -18.18751023 | J20: -40.51197 | K20: 43.4932434 | L20: 34.09705093 | M20: 17.18547899 | N20: -15.6852588 | O20: -98.82113547
B21: Present value | F21: =F20/'Inputs - forecast'!F$36 -> 29.05484375 | G21: =G20/'Inputs - forecast'!G$36 -> 14.80569768 | H21: =H20/'Inputs - forecast'!H$36 -> 0.4654015293 | I21: =I20/'Inputs - forecast'!I$36 -> -14.3087721 | J21: =J20/'Inputs - forecast'!J$36 -> -30.01717087 | K21: =K20/'Inputs - forecast'!K$36 -> 30.35047339 | L21: =L20/'Inputs - forecast'!L$36 -> 22.40875721 | M21: =M20/'Inputs - forecast'!M$36 -> 10.63701749 | N21: =N20/'Inputs - forecast'!N$36 -> -9.143389059 | O21: =O20/'Inputs - forecast'!O$36 -> -54.25285903
B22: Sum of present values | F22: =F16/F39-1 -> 0 | O22: =SUM(F21:O21) -> 2.415845302e-13
F23: =-(F14+F15)/SUM(F38:F39) -> 0.06058823529
A24: Regulatory cashflows
B25: Revenue | F25: =F13 -> 603.4311571 | G25: =G13 -> 615.4997802 | H25: 627.8097758 | I25: 640.3659713 | J25: 653.1732908 | K25: 967.5871891 | L25: 986.9389329 | M25: 1006.677712 | N25: 1026.811266 | O25: 1047.347491
B26: Opex | F26: =-'Inputs - forecast'!F$16 -> -102 | G26: =-'Inputs - forecast'!G$16 -> -104.04 | H26: =-'Inputs - forecast'!H$16 -> -106.1208 | I26: =-'Inputs - forecast'!I$16 -> -108.243216 | J26: =-'Inputs - forecast'!J$16 -> -110.4080803 | K26: =-'Inputs - forecast'!K$16 -> -130.1807194 | L26: =-'Inputs - forecast'!L$16 -> -132.7843338 | M26: =-'Inputs - forecast'!M$16 -> -135.4400204 | N26: =-'Inputs - forecast'!N$16 -> -138.1488208 | O26: =-'Inputs - forecast'!O$16 -> -140.9117973
B27: Tax | F27: =F17 -> -39.18072398 | G27: =G17 -> -35.8831518 | H27: -31.85484656 | I27: -26.85164855 | J27: -20.50059815 | K27: -89.43507726 | L27: -87.29168632 | M27: -82.2498481 | N27: -71.10281131 | O27: -40.85184001
B28: Capex | F28: =-'Inputs - forecast'!F$17 -> -204 | G28: =-'Inputs - forecast'!G$17 -> -208.08 | H28: =-'Inputs - forecast'!H$17 -> -212.2416 | I28: =-'Inputs - forecast'!I$17 -> -216.486432 | J28: =-'Inputs - forecast'!J$17 -> -220.8161606 | K28: =-'Inputs - forecast'!K$17 -> -130.1807194 | L28: =-'Inputs - forecast'!L$17 -> -132.7843338 | M28: =-'Inputs - forecast'!M$17 -> -135.4400204 | N28: =-'Inputs - forecast'!N$17 -> -138.1488208 | O28: =-'Inputs - forecast'!O$17 -> 0
B29: Opening RAB | E29: =-'Inputs - forecast'!E$18 -> -3000
B30: Closing RAB | J30: =-(J44-J42) -> -386.7000384 | O30: =O42 -> 0
B31: Sum | E31: =SUM(E25:E30) -> -3000 | F31: =SUM(F25:F30) -> 258.2504331 | G31: 267.4966284 | H31: 277.5925293 | I31: 288.7846748 | J31: -85.25158679 | K31: 617.7906731 | L31: 634.078579 | M31: 653.5478226 | N31: 679.4108128 | O31: 865.5838538
B32: Present value | E32: =E31/'Inputs - forecast'!E$36 -> -3000 | F32: =F31/'Inputs - forecast'!F$36 -> 243.2194699 | G32: =G31/'Inputs - forecast'!G$36 -> 237.2645587 | H32: =H31/'Inputs - forecast'!H$36 -> 231.8887134 | I32: =I31/'Inputs - forecast'!I$36 -> 227.1973484 | J32: =J31/'Inputs - forecast'!J$36 -> -63.16679854 | K32: =K31/'Inputs - forecast'!K$36 -> 431.1069471 | L32: =L31/'Inputs - forecast'!L$36 -> 416.7197028 | M32: =M31/'Inputs - forecast'!M$36 -> 404.5159067 | N32: =N31/'Inputs - forecast'!N$36 -> 396.0481284 | O32: =O31/'Inputs - forecast'!O$36 -> 475.2060232
B33: Sum of present values | O33: =SUM(E32:O32) -> -1.136868377e-12
A35: Regulatory Asset Base
B36: Useful lives | F36: 10 | G36: =F36-1 -> 9 | H36: =G36-1 -> 8 | I36: 7 | J36: 6 | K36: 5 | L36: 4 | M36: 3 | N36: 2 | O36: 1
B38: Opening RAB | F38: =E42 -> 3000 | G38: =F42 -> 2958 | H38: =G42 -> 2890 | I38: =H42 -> 2791.5666 | J38: =I42 -> 2657.113231 | K38: =J44 -> 2866.062445 | L38: =K42 -> 2468.887675 | M38: =L42 -> 2021.483405 | N38: =M42 -> 1510.048736 | O38: =N42 -> 908.2736761
B39: Revaluation | F39: =F38*('Inputs - forecast'!F$4) -> 60 | G39: =G38*('Inputs - forecast'!G$4) -> 59.16 | H39: =H38*('Inputs - forecast'!H$4) -> 57.8 | I39: =I38*('Inputs - forecast'!I$4) -> 55.831332 | J39: =J38*('Inputs - forecast'!J$4) -> 53.14226462 | K39: =K38*('Inputs - forecast'!K$4) -> 57.32124891 | L39: =L38*('Inputs - forecast'!L$4) -> 49.3777535 | M39: =M38*('Inputs - forecast'!M$4) -> 40.4296681 | N39: =N38*('Inputs - forecast'!N$4) -> 30.20097472 | O39: =O38*('Inputs - forecast'!O$4) -> 18.16547352
B40: Capex | F40: =-F28 -> 204 | G40: =-G28 -> 208.08 | H40: 212.2416 | I40: 216.486432 | J40: 220.8161606 | K40: 130.1807194 | L40: 132.7843338 | M40: 135.4400204 | N40: 138.1488208 | O40: 0
B41: Depreciation | F41: =-SUM(F38:F39)/F36 -> -306 | G41: =-SUM(G38:G39)/G36 -> -335.24 | H41: -368.475 | I41: -406.7711331 | J41: -451.7092492 | K41: -584.6767388 | L41: -629.5663571 | M41: -687.3043577 | N41: -770.1248553 | O41: -926.4391496 | Q41: Note
B42: Closing RAB | E42: =-E29 -> 3000 | F42: =SUM(F38:F41) -> 2958 | G42: 2890 | H42: 2791.5666 | I42: 2657.113231 | J42: 2479.362407 | K42: 2468.887675 | L42: 2021.483405 | M42: 1510.048736 | N42: 908.2736761 | O42: 0
B44: RAB adjusted for actual inflation | J44: =J42/'Inputs - forecast'!J5*'Inputs - actual'!J5 -> 2866.062445 | Q44: Note
B45: Check to actual RAB | J45: =J152-J44 -> 0
A48: Tax asset base | F48: =F36 -> 10 | G48: 9 | H48: 8 | I48: 7 | J48: 6 | K48: 5 | L48: 4 | M48: 3 | N48: 2 | O48: 1
B49: Opening balance | F49: =E52 -> 3000 | G49: =F52 -> 2904 | H49: =G52 -> 2789.413333 | I49: 2652.978267 | J49: 2490.467803 | K49: 2296.205997 | L49: 1967.145517 | M49: 1608.143471 | N49: 1207.535668 | O49: 741.9166549
B50: Capex | F50: =-F28 -> 204 | G50: 208.08 | H50: 212.2416 | I50: 216.486432 | J50: 220.8161606 | K50: 130.1807194 | L50: 132.7843338 | M50: 135.4400204 | N50: 138.1488208 | O50: 0
B51: Depreciation | F51: =-F49/F48 -> -300 | G51: =-G49/G48 -> -322.6666667 | H51: -348.6766667 | I51: -378.9968952 | J51: -415.0779672 | K51: -459.2411994 | L51: -491.7863792 | M51: -536.0478238 | N51: -603.767834 | O51: -741.9166549
B52: Closing balance | E52: =E42 -> 3000 | F52: =SUM(F49:F51) -> 2904 | G52: =SUM(G49:G51) -> 2789.413333 | H52: =SUM(H49:H51) -> 2652.978267 | I52: 2490.467803 | J52: 2296.205997 | K52: 1967.145517 | L52: 1608.143471 | M52: 1207.535668 | N52: 741.9166549 | O52: 0
A54: Regulatory tax
B55: Revenue | F55: =F13 -> 603.4311571 | G55: 615.4997802 | H55: 627.8097758 | I55: 640.3659713 | J55: 653.1732908 | K55: 967.5871891 | L55: 986.9389329 | M55: 1006.677712 | N55: 1026.811266 | O55: 1047.347491
B56: Depreciation | F56: =F51 -> -300 | G56: -322.6666667 | H56: -348.6766667 | I56: -378.9968952 | J56: -415.0779672 | K56: -459.2411994 | L56: -491.7863792 | M56: -536.0478238 | N56: -603.767834 | O56: -741.9166549
B57: Opex | F57: =F18 -> -102 | G57: -104.04 | H57: -106.1208 | I57: -108.243216 | J57: -110.4080803 | K57: -130.1807194 | L57: -132.7843338 | M57: -135.4400204 | N57: -138.1488208 | O57: -140.9117973
B58: Notional interest | F58: =-'Inputs - forecast'!F$26*'Inputs - forecast'!F28*F38 -> -61.5 | G58: =-'Inputs - forecast'!G$26*'Inputs - forecast'!G28*G38 -> -60.639 | H58: =-'Inputs - forecast'!H$26*'Inputs - forecast'!H28*H38 -> -59.245 | I58: =-'Inputs - forecast'!I$26*'Inputs - forecast'!I28*I38 -> -57.2271153 | J58: =-'Inputs - forecast'!J$26*'Inputs - forecast'!J28*J38 -> -54.47082123 | K58: =-'Inputs - forecast'!K$26*'Inputs - forecast'!K28*K38 -> -58.75428013 | L58: =-'Inputs - forecast'!L$26*'Inputs - forecast'!L28*L38 -> -50.61219733 | M58: =-'Inputs - forecast'!M$26*'Inputs - forecast'!M28*M38 -> -41.4404098 | N58: =-'Inputs - forecast'!N$26*'Inputs - forecast'!N28*N38 -> -30.95599908 | O58: =-'Inputs - forecast'!O$26*'Inputs - forecast'!O28*O38 -> -18.61961036
B59: EBT | F59: =SUM(F55:F58) -> 139.9311571 | G59: =SUM(G55:G58) -> 128.1541136 | H59: 113.7673092 | I59: 95.8987448 | J59: 73.21642198 | K59: 319.4109902 | L59: 311.7560226 | M59: 293.7494575 | N59: 253.9386118 | O59: 145.8994286
B60: Calculated tax | F60: =-F59*'Inputs - forecast'!F29 -> -39.18072398 | G60: =-G59*'Inputs - forecast'!G29 -> -35.8831518 | H60: =-H59*'Inputs - forecast'!H29 -> -31.85484656 | I60: =-I59*'Inputs - forecast'!I29 -> -26.85164855 | J60: =-J59*'Inputs - forecast'!J29 -> -20.50059815 | K60: =-K59*'Inputs - forecast'!K29 -> -89.43507726 | L60: =-L59*'Inputs - forecast'!L29 -> -87.29168632 | M60: =-M59*'Inputs - forecast'!M29 -> -82.2498481 | N60: =-N59*'Inputs - forecast'!N29 -> -71.10281131 | O60: =-O59*'Inputs - forecast'!O29 -> -40.85184001
B61: Deferred tax | F61: =IF(F60>0,F60,0) -> 0 | G61: =IF(G60>0,G60,0) -> 0 | H61: =IF(H60>0,H60,0) -> 0 | I61: =IF(I60>0,I60,0) -> 0 | J61: =IF(J60>0,J60,0) -> 0 | K61: 0 | L61: 0 | M61: 0 | N61: 0 | O61: 0
B62: Tax | F62: =IF(F61>0,0,F60+E61) -> -39.18072398 | G62: -35.8831518 | H62: -31.85484656 | I62: -26.85164855 | J62: -20.50059815 | K62: -89.43507726 | L62: -87.29168632 | M62: -82.2498481 | N62: -71.10281131 | O62: -40.85184001
A64: Reg Period 1
A65: Calculation of revenue | K65: Sum
B66: Present value of revenue | F66: =F13/'Inputs - forecast'!F$36 -> 568.3096224 | G66: =G13/'Inputs - forecast'!G$36 -> 545.9369136 | H66: =H13/'Inputs - forecast'!H$36 -> 524.4449537 | I66: =I13/'Inputs - forecast'!I$36 -> 503.7990703 | J66: =J13/'Inputs - forecast'!J$36 -> 483.9659556 | K66: =SUM(F66:J66) -> 2626.456516
B67: Present value of cost | F67: =SUM(F14:F19)/'Inputs - forecast'!F$36 -> -539.2547787 | G67: =SUM(G14:G19)/'Inputs - forecast'!G$36 -> -531.1312159 | H67: =SUM(H14:H19)/'Inputs - forecast'!H$36 -> -523.9795522 | I67: =SUM(I14:I19)/'Inputs - forecast'!I$36 -> -518.1078424 | J67: =SUM(J14:J19)/'Inputs - forecast'!J$36 -> -513.9831265 | K67: =SUM(F67:J67) -> -2626.456516
B68: Difference | K68: =SUM(K66:K67) -> 4.092726158e-12
B69: Revenue | K69: 603.4311571
A71: Reg Period 2
A72: Calculation of revenue | P72: Sum
B73: Present value of revenue | K73: =K13/'Inputs - forecast'!K$36 -> 675.2020989 | L73: =L13/'Inputs - forecast'!L$36 -> 648.6213419 | M73: =M13/'Inputs - forecast'!M$36 -> 623.0869926 | N73: =N13/'Inputs - forecast'!N$36 -> 598.5578569 | O73: =O13/'Inputs - forecast'!O$36 -> 574.9943624 | P73: =SUM(K73:O73) -> 3120.462653
B74: Present value of cost | K74: =SUM(K14:K19)/'Inputs - forecast'!K$36 -> -644.8516255 | L74: =SUM(L14:L19)/'Inputs - forecast'!L$36 -> -626.2125847 | M74: =SUM(M14:M19)/'Inputs - forecast'!M$36 -> -612.4499751 | N74: =SUM(N14:N19)/'Inputs - forecast'!N$36 -> -607.701246 | O74: =SUM(O14:O19)/'Inputs - forecast'!O$36 -> -629.2472215 | P74: =SUM(K74:O74) -> -3120.462653
B75: Difference | P75: =SUM(P73:P74) -> 0
B76: Revenue | P76: 967.5871891
A78: Actual | D78: =D11 -> Return over forecast period | E78: 2020-06-30 | F78: 2021-06-30 | G78: 2022-06-30 | H78: 2023-06-30 | I78: 2024-06-30 | J78: 2025-06-30 | K78: 2026-06-30 | L78: 2027-06-30 | M78: 2028-06-30 | N78: 2029-06-30 | O78: 2030-06-30
A79: Actual regulatory cashflows
B80: Revenue (no delay in wash-ups) | F80: =F$13/'Inputs - forecast'!F$7*'Inputs - actual'!F$5+F109 -> 583.1938382 | G80: =G$13/'Inputs - forecast'!G$7*'Inputs - actual'!G$5+G109 -> 613.6830154 | H80: =H$13/'Inputs - forecast'!H$7*'Inputs - actual'!H$5+H109 -> 646.0733389 | I80: =I$13/'Inputs - forecast'!I$7*'Inputs - actual'!I$5+I109 -> 680.5349267 | J80: =J$13/'Inputs - forecast'!J$7*'Inputs - actual'!J$5+J109 -> 717.2672172 | K80: =K$13/'Inputs - forecast'!K$7*'Inputs - actual'!K$5+K109 -> 959.7562275 | L80: =L$13/'Inputs - forecast'!L$7*'Inputs - actual'!L$5+L109 -> 1013.668017 | M80: =M$13/'Inputs - forecast'!M$7*'Inputs - actual'!M$5+M109 -> 1071.017004 | N80: =N$13/'Inputs - forecast'!N$7*'Inputs - actual'!N$5+N109 -> 1132.190293 | O80: =O$13/'Inputs - forecast'!O$7*'Inputs - actual'!O$5+O109 -> 1197.785497 | Q80: Note
B81: Opex | F81: =F$18/'Inputs - forecast'!F$7*'Inputs - actual'!F$5 -> -105 | G81: =G$18/'Inputs - forecast'!G$7*'Inputs - actual'!G$5 -> -110.25 | H81: =H$18/'Inputs - forecast'!H$7*'Inputs - actual'!H$5 -> -115.7625 | I81: =I$18/'Inputs - forecast'!I$7*'Inputs - actual'!I$5 -> -121.550625 | J81: =J$18/'Inputs - forecast'!J$7*'Inputs - actual'!J$5 -> -127.6281563 | K81: =K$18/'Inputs - forecast'!K$7*'Inputs - actual'!K$5 -> -134.0095641 | L81: =L$18/'Inputs - forecast'!L$7*'Inputs - actual'!L$5 -> -140.7100423 | M81: =M$18/'Inputs - forecast'!M$7*'Inputs - actual'!M$5 -> -147.7455444 | N81: =N$18/'Inputs - forecast'!N$7*'Inputs - actual'!N$5 -> -155.1328216 | O81: =O$18/'Inputs - forecast'!O$7*'Inputs - actual'!O$5 -> -162.8894627
B82: Capex | F82: =-F134 -> -210 | G82: =-G134 -> -220.5 | H82: -231.525 | I82: -243.10125 | J82: -255.2563125 | K82: -134.0095641 | L82: -140.7100423 | M82: -147.7455444 | N82: -155.1328216 | O82: 0
B83: Tax | F83: =F162+F170 -> -40.33309822 | G83: -38.02496622 | H83: -34.74904708 | I83: -30.15278725 | J83: -23.69802588 | K83: -92.06552071 | L83: -92.50200324 | M83: -89.72273146 | N83: -79.84418307 | O83: -47.22340072
B84: Other | F84: =(-F99/'Inputs - actual'!F$36+F100)*'Inputs - actual'!F36 -> -0.3678855952 | G84: =(-G99/'Inputs - actual'!G$36+G100)*'Inputs - actual'!G36 -> -0.4074386188 | H84: =(-H99/'Inputs - actual'!H$36+H100)*'Inputs - actual'!H36 -> -0.02087691733 | I84: =(-I99/'Inputs - actual'!I$36+I100)*'Inputs - actual'!I36 -> 0.9300334615 | J84: =(-J99/'Inputs - actual'!J$36+J100)*'Inputs - actual'!J36 -> 2.650329049 | K84: =(-K99/'Inputs - actual'!K$36+K100)*'Inputs - actual'!K36 -> -3.023151066 | L84: =(-L99/'Inputs - actual'!L$36+L100)*'Inputs - actual'!L36 -> -2.830040068 | M84: =(-M99/'Inputs - actual'!M$36+M100)*'Inputs - actual'!M36 -> -1.668496071 | N84: =(-N99/'Inputs - actual'!N$36+N100)*'Inputs - actual'!N36 -> 1.753511037 | O84: =(-O99/'Inputs - actual'!O$36+O100)*'Inputs - actual'!O36 -> 12.56405421 | Q84: Note
B85: Nominal IRR | D85: =IRR(E85:O85,0.08) -> 0.08036764706 | E85: =-E42+SUM(E80:E83) -> -3000 | F85: =SUM(F80:F84) -> 227.4928544 | G85: =SUM(G80:G84) -> 244.5006105 | H85: 264.0159149 | I85: 286.6602979 | J85: 313.3350516 | K85: 596.6484276 | L85: 636.9158892 | M85: 684.1346881 | N85: 743.8339783 | O85: =SUM(O80:O84)+O152 -> 1000.236687
B87: Real IRR | D87: =IRR(E87:O87,0.08) -> 0.04098039216 | E87: =E85 -> -3000 | F87: =F85/'Inputs - actual'!F$39 -> 219.199086 | G87: =G85/'Inputs - actual'!G$39 -> 226.9979348 | H87: =H85/'Inputs - actual'!H$39 -> 236.1799597 | I87: =I85/'Inputs - actual'!I$39 -> 247.0878918 | J87: =J85/'Inputs - actual'!J$39 -> 260.2339031 | K87: =K85/'Inputs - actual'!K$39 -> 477.4681145 | L87: =L85/'Inputs - actual'!L$39 -> 491.11018 | M87: =M85/'Inputs - actual'!M$39 -> 508.2875163 | N87: =N85/'Inputs - actual'!N$39 -> 532.4941294 | O87: =O85/'Inputs - actual'!O$39 -> 689.941979
B88: check to inputs | D88: =D87-'Inputs - actual'!P24 -> 6.270539643e-13
A90: Actual return (building blocks) using RAB
B91: Revenue | F91: =F80 -> 583.1938382 | G91: 613.6830154 | H91: 646.0733389 | I91: 680.5349267 | J91: 717.2672172 | K91: 959.7562275 | L91: 1013.668017 | M91: 1071.017004 | N91: 1132.190293 | O91: 1197.785497
B92: Opex | F92: =F81 -> -105 | G92: -110.25 | H92: -115.7625 | I92: -121.550625 | J92: -127.6281563 | K92: -134.0095641 | L92: -140.7100423 | M92: -147.7455444 | N92: -155.1328216 | O92: -162.8894627
B93: Return on debt (fixed) | F93: =-F148*'Inputs - forecast'!F$26*('Inputs - actual'!F$20) -> -61.5 | G93: =-G148*'Inputs - forecast'!G$26*('Inputs - actual'!G$20) -> -62.4225 | H93: =-H148*'Inputs - forecast'!H$26*('Inputs - actual'!H$20) -> -62.78125 | I93: =-I148*'Inputs - forecast'!I$26*('Inputs - actual'!I$20) -> -62.42653594 | J93: =-J148*'Inputs - forecast'!J$26*('Inputs - actual'!J$20) -> -61.16745797 | K93: =-K148*'Inputs - forecast'!K$26*('Inputs - actual'!K$20) -> -58.75428013 | L93: =-L148*'Inputs - forecast'!L$26*('Inputs - actual'!L$20) -> -52.10079137 | M93: =-M148*'Inputs - forecast'!M$26*('Inputs - actual'!M$20) -> -43.91392907 | N93: =-N148*'Inputs - forecast'!N$26*('Inputs - actual'!N$20) -> -33.76853401 | O93: =-O148*'Inputs - forecast'!O$26*('Inputs - actual'!O$20) -> -20.9087032
B94: Return on equity | F94: =-F148*'Inputs - actual'!F$18*(1-'Inputs - actual'!F$20) -> -179.6029412 | G94: =-G148*'Inputs - actual'!G$18*(1-'Inputs - actual'!G$20) -> -182.2969853 | H94: =-H148*'Inputs - actual'!H$18*(1-'Inputs - actual'!H$20) -> -183.3446691 | I94: =-I148*'Inputs - actual'!I$18*(1-'Inputs - actual'!I$20) -> -182.3087717 | J94: =-J148*'Inputs - actual'!J$18*(1-'Inputs - actual'!J$20) -> -178.6317944 | K94: =-K148*'Inputs - actual'!K$18*(1-'Inputs - actual'!K$20) -> -171.5844149 | L94: =-L148*'Inputs - actual'!L$18*(1-'Inputs - actual'!L$20) -> -152.1537458 | M94: =-M148*'Inputs - actual'!M$18*(1-'Inputs - actual'!M$20) -> -128.245054 | N94: =-N148*'Inputs - actual'!N$18*(1-'Inputs - actual'!N$20) -> -98.61671589 | O94: =-O148*'Inputs - actual'!O$18*(1-'Inputs - actual'!O$20) -> -61.06121285
B95: Revaluation | F95: =F149 -> 150 | G95: =G149 -> 152.25 | H95: 153.125 | I95: 152.2598438 | J95: 149.1889219 | K95: 143.3031223 | L95: 127.0751009 | M95: 107.1071441 | N95: 82.36227807 | O95: 50.99683707
B96: Depreciation | F96: =F151 -> -315 | G96: =G151 -> -355.25 | H96: -401.953125 | I96: -456.7795313 | J96: -522.1612266 | K96: -601.8731135 | L96: -667.1442798 | M96: -749.7500085 | N96: -864.8039198 | O96: -1070.933578
B97: Tax | F97: =F162+F170 -> -40.33309822 | G97: -38.02496622 | H97: -34.74904708 | I97: -30.15278725 | J97: -23.69802588 | K97: -92.06552071 | L97: -92.50200324 | M97: -89.72273146 | N97: -79.84418307 | O97: -47.22340072
B98: Gain on RAB | J98: =J84 -> 2.650329049
B99: Nominal return | F99: =SUM(F91:F97) -> 31.75779878 | G99: 17.68856386 | H99: 0.6077477378 | I99: -20.42348072 | J99: -46.83052203 | K99: 44.77245644 | L99: 36.13225553 | M99: 18.74688103 | N99: -17.61360278 | O99: -114.2340242
B100: Present value | D100: =SUM(E100:O100) -> -1.037392394e-12 | F100: =F99/'Inputs - actual'!F$28 -> 29.05484375 | G100: =G99/'Inputs - actual'!G$28 -> 14.80569768 | H100: =H99/'Inputs - actual'!H$28 -> 0.4654015293 | I100: =I99/'Inputs - actual'!I$28 -> -14.3087721 | J100: =J99/'Inputs - actual'!J$28 -> -30.01717087 | K100: =K99/'Inputs - actual'!K$28 -> 26.25547216 | L100: =L99/'Inputs - actual'!L$28 -> 19.38528252 | M100: =M99/'Inputs - actual'!M$28 -> 9.201830659 | N100: =N99/'Inputs - actual'!N$28 -> -7.909728255 | O100: =O99/'Inputs - actual'!O$28 -> -46.93285708
B102: Real return | F102: =F99/'Inputs - actual'!F$5 -> 30.24552264 | G102: =G99/'Inputs - actual'!G$5 -> 16.04404885 | H102: =H99/'Inputs - actual'!H$5 -> 0.5249953464 | I102: =I99/'Inputs - actual'!I$5 -> -16.80244813 | J102: =J99/'Inputs - actual'!J$5 -> -36.6929394 | K102: =K99/'Inputs - actual'!K$5 -> 33.40989634 | L102: =L99/'Inputs - actual'!L$5 -> 25.67851942 | M102: =M99/'Inputs - actual'!M$5 -> 12.68862699 | N102: =N99/'Inputs - actual'!N$5 -> -11.3538854 | O102: =O99/'Inputs - actual'!O$5 -> -70.12978146
B103: Present value | D103: =SUM(E103:O103) -> -1.016076112e-12 | F103: =F102/'Inputs - actual'!F$32 -> 29.05484375 | G103: =G102/'Inputs - actual'!G$32 -> 14.80569768 | H103: =H102/'Inputs - actual'!H$32 -> 0.4654015293 | I103: =I102/'Inputs - actual'!I$32 -> -14.3087721 | J103: =J102/'Inputs - actual'!J$32 -> -30.01717087 | K103: =K102/'Inputs - actual'!K$32 -> 26.25547216 | L103: =L102/'Inputs - actual'!L$32 -> 19.38528252 | M103: =M102/'Inputs - actual'!M$32 -> 9.201830659 | N103: =N102/'Inputs - actual'!N$32 -> -7.909728255 | O103: =O102/'Inputs - actual'!O$32 -> -46.93285708
B105: Actual return on RAB | F105: =-(F93+F94)/F148 -> 0.08036764706 | G105: 0.08036764706 | H105: 0.08036764706 | I105: 0.08036764706 | J105: 0.08036764706 | K105: 0.08036764706 | L105: 0.08036764706 | M105: 0.08036764706 | N105: 0.08036764706 | O105: 0.08036764706
B106: Actual Rab revaluation | F106: =F95/F148 -> 0.05 | G106: 0.05 | H106: 0.05 | I106: 0.05 | J106: 0.05 | K106: 0.05 | L106: 0.05 | M106: 0.05 | N106: 0.05 | O106: 0.05
B107: Annual change in revenue | G107: =G91/F91-1 -> 0.05227966279 | H107: =H91/G91-1 -> 0.05278021837 | I107: 0.05334005551 | J107: 0.05397561391 | K107: 0.3380734607 | L107: 0.05617237795 | M107: 0.05657570954 | N107: 0.05711701014 | O107: 0.05793655317
A109: Adjustment for fixed cost of debt | F109: =-(F148*'Inputs - actual'!F$19*'Inputs - actual'!F$20+F93) -> -37.98529412 | G109: =-(G148*'Inputs - actual'!G$19*'Inputs - actual'!G$20+G93) -> -38.55507353 | H109: =-(H148*'Inputs - actual'!H$19*'Inputs - actual'!H$20+H93) -> -38.77665441 | I109: =-(I148*'Inputs - actual'!I$19*'Inputs - actual'!I$20+I93) -> -38.55756631 | J109: =-(J148*'Inputs - actual'!J$19*'Inputs - actual'!J$20+J93) -> -37.77990051 | K109: =-(K148*'Inputs - actual'!K$19*'Inputs - actual'!K$20+K93) -> -36.28940831 | L109: =-(L148*'Inputs - actual'!L$19*'Inputs - actual'!L$20+L93) -> -32.17990055 | M109: =-(M148*'Inputs - actual'!M$19*'Inputs - actual'!M$20+M93) -> -27.12330913 | N109: =-(N148*'Inputs - actual'!N$19*'Inputs - actual'!N$20+N93) -> -20.85703571 | O109: =-(O148*'Inputs - actual'!O$19*'Inputs - actual'!O$20+O93) -> -12.91419903
A111: Actual return (building blocks) using actual asset base
B112: Revenue | F112: =F$13/'Inputs - forecast'!F$7*'Inputs - actual'!F$5+F130 -> 583.1938382 | G112: =G$13/'Inputs - forecast'!G$7*'Inputs - actual'!G$5+G130 -> 615.3923536 | H112: =H$13/'Inputs - forecast'!H$7*'Inputs - actual'!H$5+H130 -> 649.3063095 | I112: =I$13/'Inputs - forecast'!I$7*'Inputs - actual'!I$5+I130 -> 685.0602546 | J112: =J$13/'Inputs - forecast'!J$7*'Inputs - actual'!J$5+J130 -> 722.7985368 | K112: =K$13/'Inputs - forecast'!K$7*'Inputs - actual'!K$5+K130 -> 965.9398231 | L112: =L$13/'Inputs - forecast'!L$7*'Inputs - actual'!L$5+L130 -> 1020.06647 | M112: =M$13/'Inputs - forecast'!M$7*'Inputs - actual'!M$5+M130 -> 1077.02259 | N112: =N$13/'Inputs - forecast'!N$7*'Inputs - actual'!N$5+N130 -> 1137.098128 | O112: =O$13/'Inputs - forecast'!O$7*'Inputs - actual'!O$5+O130 -> 1200.76084
B113: Opex | F113: =F81 -> -105 | G113: -110.25 | H113: -115.7625 | I113: -121.550625 | J113: -127.6281563 | K113: -134.0095641 | L113: -140.7100423 | M113: -147.7455444 | N113: -155.1328216 | O113: -162.8894627
B114: Return on debt (fixed) | F114: =-F133*'Inputs - forecast'!F$26*('Inputs - actual'!F$20) -> -61.5 | G114: =-G133*'Inputs - forecast'!G$26*('Inputs - actual'!G$20) -> -59.655 | H114: =-H133*'Inputs - forecast'!H$26*('Inputs - actual'!H$20) -> -57.54691667 | I114: =-I133*'Inputs - forecast'!I$26*('Inputs - actual'!I$20) -> -55.09981458 | J114: =-J133*'Inputs - forecast'!J$26*('Inputs - actual'!J$20) -> -52.21198812 | K114: =-K133*'Inputs - forecast'!K$26*('Inputs - actual'!K$20) -> -48.74274451 | L114: =-L133*'Inputs - forecast'!L$26*('Inputs - actual'!L$20) -> -41.74139167 | M114: =-M133*'Inputs - forecast'!M$26*('Inputs - actual'!M$20) -> -34.19059962 | N114: =-N133*'Inputs - forecast'!N$26*('Inputs - actual'!N$20) -> -25.82251674 | O114: =-O133*'Inputs - forecast'!O$26*('Inputs - actual'!O$20) -> -16.09148121
B115: Return on equity | F115: =-F133*'Inputs - actual'!F$18*(1-'Inputs - actual'!F$20) -> -179.6029412 | G115: =-G133*'Inputs - actual'!G$18*(1-'Inputs - actual'!G$20) -> -174.2148529 | H115: =-H133*'Inputs - actual'!H$18*(1-'Inputs - actual'!H$20) -> -168.0584632 | I115: =-I133*'Inputs - actual'!I$18*(1-'Inputs - actual'!I$20) -> -160.9120123 | J115: =-J133*'Inputs - actual'!J$18*(1-'Inputs - actual'!J$20) -> -152.4784818 | K115: =-K133*'Inputs - actual'!K$18*(1-'Inputs - actual'!K$20) -> -142.3469963 | L115: =-L133*'Inputs - actual'!L$18*(1-'Inputs - actual'!L$20) -> -121.9004344 | M115: =-M133*'Inputs - actual'!M$18*(1-'Inputs - actual'!M$20) -> -99.84930492 | N115: =-N133*'Inputs - actual'!N$18*(1-'Inputs - actual'!N$20) -> -75.41138138 | O115: =-O133*'Inputs - actual'!O$18*(1-'Inputs - actual'!O$20) -> -46.9931277
B116: Revaluation | F116: 0 | G116: 0 | H116: 0 | I116: 0 | J116: 0 | K116: 0 | L116: 0 | M116: 0 | N116: 0 | O116: 0 | Q116: Note
B117: Depreciation | F117: =F135 -> -300 | G117: =G135 -> -323.3333333 | H117: -350.8958333 | I117: -383.9708333 | J117: -424.4877083 | K117: -475.5389708 | L117: -509.0413618 | M117: -555.9447093 | N117: -629.8174815 | O117: -784.9503031
B118: Tax | F118: =F162+F170 -> -40.33309822 | G118: =G162+G170 -> -38.02496622 | H118: -34.74904708 | I118: -30.15278725 | J118: -23.69802588 | K118: -92.06552071 | L118: -92.50200324 | M118: -89.72273146 | N118: -79.84418307 | O118: -47.22340072
B119: Gain on actual asset base | J119: 0
B120: Nominal return | F120: =SUM(F112:F119) -> -103.2422012 | G120: =SUM(G112:G119) -> -90.08579889 | H120: -77.70645079 | I120: -66.62581788 | J120: -57.70582364 | K120: 73.23602659 | L120: 114.1712365 | M120: 149.5697006 | N120: 171.0697434 | O120: 142.6130642
B121: Present value | D121: =SUM(E121:O121) -> -6.110667528e-13 | F121: =F120/'Inputs - actual'!F$28 -> -94.45509893 | G121: =G120/'Inputs - actual'!G$28 -> -75.40369666 | H121: =H120/'Inputs - actual'!H$28 -> -59.50610555 | I121: =I120/'Inputs - actual'!I$28 -> -46.67831389 | J121: =J120/'Inputs - actual'!J$28 -> -36.98796198 | K121: =K120/'Inputs - actual'!K$28 -> 42.94708421 | L121: =L120/'Inputs - actual'!L$28 -> 61.25390296 | M121: =M120/'Inputs - actual'!M$28 -> 73.41568203 | N121: =N120/'Inputs - actual'!N$28 -> 76.82216976 | O121: =O120/'Inputs - actual'!O$28 -> 58.59233804
B123: Real return | F123: =F120/'Inputs - actual'!F$5 -> -98.32590593 | G123: =G120/'Inputs - actual'!G$5 -> -81.71047518 | H123: =H120/'Inputs - actual'!H$5 -> -67.12575384 | I123: =I120/'Inputs - actual'!I$5 -> -54.81322526 | J123: =J120/'Inputs - actual'!J$5 -> -45.21402278 | K123: =K120/'Inputs - actual'!K$5 -> 54.64985063 | L123: =L120/'Inputs - actual'!L$5 -> 81.13936618 | M123: =M120/'Inputs - actual'!M$5 -> 101.2346607 | N123: =N120/'Inputs - actual'!N$5 -> 110.2730819 | O123: =O120/'Inputs - actual'!O$5 -> 87.55205026
B124: Present value | D124: =SUM(E124:O124) -> -8.171241461e-13 | F124: =F123/'Inputs - actual'!F$32 -> -94.45509893 | G124: =G123/'Inputs - actual'!G$32 -> -75.40369666 | H124: =H123/'Inputs - actual'!H$32 -> -59.50610555 | I124: =I123/'Inputs - actual'!I$32 -> -46.67831389 | J124: =J123/'Inputs - actual'!J$32 -> -36.98796198 | K124: =K123/'Inputs - actual'!K$32 -> 42.94708421 | L124: =L123/'Inputs - actual'!L$32 -> 61.25390296 | M124: =M123/'Inputs - actual'!M$32 -> 73.41568203 | N124: =N123/'Inputs - actual'!N$32 -> 76.82216976 | O124: =O123/'Inputs - actual'!O$32 -> 58.59233804
B126: Actual return on actual asset base | F126: =-(F114+F115)/F133 -> 0.08036764706 | G126: 0.08036764706 | H126: 0.08036764706 | I126: 0.08036764706 | J126: 0.08036764706 | K126: 0.08036764706 | L126: 0.08036764706 | M126: 0.08036764706 | N126: 0.08036764706 | O126: 0.08036764706
B127: Actual Rab revaluation | F127: =F116/F133 -> 0 | G127: 0 | H127: 0 | I127: 0 | J127: 0 | K127: 0 | L127: 0 | M127: 0 | N127: 0 | O127: 0
B128: Annual change in revenue | G128: =G112/F112-1 -> 0.05521065781 | H128: =H112/G112-1 -> 0.05510948538 | I128: 0.05506483542 | J128: 0.05508753707 | K128: 0.3363887362 | L128: 0.05603521616 | M128: 0.05583569509 | N128: 0.05577927334 | O128: 0.05598699917
A130: Adjustment for fixed cost of debt | F130: =-(F133*'Inputs - actual'!F$19*'Inputs - actual'!F$20+F114) -> -37.98529412 | G130: =-(G133*'Inputs - actual'!G$19*'Inputs - actual'!G$20+G114) -> -36.84573529 | H130: =-(H133*'Inputs - actual'!H$19*'Inputs - actual'!H$20+H114) -> -35.54368382 | I130: =-(I133*'Inputs - actual'!I$19*'Inputs - actual'!I$20+I114) -> -34.03223842 | J130: =-(J133*'Inputs - actual'!J$19*'Inputs - actual'!J$20+J114) -> -32.2485809 | K130: =-(K133*'Inputs - actual'!K$19*'Inputs - actual'!K$20+K114) -> -30.10581279 | L130: =-(L133*'Inputs - actual'!L$19*'Inputs - actual'!L$20+L114) -> -25.7814478 | M130: =-(M133*'Inputs - actual'!M$19*'Inputs - actual'!M$20+M114) -> -21.11772329 | N130: =-(N133*'Inputs - actual'!N$19*'Inputs - actual'!N$20+N114) -> -15.94920152 | O130: =-(O133*'Inputs - actual'!O$19*'Inputs - actual'!O$20+O114) -> -9.938856043 | Q130: Note
A132: Actual Asset Base
B133: Opening Asset Base | F133: =E42 -> 3000 | G133: =F136 -> 2910 | H133: 2807.166667 | I133: 2687.795833 | J133: 2546.92625 | K133: 2377.694854 | L133: 2036.165447 | M133: 1667.834128 | N133: 1259.634963 | O133: 784.9503031
B134: Capex | F134: =F$40/'Inputs - forecast'!F$5*'Inputs - actual'!F$5 -> 210 | G134: =G$40/'Inputs - forecast'!G$5*'Inputs - actual'!G$5 -> 220.5 | H134: =H$40/'Inputs - forecast'!H$5*'Inputs - actual'!H$5 -> 231.525 | I134: =I$40/'Inputs - forecast'!I$5*'Inputs - actual'!I$5 -> 243.10125 | J134: =J$40/'Inputs - forecast'!J$5*'Inputs - actual'!J$5 -> 255.2563125 | K134: =K$40/'Inputs - forecast'!K$7*'Inputs - actual'!K$5 -> 134.0095641 | L134: =L$40/'Inputs - forecast'!L$7*'Inputs - actual'!L$5 -> 140.7100423 | M134: =M$40/'Inputs - forecast'!M$7*'Inputs - actual'!M$5 -> 147.7455444 | N134: =N$40/'Inputs - forecast'!N$7*'Inputs - actual'!N$5 -> 155.1328216 | O134: =O$40/'Inputs - forecast'!O$7*'Inputs - actual'!O$5 -> 0
B135: Depreciation | F135: =-F133/F36 -> -300 | G135: -323.3333333 | H135: -350.8958333 | I135: -383.9708333 | J135: -424.4877083 | K135: -475.5389708 | L135: -509.0413618 | M135: -555.9447093 | N135: -629.8174815 | O135: -784.9503031
B136: Closing Asset Base | F136: =SUM(F133:F135) -> 2910 | G136: 2807.166667 | H136: 2687.795833 | I136: 2546.92625 | J136: 2377.694854 | K136: 2036.165447 | L136: 1667.834128 | M136: 1259.634963 | N136: 784.9503031 | O136: 0
A138: Actual debt
B139: Opening debt | F139: =F133*'Inputs - actual'!F$20 -> 1230 | G139: =G133*'Inputs - actual'!G$20 -> 1193.1 | H139: =H133*'Inputs - actual'!H$20 -> 1150.938333 | I139: =I133*'Inputs - actual'!I$20 -> 1101.996292 | J139: =J133*'Inputs - actual'!J$20 -> 1044.239762 | K139: =K133*'Inputs - actual'!K$20 -> 974.8548902 | L139: =L133*'Inputs - actual'!L$20 -> 834.8278334 | M139: =M133*'Inputs - actual'!M$20 -> 683.8119924 | N139: =N133*'Inputs - actual'!N$20 -> 516.4503348 | O139: =O133*'Inputs - actual'!O$20 -> 321.8296243
B140: Additional borrowings for capex | F140: =F134*'Inputs - actual'!F$20 -> 86.1 | G140: =G134*'Inputs - actual'!G$20 -> 90.405 | H140: =H134*'Inputs - actual'!H$20 -> 94.92525 | I140: =I134*'Inputs - actual'!I$20 -> 99.6715125 | J140: =J134*'Inputs - actual'!J$20 -> 104.6550881 | K140: =K134*'Inputs - actual'!K$20 -> 54.94392127 | L140: =L134*'Inputs - actual'!L$20 -> 57.69111733 | M140: =M134*'Inputs - actual'!M$20 -> 60.5756732 | N140: =N134*'Inputs - actual'!N$20 -> 63.60445686 | O140: =O134*'Inputs - actual'!O$20 -> 0
B141: Repayments | F141: =F135*'Inputs - actual'!F$20 -> -123 | G141: =G135*'Inputs - actual'!G$20 -> -132.5666667 | H141: =H135*'Inputs - actual'!H$20 -> -143.8672917 | I141: =I135*'Inputs - actual'!I$20 -> -157.4280417 | J141: =J135*'Inputs - actual'!J$20 -> -174.0399604 | K141: =K135*'Inputs - actual'!K$20 -> -194.970978 | L141: =L135*'Inputs - actual'!L$20 -> -208.7069584 | M141: =M135*'Inputs - actual'!M$20 -> -227.9373308 | N141: =N135*'Inputs - actual'!N$20 -> -258.2251674 | O141: =O135*'Inputs - actual'!O$20 -> -321.8296243
B142: Closing debt | F142: =SUM(F139:F141) -> 1193.1 | G142: 1150.938333 | H142: 1101.996292 | I142: 1044.239763 | J142: 974.8548902 | K142: 834.8278334 | L142: 683.8119924 | M142: 516.4503348 | N142: 321.8296243 | O142: 0
B143: Leverage on actual asset base | F143: =IFERROR(F142/F136,0) -> 0.41 | G143: =IFERROR(G142/G136,0) -> 0.41 | H143: =IFERROR(H142/H136,0) -> 0.41 | I143: 0.41 | J143: 0.41 | K143: 0.41 | L143: 0.41 | M143: 0.41 | N143: 0.41 | O143: 0
A145: Actual RAB
B146: Useful lives | F146: =F36 -> 10 | G146: 9 | H146: 8 | I146: 7 | J146: 6 | K146: 5 | L146: 4 | M146: 3 | N146: 2 | O146: 1
B148: Opening RAB | F148: =E152 -> 3000 | G148: =F152 -> 3045 | H148: 3062.5 | I148: 3045.196875 | J148: 2983.778438 | K148: 2866.062445 | L148: 2541.502018 | M148: 2142.142882 | N148: 1647.245561 | O148: 1019.936741
B149: Revaluation | F149: =F148*'Inputs - actual'!F4 -> 150 | G149: =G148*'Inputs - actual'!G4 -> 152.25 | H149: =H148*'Inputs - actual'!H4 -> 153.125 | I149: =I148*'Inputs - actual'!I4 -> 152.2598438 | J149: =J148*'Inputs - actual'!J4 -> 149.1889219 | K149: =K148*'Inputs - actual'!K4 -> 143.3031223 | L149: =L148*'Inputs - actual'!L4 -> 127.0751009 | M149: =M148*'Inputs - actual'!M4 -> 107.1071441 | N149: =N148*'Inputs - actual'!N4 -> 82.36227807 | O149: =O148*'Inputs - actual'!O4 -> 50.99683707
B150: Capex | F150: =F134 -> 210 | G150: =G134 -> 220.5 | H150: 231.525 | I150: 243.10125 | J150: 255.2563125 | K150: 134.0095641 | L150: 140.7100423 | M150: 147.7455444 | N150: 155.1328216 | O150: 0
B151: Depreciation | F151: =-SUM(F148:F149)/F146 -> -315 | G151: =-SUM(G148:G149)/G146 -> -355.25 | H151: -401.953125 | I151: -456.7795313 | J151: -522.1612266 | K151: -601.8731135 | L151: -667.1442798 | M151: -749.7500085 | N151: -864.8039198 | O151: -1070.933578
B152: Closing RAB | E152: =-E29 -> 3000 | F152: =SUM(F148:F151) -> 3045 | G152: 3062.5 | H152: 3045.196875 | I152: 2983.778438 | J152: 2866.062445 | K152: 2541.502018 | L152: 2142.142882 | M152: 1647.245561 | N152: 1019.936741 | O152: 0
A154: Actual tax
B155: Revenue | F155: =F91 -> 583.1938382 | G155: 613.6830154 | H155: 646.0733389 | I155: 680.5349267 | J155: 717.2672172 | K155: 959.7562275 | L155: 1013.668017 | M155: 1071.017004 | N155: 1132.190293 | O155: 1197.785497
B156: Depreciation | F156: =F135 -> -300 | G156: -323.3333333 | H156: -350.8958333 | I156: -383.9708333 | J156: -424.4877083 | K156: -475.5389708 | L156: -509.0413618 | M156: -555.9447093 | N156: -629.8174815 | O156: -784.9503031
B157: Opex | F157: =F92 -> -105 | G157: -110.25 | H157: -115.7625 | I157: -121.550625 | J157: -127.6281563 | K157: -134.0095641 | L157: -140.7100423 | M157: -147.7455444 | N157: -155.1328216 | O157: -162.8894627
B158: Interest | F158: =F93 -> -61.5 | G158: -62.4225 | H158: -62.78125 | I158: -62.42653594 | J158: -61.16745797 | K158: -58.75428013 | L158: -52.10079137 | M158: -43.91392907 | N158: -33.76853401 | O158: -20.9087032
B159: EBT | F159: =SUM(F155:F158) -> 116.6938382 | G159: =SUM(G155:G158) -> 117.677182 | H159: 116.6337556 | I159: 112.5869324 | J159: 103.9838946 | K159: 291.4534125 | L159: 311.8158216 | M159: 323.4128217 | N159: 313.4714564 | O159: 229.0370277
B160: Calculated tax | F160: =-F159*'Inputs - forecast'!F29 -> -32.67427469 | G160: =-G159*'Inputs - forecast'!G29 -> -32.94961097 | H160: =-H159*'Inputs - forecast'!H29 -> -32.65745157 | I160: =-I159*'Inputs - forecast'!I29 -> -31.52434108 | J160: =-J159*'Inputs - forecast'!J29 -> -29.11549049 | K160: =-K159*'Inputs - forecast'!K29 -> -81.6069555 | L160: =-L159*'Inputs - forecast'!L29 -> -87.30843005 | M160: =-M159*'Inputs - forecast'!M29 -> -90.55559006 | N160: =-N159*'Inputs - forecast'!N29 -> -87.77200779 | O160: =-O159*'Inputs - forecast'!O29 -> -64.13036775
B161: Deferred tax | F161: =IF(F160>0,F160+E161,0) -> 0 | G161: 0 | H161: 0 | I161: 0 | J161: 0 | K161: 0 | L161: 0 | M161: 0 | N161: 0 | O161: 0
B162: Tax | F162: =IF(F161>0,0,F160+E161) -> -32.67427469 | G162: -32.94961097 | H162: -32.65745157 | I162: -31.52434108 | J162: -29.11549049 | K162: -81.6069555 | L162: -87.30843005 | M162: -90.55559006 | N162: -87.77200779 | O162: -64.13036775
A164: Tax adjustment | E164: NPV | Q164: Note
B165: Tax | F165: =F162 -> -32.67427469 | G165: -32.94961097 | H165: -32.65745157 | I165: -31.52434108 | J165: -29.11549049 | K165: -81.6069555 | L165: -87.30843005 | M165: -90.55559006 | N165: -87.77200779 | O165: -64.13036775
B166: NPV of actual tax | E166: =SUM(F166:O166) -> -328.1397873 | F166: =F165/'Inputs - actual'!F$28 -> -29.89331699 | G166: =G165/'Inputs - actual'!G$28 -> -27.5795131 | H166: =H165/'Inputs - actual'!H$28 -> -25.00844834 | I166: =I165/'Inputs - actual'!I$28 -> -22.08607916 | J166: =J165/'Inputs - actual'!J$28 -> -18.66228722 | K166: =K165/'Inputs - actual'!K$28 -> -47.85596589 | L166: =L165/'Inputs - actual'!L$28 -> -46.8417639 | M166: =M165/'Inputs - actual'!M$28 -> -44.44884479 | N166: =N165/'Inputs - actual'!N$28 -> -39.41571401 | O166: =O165/'Inputs - actual'!O$28 -> -26.34785394
B168: Forecast tax adjusted for inflation | F168: =F$17/'Inputs - forecast'!F$7*'Inputs - actual'!F$5 -> -40.33309822 | G168: =G$17/'Inputs - forecast'!G$7*'Inputs - actual'!G$5 -> -38.02496622 | H168: =H$17/'Inputs - forecast'!H$7*'Inputs - actual'!H$5 -> -34.74904708 | I168: =I$17/'Inputs - forecast'!I$7*'Inputs - actual'!I$5 -> -30.15278725 | J168: =J$17/'Inputs - forecast'!J$7*'Inputs - actual'!J$5 -> -23.69802588 | K168: =K$17/'Inputs - forecast'!K$7*'Inputs - actual'!K$5 -> -92.06552071 | L168: =L$17/'Inputs - forecast'!L$7*'Inputs - actual'!L$5 -> -92.50200324 | M168: =M$17/'Inputs - forecast'!M$7*'Inputs - actual'!M$5 -> -89.72273146 | N168: =N$17/'Inputs - forecast'!N$7*'Inputs - actual'!N$5 -> -79.84418307 | O168: =O$17/'Inputs - forecast'!O$7*'Inputs - actual'!O$5 -> -47.22340072
B169: NPV of forecast tax adjusted for inflation | E169: =SUM(F169:O169) -> -334.5676317 | F169: =F168/'Inputs - actual'!F$28 -> -36.90028629 | G169: =G168/'Inputs - actual'!G$28 -> -31.82769153 | H169: =H168/'Inputs - actual'!H$28 -> -26.61015195 | I169: =I168/'Inputs - actual'!I$28 -> -21.12516307 | J169: =J168/'Inputs - actual'!J$28 -> -15.1898305 | K169: =K168/'Inputs - actual'!K$28 -> -53.98907963 | L169: =L168/'Inputs - actual'!L$28 -> -49.62816298 | M169: =M168/'Inputs - actual'!M$28 -> -44.04003952 | N169: =N168/'Inputs - actual'!N$28 -> -35.85557132 | O169: =O168/'Inputs - actual'!O$28 -> -19.40165491
B170: Difference | E170: =E169-E166 -> -6.427844365 | F170: =F168-F165 -> -7.658823529 | G170: -5.075355248 | H170: -2.091595512 | I170: 1.371553834 | J170: 5.417464612 | K170: -10.45856521 | L170: -5.193573193 | M170: 0.8328586037 | N170: 7.927824727 | O170: 16.90696703
A172: Real revenue | F172: =F91/'Inputs - actual'!F$5 -> 555.422703 | G172: =G91/'Inputs - actual'!G$5 -> 556.6285854 | H172: =H91/'Inputs - actual'!H$5 -> 558.1024416 | I172: =I91/'Inputs - actual'!I$5 -> 559.8777684 | J172: =J91/'Inputs - actual'!J$5 -> 561.997633 | K172: =K91/'Inputs - actual'!K$5 -> 716.184874 | L172: =L91/'Inputs - actual'!L$5 -> 720.3949347 | M172: =M91/'Inputs - actual'!M$5 -> 724.906466 | N172: =N91/'Inputs - actual'!N$5 -> 729.819958 | O172: =O91/'Inputs - actual'!O$5 -> 735.3363913
A174: Wash-up account | E174: NPV | F174: =F78 -> 2021-06-30 | G174: 2022-06-30 | H174: 2023-06-30 | I174: 2024-06-30 | J174: 2025-06-30 | K174: 2026-06-30 | L174: 2027-06-30 | M174: 2028-06-30 | N174: 2029-06-30 | O174: 2030-06-30 | P174: =EOMONTH(O174, 12) -> 2031-06-30 | Q174: =EOMONTH(P174, 12) -> 2032-06-30 | R174: =Q174+365 -> 2033-06-30 | S174: =R174+366 -> 2034-07-01
B175: Wash-up drawdowns will usually have a 2 year delay from when the revenue is set to allow for actual CPI information to be released.
B177: Actual net allowable revenue | D177: ANAR | F177: =F91-F109 -> 621.1791323 | G177: 652.2380889 | H177: 684.8499933 | I177: 719.092493 | J177: 755.0471177 | K177: 996.0456358 | L177: 1045.847918 | M177: 1098.140314 | N177: 1153.047329 | O177: 1210.699696
B178: Forecast net allowable revenue | D178: FNAR | F178: =F13 -> 603.4311571 | G178: 615.4997802 | H178: 627.8097758 | I178: 640.3659713 | J178: 653.1732908 | K178: 967.5871891 | L178: 986.9389329 | M178: 1006.677712 | N178: 1026.811266 | O178: 1047.347491 | T178: Note
B179: Wash-up amount | F179: =F177-F178 -> 17.74797521 | G179: =G177-G178 -> 36.73830868 | H179: 57.04021752 | I179: 78.72652167 | J179: 101.8738269 | K179: 28.45844674 | L179: 58.90898475 | M179: 91.46260197 | N179: 126.2360634 | O179: 163.3522046
B181: Actual allowable revenue | D181: AAR | F181: =F177-F202 -> 621.1791323 | G181: 652.2380889 | H181: 696.2943318 | I181: 742.7240311 | J181: 791.7246146 | K181: 1046.771001 | L181: 1111.800839 | M181: 1081.678175 | N181: 1172.392517 | O181: 1269.52214
B182: Forecast allowable revenue | D182: FAR | F182: =F178-F202 -> 603.4311571 | G182: 615.4997802 | H182: 639.2541143 | I182: 663.9975094 | J182: 689.8507877 | K182: 1018.312554 | L182: 1052.891854 | M182: 990.2155726 | N182: 1046.156454 | O182: 1106.169935
B184: Actual revenue | D184: AR | F184: =F182 -> 603.4311571 | G184: =G182 -> 615.4997802 | H184: =H182 -> 639.2541143 | I184: =I182 -> 663.9975094 | J184: 689.8507877 | K184: 1018.312554 | L184: 1052.891854 | M184: 990.2155726 | N184: 1046.156454 | O184: 1106.169935 | T184: Note
B186: Cost of debt wash-up adjustment | D186: CODW | E186: =-NPV('Inputs - forecast'!$P$31,F186:O186) -> 243.200318 | F186: =F109 -> -37.98529412 | G186: -38.55507353 | H186: -38.77665441 | I186: -38.55756631 | J186: -37.77990051 | K186: -36.28940831 | L186: -32.17990055 | M186: -27.12330913 | N186: -20.85703571 | O186: -12.91419903
D187: Smoothing Y1 | F187: =F186/5 -> -7.597058824 | G187: =F187*(1+'Inputs - forecast'!$P$31) -> -8.066557059 | H187: =G187*(1+'Inputs - forecast'!$P$31) -> -8.565070285 | I187: =H187*(1+'Inputs - forecast'!$P$31) -> -9.094391629 | J187: =I187*(1+'Inputs - forecast'!$P$31) -> -9.656425031 | T187: Note
D188: Smoothing Y2 | G188: =G186/5 -> -7.711014706 | H188: =G188*(1+'Inputs - forecast'!$P$31) -> -8.187555415 | I188: =H188*(1+'Inputs - forecast'!$P$31) -> -8.693546339 | J188: =I188*(1+'Inputs - forecast'!$P$31) -> -9.230807503 | K188: =J188*(1+'Inputs - forecast'!$P$31) -> -9.801271407
D189: Smoothing Y3 | H189: =H186/5 -> -7.755330882 | I189: =H189*(1+'Inputs - forecast'!$P$31) -> -8.234610331 | J189: =I189*(1+'Inputs - forecast'!$P$31) -> -8.743509249 | K189: =J189*(1+'Inputs - forecast'!$P$31) -> -9.283858121 | L189: =K189*(1+'Inputs - forecast'!$P$31) -> -9.857600553
D190: Smoothing Y4 | I190: =I186/5 -> -7.711513263 | J190: =I190*(1+'Inputs - forecast'!$P$31) -> -8.188084783 | K190: =J190*(1+'Inputs - forecast'!$P$31) -> -8.694108422 | L190: =K190*(1+'Inputs - forecast'!$P$31) -> -9.231404323 | M190: =L190*(1+'Inputs - forecast'!$P$31) -> -9.80190511
D191: Smoothing Y5 | J191: =J186/5 -> -7.555980102 | K191: =J191*(1+'Inputs - forecast'!$P$31) -> -8.022939672 | L191: =K191*(1+'Inputs - forecast'!$P$31) -> -8.518757344 | M191: =L191*(1+'Inputs - forecast'!$P$31) -> -9.045216548 | N191: =M191*(1+'Inputs - forecast'!$P$31) -> -9.604210931
D192: Smoothing Y6 | K192: =K186/5 -> -7.257881663 | L192: =K192*(1+'Inputs - forecast'!$P$31) -> -7.70641875 | M192: =L192*(1+'Inputs - forecast'!$P$31) -> -8.182675428 | N192: =M192*(1+'Inputs - forecast'!$P$31) -> -8.68836477 | O192: =N192*(1+'Inputs - forecast'!$P$31) -> -9.225305713
D193: Smoothing Y7 | L193: =L186/5 -> -6.435980111 | M193: =L193*(1+'Inputs - forecast'!$P$31) -> -6.833723681 | N193: =M193*(1+'Inputs - forecast'!$P$31) -> -7.256047805 | O193: =N193*(1+'Inputs - forecast'!$P$31) -> -7.704471559 | P193: =O193*(1+'Inputs - forecast'!$P$31) -> -8.180607902
D194: Smoothing Y8 | M194: =M186/5 -> -5.424661826 | N194: =M194*(1+'Inputs - forecast'!$P$31) -> -5.759905927 | O194: =N194*(1+'Inputs - forecast'!$P$31) -> -6.115868114 | P194: =O194*(1+'Inputs - forecast'!$P$31) -> -6.493828763 | Q194: =P194*(1+'Inputs - forecast'!$P$31) -> -6.895147381
D195: Smoothing Y9 | N195: =N186/5 -> -4.171407142 | O195: =N195*(1+'Inputs - forecast'!$P$31) -> -4.429200104 | P195: =O195*(1+'Inputs - forecast'!$P$31) -> -4.70292467 | Q195: =P195*(1+'Inputs - forecast'!$P$31) -> -4.993565415 | R195: =Q195*(1+'Inputs - forecast'!$P$31) -> -5.302167757
D196: Smoothing Y10 | O196: =O186/5 -> -2.582839807 | P196: =O196*(1+'Inputs - forecast'!$P$31) -> -2.742459307 | Q196: =P196*(1+'Inputs - forecast'!$P$31) -> -2.911943292 | R196: =Q196*(1+'Inputs - forecast'!$P$31) -> -3.091901387 | S196: =R196*(1+'Inputs - forecast'!$P$31) -> -3.282980893
D197: Total CODW | E197: =-NPV('Inputs - forecast'!$P$31,F197:S197) -> 243.200318 | F197: =SUM(F187:F196) -> -7.597058824 | G197: =SUM(G187:G196) -> -15.77757176 | H197: -24.50795658 | I197: -33.73406156 | J197: -43.37480667 | K197: -43.06005929 | L197: -41.75016108 | M197: -39.28818259 | N197: -35.47993658 | O197: -30.0576853 | P197: -22.11982064 | Q197: -14.80065609 | R197: -8.394069145 | S197: -3.282980893
E198: =E186-E197 -> 0
B199: Wash-up account balance | D199: WAB
B200: Wash-up account opening balance | D200: WABt-1 | F200: 0 | G200: =F203 -> 10.15091638 | H200: 31.73897993 | I200: 54.7883714 | J200: 79.53521478 | K200: 106.2720144 | L200: 47.51264713 | M200: 1.654831466 | N200: 70.39365835 | O200: 146.1549253 | P200: 229.6593747 | Q200: 141.5321206
B201: Wash-up accrual | D201: WA | F201: =F181-F184+F197 -> 10.15091638 | G201: =G181-G184+G197 -> 20.96073692 | H201: 32.53226094 | I201: 44.99246011 | J201: 58.49902023 | K201: -14.60161255 | L201: 17.15882367 | M201: 52.17441938 | N201: 90.75612684 | O201: 133.2945193
B202: Wash-up (draw-down)/ draw-up | D202: WD | F202: 0 | G202: 0 | H202: =-F201*(1+'Inputs - forecast'!$P31)^2 -> -11.44433844 | I202: =-G201*(1+'Inputs - forecast'!$P31)^2 -> -23.63153808 | J202: =-H201*(1+'Inputs - forecast'!$P31)^2 -> -36.6774969 | K202: =-I201*(1+'Inputs - forecast'!$P31)^2 -> -50.72536518 | L202: =-J201*(1+'Inputs - forecast'!$P31)^2 -> -65.95292093 | M202: =-K201*(1+'Inputs - forecast'!$P31)^2 -> 16.46213892 | N202: =-L201*(1+'Inputs - forecast'!$P31)^2 -> -19.34518794 | O202: =-M201*(1+'Inputs - forecast'!$P31)^2 -> -58.82244424 | P202: =-N201*(1+'Inputs - forecast'!$P31)^2 -> -102.3202035 | Q202: =-O201*(1+'Inputs - forecast'!$P31)^2 -> -150.2788056 | T202: Note
B203: Wash-up account balance | D203: WABt | F203: =F200*(1+'Inputs - forecast'!$P$31)+F201+F202 -> 10.15091638 | G203: =G200*(1+'Inputs - forecast'!$P$31)+G201+G202 -> 31.73897993 | H203: =H200*(1+'Inputs - forecast'!$P$31)+H201+H202 -> 54.7883714 | I203: =I200*(1+'Inputs - forecast'!$P$31)+I201+I202 -> 79.53521478 | J203: =J200*(1+'Inputs - forecast'!$P$31)+J201+J202 -> 106.2720144 | K203: =K200*(1+'Inputs - forecast'!$P$31)+K201+K202 -> 47.51264713 | L203: =L200*(1+'Inputs - forecast'!$P$31)+L201+L202 -> 1.654831466 | M203: =M200*(1+'Inputs - forecast'!$P$31)+M201+M202 -> 70.39365835 | N203: =N200*(1+'Inputs - forecast'!$P$31)+N201+N202 -> 146.1549253 | O203: =O200*(1+'Inputs - forecast'!$P$31)+O201+O202 -> 229.6593747 | P203: =P200*(1+'Inputs - forecast'!$P$31)+P201+P202 -> 141.5321206 | Q203: =Q200*(1+'Inputs - forecast'!$P$31)+Q201+Q202 -> 0 | T203: Note
B205: Test NPV=0
B206: Confirm Net Present Value (NPV) of ANAR equal AR plus CODW plus the wash-up account balance remaining at end of model period
B207: Actual net allowable revenue | D207: ANAR | E207: =-NPV('Inputs - forecast'!$P$31,F207:O207) -> -6259.741636 | F207: =F177 -> 621.1791323 | G207: 652.2380889 | H207: 684.8499933 | I207: 719.092493 | J207: 755.0471177 | K207: 996.0456358 | L207: 1045.847918 | M207: 1098.140314 | N207: 1153.047329 | O207: 1210.699696 | T207: Note
B208: Actual revenue | D208: AR | E208: =NPV('Inputs - forecast'!$P$31,F208:O208) -> 5914.370004 | F208: =F182 -> 603.4311571 | G208: 615.4997802 | H208: 639.2541143 | I208: 663.9975094 | J208: 689.8507877 | K208: 1018.312554 | L208: 1052.891854 | M208: 990.2155726 | N208: 1046.156454 | O208: 1106.169935
B209: Cost of debt wash-up adjustment | D209: CODW | E209: =-NPV('Inputs - forecast'!$P$31,F209:O209) -> 219.2885066 | F209: =F197 -> -7.597058824 | G209: -15.77757176 | H209: -24.50795658 | I209: -33.73406156 | J209: -43.37480667 | K209: -43.06005929 | L209: -41.75016108 | M209: -39.28818259 | N209: -35.47993658 | O209: -30.0576853
B210: Wash-up account balance | D210: WAB | E210: =NPV('Inputs - forecast'!$P$31,F210:O210) -> 126.0831261 | F210: 0 | G210: 0 | H210: 0 | I210: 0 | J210: 0 | K210: 0 | L210: 0 | M210: 0 | N210: 0 | O210: =O203 -> 229.6593747
D211: NPV | E211: =SUM(E207:E210) -> 1.98951966e-13
B213: Actual revenue per model | E213: =-NPV('Inputs - forecast'!$P$31,F213:O213) -> -6016.541318 | F213: =F91 -> 583.1938382 | G213: 613.6830154 | H213: 646.0733389 | I213: 680.5349267 | J213: 717.2672172 | K213: 959.7562275 | L213: 1013.668017 | M213: 1071.017004 | N213: 1132.190293 | O213: 1197.785497
B214: Check to ANAR less CODW | F214: =F207-F213+F186 -> 0 | G214: 0 | H214: 0 | I214: -5.684341886e-14 | J214: 0 | K214: 0 | L214: 0 | M214: 6.394884622e-14 | N214: -7.815970093e-14 | O214: -1.776356839e-14
B216: FNAR + accrual | E216: =NPV('Inputs - forecast'!$P$31,F216:O216) -> 6040.45313 | F216: =F178+F201 -> 613.5820735 | G216: =G178+G201 -> 636.4605171 | H216: 660.3420368 | I216: 685.3584315 | J216: 711.672311 | K216: 952.9855766 | L216: 1004.097757 | M216: 1058.852131 | N216: 1117.567393 | O216: 1180.64201 | T216: Note
B217: FNAR + draw-down | E217: =NPV('Inputs - forecast'!$P$31,F217:Q217) -> 5914.370004 | F217: =F178-F202 -> 603.4311571 | G217: =G178-G202 -> 615.4997802 | H217: 639.2541143 | I217: 663.9975094 | J217: 689.8507877 | K217: 1018.312554 | L217: 1052.891854 | M217: 990.2155726 | N217: 1046.156454 | O217: =O178-O202 -> 1106.169935 | T217: Note
B218: Closing WAB yet to receive | E218: =NPV('Inputs - forecast'!$P$31,F218:Q218) -> 126.0831261 | F218: 0 | G218: 0 | H218: 0 | I218: 0 | J218: 0 | K218: 0 | L218: 0 | M218: 0 | N218: 0 | O218: =+O203 -> 229.6593747
D219: NPV | E219: =E216-E217-E218 -> -1.136868377e-13

Sheet 3 Hybrid RAB
A1: Calculation
A3: Analysis
A10: Calculation
A11: Forecast | D11: Return over forecast period | E11: ='Inputs - forecast'!E2 -> 2020-06-30 | F11: ='Inputs - forecast'!F2 -> 2021-06-30 | G11: ='Inputs - forecast'!G2 -> 2022-06-30 | H11: ='Inputs - forecast'!H2 -> 2023-06-30 | I11: ='Inputs - forecast'!I2 -> 2024-06-30 | J11: ='Inputs - forecast'!J2 -> 2025-06-30 | K11: ='Inputs - forecast'!K2 -> 2026-06-30 | L11: ='Inputs - forecast'!L2 -> 2027-06-30 | M11: ='Inputs - forecast'!M2 -> 2028-06-30 | N11: ='Inputs - forecast'!N2 -> 2029-06-30 | O11: ='Inputs - forecast'!O2 -> 2030-06-30
A12: Building blocks
B13: Revenue | F13: =K71 -> 621.8450708 | G13: =F13*(1+'Inputs - forecast'!G4) -> 634.2819723 | H13: =G13*(1+'Inputs - forecast'!H4) -> 646.9676117 | I13: =H13*(1+'Inputs - forecast'!I4) -> 659.9069639 | J13: =I13*(1+'Inputs - forecast'!J4) -> 673.1051032 | K13: =P78 -> 901.4898747 | L13: =K13*(1+'Inputs - forecast'!L4) -> 919.5196722 | M13: =L13*(1+'Inputs - forecast'!M4) -> 937.9100656 | N13: =M13*(1+'Inputs - forecast'!N4) -> 956.6682669 | O13: =N13*(1+'Inputs - forecast'!O4) -> 975.8016323
B14: Return on debt | F14: =-SUM(F$38)*'Inputs - forecast'!F$28*'Inputs - forecast'!F$26 -> -61.5 | G14: =-SUM(G$38)*'Inputs - forecast'!G$28*'Inputs - forecast'!G$26 -> -60.18513 | H14: =-SUM(H$38)*'Inputs - forecast'!H$28*'Inputs - forecast'!H$26 -> -58.39480847 | I14: =-SUM(I$38)*'Inputs - forecast'!I$28*'Inputs - forecast'!I$26 -> -56.04933661 | J14: =-SUM(J$38)*'Inputs - forecast'!J$28*'Inputs - forecast'!J$26 -> -53.04715939 | K14: =-SUM(K$38)*'Inputs - forecast'!K$28*'Inputs - forecast'!K$26 -> -54.43189384 | L14: =-SUM(L$38)*'Inputs - forecast'!L$28*'Inputs - forecast'!L$26 -> -46.67918067 | M14: =-SUM(M$38)*'Inputs - forecast'!M$28*'Inputs - forecast'!M$26 -> -38.1445751 | N14: =-SUM(N$38)*'Inputs - forecast'!N$28*'Inputs - forecast'!N$26 -> -28.50630781 | O14: =-SUM(O$38)*'Inputs - forecast'!O$28*'Inputs - forecast'!O$26 -> -17.25339195
B15: Return on equity | F15: =-SUM(F$38)*(1-'Inputs - forecast'!F$28)*'Inputs - forecast'!F$25 -> -123.9 | G15: =-SUM(G$38)*(1-'Inputs - forecast'!G$28)*'Inputs - forecast'!G$25 -> -121.251018 | H15: =-SUM(H$38)*(1-'Inputs - forecast'!H$28)*'Inputs - forecast'!H$25 -> -117.6441751 | I15: =-SUM(I$38)*(1-'Inputs - forecast'!I$28)*'Inputs - forecast'!I$25 -> -112.9189074 | J15: =-SUM(J$38)*(1-'Inputs - forecast'!J$28)*'Inputs - forecast'!J$25 -> -106.8706187 | K15: =-SUM(K$38)*(1-'Inputs - forecast'!K$28)*'Inputs - forecast'!K$25 -> -109.660352 | L15: =-SUM(L$38)*(1-'Inputs - forecast'!L$28)*'Inputs - forecast'!L$25 -> -94.04147131 | M15: =-SUM(M$38)*(1-'Inputs - forecast'!M$28)*'Inputs - forecast'!M$25 -> -76.84736349 | N15: =-SUM(N$38)*(1-'Inputs - forecast'!N$28)*'Inputs - forecast'!N$25 -> -57.42978109 | O15: =-SUM(O$38)*(1-'Inputs - forecast'!O$28)*'Inputs - forecast'!O$25 -> -34.75927256
B16: Revaluation | F16: =F39 -> 35.4 | G16: =G39 -> 34.643148 | H16: 33.61262146 | I16: 32.26254498 | J16: 30.53446248 | K16: 28.35127164 | L16: 26.8689918 | M16: 21.95638957 | N16: 16.40850888 | O16: 9.931220731
B17: Tax | F17: =F62 -> -44.33661984 | G17: =G62 -> -41.26924917 | H17: -37.45709424 | I17: -32.65290451 | J17: -26.48013096 | K17: -72.13809739 | L17: -69.51553799 | M17: -63.91774096 | N17: -52.1486852 | O17: -21.2015407
B18: Opex | F18: =F26 -> -102 | G18: =G26 -> -104.04 | H18: -106.1208 | I18: -108.243216 | J18: -110.4080803 | K18: -130.1807194 | L18: -132.7843338 | M18: -135.4400204 | N18: -138.1488208 | O18: -140.9117973
B19: Depreciation | F19: =F41 -> -303.54 | G19: =G41 -> -330.0559053 | H19: -360.267483 | I19: -395.1966466 | J19: -436.3667957 | K19: -536.7131211 | L19: -575.9755489 | M19: -627.55579 | N19: -703.4800546 | O19: -851.5600962
B20: Net revenue | F20: =SUM(F13:F19) -> 21.96845101 | G20: 12.12381776 | H20: 0.6958723202 | I20: -12.8915022 | J20: -29.5332193 | K20: 26.71696269 | L20: 27.3925914 | M20: 17.96096525 | N20: -6.636873738 | O20: -79.95324565
B21: Present value | F21: =F20/'Inputs - forecast'!F$36 -> 20.68982013 | G21: =G20/'Inputs - forecast'!G$36 -> 10.75360197 | H21: =H20/'Inputs - forecast'!H$36 -> 0.58130144 | I21: =I20/'Inputs - forecast'!I$36 -> -10.14221104 | J21: =J20/'Inputs - forecast'!J$36 -> -21.8825125 | K21: =K20/'Inputs - forecast'!K$36 -> 18.64364213 | L21: =L20/'Inputs - forecast'!L$36 -> 18.00255193 | M21: =M20/'Inputs - forecast'!M$36 -> 11.11700765 | N21: =N20/'Inputs - forecast'!N$36 -> -3.86882483 | O21: =O20/'Inputs - forecast'!O$36 -> -43.89437689
B22: Sum of present values | O22: =SUM(F21:O21) -> 2.913225217e-12
A24: Regulatory cashflows
B25: Revenue | F25: =F13 -> 621.8450708 | G25: =G13 -> 634.2819723 | H25: 646.9676117 | I25: 659.9069639 | J25: 673.1051032 | K25: 901.4898747 | L25: 919.5196722 | M25: 937.9100656 | N25: 956.6682669 | O25: 975.8016323
B26: Opex | F26: =-'Inputs - forecast'!F$16 -> -102 | G26: =-'Inputs - forecast'!G$16 -> -104.04 | H26: =-'Inputs - forecast'!H$16 -> -106.1208 | I26: =-'Inputs - forecast'!I$16 -> -108.243216 | J26: =-'Inputs - forecast'!J$16 -> -110.4080803 | K26: =-'Inputs - forecast'!K$16 -> -130.1807194 | L26: =-'Inputs - forecast'!L$16 -> -132.7843338 | M26: =-'Inputs - forecast'!M$16 -> -135.4400204 | N26: =-'Inputs - forecast'!N$16 -> -138.1488208 | O26: =-'Inputs - forecast'!O$16 -> -140.9117973
B27: Tax | F27: =F17 -> -44.33661984 | G27: =G17 -> -41.26924917 | H27: -37.45709424 | I27: -32.65290451 | J27: -26.48013096 | K27: -72.13809739 | L27: -69.51553799 | M27: -63.91774096 | N27: -52.1486852 | O27: -21.2015407
B28: Capex | F28: =-'Inputs - forecast'!F$17 -> -204 | G28: =-'Inputs - forecast'!G$17 -> -208.08 | H28: =-'Inputs - forecast'!H$17 -> -212.2416 | I28: =-'Inputs - forecast'!I$17 -> -216.486432 | J28: =-'Inputs - forecast'!J$17 -> -220.8161606 | K28: =-'Inputs - forecast'!K$17 -> -130.1807194 | L28: =-'Inputs - forecast'!L$17 -> -132.7843338 | M28: =-'Inputs - forecast'!M$17 -> -135.4400204 | N28: =-'Inputs - forecast'!N$17 -> -138.1488208 | O28: =-'Inputs - forecast'!O$17 -> 0
B29: Opening RAB | E29: =-'Inputs - forecast'!E$18 -> -3000
B30: Closing RAB | J30: =-(J45+J46-J42) -> -252.5641947 | O30: =O42 -> 0
B31: Sum | E31: =SUM(E25:E30) -> -3000 | F31: =SUM(F25:F30) -> 271.508451 | G31: 280.8927231 | H31: 291.1481175 | I31: 302.5244114 | J31: 62.83653662 | K31: 568.9903386 | L31: 584.4354667 | M31: 603.1122838 | N31: 628.2219401 | O31: 813.6882943
B32: Present value | E32: =E31/'Inputs - forecast'!E$36 -> -3000 | F32: =F31/'Inputs - forecast'!F$36 -> 255.7058307 | G32: =G31/'Inputs - forecast'!G$36 -> 249.1466467 | H32: =H31/'Inputs - forecast'!H$36 -> 243.2124616 | I32: =I31/'Inputs - forecast'!I$36 -> 238.0068961 | J32: =J31/'Inputs - forecast'!J$36 -> 46.558463 | K32: =K31/'Inputs - forecast'!K$36 -> 397.0530771 | L32: =L31/'Inputs - forecast'!L$36 -> 384.0939941 | M32: =M31/'Inputs - forecast'!M$36 -> 373.2986385 | N32: =N31/'Inputs - forecast'!N$36 -> 366.2086604 | O32: =O31/'Inputs - forecast'!O$36 -> 446.7153318
B33: Sum of present values | O33: =SUM(E32:O32) -> 1.364242053e-12
A35: Regulatory Asset Base
B36: Useful lives | F36: 10 | G36: =F36-1 -> 9 | H36: =G36-1 -> 8 | I36: 7 | J36: 6 | K36: 5 | L36: 4 | M36: 3 | N36: 2 | O36: 1
B38: Opening RAB | D38: Effective reval rate | E38: =(1-'Inputs - forecast'!F$28)*(1+'Inputs - forecast'!F$4)+'Inputs - forecast'!F$28-1 -> 0.0118 | F38: =E42 -> 3000 | G38: =F42 -> 2935.86 | H38: 2848.527243 | I38: 2734.113981 | J38: 2587.666312 | K38: =J45+J46 -> 2655.214334 | L38: 2277.033204 | M38: 1860.71098 | N38: 1390.5516 | O38: 841.6288755
B39: Revaluation | F39: =E42*(1-'Inputs - forecast'!F$28)*('Inputs - forecast'!F$4) -> 35.4 | G39: =F42*(1-'Inputs - forecast'!G$28)*('Inputs - forecast'!G$4) -> 34.643148 | H39: =G42*(1-'Inputs - forecast'!H$28)*('Inputs - forecast'!H$4) -> 33.61262146 | I39: =H42*(1-'Inputs - forecast'!I$28)*('Inputs - forecast'!I$4) -> 32.26254498 | J39: =I42*(1-'Inputs - forecast'!J$28)*('Inputs - forecast'!J$4) -> 30.53446248 | K39: =J42*(1-'Inputs - forecast'!K$28)*('Inputs - forecast'!K$4) -> 28.35127164 | L39: =K42*(1-'Inputs - forecast'!L$28)*('Inputs - forecast'!L$4) -> 26.8689918 | M39: =L42*(1-'Inputs - forecast'!M$28)*('Inputs - forecast'!M$4) -> 21.95638957 | N39: =M42*(1-'Inputs - forecast'!N$28)*('Inputs - forecast'!N$4) -> 16.40850888 | O39: =N42*(1-'Inputs - forecast'!O$28)*('Inputs - forecast'!O$4) -> 9.931220731
B40: Capex | F40: =-F28 -> 204 | G40: 208.08 | H40: 212.2416 | I40: 216.486432 | J40: 220.8161606 | K40: 130.1807194 | L40: 132.7843338 | M40: 135.4400204 | N40: 138.1488208 | O40: 0
B41: Depreciation | F41: =-SUM(F38:F39)/F36 -> -303.54 | G41: =-SUM(G38:G39)/G36 -> -330.0559053 | H41: -360.267483 | I41: -395.1966466 | J41: -436.3667957 | K41: -536.7131211 | L41: -575.9755489 | M41: -627.55579 | N41: -703.4800546 | O41: -851.5600962 | P41: Note
B42: Closing RAB | E42: =-E29 -> 3000 | F42: =SUM(F38:F41) -> 2935.86 | G42: 2848.527243 | H42: 2734.113981 | I42: 2587.666312 | J42: 2402.650139 | K42: 2277.033204 | L42: 1860.71098 | M42: 1390.5516 | N42: 841.6288755 | O42: 0
B45: RAB adjusted for actual inflation | J45: =J42/J47*J48 -> 2620.28732 | P45: Note
J46: =J154-J45 -> 34.92701396 | P46: Note
D47: forecast index equity wash-up | E47: 1 | F47: =E47*(1+$E$38) -> 1.0118 | G47: =F47*(1+$E$38) -> 1.02373924 | H47: =G47*(1+$E$38) -> 1.035819363 | I47: =H47*(1+$E$38) -> 1.048042032 | J47: =I47*(1+$E$38) -> 1.060408927
D48: actual index equity wash-up | E48: 1 | F48: =E48*(1+$E$150) -> 1.0295 | G48: =F48*(1+$E$150) -> 1.05987025 | H48: =G48*(1+$E$150) -> 1.091136422 | I48: =H48*(1+$E$150) -> 1.123324947 | J48: =I48*(1+$E$150) -> 1.156463033
A50: Tax asset base | F50: =F36 -> 10 | G50: 9 | H50: 8 | I50: 7 | J50: 6 | K50: 5 | L50: 4 | M50: 3 | N50: 2 | O50: 1
B51: Opening balance | F51: =E54 -> 3000 | G51: =F54 -> 2904 | H51: =G54 -> 2789.413333 | I51: 2652.978267 | J51: 2490.467803 | K51: 2296.205997 | L51: 1967.145517 | M51: 1608.143471 | N51: 1207.535668 | O51: 741.9166549
B52: Capex | F52: =-F28 -> 204 | G52: 208.08 | H52: 212.2416 | I52: 216.486432 | J52: 220.8161606 | K52: 130.1807194 | L52: 132.7843338 | M52: 135.4400204 | N52: 138.1488208 | O52: 0
B53: Depreciation | F53: =-F51/F50 -> -300 | G53: =-G51/G50 -> -322.6666667 | H53: -348.6766667 | I53: -378.9968952 | J53: -415.0779672 | K53: -459.2411994 | L53: -491.7863792 | M53: -536.0478238 | N53: -603.767834 | O53: -741.9166549
B54: Closing balance | E54: =E42 -> 3000 | F54: =SUM(F51:F53) -> 2904 | G54: =SUM(G51:G53) -> 2789.413333 | H54: =SUM(H51:H53) -> 2652.978267 | I54: 2490.467803 | J54: 2296.205997 | K54: 1967.145517 | L54: 1608.143471 | M54: 1207.535668 | N54: 741.9166549 | O54: 0
A56: Regulatory tax
B57: Revenue | F57: =F13 -> 621.8450708 | G57: 634.2819723 | H57: 646.9676117 | I57: 659.9069639 | J57: 673.1051032 | K57: 901.4898747 | L57: 919.5196722 | M57: 937.9100656 | N57: 956.6682669 | O57: 975.8016323
B58: Depreciation | F58: =F53 -> -300 | G58: -322.6666667 | H58: -348.6766667 | I58: -378.9968952 | J58: -415.0779672 | K58: -459.2411994 | L58: -491.7863792 | M58: -536.0478238 | N58: -603.767834 | O58: -741.9166549
B59: Opex | F59: =F18 -> -102 | G59: -104.04 | H59: -106.1208 | I59: -108.243216 | J59: -110.4080803 | K59: -130.1807194 | L59: -132.7843338 | M59: -135.4400204 | N59: -138.1488208 | O59: -140.9117973
B60: Notional interest | F60: =-'Inputs - forecast'!F$26*'Inputs - forecast'!F28*F38 -> -61.5 | G60: =-'Inputs - forecast'!G$26*'Inputs - forecast'!G28*G38 -> -60.18513 | H60: =-'Inputs - forecast'!H$26*'Inputs - forecast'!H28*H38 -> -58.39480847 | I60: =-'Inputs - forecast'!I$26*'Inputs - forecast'!I28*I38 -> -56.04933661 | J60: =-'Inputs - forecast'!J$26*'Inputs - forecast'!J28*J38 -> -53.04715939 | K60: =-'Inputs - forecast'!K$26*'Inputs - forecast'!K28*K38 -> -54.43189384 | L60: =-'Inputs - forecast'!L$26*'Inputs - forecast'!L28*L38 -> -46.67918067 | M60: =-'Inputs - forecast'!M$26*'Inputs - forecast'!M28*M38 -> -38.1445751 | N60: =-'Inputs - forecast'!N$26*'Inputs - forecast'!N28*N38 -> -28.50630781 | O60: =-'Inputs - forecast'!O$26*'Inputs - forecast'!O28*O38 -> -17.25339195
B61: EBT | F61: =SUM(F57:F60) -> 158.3450708 | G61: =SUM(G57:G60) -> 147.3901756 | H61: 133.7753366 | I61: 116.6175161 | J61: 94.57189628 | K61: 257.6360621 | L61: 248.2697785 | M61: 228.2776463 | N61: 186.2453043 | O61: 75.71978821
B62: Calculated tax | F62: =-F61*'Inputs - forecast'!F29 -> -44.33661984 | G62: =-G61*'Inputs - forecast'!G29 -> -41.26924917 | H62: =-H61*'Inputs - forecast'!H29 -> -37.45709424 | I62: =-I61*'Inputs - forecast'!I29 -> -32.65290451 | J62: =-J61*'Inputs - forecast'!J29 -> -26.48013096 | K62: =-K61*'Inputs - forecast'!K29 -> -72.13809739 | L62: =-L61*'Inputs - forecast'!L29 -> -69.51553799 | M62: =-M61*'Inputs - forecast'!M29 -> -63.91774096 | N62: =-N61*'Inputs - forecast'!N29 -> -52.1486852 | O62: =-O61*'Inputs - forecast'!O29 -> -21.2015407
B63: Deferred tax | F63: =IF(F62>0,F62,0) -> 0 | G63: =IF(G62>0,G62,0) -> 0 | H63: =IF(H62>0,H62,0) -> 0 | I63: =IF(I62>0,I62,0) -> 0 | J63: =IF(J62>0,J62,0) -> 0 | K63: 0 | L63: 0 | M63: 0 | N63: 0 | O63: 0
B64: Tax | F64: =IF(F63>0,0,F62+E63) -> -44.33661984 | G64: -41.26924917 | H64: -37.45709424 | I64: -32.65290451 | J64: -26.48013096 | K64: -72.13809739 | L64: -69.51553799 | M64: -63.91774096 | N64: -52.1486852 | O64: -21.2015407
A66: Reg Period 1
A67: Calculation of revenue | K67: Sum
B68: Present value of revenue | F68: =F13/'Inputs - forecast'!F$36 -> 585.6517902 | G68: =G13/'Inputs - forecast'!G$36 -> 562.5963703 | H68: =H13/'Inputs - forecast'!H$36 -> 540.4485758 | I68: =I13/'Inputs - forecast'!I$36 -> 519.1726759 | J68: =J13/'Inputs - forecast'!J$36 -> 498.7343468 | K68: =SUM(F68:J68) -> 2706.603759
B69: Present value of cost | F69: =SUM(F14:F19)/'Inputs - forecast'!F$36 -> -564.9619701 | G69: =SUM(G14:G19)/'Inputs - forecast'!G$36 -> -551.8427684 | H69: =SUM(H14:H19)/'Inputs - forecast'!H$36 -> -539.8672743 | I69: =SUM(I14:I19)/'Inputs - forecast'!I$36 -> -529.3148869 | J69: =SUM(J14:J19)/'Inputs - forecast'!J$36 -> -520.6168593 | K69: =SUM(F69:J69) -> -2706.603759
B70: Difference | K70: =SUM(K68:K69) -> 0
B71: Revenue | K71: 621.8450708
A73: Reg Period 2
A74: Calculation of revenue | P74: Sum
B75: Present value of revenue | K75: =K13/'Inputs - forecast'!K$36 -> 629.0780431 | L75: =L13/'Inputs - forecast'!L$36 -> 604.3130571 | M75: =M13/'Inputs - forecast'!M$36 -> 580.522997 | N75: =N13/'Inputs - forecast'!N$36 -> 557.6694829 | O75: =O13/'Inputs - forecast'!O$36 -> 535.7156457 | P75: =SUM(K75:O75) -> 2907.299226
B76: Present value of cost | K76: =SUM(K14:K19)/'Inputs - forecast'!K$36 -> -610.434401 | L76: =SUM(L14:L19)/'Inputs - forecast'!L$36 -> -586.3105051 | M76: =SUM(M14:M19)/'Inputs - forecast'!M$36 -> -569.4059894 | N76: =SUM(N14:N19)/'Inputs - forecast'!N$36 -> -561.5383077 | O76: =SUM(O14:O19)/'Inputs - forecast'!O$36 -> -579.6100225 | P76: =SUM(K76:O76) -> -2907.299226
B77: Difference | P77: =SUM(P75:P76) -> 0
B78: Revenue | P78: 901.4898747
A80: Actual | D80: =D11 -> Return over forecast period | E80: 2020-06-30 | F80: 2021-06-30 | G80: 2022-06-30 | H80: 2023-06-30 | I80: 2024-06-30 | J80: 2025-06-30 | K80: 2026-06-30 | L80: 2027-06-30 | M80: 2028-06-30 | N80: 2029-06-30 | O80: 2030-06-30
A81: Actual regulatory cashflows
B82: Revenue (no delay in wash-ups) | F82: =F$13/'Inputs - forecast'!F$7*'Inputs - actual'!F$5 -> 640.1346318 | G82: =G$13/'Inputs - forecast'!G$7*'Inputs - actual'!G$5 -> 672.1413633 | H82: =H$13/'Inputs - forecast'!H$7*'Inputs - actual'!H$5 -> 705.7484315 | I82: =I$13/'Inputs - forecast'!I$7*'Inputs - actual'!I$5 -> 741.0358531 | J82: =J$13/'Inputs - forecast'!J$7*'Inputs - actual'!J$5 -> 778.0876457 | K82: =K$13/'Inputs - forecast'!K$7*'Inputs - actual'!K$5 -> 928.0042828 | L82: =L$13/'Inputs - forecast'!L$7*'Inputs - actual'!L$5 -> 974.4044969 | M82: =M$13/'Inputs - forecast'!M$7*'Inputs - actual'!M$5 -> 1023.124722 | N82: =N$13/'Inputs - forecast'!N$7*'Inputs - actual'!N$5 -> 1074.280958 | O82: =O$13/'Inputs - forecast'!O$7*'Inputs - actual'!O$5 -> 1127.995006 | P82: Note
B83: Opex | F83: =F$18/'Inputs - forecast'!F$5*'Inputs - actual'!F$5 -> -105 | G83: =G$18/'Inputs - forecast'!G$5*'Inputs - actual'!G$5 -> -110.25 | H83: =H$18/'Inputs - forecast'!H$5*'Inputs - actual'!H$5 -> -115.7625 | I83: =I$18/'Inputs - forecast'!I$5*'Inputs - actual'!I$5 -> -121.550625 | J83: =J$18/'Inputs - forecast'!J$5*'Inputs - actual'!J$5 -> -127.6281563 | K83: =K$18/'Inputs - forecast'!K$7*'Inputs - actual'!K$5 -> -134.0095641 | L83: =L$18/'Inputs - forecast'!L$7*'Inputs - actual'!L$5 -> -140.7100423 | M83: =M$18/'Inputs - forecast'!M$7*'Inputs - actual'!M$5 -> -147.7455444 | N83: =N$18/'Inputs - forecast'!N$7*'Inputs - actual'!N$5 -> -155.1328216 | O83: =O$18/'Inputs - forecast'!O$7*'Inputs - actual'!O$5 -> -162.8894627
B84: Capex | F84: =-F136 -> -210 | G84: =-G136 -> -220.5 | H84: -231.525 | I84: -243.10125 | J84: -255.2563125 | K84: -134.0095641 | L84: -140.7100423 | M84: -147.7455444 | N84: -155.1328216 | O84: 0
B85: Tax | F85: =F165+F173 -> -45.64063807 | G85: =G165+G173 -> -43.7325521 | H85: -40.86029197 | I85: -36.66724897 | J85: -30.61017166 | K85: -74.25980614 | L85: -73.66482183 | M85: -69.72504437 | N85: -58.55983879 | O85: -24.5082927
B86: Gain on RAB | J86: =-J46 -> -34.92701396 | P86: Note
B87: Nominal IRR | D87: =IRR(E87:O87,0.05) -> 0.08677441534 | E87: =-E42+SUM(E82:E85) -> -3000 | F87: =SUM(F82:F86) -> 279.4939937 | G87: 297.6588112 | H87: 317.6006395 | I87: 339.7167291 | J87: 329.6659914 | K87: 585.7253485 | L87: 619.3195905 | M87: 657.9085886 | N87: 705.4554759 | O87: =SUM(O82:O86)+O154 -> 940.5972504
B89: Real IRR | D89: =IRR(E89:O89,0.05) -> 0.04715358716 | E89: =E87 -> -3000 | F89: =F87/'Inputs - actual'!F39 -> 269.3044057 | G89: =G87/'Inputs - actual'!G39 -> 276.350784 | H89: =H87/'Inputs - actual'!H39 -> 284.115093 | I89: =I87/'Inputs - actual'!I39 -> 292.8200767 | J89: =J87/'Inputs - actual'!J39 -> 273.7972251 | K89: =K87/'Inputs - actual'!K39 -> 468.7269166 | L89: =L87/'Inputs - actual'!L39 -> 477.5421068 | M89: =M87/'Inputs - actual'!M39 -> 488.8024658 | N89: =N87/'Inputs - actual'!N39 -> 505.0198168 | O89: =O87/'Inputs - actual'!O39 -> 648.8039646
B90: check to inputs | D90: =D89-'Inputs - actual'!P24 -> 0.006173194999
A92: Actual return (building blocks) using RAB
B93: Revenue | F93: =F82 -> 640.1346318 | G93: 672.1413633 | H93: 705.7484315 | I93: 741.0358531 | J93: 778.0876457 | K93: 928.0042828 | L93: 974.4044969 | M93: 1023.124722 | N93: 1074.280958 | O93: 1127.995006
B94: Opex | F94: =F83 -> -105 | G94: -110.25 | H94: -115.7625 | I94: -121.550625 | J94: -127.6281563 | K94: -134.0095641 | L94: -140.7100423 | M94: -147.7455444 | N94: -155.1328216 | O94: -162.8894627
B95: Return on debt (fixed) | F95: =-F150*'Inputs - forecast'!F$26*('Inputs - actual'!F$20) -> -61.5 | G95: =-G150*'Inputs - forecast'!G$26*('Inputs - actual'!G$20) -> -61.287825 | H95: =-H150*'Inputs - forecast'!H$26*('Inputs - actual'!H$20) -> -60.60541963 | I95: =-I150*'Inputs - forecast'!I$26*('Inputs - actual'!I$20) -> -59.34038207 | J95: =-J150*'Inputs - forecast'!J$26*('Inputs - actual'!J$20) -> -57.34722421 | K95: =-K150*'Inputs - forecast'!K$26*('Inputs - actual'!K$20) -> -54.43189384 | L95: =-L150*'Inputs - forecast'!L$26*('Inputs - actual'!L$20) -> -47.57730383 | M95: =-M150*'Inputs - forecast'!M$26*('Inputs - actual'!M$20) -> -39.62018159 | N95: =-N150*'Inputs - forecast'!N$26*('Inputs - actual'!N$20) -> -30.22143495 | O95: =-O150*'Inputs - forecast'!O$26*('Inputs - actual'!O$20) -> -18.73670649
B96: Return on equity | F96: =-F150*'Inputs - actual'!F$18*(1-'Inputs - actual'!F$20) -> -179.6029412 | G96: =-G150*'Inputs - actual'!G$18*(1-'Inputs - actual'!G$20) -> -178.983311 | H96: =-H150*'Inputs - actual'!H$18*(1-'Inputs - actual'!H$20) -> -176.9904328 | I96: =-I150*'Inputs - actual'!I$18*(1-'Inputs - actual'!I$20) -> -173.2960512 | J96: =-J150*'Inputs - actual'!J$18*(1-'Inputs - actual'!J$20) -> -167.4752868 | K96: =-K150*'Inputs - actual'!K$18*(1-'Inputs - actual'!K$20) -> -158.9614346 | L96: =-L150*'Inputs - actual'!L$18*(1-'Inputs - actual'!L$20) -> -138.9434748 | M96: =-M150*'Inputs - actual'!M$18*(1-'Inputs - actual'!M$20) -> -115.7057096 | N96: =-N150*'Inputs - actual'!N$18*(1-'Inputs - actual'!N$20) -> -88.25786349 | O96: =-O150*'Inputs - actual'!O$18*(1-'Inputs - actual'!O$20) -> -54.71817224
B97: Revaluation | F97: =F151 -> 88.5 | G97: =G151 -> 88.194675 | H97: 87.21267703 | I97: 85.39225713 | J97: 82.52405435 | K97: 78.32882284 | L97: 68.46490063 | M97: 57.01440765 | N97: 43.48938201 | O97: 26.96257763
B98: Depreciation | F98: =F153 -> -308.85 | G98: =G153 -> -341.9827417 | H98: -380.4468263 | I98: -425.7207202 | J98: -479.9916042 | K98: -546.7086313 | L98: -597.3272475 | M98: -663.2353974 | N98: -758.8528606 | O98: -940.9482599
B99: Tax | F99: =F165+F173 -> -45.64063807 | G99: =G165+G173 -> -43.7325521 | H99: -40.86029197 | I99: -36.66724897 | J99: -30.61017166 | K99: -74.25980614 | L99: -73.66482183 | M99: -69.72504437 | N99: -58.55983879 | O99: -24.5082927
B100: Gain on RAB | J100: =J86 -> -34.92701396 | P100: Note
B101: Nominal return | F101: =SUM(F93:F100) -> 28.04105251 | G101: 24.09960854 | H101: 18.29563784 | I101: 9.853082761 | J101: -37.36775698 | K101: 37.96177569 | L101: 44.64650733 | M101: 44.10725199 | N101: 26.74552039 | O101: -46.8433106
B102: Present value | D102: =SUM(E102:O102) -> 108.2973045 | F102: =F101/'Inputs - actual'!F$36 -> 25.95510203 | G102: =G101/'Inputs - actual'!G$36 -> 20.64747019 | H102: =H101/'Inputs - actual'!H$36 -> 14.50884511 | I102: =I101/'Inputs - actual'!I$36 -> 7.232456825 | J102: =J101/'Inputs - actual'!J$36 -> -25.38862487 | K102: =K101/'Inputs - actual'!K$36 -> 23.87355516 | L102: =L101/'Inputs - actual'!L$36 -> 25.98881624 | M102: =M101/'Inputs - actual'!M$36 -> 23.76497923 | N102: =N101/'Inputs - actual'!N$36 -> 13.33849777 | O102: =O101/'Inputs - actual'!O$36 -> -21.62379316
B104: Real return | F104: =F101/'Inputs - actual'!F39 -> 27.01875229 | G104: =G101/'Inputs - actual'!G39 -> 22.37442825 | H104: =H101/'Inputs - actual'!H39 -> 16.36667626 | I104: =I101/'Inputs - actual'!I39 -> 8.492900709 | J104: =J101/'Inputs - actual'!J39 -> -31.03501252 | K104: =K101/'Inputs - actual'!K39 -> 30.37892437 | L104: =L101/'Inputs - actual'!L39 -> 34.42582392 | M104: =M101/'Inputs - actual'!M39 -> 32.770105 | N104: =N101/'Inputs - actual'!N39 -> 19.14652061 | O104: =O101/'Inputs - actual'!O39 -> -32.31151869
B105: Present value | D105: =SUM(E105:O105) -> 108.2973045 | F105: =F104/'Inputs - actual'!F$44 -> 25.95510203 | G105: =G104/'Inputs - actual'!G$44 -> 20.64747019 | H105: =H104/'Inputs - actual'!H$44 -> 14.50884511 | I105: =I104/'Inputs - actual'!I$44 -> 7.232456825 | J105: =J104/'Inputs - actual'!J$44 -> -25.38862487 | K105: =K104/'Inputs - actual'!K$44 -> 23.87355516 | L105: =L104/'Inputs - actual'!L$44 -> 25.98881624 | M105: =M104/'Inputs - actual'!M$44 -> 23.76497923 | N105: =N104/'Inputs - actual'!N$44 -> 13.33849777 | O105: =O104/'Inputs - actual'!O$44 -> -21.62379316
B107: Actual return on RAB | F107: =-(F95+F96)/F150 -> 0.08036764706 | G107: 0.08036764706 | H107: 0.08036764706 | I107: 0.08036764706 | J107: 0.08036764706 | K107: 0.08036764706 | L107: 0.08036764706 | M107: 0.08036764706 | N107: 0.08036764706 | O107: 0.08036764706
B108: Actual Rab revaluation | F108: =F97/F150 -> 0.0295 | G108: 0.0295 | H108: 0.0295 | I108: 0.0295 | J108: 0.0295 | K108: 0.0295 | L108: 0.0295 | M108: 0.0295 | N108: 0.0295 | O108: 0.0295
B109: Annual change in revenue | G109: =G93/F93-1 -> 0.05 | H109: 0.05 | I109: 0.05 | J109: 0.05 | K109: 0.1926732006 | L109: 0.05 | M109: 0.05 | N109: 0.05 | O109: 0.05
A111: Adjustment for fixed cost of debt | F111: 0 | G111: 0 | H111: 0 | I111: 0 | J111: 0 | K111: 0 | L111: 0 | M111: 0 | N111: 0 | O111: 0
A113: Actual return (building blocks) using actual asset base
B114: Revenue | F114: =F$13/'Inputs - forecast'!F$7*'Inputs - actual'!F$5+F132 -> 640.1346318 | G114: =G$13/'Inputs - forecast'!G$7*'Inputs - actual'!G$5+G132 -> 672.1413633 | H114: =H$13/'Inputs - forecast'!H$7*'Inputs - actual'!H$5+H132 -> 705.7484315 | I114: =I$13/'Inputs - forecast'!I$7*'Inputs - actual'!I$5+I132 -> 741.0358531 | J114: =J$13/'Inputs - forecast'!J$7*'Inputs - actual'!J$5+J132 -> 778.0876457 | K114: =K$13/'Inputs - forecast'!K$7*'Inputs - actual'!K$5+K132 -> 928.0042828 | L114: =L$13/'Inputs - forecast'!L$7*'Inputs - actual'!L$5+L132 -> 974.4044969 | M114: =M$13/'Inputs - forecast'!M$7*'Inputs - actual'!M$5+M132 -> 1023.124722 | N114: =N$13/'Inputs - forecast'!N$7*'Inputs - actual'!N$5+N132 -> 1074.280958 | O114: =O$13/'Inputs - forecast'!O$7*'Inputs - actual'!O$5+O132 -> 1127.995006
B115: Opex | F115: =F83 -> -105 | G115: -110.25 | H115: -115.7625 | I115: -121.550625 | J115: -127.6281563 | K115: -134.0095641 | L115: -140.7100423 | M115: -147.7455444 | N115: -155.1328216 | O115: -162.8894627
B116: Return on debt (fixed) | F116: =-F135*'Inputs - forecast'!F$26*('Inputs - actual'!F$20) -> -61.5 | G116: =-G135*'Inputs - forecast'!G$26*('Inputs - actual'!G$20) -> -59.655 | H116: =-H135*'Inputs - forecast'!H$26*('Inputs - actual'!H$20) -> -57.54691667 | I116: =-I135*'Inputs - forecast'!I$26*('Inputs - actual'!I$20) -> -55.09981458 | J116: =-J135*'Inputs - forecast'!J$26*('Inputs - actual'!J$20) -> -52.21198812 | K116: =-K135*'Inputs - forecast'!K$26*('Inputs - actual'!K$20) -> -48.74274451 | L116: =-L135*'Inputs - forecast'!L$26*('Inputs - actual'!L$20) -> -41.74139167 | M116: =-M135*'Inputs - forecast'!M$26*('Inputs - actual'!M$20) -> -34.19059962 | N116: =-N135*'Inputs - forecast'!N$26*('Inputs - actual'!N$20) -> -25.82251674 | O116: =-O135*'Inputs - forecast'!O$26*('Inputs - actual'!O$20) -> -16.09148121
B117: Return on equity | F117: =-F135*'Inputs - actual'!F$18*(1-'Inputs - actual'!F$20) -> -179.6029412 | G117: =-G135*'Inputs - actual'!G$18*(1-'Inputs - actual'!G$20) -> -174.2148529 | H117: =-H135*'Inputs - actual'!H$18*(1-'Inputs - actual'!H$20) -> -168.0584632 | I117: =-I135*'Inputs - actual'!I$18*(1-'Inputs - actual'!I$20) -> -160.9120123 | J117: =-J135*'Inputs - actual'!J$18*(1-'Inputs - actual'!J$20) -> -152.4784818 | K117: =-K135*'Inputs - actual'!K$18*(1-'Inputs - actual'!K$20) -> -142.3469963 | L117: =-L135*'Inputs - actual'!L$18*(1-'Inputs - actual'!L$20) -> -121.9004344 | M117: =-M135*'Inputs - actual'!M$18*(1-'Inputs - actual'!M$20) -> -99.84930492 | N117: =-N135*'Inputs - actual'!N$18*(1-'Inputs - actual'!N$20) -> -75.41138138 | O117: =-O135*'Inputs - actual'!O$18*(1-'Inputs - actual'!O$20) -> -46.9931277
B118: Revaluation | F118: 0 | G118: 0 | H118: 0 | I118: 0 | J118: 0 | K118: 0 | L118: 0 | M118: 0 | N118: 0 | O118: 0 | P118: Note
B119: Depreciation | F119: =F137 -> -300 | G119: =G137 -> -323.3333333 | H119: -350.8958333 | I119: -383.9708333 | J119: -424.4877083 | K119: -475.5389708 | L119: -509.0413618 | M119: -555.9447093 | N119: -629.8174815 | O119: -784.9503031
B120: Tax | F120: =F165+F173 -> -45.64063807 | G120: =G165+G173 -> -43.7325521 | H120: -40.86029197 | I120: -36.66724897 | J120: -30.61017166 | K120: -74.25980614 | L120: -73.66482183 | M120: -69.72504437 | N120: -58.55983879 | O120: -24.5082927
B121: Gain on actual asset base | J121: =J100 -> -34.92701396 | P121: Note
B122: Nominal return | F122: =SUM(F114:F121) -> -51.60894749 | G122: =SUM(G114:G121) -> -39.04437503 | H122: -27.37557369 | I122: -17.16468112 | J122: -44.25587441 | K122: 53.10620089 | L122: 87.34644494 | M122: 115.6695192 | N122: 129.5369179 | O122: 92.56233839
B123: Present value | D123: =SUM(E123:O123) -> 108.2973045 | F123: =F122/'Inputs - actual'!F$36 -> -47.76980098 | G123: =G122/'Inputs - actual'!G$36 -> -33.45147986 | H123: =H122/'Inputs - actual'!H$36 -> -21.70943488 | I123: =I122/'Inputs - actual'!I$36 -> -12.59938825 | J123: =J122/'Inputs - actual'!J$36 -> -30.0685908 | K123: =K122/'Inputs - actual'!K$36 -> 33.39764258 | L123: =L122/'Inputs - actual'!L$36 -> 50.84453057 | M123: =M122/'Inputs - actual'!M$36 -> 62.32271559 | N123: =N122/'Inputs - actual'!N$36 -> 64.60251528 | O123: =O122/'Inputs - actual'!O$36 -> 42.72859527
B125: Real return | F125: =F122/'Inputs - actual'!F$39 -> -49.72742616 | G125: =G122/'Inputs - actual'!G$39 -> -36.24936755 | H125: =H122/'Inputs - actual'!H$39 -> -24.48928843 | I125: =I122/'Inputs - actual'!I$39 -> -14.79515965 | J125: =J122/'Inputs - actual'!J$39 -> -36.75579504 | K125: =K122/'Inputs - actual'!K$39 -> 42.49825598 | L125: =L122/'Inputs - actual'!L$39 -> 67.35069579 | M125: =M122/'Inputs - actual'!M$39 -> 85.93830082 | N125: =N122/'Inputs - actual'!N$39 -> 92.73258594 | O125: =O122/'Inputs - actual'!O$39 -> 63.84753102
B126: Present value | D126: =SUM(E126:O126) -> 108.2973045 | F126: =F125/'Inputs - actual'!F$44 -> -47.76980098 | G126: =G125/'Inputs - actual'!G$44 -> -33.45147986 | H126: =H125/'Inputs - actual'!H$44 -> -21.70943488 | I126: =I125/'Inputs - actual'!I$44 -> -12.59938825 | J126: =J125/'Inputs - actual'!J$44 -> -30.0685908 | K126: =K125/'Inputs - actual'!K$44 -> 33.39764258 | L126: =L125/'Inputs - actual'!L$44 -> 50.84453057 | M126: =M125/'Inputs - actual'!M$44 -> 62.32271559 | N126: =N125/'Inputs - actual'!N$44 -> 64.60251528 | O126: =O125/'Inputs - actual'!O$44 -> 42.72859527
B128: Actual return on actual asset base | F128: =-(F116+F117)/F135 -> 0.08036764706 | G128: =-(G116+G117)/G135 -> 0.08036764706 | H128: =-(H116+H117)/H135 -> 0.08036764706 | I128: 0.08036764706 | J128: 0.08036764706 | K128: 0.08036764706 | L128: 0.08036764706 | M128: 0.08036764706 | N128: 0.08036764706 | O128: 0.08036764706
B129: Actual Rab revaluation | F129: =F118/F135 -> 0 | G129: =G118/G135 -> 0 | H129: 0 | I129: 0 | J129: 0 | K129: 0 | L129: 0 | M129: 0 | N129: 0 | O129: 0
B130: Annual change in revenue | G130: =G114/F114-1 -> 0.05 | H130: =H114/G114-1 -> 0.05 | I130: 0.05 | J130: 0.05 | K130: 0.1926732006 | L130: 0.05 | M130: 0.05 | N130: 0.05 | O130: 0.05
A132: Adjustment for fixed cost of debt | F132: 0 | G132: 0 | H132: 0 | I132: 0 | J132: 0 | K132: 0 | L132: 0 | M132: 0 | N132: 0 | O132: 0
A134: Actual Asset Base
B135: Opening Asset Base | F135: =E42 -> 3000 | G135: =F138 -> 2910 | H135: 2807.166667 | I135: 2687.795833 | J135: 2546.92625 | K135: 2377.694854 | L135: 2036.165447 | M135: 1667.834128 | N135: 1259.634963 | O135: 784.9503031
B136: Capex | F136: =F$40/'Inputs - forecast'!F$5*'Inputs - actual'!F$5 -> 210 | G136: =G$40/'Inputs - forecast'!G$5*'Inputs - actual'!G$5 -> 220.5 | H136: =H$40/'Inputs - forecast'!H$5*'Inputs - actual'!H$5 -> 231.525 | I136: =I$40/'Inputs - forecast'!I$5*'Inputs - actual'!I$5 -> 243.10125 | J136: =J$40/'Inputs - forecast'!J$5*'Inputs - actual'!J$5 -> 255.2563125 | K136: =K$40/'Inputs - forecast'!K$7*'Inputs - actual'!K$5 -> 134.0095641 | L136: =L$40/'Inputs - forecast'!L$7*'Inputs - actual'!L$5 -> 140.7100423 | M136: =M$40/'Inputs - forecast'!M$7*'Inputs - actual'!M$5 -> 147.7455444 | N136: =N$40/'Inputs - forecast'!N$7*'Inputs - actual'!N$5 -> 155.1328216 | O136: =O$40/'Inputs - forecast'!O$7*'Inputs - actual'!O$5 -> 0
B137: Depreciation | F137: =-F135/F36 -> -300 | G137: -323.3333333 | H137: -350.8958333 | I137: -383.9708333 | J137: -424.4877083 | K137: -475.5389708 | L137: -509.0413618 | M137: -555.9447093 | N137: -629.8174815 | O137: -784.9503031
B138: Closing Asset Base | F138: =SUM(F135:F137) -> 2910 | G138: =SUM(G135:G137) -> 2807.166667 | H138: 2687.795833 | I138: 2546.92625 | J138: 2377.694854 | K138: 2036.165447 | L138: 1667.834128 | M138: 1259.634963 | N138: 784.9503031 | O138: 0
A140: Actual debt
B141: Opening debt | F141: =F135*'Inputs - actual'!F$20 -> 1230 | G141: =G135*'Inputs - actual'!G$20 -> 1193.1 | H141: =H135*'Inputs - actual'!H$20 -> 1150.938333 | I141: =I135*'Inputs - actual'!I$20 -> 1101.996292 | J141: =J135*'Inputs - actual'!J$20 -> 1044.239762 | K141: =K135*'Inputs - actual'!K$20 -> 974.8548902 | L141: =L135*'Inputs - actual'!L$20 -> 834.8278334 | M141: =M135*'Inputs - actual'!M$20 -> 683.8119924 | N141: =N135*'Inputs - actual'!N$20 -> 516.4503348 | O141: =O135*'Inputs - actual'!O$20 -> 321.8296243
B142: Additional borrowings for capex | F142: =F136*'Inputs - actual'!F$20 -> 86.1 | G142: =G136*'Inputs - actual'!G$20 -> 90.405 | H142: =H136*'Inputs - actual'!H$20 -> 94.92525 | I142: =I136*'Inputs - actual'!I$20 -> 99.6715125 | J142: =J136*'Inputs - actual'!J$20 -> 104.6550881 | K142: =K136*'Inputs - actual'!K$20 -> 54.94392127 | L142: =L136*'Inputs - actual'!L$20 -> 57.69111733 | M142: =M136*'Inputs - actual'!M$20 -> 60.5756732 | N142: =N136*'Inputs - actual'!N$20 -> 63.60445686 | O142: =O136*'Inputs - actual'!O$20 -> 0
B143: Repayments | F143: =F137*'Inputs - actual'!F$20 -> -123 | G143: =G137*'Inputs - actual'!G$20 -> -132.5666667 | H143: =H137*'Inputs - actual'!H$20 -> -143.8672917 | I143: =I137*'Inputs - actual'!I$20 -> -157.4280417 | J143: =J137*'Inputs - actual'!J$20 -> -174.0399604 | K143: =K137*'Inputs - actual'!K$20 -> -194.970978 | L143: =L137*'Inputs - actual'!L$20 -> -208.7069584 | M143: =M137*'Inputs - actual'!M$20 -> -227.9373308 | N143: =N137*'Inputs - actual'!N$20 -> -258.2251674 | O143: =O137*'Inputs - actual'!O$20 -> -321.8296243
B144: Closing debt | F144: =SUM(F141:F143) -> 1193.1 | G144: 1150.938333 | H144: 1101.996292 | I144: 1044.239763 | J144: 974.8548902 | K144: 834.8278334 | L144: 683.8119924 | M144: 516.4503348 | N144: 321.8296243 | O144: 0
B145: Leverage on actual asset base | F145: =IFERROR(F144/F138,0) -> 0.41 | G145: =IFERROR(G144/G138,0) -> 0.41 | H145: =IFERROR(H144/H138,0) -> 0.41 | I145: 0.41 | J145: 0.41 | K145: 0.41 | L145: 0.41 | M145: 0.41 | N145: 0.41 | O145: 0
A147: Actual RAB
B148: Useful lives | F148: =F36 -> 10 | G148: 9 | H148: 8 | I148: 7 | J148: 6 | K148: 5 | L148: 4 | M148: 3 | N148: 2 | O148: 1
B150: Opening RAB | D150: Effective reval rate | E150: =(1-'Inputs - actual'!E20)*(1+'Inputs - actual'!F4)+'Inputs - actual'!E20-1 -> 0.0295 | F150: =E154 -> 3000 | G150: =F154 -> 2989.65 | H150: 2956.361933 | I150: 2894.652784 | J150: 2797.425571 | K150: 2655.214334 | L150: 2320.844089 | M150: 1932.691785 | N150: 1474.216339 | O150: 913.9856822
B151: Revaluation | F151: =E154*(1-'Inputs - actual'!F20)*('Inputs - actual'!F4) -> 88.5 | G151: =F154*(1-'Inputs - actual'!G20)*('Inputs - actual'!G4) -> 88.194675 | H151: =G154*(1-'Inputs - actual'!H20)*('Inputs - actual'!H4) -> 87.21267703 | I151: =H154*(1-'Inputs - actual'!I20)*('Inputs - actual'!I4) -> 85.39225713 | J151: =I154*(1-'Inputs - actual'!J20)*('Inputs - actual'!J4) -> 82.52405435 | K151: =J154*(1-'Inputs - actual'!K20)*('Inputs - actual'!K4) -> 78.32882284 | L151: =K154*(1-'Inputs - actual'!L20)*('Inputs - actual'!L4) -> 68.46490063 | M151: =L154*(1-'Inputs - actual'!M20)*('Inputs - actual'!M4) -> 57.01440765 | N151: =M154*(1-'Inputs - actual'!N20)*('Inputs - actual'!N4) -> 43.48938201 | O151: =N154*(1-'Inputs - actual'!O20)*('Inputs - actual'!O4) -> 26.96257763
B152: Capex | F152: =F136 -> 210 | G152: =G136 -> 220.5 | H152: 231.525 | I152: 243.10125 | J152: 255.2563125 | K152: 134.0095641 | L152: 140.7100423 | M152: 147.7455444 | N152: 155.1328216 | O152: 0
B153: Depreciation | F153: =-SUM(F150+F151)/F148 -> -308.85 | G153: =-SUM(G150+G151)/G148 -> -341.9827417 | H153: -380.4468263 | I153: -425.7207202 | J153: -479.9916042 | K153: -546.7086313 | L153: -597.3272475 | M153: -663.2353974 | N153: -758.8528606 | O153: -940.9482599
B154: Closing RAB | E154: =-E29 -> 3000 | F154: =SUM(F150:F153) -> 2989.65 | G154: 2956.361933 | H154: 2894.652784 | I154: 2797.425571 | J154: =SUM(J150:J153) -> 2655.214334 | K154: 2320.844089 | L154: 1932.691785 | M154: 1474.216339 | N154: 913.9856822 | O154: 0
A157: Actual tax
B158: Revenue | F158: =F93 -> 640.1346318 | G158: 672.1413633 | H158: 705.7484315 | I158: 741.0358531 | J158: 778.0876457 | K158: 928.0042828 | L158: 974.4044969 | M158: 1023.124722 | N158: 1074.280958 | O158: 1127.995006
B159: Depreciation | F159: =F137 -> -300 | G159: -323.3333333 | H159: -350.8958333 | I159: -383.9708333 | J159: -424.4877083 | K159: -475.5389708 | L159: -509.0413618 | M159: -555.9447093 | N159: -629.8174815 | O159: -784.9503031
B160: Opex | F160: =F94 -> -105 | G160: -110.25 | H160: -115.7625 | I160: -121.550625 | J160: -127.6281563 | K160: -134.0095641 | L160: -140.7100423 | M160: -147.7455444 | N160: -155.1328216 | O160: -162.8894627
B161: Interest | F161: =F95 -> -61.5 | G161: -61.287825 | H161: -60.60541963 | I161: -59.34038207 | J161: -57.34722421 | K161: -54.43189384 | L161: -47.57730383 | M161: -39.62018159 | N161: -30.22143495 | O161: -18.73670649
B162: EBT | F162: =SUM(F158:F161) -> 173.6346318 | G162: =SUM(G158:G161) -> 177.270205 | H162: 178.4846785 | I162: 176.1740127 | J162: 168.6245569 | K162: 264.023854 | L162: 277.075789 | M162: 279.8142865 | N162: 259.1092198 | O162: 161.4185335
B163: Calculated tax | F163: =-F162*'Inputs - forecast'!F29 -> -48.61769689 | G163: =-G162*'Inputs - forecast'!G29 -> -49.6356574 | H163: =-H162*'Inputs - forecast'!H29 -> -49.97570999 | I163: =-I162*'Inputs - forecast'!I29 -> -49.32872355 | J163: =-J162*'Inputs - forecast'!J29 -> -47.21487595 | K163: =-K162*'Inputs - forecast'!K29 -> -73.92667913 | L163: =-L162*'Inputs - forecast'!L29 -> -77.58122091 | M163: =-M162*'Inputs - forecast'!M29 -> -78.34800023 | N163: =-N162*'Inputs - forecast'!N29 -> -72.55058155 | O163: =-O162*'Inputs - forecast'!O29 -> -45.19718939
B164: Deferred tax | F164: =IF(F163>0,F163+E164,0) -> 0 | G164: 0 | H164: 0 | I164: 0 | J164: 0 | K164: 0 | L164: 0 | M164: 0 | N164: 0 | O164: 0
B165: Tax | F165: =IF(F164>0,0,F163+E164) -> -48.61769689 | G165: -49.6356574 | H165: -49.97570999 | I165: -49.32872355 | J165: -47.21487595 | K165: -73.92667913 | L165: -77.58122091 | M165: -78.34800023 | N165: -72.55058155 | O165: -45.19718939
A167: Tax adjustment | E167: NPV | P167: Note
B168: Tax | F168: =F165 -> -48.61769689 | G168: =G165 -> -49.6356574 | H168: -49.97570999 | I168: -49.32872355 | J168: -47.21487595 | K168: -73.92667913 | L168: -77.58122091 | M168: -78.34800023 | N168: -72.55058155 | O168: -45.19718939
B169: NPV of actual tax | E169: =SUM(F169:O169) -> -363.7010746 | F169: =F168/'Inputs - actual'!F$28 -> -44.47977005 | G169: =G168/'Inputs - actual'!G$28 -> -41.54608274 | H169: =H168/'Inputs - actual'!H$28 -> -38.27043757 | I169: =I168/'Inputs - actual'!I$28 -> -34.55990057 | J169: =J168/'Inputs - actual'!J$28 -> -30.26353193 | K169: =K168/'Inputs - actual'!K$28 -> -43.3520968 | L169: =L168/'Inputs - actual'!L$28 -> -41.62302805 | M169: =M168/'Inputs - actual'!M$28 -> -38.45679874 | N169: =N168/'Inputs - actual'!N$28 -> -32.5802388 | O169: =O168/'Inputs - actual'!O$28 -> -18.56918939
B171: Forecast tax adjusted for inflation | F171: =F$17/'Inputs - forecast'!F$5*'Inputs - actual'!F$5 -> -45.64063807 | G171: =G$17/'Inputs - forecast'!G$5*'Inputs - actual'!G$5 -> -43.7325521 | H171: =H$17/'Inputs - forecast'!H$5*'Inputs - actual'!H$5 -> -40.86029197 | I171: =I$17/'Inputs - forecast'!I$5*'Inputs - actual'!I$5 -> -36.66724897 | J171: =J$17/'Inputs - forecast'!J$5*'Inputs - actual'!J$5 -> -30.61017166 | K171: =K$17/'Inputs - forecast'!K$7*'Inputs - actual'!K$5 -> -74.25980614 | L171: =L$17/'Inputs - forecast'!L$7*'Inputs - actual'!L$5 -> -73.66482183 | M171: =M$17/'Inputs - forecast'!M$7*'Inputs - actual'!M$5 -> -69.72504437 | N171: =N$17/'Inputs - forecast'!N$7*'Inputs - actual'!N$5 -> -58.55983879 | O171: =O$17/'Inputs - forecast'!O$7*'Inputs - actual'!O$5 -> -24.5082927
B172: NPV of forecast tax adjusted for inflation | E172: =SUM(F172:O172) -> -308.620906 | F172: =F171/'Inputs - actual'!F$28 -> -41.75609327 | G172: =G171/'Inputs - actual'!G$28 -> -36.60506021 | H172: =H171/'Inputs - actual'!H$28 -> -31.29002576 | I172: =I171/'Inputs - actual'!I$28 -> -25.68922096 | J172: =J171/'Inputs - actual'!J$28 -> -19.62033975 | K172: =K171/'Inputs - actual'!K$28 -> -43.5474492 | L172: =L171/'Inputs - actual'!L$28 -> -39.52184446 | M172: =M171/'Inputs - actual'!M$28 -> -34.22425576 | N172: =N171/'Inputs - actual'!N$28 -> -26.29742575 | O172: =O171/'Inputs - actual'!O$28 -> -10.06919092
B173: Difference | E173: =E172-E169 -> 55.0801686 | F173: =F171-F168 -> 2.977058824 | G173: =G171-G168 -> 5.9031053 | H173: 9.115418024 | I173: 12.66147458 | J173: 16.60470428 | K173: -0.333127008 | L173: 3.916399077 | M173: 8.622955858 | N173: 13.99074277 | O173: 20.68889668
A175: Real revenue | F175: =F93/'Inputs - actual'!F$5 -> 609.6520302 | G175: =G93/'Inputs - actual'!G$5 -> 609.6520302 | H175: =H93/'Inputs - actual'!H$5 -> 609.6520302 | I175: =I93/'Inputs - actual'!I$5 -> 609.6520302 | J175: =J93/'Inputs - actual'!J$5 -> 609.6520302 | K175: =K93/'Inputs - actual'!K$5 -> 692.491084 | L175: =L93/'Inputs - actual'!L$5 -> 692.491084 | M175: =M93/'Inputs - actual'!M$5 -> 692.491084 | N175: =N93/'Inputs - actual'!N$5 -> 692.491084 | O175: =O93/'Inputs - actual'!O$5 -> 692.491084
A177: Wash-up account | E177: NPV | F177: =F80 -> 2021-06-30 | G177: 2022-06-30 | H177: 2023-06-30 | I177: 2024-06-30 | J177: 2025-06-30 | K177: 2026-06-30 | L177: 2027-06-30 | M177: 2028-06-30 | N177: 2029-06-30 | O177: 2030-06-30 | P177: =EOMONTH(O177, 12) -> 2031-06-30 | Q177: =EOMONTH(P177, 12) -> 2032-06-30
B178: Wash-up drawdowns will usually have a 2 year delay from when the revenue is set to allow for actual CPI information to be released.
B180: Actual net allowable revenue | D180: ANAR | F180: =F93-F132 -> 640.1346318 | G180: 672.1413633 | H180: 705.7484315 | I180: 741.0358531 | J180: 778.0876457 | K180: 928.0042828 | L180: 974.4044969 | M180: 1023.124722 | N180: 1074.280958 | O180: 1127.995006
B181: Forecast net allowable revenue | D181: FNAR | F181: =F13 -> 621.8450708 | G181: 634.2819723 | H181: 646.9676117 | I181: 659.9069639 | J181: 673.1051032 | K181: 901.4898747 | L181: 919.5196722 | M181: 937.9100656 | N181: 956.6682669 | O181: 975.8016323 | R181: Note
B182: Wash-up amount | F182: =F180-F181 -> 18.28956091 | G182: =G180-G181 -> 37.85939108 | H182: 58.7808198 | I182: 81.12888914 | J182: 104.9825425 | K182: 26.51440808 | L182: 54.88482472 | M182: 85.21465613 | N182: 117.6126909 | O182: 152.1933735
B184: Actual allowable revenue | D184: AAR | F184: =F180-F194 -> 640.1346318 | G184: 672.1413633 | H184: 726.3684344 | I184: 783.719259 | J184: 844.3582729 | K184: 1019.470553 | L184: 1092.763835 | M184: 1053.017576 | N184: 1136.159165 | O184: 1224.067649
B185: Forecast allowable revenue | D185: FAR | F185: =F181-F194 -> 621.8450708 | G185: 634.2819723 | H185: 667.5876146 | I185: 702.5903699 | J185: 739.3757304 | K185: 992.9561452 | L185: 1037.87901 | M185: 967.8029194 | N185: 1018.546474 | O185: 1071.874275
B187: Actual revenue | D187: AR | F187: =F185 -> 621.8450708 | G187: =G185 -> 634.2819723 | H187: =H185 -> 667.5876146 | I187: =I185 -> 702.5903699 | J187: 739.3757304 | K187: 992.9561452 | L187: 1037.87901 | M187: 967.8029194 | N187: 1018.546474 | O187: 1071.874275 | R187: Note
B189: Cost of debt wash-up adjustment | D189: CODW | F189: =F111 -> 0 | G189: =G111 -> 0 | H189: 0 | I189: 0 | J189: 0 | K189: 0 | L189: 0 | M189: 0 | N189: 0 | O189: 0
B191: Wash-up account balance | D191: WAB
B192: Wash-up account opening balance | D192: WABt-1 | F192: 0 | G192: =F195 -> 18.28956091 | H192: 57.27924685 | I192: 98.97992125 | J192: 143.5423636 | K192: 191.125197 | L192: 137.9848717 | M192: 83.03782322 | N192: 143.491363 | O192: 208.0936128 | P192: 277.0745287 | Q192: 161.5989239
B193: Wash-up accrual | D193: WA | F193: =F184-F187+F189 -> 18.28956091 | G193: 37.85939108 | H193: 58.7808198 | I193: 81.12888914 | J193: 104.9825425 | K193: 26.51440808 | L193: 54.88482472 | M193: 85.21465613 | N193: 117.6126909 | O193: 152.1933735 | P193: 0 | Q193: 0
B194: Wash-up (draw-down)/ draw-up | D194: WD | F194: 0 | G194: 0 | H194: =-F193*(1+'Inputs - forecast'!$P$31)^2 -> -20.62000286 | I194: =-G193*(1+'Inputs - forecast'!$P$31)^2 -> -42.68340592 | J194: =-H193*(1+'Inputs - forecast'!$P$31)^2 -> -66.27062719 | K194: =-I193*(1+'Inputs - forecast'!$P$31)^2 -> -91.46627054 | L194: =-J193*(1+'Inputs - forecast'!$P$31)^2 -> -118.3593383 | M194: =-K193*(1+'Inputs - forecast'!$P$31)^2 -> -29.89285381 | N194: =-L193*(1+'Inputs - forecast'!$P$31)^2 -> -61.87820738 | O194: =-M193*(1+'Inputs - forecast'!$P$31)^2 -> -96.07264285 | P194: =-N193*(1+'Inputs - forecast'!$P$31)^2 -> -132.5988106 | Q194: =-O193*(1+'Inputs - forecast'!$P$31)^2 -> -171.5857374 | R194: Note
B195: Wash-up account balance | D195: WABt | F195: =F192*(1+'Inputs - forecast'!$P$31)+F193+F194 -> 18.28956091 | G195: =G192*(1+'Inputs - forecast'!$P$31)+G193+G194 -> 57.27924685 | H195: =H192*(1+'Inputs - forecast'!$P$31)+H193+H194 -> 98.97992125 | I195: =I192*(1+'Inputs - forecast'!$P$31)+I193+I194 -> 143.5423636 | J195: =J192*(1+'Inputs - forecast'!$P$31)+J193+J194 -> 191.125197 | K195: =K192*(1+'Inputs - forecast'!$P$31)+K193+K194 -> 137.9848717 | L195: =L192*(1+'Inputs - forecast'!$P$31)+L193+L194 -> 83.03782322 | M195: =M192*(1+'Inputs - forecast'!$P$31)+M193+M194 -> 143.491363 | N195: =N192*(1+'Inputs - forecast'!$P$31)+N193+N194 -> 208.0936128 | O195: =O192*(1+'Inputs - forecast'!$P$31)+O193+O194 -> 277.0745287 | P195: =P192*(1+'Inputs - forecast'!$P$31)+P193+P194 -> 161.5989239 | Q195: =Q192*(1+'Inputs - forecast'!$P$31)+Q193+Q194 -> 0
B197: Test NPV=0
B198: Confirm Net Present Value (NPV) of ANAR equal AR plus CODW plus the wash-up account balance remaining at end of model period
B199: Actual net allowable revenue | D199: ANAR | E199: =-NPV('Inputs - forecast'!$P$31,F199:O199) -> -6114.855843 | F199: =F180 -> 640.1346318 | G199: 672.1413633 | H199: 705.7484315 | I199: 741.0358531 | J199: 778.0876457 | K199: 928.0042828 | L199: 974.4044969 | M199: 1023.124722 | N199: 1074.280958 | O199: 1127.995006
B200: Actual revenue | D200: AR | E200: =NPV('Inputs - forecast'!$P$31,F200:O200) -> 5962.741771 | F200: =F185 -> 621.8450708 | G200: 634.2819723 | H200: 667.5876146 | I200: 702.5903699 | J200: 739.3757304 | K200: 992.9561452 | L200: 1037.87901 | M200: 967.8029194 | N200: 1018.546474 | O200: 1071.874275
B201: Cost of debt wash-up adjustment | D201: CODW | E201: =-NPV('Inputs - forecast'!$P$31,F201:O201) -> 0 | F201: =F189 -> 0 | G201: 0 | H201: 0 | I201: 0 | J201: 0 | K201: 0 | L201: 0 | M201: 0 | N201: 0 | O201: 0
B202: Wash-up account balance | D202: WAB | E202: =NPV('Inputs - forecast'!$P$31,F202:O202) -> 152.1140723 | F202: 0 | G202: 0 | H202: 0 | I202: 0 | J202: 0 | K202: 0 | L202: 0 | M202: 0 | N202: 0 | O202: =O195 -> 277.0745287
D203: NPV | E203: =SUM(E199:E202) -> 0
B205: Actual revenue per model | E205: =-NPV('Inputs - forecast'!$P$31,F205:O205) -> -6114.855843 | F205: =F93 -> 640.1346318 | G205: 672.1413633 | H205: 705.7484315 | I205: 741.0358531 | J205: 778.0876457 | K205: 928.0042828 | L205: 974.4044969 | M205: 1023.124722 | N205: 1074.280958 | O205: 1127.995006
B206: Check to ANAR less CODW | F206: =F199+F201-F205 -> 0 | G206: =G199+G201-G205 -> 0 | H206: 0 | I206: 0 | J206: 0 | K206: 0 | L206: 0 | M206: 0 | N206: 0 | O206: 0
B208: FNAR + accrual | E208: =NPV('Inputs - forecast'!$P$31,F208:O208) -> 6114.855843 | F208: =F181+F193 -> 640.1346318 | G208: 672.1413633 | H208: 705.7484315 | I208: 741.0358531 | J208: 778.0876457 | K208: 928.0042828 | L208: 974.4044969 | M208: 1023.124722 | N208: 1074.280958 | O208: 1127.995006 | R208: Note
B209: FNAR + draw-down | E209: =NPV('Inputs - forecast'!$P$31,F209:Q209) -> 5962.741771 | F209: =F181-F194 -> 621.8450708 | G209: 634.2819723 | H209: 667.5876146 | I209: 702.5903699 | J209: 739.3757304 | K209: 992.9561452 | L209: 1037.87901 | M209: 967.8029194 | N209: 1018.546474 | O209: 1071.874275 | R209: Note
B210: Closing WAB yet to receive | E210: =NPV('Inputs - forecast'!$P$31,F210:Q210) -> 152.1140723 | F210: 0 | G210: 0 | H210: 0 | I210: 0 | J210: 0 | K210: 0 | L210: 0 | M210: 0 | N210: 0 | O210: =+O195 -> 277.0745287
D211: NPV | E211: =E208-E209-E210 -> 0

Sheet 4 Debt forecast
A1: Calculation
A3: Analysis
A10: Calculation
A11: Forecast | D11: Return over forecast period | E11: ='Inputs - forecast'!E2 -> 2020-06-30 | F11: ='Inputs - forecast'!F2 -> 2021-06-30 | G11: ='Inputs - forecast'!G2 -> 2022-06-30 | H11: ='Inputs - forecast'!H2 -> 2023-06-30 | I11: ='Inputs - forecast'!I2 -> 2024-06-30 | J11: ='Inputs - forecast'!J2 -> 2025-06-30 | K11: ='Inputs - forecast'!K2 -> 2026-06-30 | L11: ='Inputs - forecast'!L2 -> 2027-06-30 | M11: ='Inputs - forecast'!M2 -> 2028-06-30 | N11: ='Inputs - forecast'!N2 -> 2029-06-30 | O11: ='Inputs - forecast'!O2 -> 2030-06-30
A12: Building blocks
B13: Revenue | F13: =K69 -> 603.4311571 | G13: =F13*(1+'Inputs - forecast'!G4) -> 615.4997802 | H13: =G13*(1+'Inputs - forecast'!H4) -> 627.8097758 | I13: =H13*(1+'Inputs - forecast'!I4) -> 640.3659713 | J13: =I13*(1+'Inputs - forecast'!J4) -> 653.1732908 | K13: =P76 -> 927.2636233 | L13: =K13*(1+'Inputs - forecast'!L4) -> 945.8088958 | M13: =L13*(1+'Inputs - forecast'!M4) -> 964.7250737 | N13: =M13*(1+'Inputs - forecast'!N4) -> 984.0195751 | O13: =N13*(1+'Inputs - forecast'!O4) -> 1003.699967
B14: Return on debt | F14: =-SUM(F$38)*'Inputs - forecast'!F$28*'Inputs - forecast'!F$26 -> -61.5 | G14: =-SUM(G$38)*'Inputs - forecast'!G$28*'Inputs - forecast'!G$26 -> -60.639 | H14: =-SUM(H$38)*'Inputs - forecast'!H$28*'Inputs - forecast'!H$26 -> -59.245 | I14: =-SUM(I$38)*'Inputs - forecast'!I$28*'Inputs - forecast'!I$26 -> -57.2271153 | J14: =-SUM(J$38)*'Inputs - forecast'!J$28*'Inputs - forecast'!J$26 -> -54.47082123 | K14: =-SUM(K$38)*'Inputs - forecast'!K$28*'Inputs - forecast'!K$26 -> -56.12326062 | L14: =-SUM(L$38)*'Inputs - forecast'!L$28*'Inputs - forecast'!L$26 -> -48.46528541 | M14: =-SUM(M$38)*'Inputs - forecast'!M$28*'Inputs - forecast'!M$26 -> -39.79802218 | N14: =-SUM(N$38)*'Inputs - forecast'!N$28*'Inputs - forecast'!N$26 -> -29.8391755 | O14: =-SUM(O$38)*'Inputs - forecast'!O$28*'Inputs - forecast'!O$26 -> -18.05003033
B15: Return on equity | F15: =-SUM(F$38)*(1-'Inputs - forecast'!F$28)*'Inputs - forecast'!F$25 -> -123.9 | G15: =-SUM(G$38)*(1-'Inputs - forecast'!G$28)*'Inputs - forecast'!G$25 -> -122.1654 | H15: =-SUM(H$38)*(1-'Inputs - forecast'!H$28)*'Inputs - forecast'!H$25 -> -119.357 | I15: =-SUM(I$38)*(1-'Inputs - forecast'!I$28)*'Inputs - forecast'!I$25 -> -115.2917006 | J15: =-SUM(J$38)*(1-'Inputs - forecast'!J$28)*'Inputs - forecast'!J$25 -> -109.7387764 | K15: =-SUM(K$38)*(1-'Inputs - forecast'!K$28)*'Inputs - forecast'!K$25 -> -113.0678372 | L15: =-SUM(L$38)*(1-'Inputs - forecast'!L$28)*'Inputs - forecast'!L$25 -> -97.6398189 | M15: =-SUM(M$38)*(1-'Inputs - forecast'!M$28)*'Inputs - forecast'!M$25 -> -80.17845444 | N15: =-SUM(N$38)*(1-'Inputs - forecast'!N$28)*'Inputs - forecast'!N$25 -> -60.11502187 | O15: =-SUM(O$38)*(1-'Inputs - forecast'!O$28)*'Inputs - forecast'!O$25 -> -36.36420745
B16: Revaluation | F16: =F39 -> 60 | G16: =G39 -> 59.16 | H16: 57.8 | I16: 55.831332 | J16: 53.14226462 | K16: 54.7544006 | L16: 47.28320528 | M16: 38.82733871 | N16: 29.11139073 | O16: 17.60978569
B17: Tax | F17: =F60 -> -39.18072398 | G17: =G60 -> -35.8831518 | H17: -31.85484656 | I17: -26.85164855 | J17: -20.50059815 | K17: -78.8811643 | L17: -76.37641126 | M17: -70.96297803 | N17: -59.43384854 | O17: -28.79001557
B18: Opex | F18: =F26 -> -102 | G18: =G26 -> -104.04 | H18: -106.1208 | I18: -108.243216 | J18: -110.4080803 | K18: -130.1807194 | L18: -132.7843338 | M18: -135.4400204 | N18: -138.1488208 | O18: -140.9117973
B19: Depreciation | F19: =F41 -> -306 | G19: =G41 -> -335.24 | H19: -368.475 | I19: -406.7711331 | J19: -451.7092492 | K19: -558.4948861 | L19: -602.8608673 | M19: -660.0647581 | N19: -742.3404637 | O19: -898.0990702
B20: Net revenue | F20: =SUM(F13:F19) -> 30.8504331 | G20: 16.69222843 | H20: 0.5571292615 | I20: -18.18751023 | J20: -40.51197 | K20: 45.27015622 | L20: 34.9653844 | M20: 17.10817916 | N20: -16.74636459 | O20: -100.9053685
B21: Present value | F21: =F20/'Inputs - forecast'!F$36 -> 29.05484375 | G21: =G20/'Inputs - forecast'!G$36 -> 14.80569768 | H21: =H20/'Inputs - forecast'!H$36 -> 0.4654015293 | I21: =I20/'Inputs - forecast'!I$36 -> -14.3087721 | J21: =J20/'Inputs - forecast'!J$36 -> -30.01717087 | K21: =K20/'Inputs - forecast'!K$36 -> 31.59043943 | L21: =L20/'Inputs - forecast'!L$36 -> 22.97943043 | M21: =M20/'Inputs - forecast'!M$36 -> 10.58917247 | N21: =N20/'Inputs - forecast'!N$36 -> -9.761938179 | O21: =O20/'Inputs - forecast'!O$36 -> -55.39710415
B22: Sum of present values | O22: =SUM(F21:O21) -> 4.618527782e-12
A24: Regulatory cashflows
B25: Revenue | F25: =F13 -> 603.4311571 | G25: =G13 -> 615.4997802 | H25: 627.8097758 | I25: 640.3659713 | J25: 653.1732908 | K25: 927.2636233 | L25: 945.8088958 | M25: 964.7250737 | N25: 984.0195751 | O25: 1003.699967
B26: Opex | F26: =-'Inputs - forecast'!F$16 -> -102 | G26: =-'Inputs - forecast'!G$16 -> -104.04 | H26: =-'Inputs - forecast'!H$16 -> -106.1208 | I26: =-'Inputs - forecast'!I$16 -> -108.243216 | J26: =-'Inputs - forecast'!J$16 -> -110.4080803 | K26: =-'Inputs - forecast'!K$16 -> -130.1807194 | L26: =-'Inputs - forecast'!L$16 -> -132.7843338 | M26: =-'Inputs - forecast'!M$16 -> -135.4400204 | N26: =-'Inputs - forecast'!N$16 -> -138.1488208 | O26: =-'Inputs - forecast'!O$16 -> -140.9117973
B27: Tax | F27: =F17 -> -39.18072398 | G27: =G17 -> -35.8831518 | H27: -31.85484656 | I27: -26.85164855 | J27: -20.50059815 | K27: -78.8811643 | L27: -76.37641126 | M27: -70.96297803 | N27: -59.43384854 | O27: -28.79001557
B28: Capex | F28: =-'Inputs - forecast'!F$17 -> -204 | G28: =-'Inputs - forecast'!G$17 -> -208.08 | H28: =-'Inputs - forecast'!H$17 -> -212.2416 | I28: =-'Inputs - forecast'!I$17 -> -216.486432 | J28: =-'Inputs - forecast'!J$17 -> -220.8161606 | K28: =-'Inputs - forecast'!K$17 -> -130.1807194 | L28: =-'Inputs - forecast'!L$17 -> -132.7843338 | M28: =-'Inputs - forecast'!M$17 -> -135.4400204 | N28: =-'Inputs - forecast'!N$17 -> -138.1488208 | O28: =-'Inputs - forecast'!O$17 -> 0
B29: Opening RAB | E29: =-'Inputs - forecast'!E$18 -> -3000
B30: Closing RAB | J30: =-(J45+J46-J42) -> -258.3576232 | O30: =O42 -> 0
B31: Sum | E31: =SUM(E25:E30) -> -3000 | F31: =SUM(F25:F30) -> 258.2504331 | G31: 267.4966284 | H31: 277.5925293 | I31: 288.7846748 | J31: 43.09082844 | K31: 588.0210202 | L31: 603.863817 | M31: 622.8820548 | N31: 648.2880849 | O31: 833.9981538
B32: Present value | E32: =E31/'Inputs - forecast'!E$36 -> -3000 | F32: =F31/'Inputs - forecast'!F$36 -> 243.2194699 | G32: =G31/'Inputs - forecast'!G$36 -> 237.2645587 | H32: =H31/'Inputs - forecast'!H$36 -> 231.8887134 | I32: =I31/'Inputs - forecast'!I$36 -> 227.1973484 | J32: =J31/'Inputs - forecast'!J$36 -> 31.927965 | K32: =K31/'Inputs - forecast'!K$36 -> 410.3330754 | L32: =L31/'Inputs - forecast'!L$36 -> 396.8624058 | M32: =M31/'Inputs - forecast'!M$36 -> 385.5352133 | N32: =N31/'Inputs - forecast'!N$36 -> 377.9057941 | O32: =O31/'Inputs - forecast'!O$36 -> 457.8654561
B33: Sum of present values | O33: =SUM(E32:O32) -> 3.0127012e-12
A35: Regulatory Asset Base
B36: Useful lives | F36: 10 | G36: =F36-1 -> 9 | H36: =G36-1 -> 8 | I36: 7 | J36: 6 | K36: 5 | L36: 4 | M36: 3 | N36: 2 | O36: 1
B38: Opening RAB | F38: =E42 -> 3000 | G38: =F42 -> 2958 | H38: =G42 -> 2890 | I38: =H42 -> 2791.5666 | J38: =I42 -> 2657.113231 | K38: =J45+J46 -> 2737.72003 | L38: =K42 -> 2364.160264 | M38: =L42 -> 1941.366936 | N38: =M42 -> 1455.569537 | O38: =N42 -> 880.4892846
B39: Revaluation | F39: =F38*('Inputs - forecast'!F$4) -> 60 | G39: =G38*('Inputs - forecast'!G$4) -> 59.16 | H39: =H38*('Inputs - forecast'!H$4) -> 57.8 | I39: =I38*('Inputs - forecast'!I$4) -> 55.831332 | J39: =J38*('Inputs - forecast'!J$4) -> 53.14226462 | K39: =K38*('Inputs - forecast'!K$4) -> 54.7544006 | L39: =L38*('Inputs - forecast'!L$4) -> 47.28320528 | M39: =M38*('Inputs - forecast'!M$4) -> 38.82733871 | N39: =N38*('Inputs - forecast'!N$4) -> 29.11139073 | O39: =O38*('Inputs - forecast'!O$4) -> 17.60978569
B40: Capex | F40: =-F28 -> 204 | G40: 208.08 | H40: 212.2416 | I40: 216.486432 | J40: 220.8161606 | K40: 130.1807194 | L40: 132.7843338 | M40: 135.4400204 | N40: 138.1488208 | O40: 0
B41: Depreciation | F41: =-SUM(F38:F39)/F36 -> -306 | G41: =-SUM(G38:G39)/G36 -> -335.24 | H41: -368.475 | I41: -406.7711331 | J41: -451.7092492 | K41: -558.4948861 | L41: -602.8608673 | M41: -660.0647581 | N41: -742.3404637 | O41: -898.0990702 | P41: Note
B42: Closing RAB | E42: =-E29 -> 3000 | F42: =SUM(F38:F41) -> 2958 | G42: 2890 | H42: 2791.5666 | I42: 2657.113231 | J42: 2479.362407 | K42: 2364.160264 | L42: 1941.366936 | M42: 1455.569537 | N42: 880.4892846 | O42: 0
B45: RAB adjusted for actual inflation | J45: =J42*(1-'Inputs - forecast'!J$28)/'Inputs - forecast'!J5*'Inputs - actual'!J5+J42*'Inputs - forecast'!J$28 -> 2707.51543 | P45: Note
B46: Check to actual RAB | J46: =J152-J45 -> 30.20460053 | P46: Note
A48: Tax asset base | F48: =F36 -> 10 | G48: 9 | H48: 8 | I48: 7 | J48: 6 | K48: 5 | L48: 4 | M48: 3 | N48: 2 | O48: 1
B49: Opening balance | F49: =E52 -> 3000 | G49: =F52 -> 2904 | H49: =G52 -> 2789.413333 | I49: 2652.978267 | J49: 2490.467803 | K49: 2296.205997 | L49: 1967.145517 | M49: 1608.143471 | N49: 1207.535668 | O49: 741.9166549
B50: Capex | F50: =-F28 -> 204 | G50: 208.08 | H50: 212.2416 | I50: 216.486432 | J50: 220.8161606 | K50: 130.1807194 | L50: 132.7843338 | M50: 135.4400204 | N50: 138.1488208 | O50: 0
B51: Depreciation | F51: =-F49/F48 -> -300 | G51: =-G49/G48 -> -322.6666667 | H51: -348.6766667 | I51: -378.9968952 | J51: -415.0779672 | K51: -459.2411994 | L51: -491.7863792 | M51: -536.0478238 | N51: -603.767834 | O51: -741.9166549
B52: Closing balance | E52: =E42 -> 3000 | F52: =SUM(F49:F51) -> 2904 | G52: =SUM(G49:G51) -> 2789.413333 | H52: =SUM(H49:H51) -> 2652.978267 | I52: 2490.467803 | J52: 2296.205997 | K52: 1967.145517 | L52: 1608.143471 | M52: 1207.535668 | N52: 741.9166549 | O52: 0
A54: Regulatory tax
B55: Revenue | F55: =F13 -> 603.4311571 | G55: 615.4997802 | H55: 627.8097758 | I55: 640.3659713 | J55: 653.1732908 | K55: 927.2636233 | L55: 945.8088958 | M55: 964.7250737 | N55: 984.0195751 | O55: 1003.699967
B56: Depreciation | F56: =F51 -> -300 | G56: -322.6666667 | H56: -348.6766667 | I56: -378.9968952 | J56: -415.0779672 | K56: -459.2411994 | L56: -491.7863792 | M56: -536.0478238 | N56: -603.767834 | O56: -741.9166549
B57: Opex | F57: =F18 -> -102 | G57: -104.04 | H57: -106.1208 | I57: -108.243216 | J57: -110.4080803 | K57: -130.1807194 | L57: -132.7843338 | M57: -135.4400204 | N57: -138.1488208 | O57: -140.9117973
B58: Notional interest | F58: =-'Inputs - forecast'!F$26*'Inputs - forecast'!F28*F38 -> -61.5 | G58: =-'Inputs - forecast'!G$26*'Inputs - forecast'!G28*G38 -> -60.639 | H58: =-'Inputs - forecast'!H$26*'Inputs - forecast'!H28*H38 -> -59.245 | I58: =-'Inputs - forecast'!I$26*'Inputs - forecast'!I28*I38 -> -57.2271153 | J58: =-'Inputs - forecast'!J$26*'Inputs - forecast'!J28*J38 -> -54.47082123 | K58: =-'Inputs - forecast'!K$26*'Inputs - forecast'!K28*K38 -> -56.12326062 | L58: =-'Inputs - forecast'!L$26*'Inputs - forecast'!L28*L38 -> -48.46528541 | M58: =-'Inputs - forecast'!M$26*'Inputs - forecast'!M28*M38 -> -39.79802218 | N58: =-'Inputs - forecast'!N$26*'Inputs - forecast'!N28*N38 -> -29.8391755 | O58: =-'Inputs - forecast'!O$26*'Inputs - forecast'!O28*O38 -> -18.05003033
B59: EBT | F59: =SUM(F55:F58) -> 139.9311571 | G59: =SUM(G55:G58) -> 128.1541136 | H59: 113.7673092 | I59: 95.8987448 | J59: 73.21642198 | K59: 281.7184439 | L59: 272.7728974 | M59: 253.4392073 | N59: 212.2637448 | O59: 102.8214842
B60: Calculated tax | F60: =-F59*'Inputs - forecast'!F29 -> -39.18072398 | G60: =-G59*'Inputs - forecast'!G29 -> -35.8831518 | H60: =-H59*'Inputs - forecast'!H29 -> -31.85484656 | I60: =-I59*'Inputs - forecast'!I29 -> -26.85164855 | J60: =-J59*'Inputs - forecast'!J29 -> -20.50059815 | K60: =-K59*'Inputs - forecast'!K29 -> -78.8811643 | L60: =-L59*'Inputs - forecast'!L29 -> -76.37641126 | M60: =-M59*'Inputs - forecast'!M29 -> -70.96297803 | N60: =-N59*'Inputs - forecast'!N29 -> -59.43384854 | O60: =-O59*'Inputs - forecast'!O29 -> -28.79001557
B61: Deferred tax | F61: =IF(F60>0,F60,0) -> 0 | G61: =IF(G60>0,G60,0) -> 0 | H61: =IF(H60>0,H60,0) -> 0 | I61: =IF(I60>0,I60,0) -> 0 | J61: =IF(J60>0,J60,0) -> 0 | K61: 0 | L61: 0 | M61: 0 | N61: 0 | O61: 0
B62: Tax | F62: =IF(F61>0,0,F60+E61) -> -39.18072398 | G62: -35.8831518 | H62: -31.85484656 | I62: -26.85164855 | J62: -20.50059815 | K62: -78.8811643 | L62: -76.37641126 | M62: -70.96297803 | N62: -59.43384854 | O62: -28.79001557
A64: Reg Period 1
A65: Calculation of revenue | K65: Sum
B66: Present value of revenue | F66: =F13/'Inputs - forecast'!F$36 -> 568.3096224 | G66: =G13/'Inputs - forecast'!G$36 -> 545.9369136 | H66: =H13/'Inputs - forecast'!H$36 -> 524.4449537 | I66: =I13/'Inputs - forecast'!I$36 -> 503.7990703 | J66: =J13/'Inputs - forecast'!J$36 -> 483.9659556 | K66: =SUM(F66:J66) -> 2626.456516
B67: Present value of cost | F67: =SUM(F14:F19)/'Inputs - forecast'!F$36 -> -539.2547787 | G67: =SUM(G14:G19)/'Inputs - forecast'!G$36 -> -531.1312159 | H67: =SUM(H14:H19)/'Inputs - forecast'!H$36 -> -523.9795522 | I67: =SUM(I14:I19)/'Inputs - forecast'!I$36 -> -518.1078424 | J67: =SUM(J14:J19)/'Inputs - forecast'!J$36 -> -513.9831265 | K67: =SUM(F67:J67) -> -2626.456516
B68: Difference | K68: =SUM(K66:K67) -> 4.092726158e-12
B69: Revenue | K69: 603.4311571
A71: Reg Period 2
A72: Calculation of revenue | P72: Sum
B73: Present value of revenue | K73: =K13/'Inputs - forecast'!K$36 -> 647.0634912 | L73: =L13/'Inputs - forecast'!L$36 -> 621.59047 | M73: =M13/'Inputs - forecast'!M$36 -> 597.1202481 | N73: =N13/'Inputs - forecast'!N$36 -> 573.6133481 | O73: =O13/'Inputs - forecast'!O$36 -> 551.0318469 | P73: =SUM(K73:O73) -> 2990.419404
B74: Present value of cost | K74: =SUM(K14:K19)/'Inputs - forecast'!K$36 -> -615.4730518 | L74: =SUM(L14:L19)/'Inputs - forecast'!L$36 -> -598.6110396 | M74: =SUM(M14:M19)/'Inputs - forecast'!M$36 -> -586.5310756 | N74: =SUM(N14:N19)/'Inputs - forecast'!N$36 -> -583.3752863 | O74: =SUM(O14:O19)/'Inputs - forecast'!O$36 -> -606.4289511 | P74: =SUM(K74:O74) -> -2990.419404
B75: Difference | P75: =SUM(P73:P74) -> 0
B76: Revenue | P76: 927.2636233
A78: Actual | D78: =D11 -> Return over forecast period | E78: 2020-06-30 | F78: 2021-06-30 | G78: 2022-06-30 | H78: 2023-06-30 | I78: 2024-06-30 | J78: 2025-06-30 | K78: 2026-06-30 | L78: 2027-06-30 | M78: 2028-06-30 | N78: 2029-06-30 | O78: 2030-06-30
A79: Actual regulatory cashflows
B80: Revenue (no delay in wash-ups) | F80: =F$13/'Inputs - forecast'!F$5*'Inputs - actual'!F$5+F130 -> 621.1791323 | G80: =G$13/'Inputs - forecast'!G$5*'Inputs - actual'!G$5+G130 -> 652.2380889 | H80: =H$13/'Inputs - forecast'!H$5*'Inputs - actual'!H$5+H130 -> 684.8499933 | I80: =I$13/'Inputs - forecast'!I$5*'Inputs - actual'!I$5+I130 -> 719.092493 | J80: =J$13/'Inputs - forecast'!J$5*'Inputs - actual'!J$5+J130 -> 755.0471177 | K80: =K$13/'Inputs - forecast'!K$7*'Inputs - actual'!K$5 -> 954.5360828 | L80: =L$13/'Inputs - forecast'!L$7*'Inputs - actual'!L$5 -> 1002.262887 | M80: =M$13/'Inputs - forecast'!M$7*'Inputs - actual'!M$5 -> 1052.376031 | N80: =N$13/'Inputs - forecast'!N$7*'Inputs - actual'!N$5 -> 1104.994833 | O80: =O$13/'Inputs - forecast'!O$7*'Inputs - actual'!O$5 -> 1160.244574 | P80: Note
B81: Opex | F81: =F$18/'Inputs - forecast'!F$5*'Inputs - actual'!F$5 -> -105 | G81: =G$18/'Inputs - forecast'!G$5*'Inputs - actual'!G$5 -> -110.25 | H81: =H$18/'Inputs - forecast'!H$5*'Inputs - actual'!H$5 -> -115.7625 | I81: =I$18/'Inputs - forecast'!I$5*'Inputs - actual'!I$5 -> -121.550625 | J81: =J$18/'Inputs - forecast'!J$5*'Inputs - actual'!J$5 -> -127.6281563 | K81: =K$18/'Inputs - forecast'!K$7*'Inputs - actual'!K$5 -> -134.0095641 | L81: =L$18/'Inputs - forecast'!L$7*'Inputs - actual'!L$5 -> -140.7100423 | M81: =M$18/'Inputs - forecast'!M$7*'Inputs - actual'!M$5 -> -147.7455444 | N81: =N$18/'Inputs - forecast'!N$7*'Inputs - actual'!N$5 -> -155.1328216 | O81: =O$18/'Inputs - forecast'!O$7*'Inputs - actual'!O$5 -> -162.8894627
B82: Capex | F82: =-F134 -> -210 | G82: =-G134 -> -220.5 | H82: -231.525 | I82: -243.10125 | J82: -255.2563125 | K82: -134.0095641 | L82: -140.7100423 | M82: -147.7455444 | N82: -155.1328216 | O82: 0
B83: Tax | F83: =F163+F171 -> -40.33309822 | G83: =G163+G171 -> -38.02496622 | H83: -34.74904708 | I83: -30.15278725 | J83: -23.69802588 | K83: -81.20119854 | L83: -80.9352109 | M83: -77.41038274 | N83: -66.7406393 | O83: -33.28032328
B84: Gain on RAB | J84: =-J46 -> -30.20460053 | P84: Note
B85: Nominal IRR | D85: =IRR(E85:O85,0.05) -> 0.08681385682 | E85: =-E42+SUM(E80:E83) -> -3000 | F85: =SUM(F80:F84) -> 265.8460341 | G85: 283.4631227 | H85: 302.8134463 | I85: 324.2878308 | J85: 318.2600225 | K85: 605.3157561 | L85: 639.9075915 | M85: 679.4745598 | N85: 727.9885504 | O85: =SUM(O80:O84)+O152 -> 964.0747885
B87: Real IRR | D87: =IRR(E87:O87,0.05) -> 0.04719159071 | E87: =E85 -> -3000 | F87: =F85/'Inputs - actual'!F$39 -> 256.1540135 | G87: =G85/'Inputs - actual'!G$39 -> 263.1712996 | H87: =H85/'Inputs - actual'!H$39 -> 270.886956 | I87: =I85/'Inputs - actual'!I$39 -> 279.5210813 | J87: =J85/'Inputs - actual'!J$39 -> 264.3242352 | K87: =K85/'Inputs - actual'!K$39 -> 484.4041472 | L87: =L85/'Inputs - actual'!L$39 -> 493.4170081 | M87: =M85/'Inputs - actual'!M$39 -> 504.8252082 | N87: =N85/'Inputs - actual'!N$39 -> 521.1507415 | O87: =O85/'Inputs - actual'!O$39 -> 664.9982707
B88: check to inputs | D88: =D87-'Inputs - actual'!P24 -> 0.006211198552
A90: Actual return (building blocks) using RAB
B91: Revenue | F91: =F80 -> 621.1791323 | G91: 652.2380889 | H91: 684.8499933 | I91: 719.092493 | J91: 755.0471177 | K91: 954.5360828 | L91: 1002.262887 | M91: 1052.376031 | N91: 1104.994833 | O91: 1160.244574
B92: Opex | F92: =F81 -> -105 | G92: -110.25 | H92: -115.7625 | I92: -121.550625 | J92: -127.6281563 | K92: -134.0095641 | L92: -140.7100423 | M92: -147.7455444 | N92: -155.1328216 | O92: -162.8894627
B93: Return on debt (fixed) | F93: =-F148*'Inputs - forecast'!F$26*('Inputs - actual'!F$20) -> -61.5 | G93: =-G148*'Inputs - forecast'!G$26*('Inputs - actual'!G$20) -> -61.741695 | H93: =-H148*'Inputs - forecast'!H$26*('Inputs - actual'!H$20) -> -61.47078947 | I93: =-I148*'Inputs - forecast'!I$26*('Inputs - actual'!I$20) -> -60.56097095 | J93: =-J148*'Inputs - forecast'!J$26*('Inputs - actual'!J$20) -> -58.84996382 | K93: =-K148*'Inputs - forecast'!K$26*('Inputs - actual'!K$20) -> -56.12326062 | L93: =-L148*'Inputs - forecast'!L$26*('Inputs - actual'!L$20) -> -49.3384821 | M93: =-M148*'Inputs - forecast'!M$26*('Inputs - actual'!M$20) -> -41.28346302 | N93: =-N148*'Inputs - forecast'!N$26*('Inputs - actual'!N$20) -> -31.58868338 | O93: =-O148*'Inputs - forecast'!O$26*('Inputs - actual'!O$20) -> -19.57001121
B94: Return on equity | F94: =-F148*'Inputs - actual'!F$18*(1-'Inputs - actual'!F$20) -> -179.6029412 | G94: =-G148*'Inputs - actual'!G$18*(1-'Inputs - actual'!G$20) -> -180.3087807 | H94: =-H148*'Inputs - actual'!H$18*(1-'Inputs - actual'!H$20) -> -179.5176355 | I94: =-I148*'Inputs - actual'!I$18*(1-'Inputs - actual'!I$20) -> -176.8606261 | J94: =-J148*'Inputs - actual'!J$18*(1-'Inputs - actual'!J$20) -> -171.863847 | K94: =-K148*'Inputs - actual'!K$18*(1-'Inputs - actual'!K$20) -> -163.9008565 | L94: =-L148*'Inputs - actual'!L$18*(1-'Inputs - actual'!L$20) -> -144.0867723 | M94: =-M148*'Inputs - actual'!M$18*(1-'Inputs - actual'!M$20) -> -120.5631119 | N94: =-N148*'Inputs - actual'!N$18*(1-'Inputs - actual'!N$20) -> -92.2507389 | O94: =-O148*'Inputs - actual'!O$18*(1-'Inputs - actual'!O$20) -> -57.15173289
B95: Revaluation | F95: =F149 -> 113.1 | G95: =G149 -> 113.544483 | H95: =H149 -> 113.0462811 | I95: 111.3731027 | J95: 108.2265188 | K95: 103.2120451 | L95: 90.73467195 | M95: 75.92129541 | N95: 58.09235919 | O95: 35.98972794
B96: Depreciation | F96: =F151 -> -311.31 | G96: =G151 -> -347.259387 | H96: -388.9526721 | I96: -437.9381154 | J96: -496.4927435 | K96: -568.186415 | L96: -624.372474 | M96: -696.5829199 | N96: -799.5018717 | O96: -990.6244213
B97: Tax | F97: =F163+F171 -> -40.33309822 | G97: =G163+G171 -> -38.02496622 | H97: -34.74904708 | I97: -30.15278725 | J97: -23.69802588 | K97: -81.20119854 | L97: -80.9352109 | M97: -77.41038274 | N97: -66.7406393 | O97: -33.28032328
B98: Gain on RAB | J98: =J84 -> -30.20460053 | P98: Note
B99: Nominal return | F99: =SUM(F91:F98) -> 36.53309289 | G99: 28.19774295 | H99: 17.44363025 | I99: 3.402471041 | J99: -45.46370049 | K99: 54.32683316 | L99: 53.55457726 | M99: 44.71190474 | N99: 17.87243713 | O99: -67.28164889
B100: Present value | D100: =SUM(E100:O100) -> 110.7005324 | F100: =F99/'Inputs - actual'!F$36 -> 33.81542662 | G100: =G99/'Inputs - actual'!G$36 -> 24.15856905 | H100: =H99/'Inputs - actual'!H$36 -> 13.83318426 | I100: =I99/'Inputs - actual'!I$36 -> 2.497515296 | J100: =J99/'Inputs - actual'!J$36 -> -30.88921922 | K100: =K99/'Inputs - actual'!K$36 -> 34.16527874 | L100: =L99/'Inputs - actual'!L$36 -> 31.17422057 | M100: =M99/'Inputs - actual'!M$36 -> 24.09076602 | N100: =N99/'Inputs - actual'!N$36 -> 8.913323028 | O100: =O99/'Inputs - actual'!O$36 -> -31.05853195
B102: Real return | F102: =F99/'Inputs - actual'!F39 -> 35.20119607 | G102: =G99/'Inputs - actual'!G39 -> 26.17919604 | H102: =H99/'Inputs - actual'!H39 -> 15.60449827 | I102: =I99/'Inputs - actual'!I39 -> 2.932772354 | J102: =J99/'Inputs - actual'!J39 -> -37.75892984 | K102: =K99/'Inputs - actual'!K39 -> 43.47506738 | L102: =L99/'Inputs - actual'!L39 -> 41.29461759 | M102: =M99/'Inputs - actual'!M39 -> 33.21934029 | N102: =N99/'Inputs - actual'!N39 -> 12.79447851 | O102: =O99/'Inputs - actual'!O39 -> -46.40944945
B103: Present value | D103: =SUM(E103:O103) -> 110.7005324 | F103: =F102/'Inputs - actual'!F$44 -> 33.81542662 | G103: =G102/'Inputs - actual'!G$44 -> 24.15856905 | H103: =H102/'Inputs - actual'!H$44 -> 13.83318426 | I103: =I102/'Inputs - actual'!I$44 -> 2.497515296 | J103: =J102/'Inputs - actual'!J$44 -> -30.88921922 | K103: =K102/'Inputs - actual'!K$44 -> 34.16527874 | L103: =L102/'Inputs - actual'!L$44 -> 31.17422057 | M103: =M102/'Inputs - actual'!M$44 -> 24.09076602 | N103: =N102/'Inputs - actual'!N$44 -> 8.913323028 | O103: =O102/'Inputs - actual'!O$44 -> -31.05853195
B105: Actual return on RAB | F105: =-(F93+F94)/F148 -> 0.08036764706 | G105: 0.08036764706 | H105: 0.08036764706 | I105: 0.08036764706 | J105: 0.08036764706 | K105: 0.08036764706 | L105: 0.08036764706 | M105: 0.08036764706 | N105: 0.08036764706 | O105: 0.08036764706
B106: Actual Rab revaluation | F106: =F95/F148 -> 0.0377 | G106: 0.0377 | H106: 0.0377 | I106: 0.0377 | J106: 0.0377 | K106: 0.0377 | L106: 0.0377 | M106: 0.0377 | N106: 0.0377 | O106: 0.0377
B107: Annual change in revenue | G107: =G91/F91-1 -> 0.05 | H107: 0.05 | I107: 0.05 | J107: 0.05 | K107: 0.2642073064 | L107: 0.05 | M107: 0.05 | N107: 0.05 | O107: 0.05
A109: Adjustment for fixed cost of debt | F109: 0 | G109: 0 | H109: 0 | I109: 0 | J109: 0 | K109: 0 | L109: 0 | M109: 0 | N109: 0 | O109: 0
A111: Actual return (building blocks) using actual asset base
B112: Revenue | F112: =F80 -> 621.1791323 | G112: 652.2380889 | H112: 684.8499933 | I112: 719.092493 | J112: 755.0471177 | K112: 954.5360828 | L112: 1002.262887 | M112: 1052.376031 | N112: 1104.994833 | O112: 1160.244574
B113: Opex | F113: =F81 -> -105 | G113: -110.25 | H113: -115.7625 | I113: -121.550625 | J113: -127.6281563 | K113: -134.0095641 | L113: -140.7100423 | M113: -147.7455444 | N113: -155.1328216 | O113: -162.8894627
B114: Return on debt (fixed) | F114: =-F133*'Inputs - forecast'!F$26*('Inputs - actual'!F$20) -> -61.5 | G114: =-G133*'Inputs - forecast'!G$26*('Inputs - actual'!G$20) -> -59.655 | H114: =-H133*'Inputs - forecast'!H$26*('Inputs - actual'!H$20) -> -57.54691667 | I114: =-I133*'Inputs - forecast'!I$26*('Inputs - actual'!I$20) -> -55.09981458 | J114: =-J133*'Inputs - forecast'!J$26*('Inputs - actual'!J$20) -> -52.21198812 | K114: =-K133*'Inputs - forecast'!K$26*('Inputs - actual'!K$20) -> -48.74274451 | L114: =-L133*'Inputs - forecast'!L$26*('Inputs - actual'!L$20) -> -41.74139167 | M114: =-M133*'Inputs - forecast'!M$26*('Inputs - actual'!M$20) -> -34.19059962 | N114: =-N133*'Inputs - forecast'!N$26*('Inputs - actual'!N$20) -> -25.82251674 | O114: =-O133*'Inputs - forecast'!O$26*('Inputs - actual'!O$20) -> -16.09148121
B115: Return on equity | F115: =-F133*'Inputs - actual'!F$18*(1-'Inputs - actual'!F$20) -> -179.6029412 | G115: =-G133*'Inputs - actual'!G$18*(1-'Inputs - actual'!G$20) -> -174.2148529 | H115: =-H133*'Inputs - actual'!H$18*(1-'Inputs - actual'!H$20) -> -168.0584632 | I115: =-I133*'Inputs - actual'!I$18*(1-'Inputs - actual'!I$20) -> -160.9120123 | J115: =-J133*'Inputs - actual'!J$18*(1-'Inputs - actual'!J$20) -> -152.4784818 | K115: =-K133*'Inputs - actual'!K$18*(1-'Inputs - actual'!K$20) -> -142.3469963 | L115: =-L133*'Inputs - actual'!L$18*(1-'Inputs - actual'!L$20) -> -121.9004344 | M115: =-M133*'Inputs - actual'!M$18*(1-'Inputs - actual'!M$20) -> -99.84930492 | N115: =-N133*'Inputs - actual'!N$18*(1-'Inputs - actual'!N$20) -> -75.41138138 | O115: =-O133*'Inputs - actual'!O$18*(1-'Inputs - actual'!O$20) -> -46.9931277
B116: Revaluation | F116: 0 | G116: 0 | H116: 0 | I116: 0 | J116: 0 | K116: 0 | L116: 0 | M116: 0 | N116: 0 | O116: 0 | P116: Note
B117: Depreciation | F117: =F135 -> -300 | G117: =G135 -> -323.3333333 | H117: -350.8958333 | I117: -383.9708333 | J117: -424.4877083 | K117: -475.5389708 | L117: -509.0413618 | M117: -555.9447093 | N117: -629.8174815 | O117: -784.9503031
B118: Tax | F118: =F163+F171 -> -40.33309822 | G118: =G163+G171 -> -38.02496622 | H118: -34.74904708 | I118: -30.15278725 | J118: -23.69802588 | K118: -81.20119854 | L118: -80.9352109 | M118: -77.41038274 | N118: -66.7406393 | O118: -33.28032328
B119: Gain on actual asset base | J119: =J98 -> -30.20460053 | P119: Note
B120: Nominal return | F120: =SUM(F112:F119) -> -65.25690711 | G120: =SUM(G112:G119) -> -53.24006359 | H120: -42.16276697 | I120: -32.59357946 | J120: =SUM(J112:J119) -> -55.66184327 | K120: =SUM(K112:K119) -> 72.6966085 | L120: 107.9344459 | M120: 137.2354904 | N120: 152.0699924 | O120: 116.0398766
B121: Present value | D121: =SUM(E121:O121) -> 110.7005324 | F121: =F120/'Inputs - actual'!F$36 -> -60.40250028 | G121: =G120/'Inputs - actual'!G$36 -> -45.61371294 | H121: =H120/'Inputs - actual'!H$36 -> -33.43600592 | I121: =I120/'Inputs - actual'!I$36 -> -23.92466013 | J121: =J120/'Inputs - actual'!J$36 -> -37.81810236 | K121: =K120/'Inputs - actual'!K$36 -> 45.71773742 | L121: =L120/'Inputs - actual'!L$36 -> 62.82884481 | M121: =M120/'Inputs - actual'!M$36 -> 73.94245686 | N121: =N120/'Inputs - actual'!N$36 -> 75.84018646 | O121: =O120/'Inputs - actual'!O$36 -> 53.56628848
B123: Real return | F123: =F120/'Inputs - actual'!F$39 -> -62.87781843 | G123: =G120/'Inputs - actual'!G$39 -> -49.42885196 | H123: =H120/'Inputs - actual'!H$39 -> -37.7174255 | I123: =I120/'Inputs - actual'!I$39 -> -28.09415498 | J123: =J120/'Inputs - actual'!J$39 -> -46.22878499 | K123: =K120/'Inputs - actual'!K$39 -> 58.17548658 | L123: =L120/'Inputs - actual'!L$39 -> 83.22559705 | M123: =M120/'Inputs - actual'!M$39 -> 101.9610433 | N123: =N120/'Inputs - actual'!N$39 -> 108.8635106 | O123: =O120/'Inputs - actual'!O$39 -> 80.04183718
B124: Present value | D124: =SUM(E124:O124) -> 110.7005324 | F124: =F123/'Inputs - actual'!F$44 -> -60.40250028 | G124: =G123/'Inputs - actual'!G$44 -> -45.61371294 | H124: =H123/'Inputs - actual'!H$44 -> -33.43600592 | I124: =I123/'Inputs - actual'!I$44 -> -23.92466013 | J124: =J123/'Inputs - actual'!J$44 -> -37.81810236 | K124: =K123/'Inputs - actual'!K$44 -> 45.71773742 | L124: =L123/'Inputs - actual'!L$44 -> 62.82884481 | M124: =M123/'Inputs - actual'!M$44 -> 73.94245686 | N124: =N123/'Inputs - actual'!N$44 -> 75.84018646 | O124: =O123/'Inputs - actual'!O$44 -> 53.56628848
B126: Actual return on actual asset base | F126: =-(F114+F115)/F133 -> 0.08036764706 | G126: =-(G114+G115)/G133 -> 0.08036764706 | H126: 0.08036764706 | I126: 0.08036764706 | J126: 0.08036764706 | K126: 0.08036764706 | L126: 0.08036764706 | M126: 0.08036764706 | N126: 0.08036764706 | O126: 0.08036764706
B127: Actual Rab revaluation | F127: =F116/F133 -> 0 | G127: =G116/G133 -> 0 | H127: 0 | I127: 0 | J127: 0 | K127: 0 | L127: 0 | M127: 0 | N127: 0 | O127: 0
B128: Annual change in revenue | G128: =G112/F112-1 -> 0.05 | H128: =H112/G112-1 -> 0.05 | I128: 0.05 | J128: 0.05 | K128: 0.2642073064 | L128: 0.05 | M128: 0.05 | N128: 0.05 | O128: 0.05
A130: Adjustment for fixed cost of debt | F130: 0 | G130: 0 | H130: 0 | I130: 0 | J130: 0 | K130: 0 | L130: 0 | M130: 0 | N130: 0 | O130: 0
A132: Actual Asset Base
B133: Opening Asset Base | F133: =E42 -> 3000 | G133: =F136 -> 2910 | H133: 2807.166667 | I133: 2687.795833 | J133: 2546.92625 | K133: 2377.694854 | L133: 2036.165447 | M133: 1667.834128 | N133: 1259.634963 | O133: 784.9503031
B134: Capex | F134: =F$40/'Inputs - forecast'!F$5*'Inputs - actual'!F$5 -> 210 | G134: =G$40/'Inputs - forecast'!G$5*'Inputs - actual'!G$5 -> 220.5 | H134: =H$40/'Inputs - forecast'!H$5*'Inputs - actual'!H$5 -> 231.525 | I134: =I$40/'Inputs - forecast'!I$5*'Inputs - actual'!I$5 -> 243.10125 | J134: =J$40/'Inputs - forecast'!J$5*'Inputs - actual'!J$5 -> 255.2563125 | K134: =K$40/'Inputs - forecast'!K$7*'Inputs - actual'!K$5 -> 134.0095641 | L134: =L$40/'Inputs - forecast'!L$7*'Inputs - actual'!L$5 -> 140.7100423 | M134: =M$40/'Inputs - forecast'!M$7*'Inputs - actual'!M$5 -> 147.7455444 | N134: =N$40/'Inputs - forecast'!N$7*'Inputs - actual'!N$5 -> 155.1328216 | O134: =O$40/'Inputs - forecast'!O$7*'Inputs - actual'!O$5 -> 0
B135: Depreciation | F135: =-F133/F36 -> -300 | G135: -323.3333333 | H135: -350.8958333 | I135: -383.9708333 | J135: -424.4877083 | K135: -475.5389708 | L135: -509.0413618 | M135: -555.9447093 | N135: -629.8174815 | O135: -784.9503031
B136: Closing Asset Base | F136: =SUM(F133:F135) -> 2910 | G136: =SUM(G133:G135) -> 2807.166667 | H136: 2687.795833 | I136: 2546.92625 | J136: 2377.694854 | K136: 2036.165447 | L136: 1667.834128 | M136: 1259.634963 | N136: 784.9503031 | O136: 0
A138: Actual debt
B139: Opening debt | F139: =F133*'Inputs - actual'!F$20 -> 1230 | G139: =G133*'Inputs - actual'!G$20 -> 1193.1 | H139: =H133*'Inputs - actual'!H$20 -> 1150.938333 | I139: =I133*'Inputs - actual'!I$20 -> 1101.996292 | J139: =J133*'Inputs - actual'!J$20 -> 1044.239762 | K139: =K133*'Inputs - actual'!K$20 -> 974.8548902 | L139: =L133*'Inputs - actual'!L$20 -> 834.8278334 | M139: =M133*'Inputs - actual'!M$20 -> 683.8119924 | N139: =N133*'Inputs - actual'!N$20 -> 516.4503348 | O139: =O133*'Inputs - actual'!O$20 -> 321.8296243
B140: Additional borrowings for capex | F140: =F134*'Inputs - actual'!F$20 -> 86.1 | G140: =G134*'Inputs - actual'!G$20 -> 90.405 | H140: =H134*'Inputs - actual'!H$20 -> 94.92525 | I140: =I134*'Inputs - actual'!I$20 -> 99.6715125 | J140: =J134*'Inputs - actual'!J$20 -> 104.6550881 | K140: =K134*'Inputs - actual'!K$20 -> 54.94392127 | L140: =L134*'Inputs - actual'!L$20 -> 57.69111733 | M140: =M134*'Inputs - actual'!M$20 -> 60.5756732 | N140: =N134*'Inputs - actual'!N$20 -> 63.60445686 | O140: =O134*'Inputs - actual'!O$20 -> 0
B141: Repayments | F141: =F135*'Inputs - actual'!F$20 -> -123 | G141: =G135*'Inputs - actual'!G$20 -> -132.5666667 | H141: =H135*'Inputs - actual'!H$20 -> -143.8672917 | I141: =I135*'Inputs - actual'!I$20 -> -157.4280417 | J141: =J135*'Inputs - actual'!J$20 -> -174.0399604 | K141: =K135*'Inputs - actual'!K$20 -> -194.970978 | L141: =L135*'Inputs - actual'!L$20 -> -208.7069584 | M141: =M135*'Inputs - actual'!M$20 -> -227.9373308 | N141: =N135*'Inputs - actual'!N$20 -> -258.2251674 | O141: =O135*'Inputs - actual'!O$20 -> -321.8296243
B142: Closing debt | F142: =SUM(F139:F141) -> 1193.1 | G142: 1150.938333 | H142: 1101.996292 | I142: 1044.239763 | J142: 974.8548902 | K142: 834.8278334 | L142: 683.8119924 | M142: 516.4503348 | N142: 321.8296243 | O142: 0
B143: Leverage on actual asset base | F143: =IFERROR(F142/F136,0) -> 0.41 | G143: =IFERROR(G142/G136,0) -> 0.41 | H143: =IFERROR(H142/H136,0) -> 0.41 | I143: 0.41 | J143: 0.41 | K143: 0.41 | L143: 0.41 | M143: 0.41 | N143: 0.41 | O143: 0
A145: Actual RAB
B146: Useful lives | F146: =F36 -> 10 | G146: 9 | H146: 8 | I146: 7 | J146: 6 | K146: 5 | L146: 4 | M146: 3 | N146: 2 | O146: 1
B148: Opening RAB | F148: =E152 -> 3000 | G148: =F152 -> 3011.79 | H148: 2998.575096 | I148: 2954.193705 | J148: 2870.729942 | K148: 2737.72003 | L148: 2406.755224 | M148: 2013.827464 | N148: 1540.911384 | O148: 954.6346933
B149: Revaluation | F149: =E152*(1-'Inputs - actual'!F20)*('Inputs - actual'!F4)+E152*'Inputs - actual'!F20*('Inputs - forecast'!F4) -> 113.1 | G149: =F152*(1-'Inputs - actual'!G20)*('Inputs - actual'!G4)+F152*'Inputs - actual'!G20*('Inputs - forecast'!G4) -> 113.544483 | H149: =G152*(1-'Inputs - actual'!H20)*('Inputs - actual'!H4)+G152*'Inputs - actual'!H20*('Inputs - forecast'!H4) -> 113.0462811 | I149: =H152*(1-'Inputs - actual'!I20)*('Inputs - actual'!I4)+H152*'Inputs - actual'!I20*('Inputs - forecast'!I4) -> 111.3731027 | J149: =I152*(1-'Inputs - actual'!J20)*('Inputs - actual'!J4)+I152*'Inputs - actual'!J20*('Inputs - forecast'!J4) -> 108.2265188 | K149: =J152*(1-'Inputs - actual'!K20)*('Inputs - actual'!K4)+J152*'Inputs - actual'!K20*('Inputs - forecast'!K4) -> 103.2120451 | L149: =K152*(1-'Inputs - actual'!L20)*('Inputs - actual'!L4)+K152*'Inputs - actual'!L20*('Inputs - forecast'!L4) -> 90.73467195 | M149: =L152*(1-'Inputs - actual'!M20)*('Inputs - actual'!M4)+L152*'Inputs - actual'!M20*('Inputs - forecast'!M4) -> 75.92129541 | N149: =M152*(1-'Inputs - actual'!N20)*('Inputs - actual'!N4)+M152*'Inputs - actual'!N20*('Inputs - forecast'!N4) -> 58.09235919 | O149: =N152*(1-'Inputs - actual'!O20)*('Inputs - actual'!O4)+N152*'Inputs - actual'!O20*('Inputs - forecast'!O4) -> 35.98972794
B150: Capex | F150: =F134 -> 210 | G150: =G134 -> 220.5 | H150: 231.525 | I150: 243.10125 | J150: 255.2563125 | K150: 134.0095641 | L150: 140.7100423 | M150: 147.7455444 | N150: 155.1328216 | O150: 0
B151: Depreciation | F151: =-SUM(F148:F149)/F146 -> -311.31 | G151: =-SUM(G148:G149)/G146 -> -347.259387 | H151: -388.9526721 | I151: -437.9381154 | J151: -496.4927435 | K151: -568.186415 | L151: -624.372474 | M151: -696.5829199 | N151: -799.5018717 | O151: -990.6244213
B152: Closing RAB | E152: =-E29 -> 3000 | F152: =SUM(F148:F151) -> 3011.79 | G152: 2998.575096 | H152: 2954.193705 | I152: 2870.729942 | J152: =SUM(J148:J151) -> 2737.72003 | K152: 2406.755224 | L152: 2013.827464 | M152: 1540.911384 | N152: 954.6346933 | O152: 0
A155: Actual tax
B156: Revenue | F156: =F91 -> 621.1791323 | G156: 652.2380889 | H156: 684.8499933 | I156: 719.092493 | J156: 755.0471177 | K156: 954.5360828 | L156: 1002.262887 | M156: 1052.376031 | N156: 1104.994833 | O156: 1160.244574
B157: Depreciation | F157: =F135 -> -300 | G157: =G135 -> -323.3333333 | H157: -350.8958333 | I157: -383.9708333 | J157: -424.4877083 | K157: -475.5389708 | L157: -509.0413618 | M157: -555.9447093 | N157: -629.8174815 | O157: -784.9503031
B158: Opex | F158: =F92 -> -105 | G158: -110.25 | H158: -115.7625 | I158: -121.550625 | J158: -127.6281563 | K158: -134.0095641 | L158: -140.7100423 | M158: -147.7455444 | N158: -155.1328216 | O158: -162.8894627
B159: Interest | F159: =F93 -> -61.5 | G159: -61.741695 | H159: -61.47078947 | I159: -60.56097095 | J159: -58.84996382 | K159: -56.12326062 | L159: -49.3384821 | M159: -41.28346302 | N159: -31.58868338 | O159: -19.57001121
B160: EBT | F160: =SUM(F156:F159) -> 154.6791323 | G160: =SUM(G156:G159) -> 156.9130606 | H160: 156.7208705 | I160: 153.0100637 | J160: 144.0812893 | K160: 288.8642873 | L160: 303.1730007 | M160: 307.4023146 | N160: 288.4558464 | O160: 192.8347975
B161: Calculated tax | F161: =-F160*'Inputs - forecast'!F29 -> -43.31015704 | G161: =-G160*'Inputs - forecast'!G29 -> -43.93565696 | H161: =-H160*'Inputs - forecast'!H29 -> -43.88184375 | I161: =-I160*'Inputs - forecast'!I29 -> -42.84281784 | J161: =-J160*'Inputs - forecast'!J29 -> -40.34276099 | K161: =-K160*'Inputs - forecast'!K29 -> -80.88200044 | L161: =-L160*'Inputs - forecast'!L29 -> -84.8884402 | M161: =-M160*'Inputs - forecast'!M29 -> -86.07264809 | N161: =-N160*'Inputs - forecast'!N29 -> -80.767637 | O161: =-O160*'Inputs - forecast'!O29 -> -53.99374331
B162: Deferred tax | F162: =IF(F161>0,F161+E162,0) -> 0 | G162: 0 | H162: 0 | I162: 0 | J162: 0 | K162: 0 | L162: 0 | M162: 0 | N162: 0 | O162: 0
B163: Tax | F163: =IF(F162>0,0,F161+E162) -> -43.31015704 | G163: -43.93565696 | H163: -43.88184375 | I163: -42.84281784 | J163: -40.34276099 | K163: -80.88200044 | L163: -84.8884402 | M163: -86.07264809 | N163: -80.767637 | O163: -53.99374331
A165: Tax adjustment | E165: NPV | P165: Note
B166: Tax | F166: =F163 -> -43.31015704 | G166: -43.93565696 | H166: -43.88184375 | I166: -42.84281784 | J166: -40.34276099 | K166: -80.88200044 | L166: -84.8884402 | M166: -86.07264809 | N166: -80.767637 | O166: -53.99374331
B167: NPV of actual tax | E167: =SUM(F167:O167) -> -359.5535997 | F167: =F166/'Inputs - actual'!F$28 -> -39.62396307 | G167: =G166/'Inputs - actual'!G$28 -> -36.77506323 | H167: =H166/'Inputs - actual'!H$28 -> -33.603872 | I167: =I166/'Inputs - actual'!I$28 -> -30.01584915 | J167: =J166/'Inputs - actual'!J$28 -> -25.85868143 | K167: =K166/'Inputs - actual'!K$28 -> -47.43083761 | L167: =L166/'Inputs - actual'!L$28 -> -45.54341742 | M167: =M166/'Inputs - actual'!M$28 -> -42.24841087 | N167: =N166/'Inputs - actual'!N$28 -> -36.27026613 | O167: =O166/'Inputs - actual'!O$28 -> -22.1832388
B169: Forecast tax adjusted for inflation | F169: =F$17/'Inputs - forecast'!F$5*'Inputs - actual'!F$5 -> -40.33309822 | G169: =G$17/'Inputs - forecast'!G$5*'Inputs - actual'!G$5 -> -38.02496622 | H169: =H$17/'Inputs - forecast'!H$5*'Inputs - actual'!H$5 -> -34.74904708 | I169: =I$17/'Inputs - forecast'!I$5*'Inputs - actual'!I$5 -> -30.15278725 | J169: =J$17/'Inputs - forecast'!J$5*'Inputs - actual'!J$5 -> -23.69802588 | K169: =K$17/'Inputs - forecast'!K$7*'Inputs - actual'!K$5 -> -81.20119854 | L169: =L$17/'Inputs - forecast'!L$7*'Inputs - actual'!L$5 -> -80.9352109 | M169: =M$17/'Inputs - forecast'!M$7*'Inputs - actual'!M$5 -> -77.41038274 | N169: =N$17/'Inputs - forecast'!N$7*'Inputs - actual'!N$5 -> -66.7406393 | O169: =O$17/'Inputs - forecast'!O$7*'Inputs - actual'!O$5 -> -33.28032328
B170: NPV of forecast tax adjusted for inflation | E170: =SUM(F170:O170) -> -304.3345293 | F170: =F169/'Inputs - actual'!F$28 -> -36.90028629 | G170: =G169/'Inputs - actual'!G$28 -> -31.82769153 | H170: =H169/'Inputs - actual'!H$28 -> -26.61015195 | I170: =I169/'Inputs - actual'!I$28 -> -21.12516307 | J170: =J169/'Inputs - actual'!J$28 -> -15.1898305 | K170: =K169/'Inputs - actual'!K$28 -> -47.61802182 | L170: =L169/'Inputs - actual'!L$28 -> -43.42247407 | M170: =M169/'Inputs - actual'!M$28 -> -37.99657299 | N170: =N169/'Inputs - actual'!N$28 -> -29.97117211 | O170: =O169/'Inputs - actual'!O$28 -> -13.67316495
B171: Difference | E171: =E170-E167 -> 55.21907041 | F171: =F169-F166 -> 2.977058824 | G171: =G169-G166 -> 5.91069074 | H171: 9.132796672 | I171: 12.6900306 | J171: 16.64473512 | K171: -0.3191981051 | L171: 3.953229305 | M171: 8.662265355 | N171: 14.02699769 | O171: 20.71342003
A173: Real revenue | F173: =F91/'Inputs - actual'!F$5 -> 591.5991736 | G173: =G91/'Inputs - actual'!G$5 -> 591.5991736 | H173: =H91/'Inputs - actual'!H$5 -> 591.5991736 | I173: =I91/'Inputs - actual'!I$5 -> 591.5991736 | J173: =J91/'Inputs - actual'!J$5 -> 591.5991736 | K173: =K91/'Inputs - actual'!K$5 -> 712.2895216 | L173: =L91/'Inputs - actual'!L$5 -> 712.2895216 | M173: =M91/'Inputs - actual'!M$5 -> 712.2895216 | N173: =N91/'Inputs - actual'!N$5 -> 712.2895216 | O173: =O91/'Inputs - actual'!O$5 -> 712.2895216
A175: Wash-up account | E175: NPV | F175: =F78 -> 2021-06-30 | G175: 2022-06-30 | H175: 2023-06-30 | I175: 2024-06-30 | J175: 2025-06-30 | K175: 2026-06-30 | L175: 2027-06-30 | M175: 2028-06-30 | N175: 2029-06-30 | O175: 2030-06-30 | P175: =EOMONTH(O175, 12) -> 2031-06-30 | Q175: =EOMONTH(P175, 12) -> 2032-06-30
B176: Wash-up drawdowns will usually have a 2 year delay from when the revenue is set to allow for actual CPI information to be released.
B178: Actual net allowable revenue | D178: ANAR | F178: =F91-F130 -> 621.1791323 | G178: 652.2380889 | H178: 684.8499933 | I178: 719.092493 | J178: 755.0471177 | K178: 954.5360828 | L178: 1002.262887 | M178: 1052.376031 | N178: 1104.994833 | O178: 1160.244574
B179: Forecast net allowable revenue | D179: FNAR | F179: =F13 -> 603.4311571 | G179: 615.4997802 | H179: 627.8097758 | I179: 640.3659713 | J179: 653.1732908 | K179: 927.2636233 | L179: 945.8088958 | M179: 964.7250737 | N179: 984.0195751 | O179: 1003.699967 | R179: Note
B180: Wash-up amount | F180: =F178-F179 -> 17.74797521 | G180: =G178-G179 -> 36.73830868 | H180: 57.04021752 | I180: 78.72652167 | J180: 101.8738269 | K180: 27.27245951 | L180: 56.45399118 | M180: 87.65095761 | N180: 120.9752577 | O180: 156.5446078
B182: Actual allowable revenue | D182: AAR | F182: =F178-F192 -> 621.1791323 | G182: 652.2380889 | H182: 704.8594021 | I182: 760.5119691 | J182: 819.3553564 | K182: 1043.293878 | L182: 1117.117399 | M182: 1083.123527 | N182: 1168.642149 | O182: 1259.063951
B183: Forecast allowable revenue | D183: FAR | F183: =F179-F192 -> 603.4311571 | G183: 615.4997802 | H183: 647.8191845 | I183: 681.7854474 | J183: 717.4815295 | K183: 1016.021419 | L183: 1060.663408 | M183: 995.4725692 | N183: 1047.666891 | O183: 1102.519343
B185: Actual revenue | D185: AR | F185: =F183 -> 603.4311571 | G185: =G183 -> 615.4997802 | H185: =H183 -> 647.8191845 | I185: =I183 -> 681.7854474 | J185: 717.4815295 | K185: 1016.021419 | L185: 1060.663408 | M185: 995.4725692 | N185: 1047.666891 | O185: 1102.519343 | R185: Note
B187: Cost of debt wash-up adjustment | D187: CODW | F187: =F109 -> 0 | G187: =G109 -> 0 | H187: 0 | I187: 0 | J187: 0 | K187: 0 | L187: 0 | M187: 0 | N187: 0 | O187: 0
B189: Wash-up account balance | D189: WAB
B190: Wash-up account opening balance | D190: WABt-1 | F190: 0 | G190: =F193 -> 17.74797521 | H190: 55.58310876 | I190: 96.04895368 | J190: 139.2918246 | K190: 185.4656476 | L190: 135.4420889 | M190: 85.41188869 | N190: 147.5938055 | O190: 214.0430445 | P190: 284.9961365 | Q190: 166.2190646
B191: Wash-up accrual | D191: WA | F191: =F182-F185+F187 -> 17.74797521 | G191: 36.73830868 | H191: 57.04021752 | I191: 78.72652167 | J191: 101.8738269 | K191: 27.27245951 | L191: 56.45399118 | M191: 87.65095761 | N191: 120.9752577 | O191: 156.5446078 | P191: 0 | Q191: 0
B192: Wash-up (draw-down)/ draw-up | D192: WD | F192: 0 | G192: 0 | H192: =-F191*(1+'Inputs - forecast'!$P$31)^2 -> -20.00940872 | I192: =-G191*(1+'Inputs - forecast'!$P$31)^2 -> -41.41947605 | J192: =-H191*(1+'Inputs - forecast'!$P$31)^2 -> -64.30823869 | K192: =-I191*(1+'Inputs - forecast'!$P$31)^2 -> -88.75779523 | L192: =-J191*(1+'Inputs - forecast'!$P$31)^2 -> -114.8545125 | M192: =-K191*(1+'Inputs - forecast'!$P$31)^2 -> -30.74749557 | N192: =-L191*(1+'Inputs - forecast'!$P$31)^2 -> -63.64731583 | O192: =-M191*(1+'Inputs - forecast'!$P$31)^2 -> -98.81937602 | P192: =-N191*(1+'Inputs - forecast'!$P$31)^2 -> -136.3898331 | Q192: =-O191*(1+'Inputs - forecast'!$P$31)^2 -> -176.4914028 | R192: Note
B193: Wash-up account balance | D193: WABt | F193: =F190*(1+'Inputs - forecast'!$P$31)+F191+F192 -> 17.74797521 | G193: =G190*(1+'Inputs - forecast'!$P$31)+G191+G192 -> 55.58310876 | H193: =H190*(1+'Inputs - forecast'!$P$31)+H191+H192 -> 96.04895368 | I193: =I190*(1+'Inputs - forecast'!$P$31)+I191+I192 -> 139.2918246 | J193: =J190*(1+'Inputs - forecast'!$P$31)+J191+J192 -> 185.4656476 | K193: =K190*(1+'Inputs - forecast'!$P$31)+K191+K192 -> 135.4420889 | L193: =L190*(1+'Inputs - forecast'!$P$31)+L191+L192 -> 85.41188869 | M193: =M190*(1+'Inputs - forecast'!$P$31)+M191+M192 -> 147.5938055 | N193: =N190*(1+'Inputs - forecast'!$P$31)+N191+N192 -> 214.0430445 | O193: =O190*(1+'Inputs - forecast'!$P$31)+O191+O192 -> 284.9961365 | P193: =P190*(1+'Inputs - forecast'!$P$31)+P191+P192 -> 166.2190646 | Q193: =Q190*(1+'Inputs - forecast'!$P$31)+Q191+Q192 -> 0
B195: Test NPV=0
B196: Confirm Net Present Value (NPV) of ANAR equal AR plus CODW plus the wash-up account balance remaining at end of model period
B197: Actual net allowable revenue | D197: ANAR | E197: =-NPV('Inputs - forecast'!$P$31,F197:O197) -> -6118.094066 | F197: =F178 -> 621.1791323 | G197: 652.2380889 | H197: 684.8499933 | I197: 719.092493 | J197: 755.0471177 | K197: 954.5360828 | L197: 1002.262887 | M197: 1052.376031 | N197: 1104.994833 | O197: 1160.244574
B198: Actual revenue | D198: AR | E198: =NPV('Inputs - forecast'!$P$31,F198:O198) -> 5961.631027 | F198: =F183 -> 603.4311571 | G198: 615.4997802 | H198: 647.8191845 | I198: 681.7854474 | J198: 717.4815295 | K198: 1016.021419 | L198: 1060.663408 | M198: 995.4725692 | N198: 1047.666891 | O198: 1102.519343
B199: Cost of debt wash-up adjustment | D199: CODW | E199: =-NPV('Inputs - forecast'!$P$31,F199:O199) -> 0 | F199: =F187 -> 0 | G199: 0 | H199: 0 | I199: 0 | J199: 0 | K199: 0 | L199: 0 | M199: 0 | N199: 0 | O199: 0
B200: Wash-up account balance | D200: WAB | E200: =NPV('Inputs - forecast'!$P$31,F200:O200) -> 156.4630394 | F200: 0 | G200: 0 | H200: 0 | I200: 0 | J200: 0 | K200: 0 | L200: 0 | M200: 0 | N200: 0 | O200: =O193 -> 284.9961365
D201: NPV | E201: =SUM(E197:E200) -> 2.273736754e-13
B203: Actual revenue per model | E203: =-NPV('Inputs - forecast'!$P$31,F203:O203) -> -6118.094066 | F203: =F91 -> 621.1791323 | G203: 652.2380889 | H203: 684.8499933 | I203: 719.092493 | J203: 755.0471177 | K203: 954.5360828 | L203: 1002.262887 | M203: 1052.376031 | N203: 1104.994833 | O203: 1160.244574
B204: Check to ANAR less CODW | F204: =F197+F199-F203 -> 0 | G204: =G197+G199-G203 -> 0 | H204: 0 | I204: 0 | J204: 0 | K204: 0 | L204: 0 | M204: 0 | N204: 0 | O204: 0
B206: FNAR + accrual | E206: =NPV('Inputs - forecast'!$P$31,F206:O206) -> 6118.094066 | F206: =F179+F191 -> 621.1791323 | G206: 652.2380889 | H206: 684.8499933 | I206: 719.092493 | J206: 755.0471177 | K206: 954.5360828 | L206: 1002.262887 | M206: 1052.376031 | N206: 1104.994833 | O206: 1160.244574 | R206: Note
B207: FNAR + draw-down | E207: =NPV('Inputs - forecast'!$P$31,F207:Q207) -> 5961.631027 | F207: =F179-F192 -> 603.4311571 | G207: 615.4997802 | H207: 647.8191845 | I207: 681.7854474 | J207: 717.4815295 | K207: 1016.021419 | L207: 1060.663408 | M207: 995.4725692 | N207: 1047.666891 | O207: 1102.519343 | R207: Note
B208: Closing WAB yet to receive | E208: =NPV('Inputs - forecast'!$P$31,F208:Q208) -> 156.4630394 | F208: 0 | G208: 0 | H208: 0 | I208: 0 | J208: 0 | K208: 0 | L208: 0 | M208: 0 | N208: 0 | O208: =+O193 -> 284.9961365
D209: NPV | E209: =E206-E207-E208 -> -2.273736754e-13

Sheet 5 Blended CPI
A1: Calculation
A3: Analysis
A10: Calculation
A11: Forecast | D11: Return over forecast period | E11: ='Inputs - forecast'!E2 -> 2020-06-30 | F11: ='Inputs - forecast'!F2 -> 2021-06-30 | G11: ='Inputs - forecast'!G2 -> 2022-06-30 | H11: ='Inputs - forecast'!H2 -> 2023-06-30 | I11: ='Inputs - forecast'!I2 -> 2024-06-30 | J11: ='Inputs - forecast'!J2 -> 2025-06-30 | K11: ='Inputs - forecast'!K2 -> 2026-06-30 | L11: ='Inputs - forecast'!L2 -> 2027-06-30 | M11: ='Inputs - forecast'!M2 -> 2028-06-30 | N11: ='Inputs - forecast'!N2 -> 2029-06-30 | O11: ='Inputs - forecast'!O2 -> 2030-06-30
A12: Building blocks
B13: Revenue | F13: =K69 -> 603.4311571 | G13: =F13*(1+'Inputs - forecast'!G4) -> 615.4997802 | H13: =G13*(1+'Inputs - forecast'!H4) -> 627.8097758 | I13: =H13*(1+'Inputs - forecast'!I4) -> 640.3659713 | J13: =I13*(1+'Inputs - forecast'!J4) -> 653.1732908 | K13: =P76 -> 927.7021777 | L13: =K13*(1+'Inputs - forecast'!L4) -> 946.2562213 | M13: =L13*(1+'Inputs - forecast'!M4) -> 965.1813457 | N13: =M13*(1+'Inputs - forecast'!N4) -> 984.4849726 | O13: =N13*(1+'Inputs - forecast'!O4) -> 1004.174672
B14: Return on debt | F14: =-SUM(F$38)*'Inputs - forecast'!F$28*'Inputs - forecast'!F$26 -> -61.5 | G14: =-SUM(G$38)*'Inputs - forecast'!G$28*'Inputs - forecast'!G$26 -> -60.639 | H14: =-SUM(H$38)*'Inputs - forecast'!H$28*'Inputs - forecast'!H$26 -> -59.245 | I14: =-SUM(I$38)*'Inputs - forecast'!I$28*'Inputs - forecast'!I$26 -> -57.2271153 | J14: =-SUM(J$38)*'Inputs - forecast'!J$28*'Inputs - forecast'!J$26 -> -54.47082123 | K14: =-SUM(K$38)*'Inputs - forecast'!K$28*'Inputs - forecast'!K$26 -> -56.15187528 | L14: =-SUM(L$38)*'Inputs - forecast'!L$28*'Inputs - forecast'!L$26 -> -48.48863498 | M14: =-SUM(M$38)*'Inputs - forecast'!M$28*'Inputs - forecast'!M$26 -> -39.8158846 | N14: =-SUM(N$38)*'Inputs - forecast'!N$28*'Inputs - forecast'!N$26 -> -29.85132195 | O14: =-SUM(O$38)*'Inputs - forecast'!O$28*'Inputs - forecast'!O$26 -> -18.05622502
B15: Return on equity | F15: =-SUM(F$38)*(1-'Inputs - forecast'!F$28)*'Inputs - forecast'!F$25 -> -123.9 | G15: =-SUM(G$38)*(1-'Inputs - forecast'!G$28)*'Inputs - forecast'!G$25 -> -122.1654 | H15: =-SUM(H$38)*(1-'Inputs - forecast'!H$28)*'Inputs - forecast'!H$25 -> -119.357 | I15: =-SUM(I$38)*(1-'Inputs - forecast'!I$28)*'Inputs - forecast'!I$25 -> -115.2917006 | J15: =-SUM(J$38)*(1-'Inputs - forecast'!J$28)*'Inputs - forecast'!J$25 -> -109.7387764 | K15: =-SUM(K$38)*(1-'Inputs - forecast'!K$28)*'Inputs - forecast'!K$25 -> -113.1254853 | L15: =-SUM(L$38)*(1-'Inputs - forecast'!L$28)*'Inputs - forecast'!L$25 -> -97.68685973 | M15: =-SUM(M$38)*(1-'Inputs - forecast'!M$28)*'Inputs - forecast'!M$25 -> -80.21444068 | N15: =-SUM(N$38)*(1-'Inputs - forecast'!N$28)*'Inputs - forecast'!N$25 -> -60.13949251 | O15: =-SUM(O$38)*(1-'Inputs - forecast'!O$28)*'Inputs - forecast'!O$25 -> -36.37668748
B16: Revaluation | F16: =F39 -> 60 | G16: =G39 -> 59.16 | H16: 57.8 | I16: 55.831332 | J16: 53.14226462 | K16: 54.78231735 | L16: 47.30598534 | M16: 38.84476546 | N16: 29.12324092 | O16: 17.61582929
B17: Tax | F17: =F60 -> -39.18072398 | G17: -35.8831518 | H17: -31.85484656 | I17: -26.85164855 | J17: -20.50059815 | K17: -78.99594744 | L17: -76.49512453 | M17: -71.08573272 | N17: -59.56075883 | O17: -28.92119858
B18: Opex | F18: =F26 -> -102 | G18: =G26 -> -104.04 | H18: -106.1208 | I18: -108.243216 | J18: -110.4080803 | K18: -130.1807194 | L18: -132.7843338 | M18: -135.4400204 | N18: -138.1488208 | O18: -140.9117973
B19: Depreciation | F19: =F41 -> -306 | G19: -335.24 | H19: -368.475 | I19: -406.7711331 | J19: -451.7092492 | K19: -558.7796369 | L19: -603.1513131 | M19: -660.3610129 | N19: -742.6426435 | O19: -898.4072937
B20: Net revenue | F20: =SUM(F13:F19) -> 30.8504331 | G20: 16.69222843 | H20: 0.5571292615 | I20: -18.18751023 | J20: -40.51197 | K20: 45.25083072 | L20: 34.9559405 | M20: 17.10901987 | N20: -16.73482412 | O20: -100.8827007
B21: Present value | F21: =F20/'Inputs - forecast'!F$36 -> 29.05484375 | G21: =G20/'Inputs - forecast'!G$36 -> 14.80569768 | H21: =H20/'Inputs - forecast'!H$36 -> 0.4654015293 | I21: =I20/'Inputs - forecast'!I$36 -> -14.3087721 | J21: =J20/'Inputs - forecast'!J$36 -> -30.01717087 | K21: =K20/'Inputs - forecast'!K$36 -> 31.57695371 | L21: =L20/'Inputs - forecast'!L$36 -> 22.97322385 | M21: =M20/'Inputs - forecast'!M$36 -> 10.58969282 | N21: =N20/'Inputs - forecast'!N$36 -> -9.75521091 | O21: =O20/'Inputs - forecast'!O$36 -> -55.38465947
B22: Sum of present values | O22: =SUM(F21:O21) -> 4.689582056e-12
A24: Regulatory cashflows
B25: Revenue | F25: =F13 -> 603.4311571 | G25: 615.4997802 | H25: 627.8097758 | I25: 640.3659713 | J25: 653.1732908 | K25: 927.7021777 | L25: 946.2562213 | M25: 965.1813457 | N25: 984.4849726 | O25: 1004.174672
B26: Opex | F26: =-'Inputs - forecast'!F$16 -> -102 | G26: =-'Inputs - forecast'!G$16 -> -104.04 | H26: =-'Inputs - forecast'!H$16 -> -106.1208 | I26: =-'Inputs - forecast'!I$16 -> -108.243216 | J26: =-'Inputs - forecast'!J$16 -> -110.4080803 | K26: =-'Inputs - forecast'!K$16 -> -130.1807194 | L26: =-'Inputs - forecast'!L$16 -> -132.7843338 | M26: =-'Inputs - forecast'!M$16 -> -135.4400204 | N26: =-'Inputs - forecast'!N$16 -> -138.1488208 | O26: =-'Inputs - forecast'!O$16 -> -140.9117973
B27: Tax | F27: =F17 -> -39.18072398 | G27: -35.8831518 | H27: -31.85484656 | I27: -26.85164855 | J27: -20.50059815 | K27: -78.99594744 | L27: -76.49512453 | M27: -71.08573272 | N27: -59.56075883 | O27: -28.92119858
B28: Capex | F28: =-'Inputs - forecast'!F$17 -> -204 | G28: =-'Inputs - forecast'!G$17 -> -208.08 | H28: =-'Inputs - forecast'!H$17 -> -212.2416 | I28: =-'Inputs - forecast'!I$17 -> -216.486432 | J28: =-'Inputs - forecast'!J$17 -> -220.8161606 | K28: =-'Inputs - forecast'!K$17 -> -130.1807194 | L28: =-'Inputs - forecast'!L$17 -> -132.7843338 | M28: =-'Inputs - forecast'!M$17 -> -135.4400204 | N28: =-'Inputs - forecast'!N$17 -> -138.1488208 | O28: =-'Inputs - forecast'!O$17 -> 0
B29: Opening RAB | E29: =-'Inputs - forecast'!E$18 -> -3000
B30: Closing RAB | J30: =-(J44+J45-J42) -> -259.7534605 | O30: =O42 -> 0
B31: Sum | E31: =SUM(E25:E30) -> -3000 | F31: 258.2504331 | G31: 267.4966284 | H31: 277.5925293 | I31: 288.7846748 | J31: 41.69499119 | K31: 588.3447915 | L31: 604.1924292 | M31: 623.2155721 | N31: 648.6265721 | O31: 834.3416762
B32: Present value | E32: =E31/'Inputs - forecast'!E$36 -> -3000 | F32: =F31/'Inputs - forecast'!F$36 -> 243.2194699 | G32: =G31/'Inputs - forecast'!G$36 -> 237.2645587 | H32: =H31/'Inputs - forecast'!H$36 -> 231.8887134 | I32: =I31/'Inputs - forecast'!I$36 -> 227.1973484 | J32: =J31/'Inputs - forecast'!J$36 -> 30.89372536 | K32: =K31/'Inputs - forecast'!K$36 -> 410.5590096 | L32: =L31/'Inputs - forecast'!L$36 -> 397.0783715 | M32: =M31/'Inputs - forecast'!M$36 -> 385.7416451 | N32: =N31/'Inputs - forecast'!N$36 -> 378.103108 | O32: =O31/'Inputs - forecast'!O$36 -> 458.0540501
B33: Sum of present values | O33: =SUM(E32:O32) -> 2.842170943e-12
A35: Regulatory Asset Base
B36: Useful lives | F36: 10 | G36: =F36-1 -> 9 | H36: 8 | I36: 7 | J36: 6 | K36: 5 | L36: 4 | M36: 3 | N36: 2 | O36: 1
B38: Opening RAB | F38: =E42 -> 3000 | G38: =F42 -> 2958 | H38: =G42 -> 2890 | I38: =H42 -> 2791.5666 | J38: =I42 -> 2657.113231 | K38: =J44+J45 -> 2739.115867 | L38: =K42 -> 2365.299267 | M38: =L42 -> 1942.238273 | N38: =M42 -> 1456.162046 | O38: =N42 -> 880.7914644
B39: Revaluation | F39: =F38*('Inputs - forecast'!F$4) -> 60 | G39: =G38*('Inputs - forecast'!G$4) -> 59.16 | H39: =H38*('Inputs - forecast'!H$4) -> 57.8 | I39: =I38*('Inputs - forecast'!I$4) -> 55.831332 | J39: =J38*('Inputs - forecast'!J$4) -> 53.14226462 | K39: =K38*('Inputs - forecast'!K$4) -> 54.78231735 | L39: =L38*('Inputs - forecast'!L$4) -> 47.30598534 | M39: =M38*('Inputs - forecast'!M$4) -> 38.84476546 | N39: =N38*('Inputs - forecast'!N$4) -> 29.12324092 | O39: =O38*('Inputs - forecast'!O$4) -> 17.61582929
B40: Capex | F40: =-F28 -> 204 | G40: 208.08 | H40: 212.2416 | I40: 216.486432 | J40: 220.8161606 | K40: 130.1807194 | L40: 132.7843338 | M40: 135.4400204 | N40: 138.1488208 | O40: 0
B41: Depreciation | F41: =-SUM(F38:F39)/F36 -> -306 | G41: =-SUM(G38:G39)/G36 -> -335.24 | H41: -368.475 | I41: -406.7711331 | J41: -451.7092492 | K41: -558.7796369 | L41: -603.1513131 | M41: -660.3610129 | N41: -742.6426435 | O41: -898.4072937 | P41: Note
B42: Closing RAB | E42: =-E29 -> 3000 | F42: =SUM(F38:F41) -> 2958 | G42: 2890 | H42: 2791.5666 | I42: 2657.113231 | J42: 2479.362407 | K42: 2365.299267 | L42: 1942.238273 | M42: 1456.162046 | N42: 880.7914644 | O42: 0
B44: RAB adjusted for actual inflation | J44: =J42/'Inputs - actual'!J40*'Inputs - actual'!J39 -> 2703.860355 | P44: Note
B45: Difference to actual RAB | J45: =J152-J44 -> 35.25551219 | P45: Note
A48: Tax asset base | F48: =F36 -> 10 | G48: 9 | H48: 8 | I48: 7 | J48: 6 | K48: 5 | L48: 4 | M48: 3 | N48: 2 | O48: 1
B49: Opening balance | F49: =E52 -> 3000 | G49: 2904 | H49: 2789.413333 | I49: 2652.978267 | J49: 2490.467803 | K49: 2296.205997 | L49: 1967.145517 | M49: 1608.143471 | N49: 1207.535668 | O49: 741.9166549
B50: Capex | F50: =-F28 -> 204 | G50: 208.08 | H50: 212.2416 | I50: 216.486432 | J50: 220.8161606 | K50: 130.1807194 | L50: 132.7843338 | M50: 135.4400204 | N50: 138.1488208 | O50: 0
B51: Depreciation | F51: =-F49/F48 -> -300 | G51: -322.6666667 | H51: -348.6766667 | I51: -378.9968952 | J51: -415.0779672 | K51: -459.2411994 | L51: -491.7863792 | M51: -536.0478238 | N51: -603.767834 | O51: -741.9166549
B52: Closing balance | E52: =E42 -> 3000 | F52: =SUM(F49:F51) -> 2904 | G52: 2789.413333 | H52: 2652.978267 | I52: 2490.467803 | J52: 2296.205997 | K52: 1967.145517 | L52: 1608.143471 | M52: 1207.535668 | N52: 741.9166549 | O52: 0
A54: Regulatory tax
B55: Revenue | F55: =F13 -> 603.4311571 | G55: 615.4997802 | H55: 627.8097758 | I55: 640.3659713 | J55: 653.1732908 | K55: 927.7021777 | L55: 946.2562213 | M55: 965.1813457 | N55: 984.4849726 | O55: 1004.174672
B56: Depreciation | F56: =F51 -> -300 | G56: -322.6666667 | H56: -348.6766667 | I56: -378.9968952 | J56: -415.0779672 | K56: -459.2411994 | L56: -491.7863792 | M56: -536.0478238 | N56: -603.767834 | O56: -741.9166549
B57: Opex | F57: =F18 -> -102 | G57: -104.04 | H57: -106.1208 | I57: -108.243216 | J57: -110.4080803 | K57: -130.1807194 | L57: -132.7843338 | M57: -135.4400204 | N57: -138.1488208 | O57: -140.9117973
B58: Notional interest | F58: =-'Inputs - forecast'!F$26*'Inputs - forecast'!F28*F38 -> -61.5 | G58: =-'Inputs - forecast'!G$26*'Inputs - forecast'!G28*G38 -> -60.639 | H58: =-'Inputs - forecast'!H$26*'Inputs - forecast'!H28*H38 -> -59.245 | I58: =-'Inputs - forecast'!I$26*'Inputs - forecast'!I28*I38 -> -57.2271153 | J58: =-'Inputs - forecast'!J$26*'Inputs - forecast'!J28*J38 -> -54.47082123 | K58: =-'Inputs - forecast'!K$26*'Inputs - forecast'!K28*K38 -> -56.15187528 | L58: =-'Inputs - forecast'!L$26*'Inputs - forecast'!L28*L38 -> -48.48863498 | M58: =-'Inputs - forecast'!M$26*'Inputs - forecast'!M28*M38 -> -39.8158846 | N58: =-'Inputs - forecast'!N$26*'Inputs - forecast'!N28*N38 -> -29.85132195 | O58: =-'Inputs - forecast'!O$26*'Inputs - forecast'!O28*O38 -> -18.05622502
B59: EBT | F59: =SUM(F55:F58) -> 139.9311571 | G59: 128.1541136 | H59: 113.7673092 | I59: 95.8987448 | J59: 73.21642198 | K59: 282.1283837 | L59: 273.1968733 | M59: 253.8776169 | N59: 212.7169958 | O59: 103.2899949
B60: Calculated tax | F60: =-F59*'Inputs - forecast'!F29 -> -39.18072398 | G60: =-G59*'Inputs - forecast'!G29 -> -35.8831518 | H60: =-H59*'Inputs - forecast'!H29 -> -31.85484656 | I60: =-I59*'Inputs - forecast'!I29 -> -26.85164855 | J60: =-J59*'Inputs - forecast'!J29 -> -20.50059815 | K60: =-K59*'Inputs - forecast'!K29 -> -78.99594744 | L60: =-L59*'Inputs - forecast'!L29 -> -76.49512453 | M60: =-M59*'Inputs - forecast'!M29 -> -71.08573272 | N60: =-N59*'Inputs - forecast'!N29 -> -59.56075883 | O60: =-O59*'Inputs - forecast'!O29 -> -28.92119858
B61: Deferred tax | F61: =IF(F60>0,F60,0) -> 0 | G61: =IF(G60>0,G60,0) -> 0 | H61: =IF(H60>0,H60,0) -> 0 | I61: =IF(I60>0,I60,0) -> 0 | J61: =IF(J60>0,J60,0) -> 0 | K61: 0 | L61: 0 | M61: 0 | N61: 0 | O61: 0
B62: Tax | F62: =IF(F61>0,0,F60+E61) -> -39.18072398 | G62: -35.8831518 | H62: -31.85484656 | I62: -26.85164855 | J62: -20.50059815 | K62: -78.99594744 | L62: -76.49512453 | M62: -71.08573272 | N62: -59.56075883 | O62: -28.92119858
A64: Reg Period 1
A65: Calculation of revenue | K65: Sum
B66: Present value of revenue | F66: =F13/'Inputs - forecast'!F$36 -> 568.3096224 | G66: =G13/'Inputs - forecast'!G$36 -> 545.9369136 | H66: =H13/'Inputs - forecast'!H$36 -> 524.4449537 | I66: =I13/'Inputs - forecast'!I$36 -> 503.7990703 | J66: =J13/'Inputs - forecast'!J$36 -> 483.9659556 | K66: =SUM(F66:J66) -> 2626.456516
B67: Present value of cost | F67: =SUM(F14:F19)/'Inputs - forecast'!F$36 -> -539.2547787 | G67: =SUM(G14:G19)/'Inputs - forecast'!G$36 -> -531.1312159 | H67: =SUM(H14:H19)/'Inputs - forecast'!H$36 -> -523.9795522 | I67: =SUM(I14:I19)/'Inputs - forecast'!I$36 -> -518.1078424 | J67: =SUM(J14:J19)/'Inputs - forecast'!J$36 -> -513.9831265 | K67: =SUM(F67:J67) -> -2626.456516
B68: Difference | K68: =SUM(K66:K67) -> 4.092726158e-12
B69: Revenue | K69: 603.4311571
A71: Reg Period 2
A72: Calculation of revenue | P72: Sum
B73: Present value of revenue | K73: =K13/'Inputs - forecast'!K$36 -> 647.3695235 | L73: =L13/'Inputs - forecast'!L$36 -> 621.8844546 | M73: =M13/'Inputs - forecast'!M$36 -> 597.4026594 | N73: =N13/'Inputs - forecast'!N$36 -> 573.8846417 | O73: =O13/'Inputs - forecast'!O$36 -> 551.2924605 | P73: =SUM(K73:O73) -> 2991.83374
B74: Present value of cost | K74: =SUM(K14:K19)/'Inputs - forecast'!K$36 -> -615.7925698 | L74: =SUM(L14:L19)/'Inputs - forecast'!L$36 -> -598.9112308 | M74: =SUM(M14:M19)/'Inputs - forecast'!M$36 -> -586.8129666 | N74: =SUM(N14:N19)/'Inputs - forecast'!N$36 -> -583.6398526 | O74: =SUM(O14:O19)/'Inputs - forecast'!O$36 -> -606.67712 | P74: =SUM(K74:O74) -> -2991.83374
B75: Difference | P75: =SUM(P73:P74) -> 0
B76: Revenue | P76: 927.7021777
A78: Actual | D78: =D11 -> Return over forecast period | E78: =E11 -> 2020-06-30 | F78: 2021-06-30 | G78: 2022-06-30 | H78: 2023-06-30 | I78: 2024-06-30 | J78: 2025-06-30 | K78: 2026-06-30 | L78: 2027-06-30 | M78: 2028-06-30 | N78: 2029-06-30 | O78: 2030-06-30
A79: Actual regulatory cashflows
B80: Revenue (no delay in wash-ups) | F80: =F$13/'Inputs - actual'!F40*'Inputs - actual'!F39 -F81+(F$18/'Inputs - actual'!F40*'Inputs - actual'!F39) -F82+(F$28/'Inputs - actual'!F40*'Inputs - actual'!F39) -> 617.6323218 | G80: =G$13/'Inputs - actual'!G40*'Inputs - actual'!G39 -G81+(G$18/'Inputs - actual'!G40*'Inputs - actual'!G39) -G82+(G$28/'Inputs - actual'!G40*'Inputs - actual'!G39) -> 644.8329279 | H80: =H$13/'Inputs - actual'!H40*'Inputs - actual'!H39 -H81+(H$18/'Inputs - actual'!H40*'Inputs - actual'!H39) -H82+(H$28/'Inputs - actual'!H40*'Inputs - actual'!H39) -> 673.2542871 | I80: =I$13/'Inputs - actual'!I40*'Inputs - actual'!I39 -I81+(I$18/'Inputs - actual'!I40*'Inputs - actual'!I39) -I82+(I$28/'Inputs - actual'!I40*'Inputs - actual'!I39) -> 702.9521671 | J80: =J$13/'Inputs - actual'!J40*'Inputs - actual'!J39 -J81+(J$18/'Inputs - actual'!J40*'Inputs - actual'!J39) -J82+(J$28/'Inputs - actual'!J40*'Inputs - actual'!J39) -> 733.984925 | K80: =K$13/'Inputs - actual'!K40*'Inputs - actual'!K39 -K81+(K$18/'Inputs - actual'!K40*'Inputs - actual'!K39) -K82+(K$28/'Inputs - actual'!K40*'Inputs - actual'!K39) -> 947.0296235 | L80: =L$13/'Inputs - actual'!L40*'Inputs - actual'!L39 -L81+(L$18/'Inputs - actual'!L40*'Inputs - actual'!L39) -L82+(L$28/'Inputs - actual'!L40*'Inputs - actual'!L39) -> 986.1220911 | M80: =M$13/'Inputs - actual'!M40*'Inputs - actual'!M39 -M81+(M$18/'Inputs - actual'!M40*'Inputs - actual'!M39) -M82+(M$28/'Inputs - actual'!M40*'Inputs - actual'!M39) -> 1026.856688 | N80: =N$13/'Inputs - actual'!N40*'Inputs - actual'!N39 -N81+(N$18/'Inputs - actual'!N40*'Inputs - actual'!N39) -N82+(N$28/'Inputs - actual'!N40*'Inputs - actual'!N39) -> 1069.303698 | O80: =O$13/'Inputs - actual'!O40*'Inputs - actual'!O39 -O81+(O$18/'Inputs - actual'!O40*'Inputs - actual'!O39) -O82+(O$28/'Inputs - actual'!O40*'Inputs - actual'!O39) -> 1104.317895 | P80: Note
B81: Opex | F81: =F$18/'Inputs - forecast'!F7*'Inputs - actual'!F5 -> -105 | G81: =G$18/'Inputs - forecast'!G7*'Inputs - actual'!G5 -> -110.25 | H81: =H$18/'Inputs - forecast'!H7*'Inputs - actual'!H5 -> -115.7625 | I81: =I$18/'Inputs - forecast'!I7*'Inputs - actual'!I5 -> -121.550625 | J81: =J$18/'Inputs - forecast'!J7*'Inputs - actual'!J5 -> -127.6281563 | K81: =K$18/'Inputs - forecast'!K7*'Inputs - actual'!K5 -> -134.0095641 | L81: =L$18/'Inputs - forecast'!L7*'Inputs - actual'!L5 -> -140.7100423 | M81: =M$18/'Inputs - forecast'!M7*'Inputs - actual'!M5 -> -147.7455444 | N81: =N$18/'Inputs - forecast'!N7*'Inputs - actual'!N5 -> -155.1328216 | O81: =O$18/'Inputs - forecast'!O7*'Inputs - actual'!O5 -> -162.8894627
B82: Capex | F82: =-F134 -> -210 | G82: =-G134 -> -220.5 | H82: -231.525 | I82: -243.10125 | J82: -255.2563125 | K82: -134.0095641 | L82: -140.7100423 | M82: -147.7455444 | N82: -155.1328216 | O82: 0
B83: Tax | F83: =F163+F171 -> -39.86587547 | G83: =G163+G171 -> -37.14909863 | H83: -33.55537257 | I83: -28.77970587 | J83: -22.35685854 | K83: -80.37734588 | L83: -79.19384959 | M83: -74.88054419 | N83: -63.83746299 | O83: -31.53991609
B84: Gain on RAB | J84: =-J45 -> -35.25551219 | P84: Note
B85: Nominal IRR | D85: =IRR(E85:O85,0.05) -> 0.08036764706 | E85: =-E42+SUM(E80:E83) -> -3000 | F85: =SUM(F80:F84) -> 262.7664464 | G85: 276.9338293 | H85: 292.4114145 | I85: 309.5205862 | J85: 293.4880855 | K85: 598.6331495 | L85: 625.508157 | M85: 656.4850555 | N85: 695.2005919 | O85: =SUM(O80:O84)+O152 -> 909.888516
B87: Real IRR | D87: =IRR(E87:O87,0.05) -> 0.04098039216 | E87: =E85/'Inputs - actual'!E44 -> -3000 | F87: =F85/'Inputs - actual'!F39 -> 253.1866991 | G87: =G85/'Inputs - actual'!G39 -> 257.1094083 | H87: =H85/'Inputs - actual'!H39 -> 261.5816402 | I87: =I85/'Inputs - actual'!I39 -> 266.7924009 | J87: =J85/'Inputs - actual'!J39 -> 243.7504187 | K87: =K85/'Inputs - actual'!K39 -> 479.0563889 | L87: =L85/'Inputs - actual'!L39 -> 482.3139582 | M87: =M85/'Inputs - actual'!M39 -> 487.7448317 | N87: =N85/'Inputs - actual'!N39 -> 497.6785745 | O87: =O85/'Inputs - actual'!O39 -> 627.6217332
B88: check to inputs | D88: =D87-'Inputs - actual'!F42 -> -2.133848653e-13
A90: Actual return (building blocks) using RAB
B91: Revenue | F91: =F80 -> 617.6323218 | G91: 644.8329279 | H91: 673.2542871 | I91: 702.9521671 | J91: 733.984925 | K91: 947.0296235 | L91: 986.1220911 | M91: 1026.856688 | N91: 1069.303698 | O91: 1104.317895
B92: Opex | F92: =F81 -> -105 | G92: -110.25 | H92: -115.7625 | I92: -121.550625 | J92: -127.6281563 | K92: -134.0095641 | L92: -140.7100423 | M92: -147.7455444 | N92: -155.1328216 | O92: -162.8894627
B93: Return on debt (fixed) | F93: =-F148*'Inputs - forecast'!F$26*('Inputs - actual'!F$20) -> -61.5 | G93: =-G148*'Inputs - forecast'!G$26*('Inputs - actual'!G$20) -> -61.74926092 | H93: =-H148*'Inputs - forecast'!H$26*('Inputs - actual'!H$20) -> -61.48527108 | I93: =-I148*'Inputs - forecast'!I$26*('Inputs - actual'!I$20) -> -60.58147407 | J93: =-J148*'Inputs - forecast'!J$26*('Inputs - actual'!J$20) -> -58.87529849 | K93: =-K148*'Inputs - forecast'!K$26*('Inputs - actual'!K$20) -> -56.15187528 | L93: =-L148*'Inputs - forecast'!L$26*('Inputs - actual'!L$20) -> -49.36837727 | M93: =-M148*'Inputs - forecast'!M$26*('Inputs - actual'!M$20) -> -41.3117909 | N93: =-N148*'Inputs - forecast'!N$26*('Inputs - actual'!N$20) -> -31.61204528 | O93: =-O148*'Inputs - forecast'!O$26*('Inputs - actual'!O$20) -> -19.5842931
B94: Return on equity | F94: =-F148*'Inputs - actual'!F$18*(1-'Inputs - actual'!F$20) -> -179.6029412 | G94: =-G148*'Inputs - actual'!G$18*(1-'Inputs - actual'!G$20) -> -180.3308761 | H94: =-H148*'Inputs - actual'!H$18*(1-'Inputs - actual'!H$20) -> -179.5599272 | I94: =-I148*'Inputs - actual'!I$18*(1-'Inputs - actual'!I$20) -> -176.9205028 | J94: =-J148*'Inputs - actual'!J$18*(1-'Inputs - actual'!J$20) -> -171.9378337 | K94: =-K148*'Inputs - actual'!K$18*(1-'Inputs - actual'!K$20) -> -163.984422 | L94: =-L148*'Inputs - actual'!L$18*(1-'Inputs - actual'!L$20) -> -144.1740774 | M94: =-M148*'Inputs - actual'!M$18*(1-'Inputs - actual'!M$20) -> -120.6458399 | N94: =-N148*'Inputs - actual'!N$18*(1-'Inputs - actual'!N$20) -> -92.31896436 | O94: =-O148*'Inputs - actual'!O$18*(1-'Inputs - actual'!O$20) -> -57.19344132
B95: Revaluation | F95: =F149 -> 113.5100772 | G95: =G149 -> 113.9701362 | H95: 113.4828922 | I95: 111.814761 | J95: 108.6656858 | K95: 103.6390845 | L95: 91.11883442 | M95: 76.24885489 | N95: 58.34610896 | O95: 36.14657922
B96: Depreciation | F96: =F151 -> -311.3510077 | G96: =G151 -> -347.3476895 | H96: -389.095551 | I96: -438.1440883 | J96: -496.771911 | K96: -568.5509904 | L96: -624.83309 | M96: -697.1527224 | N96: -800.198549 | O96: -991.4779499
B97: Tax | F97: =F163+F171 -> -39.86587547 | G97: =G163+G171 -> -37.14909863 | H97: -33.55537257 | I97: -28.77970587 | J97: -22.35685854 | K97: -80.37734588 | L97: -79.19384959 | M97: -74.88054419 | N97: -63.83746299 | O97: -31.53991609
B98: Gain on RAB | J98: =J84 -> -35.25551219 | P98: Note
B99: Nominal return | F99: =SUM(F91:F98) -> 33.8225747 | G99: 21.97613898 | H99: 7.278557294 | I99: -11.20946801 | J99: -70.17495933 | K99: 47.59451041 | L99: 38.96148903 | M99: 21.36910159 | N99: -15.45003624 | O99: -122.2205891
B100: Present value | D100: =SUM(E100:O100) -> 2.145839062e-12 | E100: 0 | F100: =F99/'Inputs - actual'!F$36 -> 31.30654161 | G100: =G99/'Inputs - actual'!G$36 -> 18.82817614 | H100: =H99/'Inputs - actual'!H$36 -> 5.772056776 | I100: =I99/'Inputs - actual'!I$36 -> -8.22808408 | J100: =J99/'Inputs - actual'!J$36 -> -47.67869045 | K100: =K99/'Inputs - actual'!K$36 -> 29.93142836 | L100: =L99/'Inputs - actual'!L$36 -> 22.67955635 | M100: =M99/'Inputs - actual'!M$36 -> 11.51366799 | N100: =N99/'Inputs - actual'!N$36 -> -7.705225803 | O100: =O99/'Inputs - actual'!O$36 -> -56.4194269
B102: Real return | F102: =F99/'Inputs - actual'!F39 -> 32.58949597 | G102: =G99/'Inputs - actual'!G39 -> 20.40296812 | H102: =H99/'Inputs - actual'!H39 -> 6.511158119 | I102: =I99/'Inputs - actual'!I39 -> -9.662041932 | J102: =J99/'Inputs - actual'!J39 -> -58.28235135 | K102: =K99/'Inputs - actual'!K39 -> 38.08752373 | L102: =L99/'Inputs - actual'!L39 -> 30.0422461 | M102: =M99/'Inputs - actual'!M39 -> 15.87647544 | N102: =N99/'Inputs - actual'!N39 -> -11.06033582 | O102: =O99/'Inputs - actual'!O39 -> -84.30516112
B103: Present value | D103: =SUM(E103:O103) -> 2.131628207e-12 | F103: =F102/'Inputs - actual'!F$44 -> 31.30654161 | G103: =G102/'Inputs - actual'!G$44 -> 18.82817614 | H103: =H102/'Inputs - actual'!H$44 -> 5.772056776 | I103: =I102/'Inputs - actual'!I$44 -> -8.22808408 | J103: =J102/'Inputs - actual'!J$44 -> -47.67869045 | K103: =K102/'Inputs - actual'!K$44 -> 29.93142836 | L103: =L102/'Inputs - actual'!L$44 -> 22.67955635 | M103: =M102/'Inputs - actual'!M$44 -> 11.51366799 | N103: =N102/'Inputs - actual'!N$44 -> -7.705225803 | O103: =O102/'Inputs - actual'!O$44 -> -56.4194269
B105: Actual return on RAB | F105: =-(F93+F94)/F148 -> 0.08036764706 | G105: 0.08036764706 | H105: 0.08036764706 | I105: 0.08036764706 | J105: 0.08036764706 | K105: 0.08036764706 | L105: 0.08036764706 | M105: 0.08036764706 | N105: 0.08036764706 | O105: 0.08036764706
B106: Actual Rab revaluation | F106: =F95/F148 -> 0.03783669241 | G106: 0.03783669241 | H106: 0.03783669241 | I106: 0.03783669241 | J106: 0.03783669241 | K106: 0.03783669241 | L106: 0.03783669241 | M106: 0.03783669241 | N106: 0.03783669241 | O106: 0.03783669241
B107: Annual change in revenue | G107: =G91/F91-1 -> 0.04404012729 | H107: 0.04407553942 | I107: 0.04411094089 | J107: 0.04414632929 | K107: 0.2902575942 | L107: 0.04127903361 | M107: 0.04130786406 | N107: 0.04133683906 | O107: 0.03274485699
A109: Adjustment for fixed cost of debt | F109: 0 | G109: 0 | H109: 0 | I109: 0 | J109: 0 | K109: 0 | L109: 0 | M109: 0 | N109: 0 | O109: 0
A111: Actual return (building blocks) using actual asset base
B112: Revenue | F112: =F80 -> 617.6323218 | G112: 644.8329279 | H112: 673.2542871 | I112: 702.9521671 | J112: 733.984925 | K112: 947.0296235 | L112: 986.1220911 | M112: 1026.856688 | N112: 1069.303698 | O112: 1104.317895
B113: Opex | F113: =F81 -> -105 | G113: -110.25 | H113: -115.7625 | I113: -121.550625 | J113: -127.6281563 | K113: -134.0095641 | L113: -140.7100423 | M113: -147.7455444 | N113: -155.1328216 | O113: -162.8894627
B114: Return on debt (fixed) | F114: =-F133*'Inputs - forecast'!F$26*('Inputs - actual'!F$20) -> -61.5 | G114: =-G133*'Inputs - forecast'!G$26*('Inputs - actual'!G$20) -> -59.655 | H114: =-H133*'Inputs - forecast'!H$26*('Inputs - actual'!H$20) -> -57.54691667 | I114: =-I133*'Inputs - forecast'!I$26*('Inputs - actual'!I$20) -> -55.09981458 | J114: =-J133*'Inputs - forecast'!J$26*('Inputs - actual'!J$20) -> -52.21198812 | K114: =-K133*'Inputs - forecast'!K$26*('Inputs - actual'!K$20) -> -48.74274451 | L114: =-L133*'Inputs - forecast'!L$26*('Inputs - actual'!L$20) -> -41.74139167 | M114: =-M133*'Inputs - forecast'!M$26*('Inputs - actual'!M$20) -> -34.19059962 | N114: =-N133*'Inputs - forecast'!N$26*('Inputs - actual'!N$20) -> -25.82251674 | O114: =-O133*'Inputs - forecast'!O$26*('Inputs - actual'!O$20) -> -16.09148121
B115: Return on equity | F115: =-F133*'Inputs - actual'!F$18*(1-'Inputs - actual'!F$20) -> -179.6029412 | G115: =-G133*'Inputs - actual'!G$18*(1-'Inputs - actual'!G$20) -> -174.2148529 | H115: =-H133*'Inputs - actual'!H$18*(1-'Inputs - actual'!H$20) -> -168.0584632 | I115: =-I133*'Inputs - actual'!I$18*(1-'Inputs - actual'!I$20) -> -160.9120123 | J115: =-J133*'Inputs - actual'!J$18*(1-'Inputs - actual'!J$20) -> -152.4784818 | K115: =-K133*'Inputs - actual'!K$18*(1-'Inputs - actual'!K$20) -> -142.3469963 | L115: =-L133*'Inputs - actual'!L$18*(1-'Inputs - actual'!L$20) -> -121.9004344 | M115: =-M133*'Inputs - actual'!M$18*(1-'Inputs - actual'!M$20) -> -99.84930492 | N115: =-N133*'Inputs - actual'!N$18*(1-'Inputs - actual'!N$20) -> -75.41138138 | O115: =-O133*'Inputs - actual'!O$18*(1-'Inputs - actual'!O$20) -> -46.9931277
B116: Revaluation | F116: 0 | G116: 0 | H116: 0 | I116: 0 | J116: 0 | K116: 0 | L116: 0 | M116: 0 | N116: 0 | O116: 0 | P116: Note
B117: Depreciation | F117: =F135 -> -300 | G117: =G135 -> -323.3333333 | H117: -350.8958333 | I117: -383.9708333 | J117: -424.4877083 | K117: -475.5389708 | L117: -509.0413618 | M117: -555.9447093 | N117: -629.8174815 | O117: -784.9503031
B118: Tax | F118: =F163+F171 -> -39.86587547 | G118: =G163+G171 -> -37.14909863 | H118: -33.55537257 | I118: -28.77970587 | J118: -22.35685854 | K118: -80.37734588 | L118: -79.19384959 | M118: -74.88054419 | N118: -63.83746299 | O118: -31.53991609
B119: Gain on actual asset base | J119: =J98 -> -35.25551219 | P119: Note
B120: Nominal return | F120: =SUM(F112:F119) -> -68.3364948 | G120: -59.76935699 | H120: -52.56479875 | I120: -47.36082399 | J120: =SUM(J112:J119) -> -80.4337803 | K120: =SUM(K112:K119) -> 66.01400183 | L120: 93.53501139 | M120: 114.245986 | N120: 119.2820339 | O120: 61.85360402
B121: Present value | D121: =SUM(E121:O121) -> 2.199129767e-12 | F121: =F120/'Inputs - actual'!F$36 -> -63.25300002 | G121: =G120/'Inputs - actual'!G$36 -> -51.20772043 | H121: =H120/'Inputs - actual'!H$36 -> -41.68504698 | I121: =I120/'Inputs - actual'!I$36 -> -34.76425835 | J121: =J120/'Inputs - actual'!J$36 -> -54.64879993 | K121: =K120/'Inputs - actual'!K$36 -> 41.51515269 | L121: =L120/'Inputs - actual'!L$36 -> 54.44690679 | M121: =M120/'Inputs - actual'!M$36 -> 61.55571618 | N121: =N120/'Inputs - actual'!N$36 -> 59.48821035 | O121: =O120/'Inputs - actual'!O$36 -> 28.55283972
B123: Real return | F123: =F120/'Inputs - actual'!F$39 -> -65.84513277 | G123: =G120/'Inputs - actual'!G$39 -> -55.49074322 | H123: =H120/'Inputs - actual'!H$39 -> -47.02274123 | I123: =I120/'Inputs - actual'!I$39 -> -40.82283539 | J123: =J120/'Inputs - actual'!J$39 -> -66.80260151 | K123: =K120/'Inputs - actual'!K$39 -> 52.82772823 | L123: =L120/'Inputs - actual'!L$39 -> 72.1225472 | M123: =M120/'Inputs - actual'!M$39 -> 84.88066677 | N123: =N120/'Inputs - actual'!N$39 -> 85.39134358 | O123: =O120/'Inputs - actual'!O$39 -> 42.66529962
B124: Present value | D124: =SUM(E124:O124) -> 2.209787908e-12 | F124: =F123/'Inputs - actual'!F$44 -> -63.25300002 | G124: =G123/'Inputs - actual'!G$44 -> -51.20772043 | H124: =H123/'Inputs - actual'!H$44 -> -41.68504698 | I124: =I123/'Inputs - actual'!I$44 -> -34.76425835 | J124: =J123/'Inputs - actual'!J$44 -> -54.64879993 | K124: =K123/'Inputs - actual'!K$44 -> 41.51515269 | L124: =L123/'Inputs - actual'!L$44 -> 54.44690679 | M124: =M123/'Inputs - actual'!M$44 -> 61.55571618 | N124: =N123/'Inputs - actual'!N$44 -> 59.48821035 | O124: =O123/'Inputs - actual'!O$44 -> 28.55283972
B126: Actual return on actual asset base | F126: =-(F114+F115)/F133 -> 0.08036764706 | G126: =-(G114+G115)/G133 -> 0.08036764706 | H126: 0.08036764706 | I126: 0.08036764706 | J126: 0.08036764706 | K126: 0.08036764706 | L126: 0.08036764706 | M126: 0.08036764706 | N126: 0.08036764706 | O126: 0.08036764706
B127: Actual Rab revaluation | F127: =F116/F133 -> 0 | G127: =G116/G133 -> 0 | H127: 0 | I127: 0 | J127: 0 | K127: 0 | L127: 0 | M127: 0 | N127: 0 | O127: 0
B128: Annual change in revenue | G128: =G112/F112-1 -> 0.04404012729 | H128: =H112/G112-1 -> 0.04407553942 | I128: 0.04411094089 | J128: 0.04414632929 | K128: 0.2902575942 | L128: 0.04127903361 | M128: 0.04130786406 | N128: 0.04133683906 | O128: 0.03274485699
A130: Adjustment for fixed cost of debt | F130: 0 | G130: 0 | H130: 0 | I130: 0 | J130: 0 | K130: 0 | L130: 0 | M130: 0 | N130: 0 | O130: 0
